{"text_format":"1","workbook":"xlsx","n_sheets":17,"sheets":["Instructions","Linked Cells (hidden)","General Information","Building 1 Data","Building 2 Data","Building 3 Data","Building 4 Data","Building 5 Data","Building 6 Data","Building 7 Data","Building 8 Data","Building 9 Data","Building 10 Data","WWTP Energy Usage","WTP Energy Usage","Calculations","Summary Report"],"not_rendered":{"charts":13,"images":695,"macros":1,"external_links":0,"defined_names":130,"comments":0,"pivot_tables":0},"unopened":[],"bounds":{"document_bytes":16777216,"sheet_cells":100000,"rows_first":2000,"rows_last":500,"rows_between":2000,"halvings":0,"cell_chars":16384,"cell_head_chars":4096},"cells_cut":0,"cells_raw":0,"read":"whole","date_system":"1900"}

{"sheet":"Instructions","index":0,"n_rows":35,"n_cols":8,"rows_kept":35,"cut":false,"hidden":false,"merged":[[34,1,34,12],[21,1,21,12],[32,1,32,12],[26,1,26,12],[33,1,33,12],[27,1,28,12],[1,1,1,8],[16,1,16,12],[29,1,29,12],[30,1,31,12],[24,1,25,12],[2,1,2,12],[20,1,20,12],[19,1,19,12],[14,7,14,12],[3,1,3,12],[5,1,6,12],[18,1,18,12],[23,1,23,12]]}
[]
[null,"EPA Energy Use Assessment Tool \n\nVersion 2.0 for Excel 2010"]
[null,"Note: You may need to decrease your computer’s security level to allow the macros within this spreadsheet to function properly. Consult the Macro Instructions for Microsoft Excel 2007 and 2010 that are posted on EPA’s Determining Energy Usage website or email EnergyUseTool@epa.gov if you are experiencing macro related problems."]
[null,"PURPOSE: This spreadsheet-based energy use assessment tool has been designed to allow small and medium sized water and wastewater utilities to self-assess their baseline energy consumption and costs and to identify areas for improved energy efficiency and operational savings. While the tool is not equivalent to a full-scale, comprehensive energy audit, it provides the first step in establishing a baseline of energy consumption and use by collecting energy utility data and conducting a utility bill analysis. The tool includes five (5) elements to take you through the steps to create this baseline:  Instructions, General Information, Building Data, Drinking Water (Water Treatment Plant - WTP) / Wastewater (WastewaterTreatment Plant - WWTP) Energy Usage Data, and the Summary Report."]
[]
[null,"USE: The energy use assessment tool contains several separate worksheets that take you through the process to establish your energy baseline. These worksheets can be accessed using the different colored tabs located at the bottom of the screen. Descriptions of each tab are provided within the worksheet."]
[]
[]
[null,"THE FOLLOWING KEY APPLIES THROUGHOUT:",null,null,null,null,null,"Yellow boxes indicate that data can be entered by the user. "]
[]
[null,null,null,null,null,null,null,"Light blue boxes indicate that values are calculated using the input data. (They are read only.)"]
[]
[null,null,null,null,null,null,"Text in Blue","Blue text consists of instructions for that section of the tool."]
[]
[null,null,null,null,null,null,null,"White boxes with an arrow are dropdown lists. Click the arrow and select an option from the pre-populated list."]
[]
[null,"REQUIRED INFORMATION: We recommend that you compile the following required information before using the energy use assessment tool.  This will allow you to use the tool with ease and to its full capability."]
[]
[null,"  • All Plant Utility Data (use and cost information) by month (minimum of 12 months) for up to 5 years of analysis, including all Electric, Natural Gas, Fuel Oil No. 2, Water, and/or Other Utilities"]
[null,"  • List of Lighting Fixtures (by type and size) and HVAC equipment nameplate data (horsepower, efficiency rating, full load amp rating) and average motor operating amperage (for each \n    building and room)"]
[null,"  • Drinking Water Treatment Plant Information, including monthly treatment/discharge volumes, pump and motor nameplate data (horsepower, efficiency rating, full load amp rating) and   \n    average motor operating amperage"]
[null,"  • Wastewater Treatment Plant Information, including monthly treatment/discharge volumes, pump and motor nameplate data (horsepower, efficiency rating, full load amp rating) and average \n    motor operating amperage"]
[]
[null,"USER INSTRUCTIONS:"]
[null,"1. Save a new workbook under a different name. (In the Menu, click \"File\", then select \"Save As\"). If you experience difficulties opening the Excel libraries or any other macro related issues,  consult the Macro Instructions for Microsoft Excel 2007 and 2010 that are posted on EPA’s Determining Energy Use website or email EnergyUseTool@epa.gov.  You can save this file at any time, and then later resume editing or changing the entered data.  "]
[]
[null,"2. To get started, click the \"Begin Assessment\" button above or click the \"General Information\" tab below.  Begin by entering data in the \"General Information\" tab, including the background data and utility data (information from electric and gas bills). For information on how to enter data, see the Key above.     "]
[null,"3. To switch between data entry for Drinking Water Systems or Wastewater Systems, use the \"Select/Switch Template\" button at the top of the General Information tab. You can use the tool to enter data for either Drinking Water Systems or Wastewater Systems, but not both at the same time. However, if the data entered on the General Information tab are applicable to both plants, you can switch in-between templates to enter data and view the report for the selected system type. If the facility information is different, you will need to save a separate copy of the tool for each type. "]
[]
[null,"4. To continue, click the \"Building Data\" button at the top of the General Information tab. To allow entry for up to ten buildings, specify the number of buildings on-site and click the \"Set # of Buildings\" button. Note that the number of buildings that you select generates additional building tabs (the tabs in red) at the bottom of the tool. For information on how to enter data, see the Key above."]
[null,"5. Enter known data for all buildings on-site that need to be analyzed. When you are finished with the data entry on the first building tab, click the \"Save and Continue\" button. That takes you either back to the General Information tab or to the next building tab (if you have more than one) to enter additional building data.  To reset all the data for a specific tab, click on the \"Reset Data\" button."]
[]
[null,"   6. To enter plant energy data, click the \"Plant Energy Usage\" button at the top of the General Information tab.  When you are finished, click the \"Save and Continue\" button to view the \n   summary report.  To return to the General Information tab, click the \"Return to General Info\" button at the top of the WTP or WWTP Energy Usage tab."]
[null,"7. You can enter non-process energy information in the Equipment Electrical Energy Inventory table on the WTP or WWTP Energy Usage tab. A summary of the HVAC and lighting information input in the building data tabs is displayed at the top of the WTP and WWTP Energy Usage tabs. For those values to be included in the total energy use and to be displayed in the pie charts and summary report, you must enter the values into the Equipment Electrical Energy Inventory table with System Type as “Non Process HVAC” and the Equipment Type as “Other kW Load.”"]
[null,"8. When you have entered and saved all the data, you can view your energy performance report by clicking the Summary Report tab. To print the report, click the Print Summary Report button at the top."]

{"sheet":"Linked Cells (hidden)","index":1,"n_rows":202,"n_cols":30,"rows_kept":202,"cut":false,"hidden":true,"merged":[]}
["Abbreviation",null,"Number of Buildings","Transfer","Rooms and Wells",null,"Years",null,"Hrs/Day","days/wk",null,"Bldg Age"]
[" AL",null,1,0,1,null,"Choose Cost Year",null,1,1,null,1]
[" AK",null,2,1,2,null,2005,null,2,2,null,2]
[" AZ",null,null,2,3,null,2006,null,3,3,null,3]
[" AR",null,null,3,4,null,2007,null,4,4,null,4]
[" CA",null,null,4,null,null,2008,null,5,5,null,5]
[" CO",null,null,5,null,null,2009,null,6,6,null,6]
[" CT",null,null,6,null,null,2010,null,7,7,null,7]
[" DE",null,null,7,null,null,2011,null,8,null,null,8]
[" FL",null,"Treatment Vol Units",8,null,null,2012,null,9,null,null,9]
[" GA",null,"TGAL",9,null,null,2013,null,10,null,null,10]
[" HI",null,"MGAL",10,null,null,2014,null,11,null,null,11]
[" ID",null,null,null,null,null,2015,null,12,null,null,12]
[" IL",null,null,null,null,null,2016,null,13,null,null,13]
[" IN",null,null,null,null,null,2017,null,14,null,null,14]
[" IA",null,null,null,null,null,2018,null,15,null,null,15]
[" KS",null,null,null,null,null,2019,null,16,null,null,16]
[" KY",null,null,null,null,null,2020,null,17,null,null,17]
[" LA",null,null,null,null,null,2021,null,18,null,null,18]
[" ME",null,null,null,null,null,2022,null,19,null,null,19]
[" MD",null,null,null,null,null,2023,null,20,null,null,20]
[" MA",null,null,null,null,null,2024,null,21,null,null,21]
[" MI",null,null,null,null,null,2025,null,22,null,null,22]
[" MN",null,null,null,null,null,2026,null,23,null,null,23]
[" MS",null,null,null,null,null,2027,null,24,null,null,24]
[" MO",null,null,null,null,null,2028,null,null,null,null,25]
[" MT",null,null,null,null,null,2029,null,null,null,null,26,null,null,null,null,null,null,null,null,null,"new rooms"]
[" NE",null,null,null,null,null,2030,null,"Bldg1Hrs","24",null,27,null,null,null,null,null,null,null,null,null,1]
[" NV",null,null,null,null,null,null,null,"Bldg1Days","7",null,28,null,null,null,null,null,null,null,null,null,2]
[" NH",null,null,null,null,null,null,null,"Bldg2Hrs","1",null,29,null,null,null,null,null,null,null,null,null,3]
[" NJ",null,null,null,null,null,null,null,"Bldg2Days","1",null,30,null,null,null,null,null,null,null,null,null,4]
[" NM",null,null,null,null,null,null,null,"Bldg3Hrs","",null,31,null,null,null,null,null,null,null,null,null,5]
[" NY",null,null,null,null,null,null,null,"Bldg3Days","",null,32,null,null,null,null,null,null,null,null,null,6]
[" NC",null,"Number of Units","Flocculators",null,null,null,null,"Bldg4Hrs","",null,33,null,null,null,null,null,null,null,null,null,7]
[" ND",null,1,1,null,null,null,null,"Bldg4Days","",null,34,null,null,null,null,null,null,null,null,null,8]
[" OH",null,2,2,null,null,null,null,"Bldg5Hrs","",null,35,null,null,null,null,null,null,null,null,null,9]
[" OK",null,3,3,null,null,null,null,"Bldg5Days","",null,36,null,null,null,null,null,null,null,null,null,10]
[" OR",null,4,4,null,null,null,null,"Bldg6Hrs","",null,37]
[" PA",null,5,5,null,null,null,null,"Bldg6Days","",null,38]
[" RI",null,6,6,null,null,null,null,"Bldg7Hrs","",null,39]
[" SC",null,7,null,null,null,null,null,"Bldg7Days","",null,40]
[" SD",null,8,null,null,null,null,null,"Bldg8Hrs","",null,41]
[" TN",null,9,null,null,null,null,null,"Bldg8Days","",null,42]
[" TX",null,10,null,null,null,null,null,"Bldg9Hrs","",null,43]
[" UT",null,11,null,null,null,null,null,"Bldg9Days","",null,44,null,"Waste Water Systems Type",null,null,"Waste Water System Dropdown List","Equipment Type",null,"Waste Water Equipment Type",null,"Drinking Water Systems Type",null,null,"Drinking Water Equipment Type",null,"Drinking Water Systems Type","Equipment Type",null,"HVAC Equipment"]
[" VT",null,12,null,null,null,null,null,"Bldg10Hrs","",null,45,null,"Select System Type",null,null,"Influent Pumping","Pump",null,"Select Equipment Type",null,"Select System Type",null,null,"Select Equipment Type",null,"Low Service Pumping","Pump",null,"Select Equipment"]
[" VA",null,13,null,null,null,null,null,"Bldg10Days","",null,46,null,"Aerobic Digestion",null,null,"Headworks","Drive",null,"Blower",null,"Chemical Mix and Feed",null,null,"Blower",null,null,"Pump",null,"Blower"]
[" WA",null,14,null,null,null,null,null,null,null,null,47,null,"Anaerobic Digestion",null,null,null,"Drive",null,"Compressor",null,"City Water Pumping",null,null,"Compressor",null,"Preliminary Treatment","Drive",null,"Compressor"]
[" WV",null,15,null,null,null,null,null,null,null,null,48,null,"Chemical Mixing",null,null,null,"Blower",null,"Drive",null,"Clarification",null,null,"Drive",null,null,"Pump",null,"Drive"]
[" WI",null,16,null,null,null,null,null,null,null,null,49,null,"Chlorine Disinfection",null,null,null,"Grinder",null,"Dryer",null,"Compressed Air",null,null,"Dryer",null,null,"Mixer",null,"Fan"]
[" WY",null,17,null,null,null,null,null,null,null,null,50,null,"City Water Pumping",null,null,"Primary Treatment","Fan",null,"Fan",null,"Decarbonation",null,null,"Fan",null,null,"Pump"]
[null,null,18,null,null,null,null,null,null,null,null,51,null,"Compressed Air",null,null,null,"Fan",null,"Grinder",null,"Disinfection",null,null,"Mixer",null,"Flocculation / Sedimentation","Drive"]
[null,null,19,null,null,null,null,null,null,null,null,52,null,"Dissolved Air Flotation",null,null,null,"Drive",null,"Mixer",null,"Distribution Pumping",null,null,"Other kW Load",null,null,"Pump"]
[null,null,20,null,null,null,null,null,null,null,null,53,null,"Effluent Pumping/Storage",null,null,null,"Drive",null,"Other kW Load",null,"Filtration",null,null,"Ozonator",null,null,"Pump"]
[null,null,null,null,null,null,null,null,null,null,null,54,null,"Filtration",null,null,null,"Pump",null,"Pump",null,"Flocculation / Sedimentation",null,null,"Pump",null,"Clarification","Drive"]
["OLD",null,null,"NEW",null,null,null,null,null,null,null,55,null,"Final Clarification",null,null,null,"Blower",null,null,null,"Internal Plant Pumping",null,null,"UV",null,null,"Drive"]
["Light Fixture","Total",null,"Select Light Fixture","Total",null,null,null,null,null,null,56,null,"Fixed Film Treatment",null,null,"Fixed Film Treatment","Fan",null,null,null,"Lighting",null,null,null,null,null,"Drive"]
["Corelight T5 retrofit ",56,null,"One F40T12 4' 40W Fluorescent Lamp, Electronic Ballast",41,null,null,null,null,null,null,57,null,"Flow Equalization Basin",null,null,null,"Pump",null,null,null,"Low Service Pumping",null,null,null,null,null,"Pump"]
["LED can/surface housing",12,null,"One F40T12 4' 40W Fluorescent Lamp, Magnetic Ballast",51,null,null,null,null,null,null,58,null,"Headworks",null,null,null,"Drive",null,null,null,"Non Process HVAC",null,null,null,null,"Recarbonation","Pump"]
["LED Incandescent can retrofit",12,null,"Two F40T12 4' 40W Fluorescent Lamps, Electronic Ballast",75,null,null,null,null,null,null,59,null,"Influent Pumping",null,null,"Secondary Treatment","Blower",null,null,null,"Odor/Taste",null,null,null,null,"Internal Plant Pumping","Pump"]
["2x4 Accord T5 fixture surface mtd",56,null,"Two F40T12 4' 40W Fluorescent Lamps, Magnetic Ballast",88,null,null,null,null,null,null,60,null,"Internal Plant Pumping",null,null,null,"Pump",null,null,null,"Other Non Process Load",null,null,null,null,"Decarbonation","Fan"]
["4' Strip (2) F32 Lamps",64,null,"Three F40T12 4' 40W Fluorescent Lamps, Electronic Ballast",110,null,null,null,null,null,null,61,null,"Lighting",null,null,null,"Pump",null,null,null,"Other",null,null,null,null,null,"Pump"]
["4' Surface Wrap (2) F32 Lamps",64,null,"Three F40T12 4' 40W Fluorescent Lamps, Magnetic Ballast",135,null,null,null,null,null,null,62,null,"Non Process HVAC",null,null,null,"Pump",null,null,null,"Preliminary Treatment",null,null,null,null,"Filtration","Blower"]
["4' Surface Wrap (4) F32 Lamps",128,null,"Four F40T12 4' 40W Fluorescent Lamps, Electronic Ballast",134,null,null,null,null,null,null,63,null,"Odor Control",null,null,"Dissolved Air Flotation","Compressor",null,null,null,"Recarbonation",null,null,null,null,null,"Pump"]
["2x4 Acrylic Troffer (2) F32 Lamps",62,null,"Four F40T12 4' 40W Fluorescent Lamps, Magnetic Ballast",175,null,null,null,null,null,null,64,null,"Other",null,null,null,"Pump",null,null,null,"Sludge Handling",null,null,null,null,null,"Pump"]
["2x4 Acrylic Troffer (3) F32 Lamps",96,null,"One F48T12 HO 4' 60W Fluorescent Lamp, ES Magnetic Ballast",82,null,null,null,null,null,null,65,null,"Primary Treatment",null,null,"Flow Equalization Basin","Pump",null,null,null,null,null,null,null,null,null,"Fan"]
["2x4 Acrylic Troffer (4) F32 Lamps",128,null,"Two F48T12 HO 4' 60W Fluorescent Lamps, Electronic Ballast",125,null,null,null,null,null,null,66,null,"Secondary Treatment",null,null,"Filtration","Pump",null,null,null,null,null,null,null,null,null,"Compressor"]
["2x4 Parabolic Troffer (2) F32 Lamps",64,null,"Two F48T12 HO 4' 60W Fluorescent Lamps, ES Magnetic Ballast",142,null,null,null,null,null,null,67,null,"Sludge Handling",null,null,null,"Blower",null,null,null,null,null,null,null,null,null,"Pump"]
["2x4 Parabolic Troffer (3) F32 Lamps",96,null,"Three F48T12 HO 4' 60W Fluorescent Lamps, ES Magnetic Ballast",204,null,null,null,null,null,null,68,null,"Solids Contact",null,null,"Final Clarification","Drive",null,null,null,null,null,null,null,null,"Sludge Handling","Pump"]
["2x4 Parabolic Troffer (4) F32 Lamps",128,null,"Four F48T12 HO 4' 60W Fluorescent Lamps, ES Magnetic Ballast",263,null,null,null,null,null,null,69,null,"Ultraviolet Disinfection",null,null,"Solids Contact","Pump",null,null,null,null,null,null,null,null,null,"Drive"]
["FBAY (4)T8 LAMP ",154,null,"Two F48T12 HO 4' 60W Fluorescent Lamps, ES Magnetic Ballast",142,null,null,null,null,null,null,70,null,null,null,null,"Chlorine Disinfection","Pump",null,null,null,null,null,null,null,null,null,"Drive"]
["FBAY (6)T8 LAMP ",230,null,"One F96T12 8' 60W ES Slim Fluorescent Lamp, Electronic Ballast",69,null,null,null,null,null,null,71,null,null,null,null,"Ultraviolet Disinfection","Other kW Load",null,null,null,null,null,null,null,null,null,"Pump"]
["FBAY (8)T8 LAMP ",307,null,"One F96T12 8' 60W ES Slim Fluorescent Lamp, ES Magnetic Ballast",77,null,null,null,null,null,null,72,null,null,null,null,"Internal Plant Pumping","Pump",null,null,null,null,null,null,null,null,"Disinfection","Pump"]
["FBAY (4)T5 LAMP",216,null,"Two F96T12 8' 60W ES Slim Fluorescent Lamps, Electronic Ballast",109,null,null,null,null,null,null,73,null,null,null,null,null,"Pump",null,null,null,null,null,null,null,null,null,"Ozonator"]
["FBAY (6) T5 LAMP",324,null,"Two F96T12 8' 60W ES Slim Fluorescent Lamps, ES Magnetic Ballast",115,null,null,null,null,null,null,74,null,null,null,null,null,"Pump",null,null,null,null,null,null,null,null,null,"UV"]
["FBAY (4)T8 LAMP ",154,null,"One F96T12 8' 75W Slim Fluorescent Lamp, Electronic Ballast",84,null,null,null,null,null,null,75,null,null,null,null,"Effluent Pumping/Storage","Pump",null,null,null,null,null,null,null,null,"Odor/Taste","Fan"]
["FBAY (6)T8 LAMP ",230,null,"One F96T12 8' 75W Slim Fluorescent Lamp, ES Magnetic Ballast",95,null,null,null,null,null,null,76,null,null,null,null,null,"Mixer",null,null,null,null,null,null,null,null,null,"Pump"]
["FBAY (8)T8 LAMP ",307,null,"Two F96T12 8' 75W Slim Fluorescent Lamps, Electronic Ballast",134,null,null,null,null,null,null,77,null,null,null,null,"Aerobic Digestion","Blower",null,null,null,null,null,null,null,null,"Distribution","Pump"]
["FBAY (4)T5 LAMP",216,null,"Two F96T12 8' 75W Slim Fluorescent Lamps, ES Magnetic Ballast",142,null,null,null,null,null,null,78,null,null,null,null,"Anaerobic Digestion","Pump",null,null,null,null,null,null,null,null,"Compressed Air","Compressor"]
["FBAY (6) T5 LAMP",324,null,"One F96T12 HO 8' 95W ES Fluorescent Lamp, ES Magnetic Ballast",111,null,null,null,null,null,null,79,null,null,null,null,null,"Pump",null,null,null,null,null,null,null,null,null,"Dryer"]
["LED",6,null,"Two F96T12 HO 8' 95W ES Fluorescent Lamps, Electronic Ballast",170,null,null,null,null,null,null,80,null,null,null,null,null,"Pump",null,null,null,null,null,null,null,null,"City Water Pumping","Pump"]
["4' Strip (1) F40 T12 Lamps",44,null,"Two F96T12 HO 8' 95W ES Fluorescent Lamps, ES Magnetic Ballast",209,null,null,null,null,null,null,81,null,null,null,null,null,"Pump",null,null,null,null,null,null,null,null,"Chemical Mix and Feed","Drive"]
["4' Strip (2) F40 T12 Lamps",88,null,"One F96T12 HO 8' 110W Fluorescent Lamp, Electronic Ballast",119,null,null,null,null,null,null,82,null,null,null,null,null,"Drive",null,null,null,null,null,null,null,null,null,"Pump"]
["8' Strip (2) F60SS T12 Lamps",132,null,"One F96T12 HO 8' 110W Fluorescent Lamp, ES Magnetic Ballast",133,null,null,null,null,null,null,83,null,null,null,null,"Sludge Handling","Drive",null,null,null,null,null,null,null,null,"Lighting","Other kW Load"]
["8' Strip (2) F110HO T12 Lamps",242,null,"Two F96T12 HO 8' 110W Fluorescent Lamps, Electronic Ballast",208,null,null,null,null,null,null,84,null,null,null,null,null,"Drive",null,null,null,null,null,null,null,null,null,"Other kW Load"]
["4' Surface Wrap (2) F40 T12 Lamps",88,null,"Two F96T12 HO 8' 110W Fluorescent Lamps, ES Magnetic Ballast",246,null,null,null,null,null,null,85,null,null,null,null,null,"Pump",null,null,null,null,null,null,null,null,"Non Process HVAC","Fan"]
["4' Surface Wrap (4) F40 T12 Lamps",154,null,"One F28T8 4' 28W Fluorescent Lamp, Electronic Ballast",25,null,null,null,null,null,null,86,null,null,null,null,null,"Pump",null,null,null,null,null,null,null,null,null,"Fan"]
["2x4 Acrylic Troffer (2) F40 T12 Lamps",88,null,"Two F28T8 4' 28W Fluorescent Lamps, Electronic Ballast",49,null,null,null,null,null,null,87,null,null,null,null,"Odor Control","Fan",null,null,null,null,null,null,null,null,null,"Compressor"]
["2x4 Acrylic Troffer (3) F40 T12 Lamps",132,null,"Three F28T8 4' 28W Fluorescent Lamps, Electronic Ballast",72,null,null,null,null,null,null,88,null,null,null,null,null,"Pump",null,null,null,null,null,null,null,null,null,"Fan"]
["2x4 Acrylic Troffer (4) F40 T12 Lamps",154,null,"Four F28T8 4' 28W Fluorescent Lamps, Electronic Ballast",98,null,null,null,null,null,null,89,null,null,null,null,"Compressed Air","Compressor",null,null,null,null,null,null,null,null,"Other Non Process Load","Other kW Load"]
["2x4 Parabolic Troffer (2) F40 T12 Lamps",88,null,"One F32T8 4' 32W Fluorescent Lamp, Electronic Ballast",33,null,null,null,null,null,null,90,null,null,null,null,null,"Dryer",null,null,null,null,null,null,null,null,"Other:__________________","Other kW Load"]
["2x4 Parabolic Troffer (3) F40 T12 Lamps",132,null,"Two F32T8 4' 32W Fluorescent Lamps, Electronic Ballast",62,null,null,null,null,null,null,91,null,null,null,null,"City Water Pumping","Pump"]
["2x4 Parabolic Troffer (4) F40 T12 Lamps",154,null,"Three F32T8 4' 32W Fluorescent Lamps, Electronic Ballast",86,null,null,null,null,null,null,92,null,null,null,null,"Chemical Mixing","Drive"]
["Keyless Lamp holder",200,null,"Four F32T8 4' 32W Fluorescent Lamps, Electronic Ballast",107,null,null,null,null,null,null,93,null,null,null,null,"Lighting","Other kW Load"]
["High Bay (1) Metal Halide 400 Lamp",450,null,"Six F32T8 4' 32W Fluorescent Lamps, Electronic Ballast",172,null,null,null,null,null,null,94,null,null,null,null,null,"Other kW Load"]
["High Bay (1) Metal Halide 1000 Lamp",1100,null,"Eight F32T8 4' 32W Fluorescent Lamps, Electronic Ballast",214,null,null,null,null,null,null,95,null,null,null,null,"Non Process HVAC","Fan"]
["Surface incandescent 100W",100,null,"One F96T8 8' 59W Fluorescent Lamp, Electronic Ballast",75,null,null,null,null,null,null,96,null,null,null,null,null,"Fan"]
["Surface incandescent 150W",150,null,"Two F96T8 8' 59W Fluorescent Lamps, Electronic Ballast",124,null,null,null,null,null,null,97,null,null,null,null,null,"Compressor"]
["Surface incandescent 200W",200,null,"One F96T8 HO 8' 86W Fluorescent Lamp, Electronic Ballast",88,null,null,null,null,null,null,98,null,null,null,null,null,"Fan"]
["24\" WALL BRACKET (3) 100W A19",300,null,"Two F96T8 HO 8' 86W Fluorescent Lamps, Electronic Ballast",150,null,null,null,null,null,null,99,null,null,null,null,null,"Other kW Load"]
["36\" WALL BRACKET (4) 100W A19",400,null,"One F28T5 4' 28W Fluorescent Lamp, Electronic Ballast",32,null,null,null,null,null,null,100,null,null,null,null,"Other:__________________","Other kW Load"]
["48\" WALL BRACKET (6) 100W A19",600,null,"Two F28T5 4' 28W Fluorescent Lamps, Electronic Ballast",64,null,null,null,null,null,null,101]
[null,null,null,"One F54T5 HO 4' 54W Fluorescent Lamp, Electronic Ballast",63,null,null,null,null,null,null,102]
[null,null,null,"Two F54T5 HO 4' 54W Fluorescent Lamps, Electronic Ballast",120,null,null,null,null,null,null,103]
[null,null,null,"Four F54T5 HO 4' 54W Fluorescent Lamps, Electronic Ballast",236,null,null,null,null,null,null,104]
[null,null,null,"One 50W Mercury Vapor Lamp, Magnetic Ballast",75,null,null,null,null,null,null,105]
[null,null,null,"One 75W Mercury Vapor Lamp, Magnetic Ballast",95,null,null,null,null,null,null,106]
[null,null,null,"One 175W Mercury Vapor Lamp, Magnetic Ballast",205,null,null,null,null,null,null,107]
[null,null,null,"One 250W Mercury Vapor Lamp, Magnetic Ballast",285,null,null,null,null,null,null,108]
[null,null,null,"One 400W Mercury Vapor Lamp, Magnetic Ballast",454,null,null,null,null,null,null,109]
[null,null,null,"One 1,000W Mercury Vapor Lamp, Magnetic Ballast",1075,null,null,null,null,null,null,110]
[null,null,null,"One 35W High Pressure Sodium Lamp, Magnetic Ballast",45,null,null,null,null,null,null,111]
[null,null,null,"One 50W High Pressure Sodium Lamp, Magnetic Ballast",64,null,null,null,null,null,null,112]
[null,null,null,"One 100W High Pressure Sodium Lamp, Magnetic Ballast",130,null,null,null,null,null,null,113]
[null,null,null,"One 150W High Pressure Sodium Lamp, Magnetic Ballast",188,null,null,null,null,null,null,114]
[null,null,null,"One 250W High Pressure Sodium Lamp, Magnetic Ballast",295,null,null,null,null,null,null,115]
[null,null,null,"One 400W High Pressure Sodium Lamp, Magnetic Ballast",465,null,null,null,null,null,null,116]
[null,null,null,"One 1,000W High Pressure Sodium Lamp, Magnetic Ballast",1100,null,null,null,null,null,null,117]
[null,null,null,"One 50W Metal Halide Lamp, Electronic Ballast",56,null,null,null,null,null,null,118]
[null,null,null,"One 50W Metal Halide Lamp, Magnetic Ballast",64,null,null,null,null,null,null,119]
[null,null,null,"One 100W Metal Halide Lamp, Electronic Ballast",110,null,null,null,null,null,null,120]
[null,null,null,"One 100W Metal Halide Lamp, Magnetic Ballast",130,null,null,null,null,null,null,121]
[null,null,null,"One 150W Metal Halide Lamp, Magnetic Ballast",185,null,null,null,null,null,null,122]
[null,null,null,"One 175W Metal Halide Lamp, Electronic Ballast",190,null,null,null,null,null,null,123]
[null,null,null,"One 175W Metal Halide Lamp, Magnetic Ballast",210,null,null,null,null,null,null,124]
[null,null,null,"One 250W Metal Halide Lamp, Magnetic Ballast",295,null,null,null,null,null,null,125]
[null,null,null,"One 400W Metal Halide Lamp, Electronic Ballast",460,null,null,null,null,null,null,126]
[null,null,null,"One 400W Metal Halide Lamp, Magnetic Ballast",460,null,null,null,null,null,null,127]
[null,null,null,"One 1,000W Metal Halide Lamp, Electronic Ballast",1035,null,null,null,null,null,null,128]
[null,null,null,"One 1,000W Metal Halide Lamp, Magnetic Ballast",1080,null,null,null,null,null,null,129]
[null,null,null,"One 50W Pulse Start Metal Halide Lamp, ES Magnetic Ballast",60,null,null,null,null,null,null,130]
[null,null,null,"One 100W Pulse Start Metal Halide Lamp, ES Magnetic Ballast",118,null,null,null,null,null,null,131]
[null,null,null,"One 150W Pulse Start Metal Halide Lamp, ES Magnetic Ballast",170,null,null,null,null,null,null,132]
[null,null,null,"One 175W Pulse Start Metal Halide Lamp, ES Magnetic Ballast",189,null,null,null,null,null,null,133]
[null,null,null,"One 250W Pulse Start Metal Halide Lamp, ES Magnetic Ballast",275,null,null,null,null,null,null,134]
[null,null,null,"One 400W Pulse Start Metal Halide Lamp, Electronic Ballast",415,null,null,null,null,null,null,135]
[null,null,null,"One 400W Pulse Start Metal Halide Lamp, ES Magnetic Ballast",435,null,null,null,null,null,null,136]
[null,null,null,"One 1,000W Pulse Start Metal Halide Lamp, Electronic Ballast",1035,null,null,null,null,null,null,137]
[null,null,null,"One 1,000W Pulse Start Metal Halide Lamp, Magnetic Ballast",1080,null,null,null,null,null,null,138]
[null,null,null,"Exit Sign with LED Lamps",5,null,null,null,null,null,null,139]
[null,null,null,"Exit Sign with two 9W Compact Flourescent Lamps (CFLs)",21,null,null,null,null,null,null,140]
[null,null,null,"Exit Sign with two 20W Incandescent Lamps",40,null,null,null,null,null,null,141]
[null,null,null,null,null,null,null,null,null,null,null,142]
[null,null,null,null,null,"<-reserved",null,null,null,null,null,143]
[null,null,null,null,null,"<-reserved",null,null,null,null,null,144]
[null,null,null,null,null,"<-reserved",null,null,null,null,null,145]
[null,null,null,null,null,"<-reserved",null,null,null,null,null,146]
[null,null,null,null,null,"<-reserved",null,null,null,null,null,147]
[null,null,null,null,null,"<-reserved",null,null,null,null,null,148]
[null,null,null,null,null,"<-reserved",null,null,null,null,null,149]
[null,null,null,null,null,null,null,null,null,null,null,150]
[null,null,null,null,null,null,null,null,null,null,null,151]
[null,null,null,null,null,null,null,null,null,null,null,152]
[null,null,null,null,null,null,null,null,null,null,null,153]
[null,null,null,null,null,null,null,null,null,null,null,154]
[null,null,null,null,null,null,null,null,null,null,null,155]
[null,null,null,null,null,null,null,null,null,null,null,156]
[null,null,null,null,null,null,null,null,null,null,null,157]
[null,null,null,null,null,null,null,null,null,null,null,158]
[null,null,null,null,null,null,null,null,null,null,null,159]
[null,null,null,null,null,null,null,null,null,null,null,160]
[null,null,null,null,null,null,null,null,null,null,null,161]
[null,null,null,null,null,null,null,null,null,null,null,162]
[null,null,null,null,null,null,null,null,null,null,null,163]
[null,null,null,null,null,null,null,null,null,null,null,164]
[null,null,null,null,null,null,null,null,null,null,null,165]
[null,null,null,null,null,null,null,null,null,null,null,166]
[null,null,null,null,null,null,null,null,null,null,null,167]
[null,null,null,null,null,null,null,null,null,null,null,168]
[null,null,null,null,null,null,null,null,null,null,null,169]
[null,null,null,null,null,null,null,null,null,null,null,170]
[null,null,null,null,null,null,null,null,null,null,null,171]
[null,null,null,null,null,null,null,null,null,null,null,172]
[null,null,null,null,null,null,null,null,null,null,null,173]
[null,null,null,null,null,null,null,null,null,null,null,174]
[null,null,null,null,null,null,null,null,null,null,null,175]
[null,null,null,null,null,null,null,null,null,null,null,176]
[null,null,null,null,null,null,null,null,null,null,null,177]
[null,null,null,null,null,null,null,null,null,null,null,178]
[null,null,null,null,null,null,null,null,null,null,null,179]
[null,null,null,null,null,null,null,null,null,null,null,180]
[null,null,null,null,null,null,null,null,null,null,null,181]
[null,null,null,null,null,null,null,null,null,null,null,182]
[null,null,null,null,null,null,null,null,null,null,null,183]
[null,null,null,null,null,null,null,null,null,null,null,184]
[null,null,null,null,null,null,null,null,null,null,null,185]
[null,null,null,null,null,null,null,null,null,null,null,186]
[null,null,null,null,null,null,null,null,null,null,null,187]
[null,null,null,null,null,null,null,null,null,null,null,188]
[null,null,null,null,null,null,null,null,null,null,null,189]
[null,null,null,null,null,null,null,null,null,null,null,190]
[null,null,null,null,null,null,null,null,null,null,null,191]
[null,null,null,null,null,null,null,null,null,null,null,192]
[null,null,null,null,null,null,null,null,null,null,null,193]
[null,null,null,null,null,null,null,null,null,null,null,194]
[null,null,null,null,null,null,null,null,null,null,null,195]
[null,null,null,null,null,null,null,null,null,null,null,196]
[null,null,null,null,null,null,null,null,null,null,null,197]
[null,null,null,null,null,null,null,null,null,null,null,198]
[null,null,null,null,null,null,null,null,null,null,null,199]
[null,null,null,null,null,null,null,null,null,null,null,200]
[null,null,null,null,null,null,null,null,null,null,null,201]

{"sheet":"General Information","index":2,"n_rows":316,"n_cols":19,"rows_kept":316,"cut":false,"hidden":false,"merged":[[0,0,0,6],[17,8,17,9],[21,1,21,2],[9,1,9,4],[17,6,17,7],[13,1,13,4],[11,6,11,7],[21,6,21,7],[3,0,4,11],[19,6,19,7],[51,0,51,2],[45,1,45,6],[43,1,43,6],[50,0,50,2],[49,0,49,2],[48,0,48,2],[44,1,44,6],[28,0,29,11],[7,8,7,9],[11,1,11,4],[23,3,23,5],[19,1,19,3],[26,0,26,1],[19,8,19,9],[21,8,21,9],[23,8,23,9],[23,6,23,7],[23,1,23,2],[1,0,1,7],[1,8,1,14],[5,0,5,2],[7,6,7,7],[7,1,7,4]]}
[{"$f":"\"   EPA Energy Use Assessment Tool for \"& workbookType","v":"   EPA Energy Use Assessment Tool for Drinking Water Systems"},null,null,null,null,null,null,null,null,"Drinking Water Systems"]
["General Information"]
[]
["To switch between data entry for Drinking Water Systems or Wastewater Systems, click the \"Select/Switch Template\" button above. You can use the tool to enter data for either Drinking Water Systems or Wastewater Systems but not both at the same time. However, if the data entered on the General Information tab is applicable to both plants, you can switch between templates to enter data and view the report for the selected system type. If the facility information is different, you will need to save a separate copy of the tool for each type.\n\nTo analyze costs associated with your facility building(s), click the \"Building Data\" button above or the \"Building Data\" tab below.\n\nTo analyze total plant energy costs, click the \"Plant Energy Usage\" button above or the \"WTP or WWTP Energy Usage\" tab below. \n\nEnter the following general information about the plant.\n"]
[]
["BACKGROUND INFORMATION"]
[]
["Project",null,null,null,null,null,"Project Reference"]
[]
["Facility Name"]
[]
["Site Address",null,null,null,null,null,"Treatment Operation",null,null,"Hrs/Yr"]
[]
[]
[]
["State"]
[]
["ZIP",null,null,null,null,null,"Date of Assessment"]
[]
["Plant Contact",null,null,null,null,null,"Assessment Performed by"]
[]
["Contact Telephone",null,null,null,null,null,"Assessor Phone"]
[]
["Contact Email",null,null,null,null,null,"Assessor Email"]
[]
[]
["UTILITY BILL INFORMATION"]
[]
["Enter the plant's monthly utility use and cost information in the cells below. \n\nThis information is provided in the utility bills, use the total bill amount including any surcharges or fees.\nIf the meter readings do not start and end on the first and last day of the month respectively, that is okay. If possible, enter the data consistently. The annual information is the most important.\nIf the site has multiple accounts for the same utility (such as two electric accounts), enter the combined values for each month’s use and costs.\n\nEnter the most recent year's monthly data first, followed by the next most recent year's monthly data.\n\nYou can enter up to 5 years worth of data.  The spreadsheet calculates the site's total utility cost per treatment volumes, electrical energy use and average utility rate per individual utility.  Graphs of the information are generated and shown on the \"Summary Report\" tab.\n\nThe Estimated Annual Electric Energy Use and Cost are calculated for the latest 12 months of data entered. (For example, if data for January to July of 2010 were the latest entered, the totals would be taken from August 2009 to July 2010)"]
[]
[]
[null,null,null,null,null,{"$f":"\"Total Utility Cost Per \"&IF($D$49=\"Tgal\",\"Thousand\",\"Million\") &\" Gallons Treated ($/\"&$D$49&\")\"","v":"Total Utility Cost Per Million Gallons Treated ($/)"},{"$f":"A57","v":0},{"$f":"IF(N71=0,\"\",N70/N71)","v":""}]
[null,null,null,null,null,{"$f":"\"Total Utility Cost Per \"&IF($D$49=\"Tgal\",\"Thousand\",\"Million\") &\" Gallons Treated ($/\"&$D$49&\")\"","v":"Total Utility Cost Per Million Gallons Treated ($/)"},{"$f":"A79","v":0},{"$f":"IF(N93=0,\"\",N92/N93)","v":""}]
[null,null,null,null,null,{"$f":"\"Total Utility Cost Per \"&IF($D$49=\"Tgal\",\"Thousand\",\"Million\") &\" Gallons Treated ($/\"&$D$49&\")\"","v":"Total Utility Cost Per Million Gallons Treated ($/)"},{"$f":"A103","v":0},{"$f":"IF(N117=0,\"\",N116/N117)","v":""}]
[null,null,null,null,null,{"$f":"\"Total Utility Cost Per \"&IF($D$49=\"Tgal\",\"Thousand\",\"Million\") &\" Gallons Treated ($/\"&$D$49&\")\"","v":"Total Utility Cost Per Million Gallons Treated ($/)"},{"$f":"A125","v":0},{"$f":"IF(N139=0,\"\",N138/N139)","v":""}]
[null,null,null,null,null,{"$f":"\"Total Utility Cost Per \"&IF($D$49=\"Tgal\",\"Thousand\",\"Million\") &\" Gallons Treated ($/\"&$D$49&\")\"","v":"Total Utility Cost Per Million Gallons Treated ($/)"},{"$f":"A147","v":0},{"$f":"IF(N161=0,\"\",N160/N161)","v":""}]
[]
[null,null,null,null,null,{"$f":"\"Electrical Energy Utilization (kWh/\"&$D$49&\")\"","v":"Electrical Energy Utilization (kWh/)"},{"$f":"A57","v":0},{"$f":"IF(N71=0,\"\",N59/N71)","v":""}]
[null,null,null,null,null,{"$f":"\"Electrical Energy Utilization (kWh/\"&$D$49&\")\"","v":"Electrical Energy Utilization (kWh/)"},{"$f":"A79","v":0},{"$f":"IF(N93=0,\"\",N81/N93)","v":""}]
[null,null,null,null,null,{"$f":"\"Electrical Energy Utilization (kWh/\"&$D$49&\")\"","v":"Electrical Energy Utilization (kWh/)"},{"$f":"A103","v":0},{"$f":"IF(N117=0,\"\",N105/N117)","v":""}]
[null,null,null,null,null,{"$f":"\"Electrical Energy Utilization (kWh/\"&$D$49&\")\"","v":"Electrical Energy Utilization (kWh/)"},{"$f":"A125","v":0},{"$f":"IF(N139=0,\"\",N127/N139)","v":""}]
[null,null,null,null,null,{"$f":"\"Electrical Energy Utilization (kWh/\"&$D$49&\")\"","v":"Electrical Energy Utilization (kWh/)"},{"$f":"A147","v":0},{"$f":"IF(N161=0,\"\",N149/N161)","v":""}]
[]
[null,"Estimated Annual Electrical Energy Use (kWh)",null,null,null,null,null,{"$f":"totEnergy","v":0}]
[null,"Estimated Annual Electrical Energy Cost ($)",null,null,null,null,null,{"$f":"totElectricCost","v":0}]
[null,"Average Electrical Energy Rate ($/kWh)",null,null,null,null,null,{"$f":"IF($H$44=0,0,IF($H$45=0,0,$H$45/$H$44))","v":0}]
[]
[]
["Specify Units for Treatment Volume"]
["Specify Units for Alternative Energy Consumption"]
["Specify Other Utility Type (if any)"]
["Specify Units for Other Energy Consumption (if any)"]
[]
[{"$f":"A57","v":0}]
["Electric ($/kWh)",{"$f":"IF(N59=0,\"\",N58/N59)","v":""},null,"Natural Gas ($/CCF)",{"$f":"IF(N61=0,\"\",N60/N61)","v":""},null,"No 2 Fuel Oil ($/CCF)",{"$f":"IF(N63=0,\"\",N62/N63)","v":""},null,"Water/Sewer ($/GAL)",{"$f":"IF(N65=0,\"\",N64/N65)","v":""},null,{"$f":"\"Alt. Energy:  ($/\" & $D$50&\")\"","v":"Alt. Energy:  ($/)"},{"$f":"IF(N67=0,\"\",N66/N67)","v":""},null,{"$f":"\"Other Utility: \" & $D$51 & \" ($/\" & $D$52&\")\"","v":"Other Utility:  ($/)"},{"$f":"IF(N69=0,\"\",N68/N69)","v":""}]
[]
[null,"January","February","March","April","May","June","July","August","September","October","November","December","TOTAL (Yr)","Average","% of Costs"]
[{"$f":"\"Electricity Cost ($)  \"&A57","v":"Electricity Cost ($)  "},null,null,null,null,null,null,null,null,null,null,null,null,{"$f":"SUM(B58:M58)","v":0},{"$f":"IF(SUM(B58:M58)=0,\"\",AVERAGE(B58:M58))","v":""},{"$f":"IF(N$70=0,\"\",N58/N$70)","v":""}]
[{"$f":"\"  Consumption (kWh)  \"& A57","v":"  Consumption (kWh)  "},null,null,null,null,null,null,null,null,null,null,null,null,0,""]
[{"$f":"\"Natural Gas Cost ($)  \"&A57","v":"Natural Gas Cost ($)  "},null,null,null,null,null,null,null,null,null,null,null,null,0,"",{"$f":"IF(N$70=0,\"\",N60/N$70)","v":""}]
[{"$f":"\"  Consumption (CCF)  \"&A57","v":"  Consumption (CCF)  "},null,null,null,null,null,null,null,null,null,null,null,null,0,""]
[{"$f":"\"No 2 Fuel Oil Cost ($)  \"&A57","v":"No 2 Fuel Oil Cost ($)  "},null,null,null,null,null,null,null,null,null,null,null,null,0,"",{"$f":"IF(N$70=0,\"\",N62/N$70)","v":""}]
[{"$f":"\"  Consumption (CCF)  \"&A57","v":"  Consumption (CCF)  "},null,null,null,null,null,null,null,null,null,null,null,null,0,""]
[{"$f":"\"Water & Sewer Cost ($)  \"&A57","v":"Water & Sewer Cost ($)  "},null,null,null,null,null,null,null,null,null,null,null,null,0,"",{"$f":"IF(N$70=0,\"\",N64/N$70)","v":""}]
[{"$f":"\"  Consumption (GAL)  \"&A57","v":"  Consumption (GAL)  "},null,null,null,null,null,null,null,null,null,null,null,null,0,""]
[{"$f":"\"Alternative Energy Cost ($)  \"&A57","v":"Alternative Energy Cost ($)  "},null,null,null,null,null,null,null,null,null,null,null,null,{"$f":"SUM(B66:M66)","v":0},{"$f":"IF(SUM(B66:M66)=0,\"\",AVERAGE(B66:M66))","v":""},{"$f":"IF(N$70=0,\"\",N66/N$70)","v":""}]
[{"$f":"\"  Consumption (\" &$D$50 &\")  \"&A57","v":"  Consumption ()  "},null,null,null,null,null,null,null,null,null,null,null,null,{"$f":"SUM(B67:M67)","v":0},{"$f":"IF(SUM(B67:M67)=0,\"\",AVERAGE(B67:M67))","v":""}]
[{"$f":"\"Other - \"&$D$51&\" Cost ($)  \"&A57","v":"Other -  Cost ($)  "},null,null,null,null,null,null,null,null,null,null,null,null,0,"",{"$f":"IF(N$70=0,\"\",N68/N$70)","v":""}]
[{"$f":"\"  Consumption (\" &$D$52&\")  \"&A57","v":"  Consumption ()  "},null,null,null,null,null,null,null,null,null,null,null,null,0,""]
[{"$f":"\"Total Utility Cost  \"&A57","v":"Total Utility Cost  "},{"$f":"SUM(B58,B60,B62,B64,B66,B68)","v":0},{"$f":"SUM(C58,C60,C62,C64,C66,C68)","v":0},{"$f":"SUM(D58,D60,D62,D64,D66,D68)","v":0},{"$f":"SUM(E58,E60,E62,E64,E66,E68)","v":0},0,{"$f":"SUM(G58,G60,G62,G64,G66,G68)","v":0},0,0,0,0,0,0,0,"",{"$f":"SUM(P58,P60,P62,P64,P66,P68)","v":0}]
[{"$f":"\"Treatment Volume (\" &$D$49&\")  \"&A57","v":"Treatment Volume ()  "},null,null,null,null,null,null,null,null,null,null,null,null,0,""]
[{"$f":"\"Utility Cost/Treatment Volume ($/\"&$D$49&\")   \"&A57","v":"Utility Cost/Treatment Volume ($/)   "},{"$f":"IF(B71=0,\"\",B70/B71)","v":""},{"$f":"IF(C71=0,\"\",C70/C71)","v":""},{"$f":"IF(D71=0,\"\",D70/D71)","v":""},{"$f":"IF(E71=0,\"\",E70/E71)","v":""},"",{"$f":"IF(G71=0,\"\",G70/G71)","v":""},{"$f":"IF(H71=0,\"\",H70/H71)","v":""},"","","","","",0,{"$f":"IF(SUM(B72:M72)=0,\"\",AVERAGE(B72:M72))","v":""}]
[{"$f":"\"Electric Utilization (kWh/\"&$D$49&\") \"&A57","v":"Electric Utilization (kWh/) "},{"$f":"IF(B71=0,\"\",B59/B71)","v":""},{"$f":"IF(C71=0,\"\",C59/C71)","v":""},"","","","","","","","","","",0,""]
[]
[]
[{"$f":"A79","v":0}]
["Electric ($/kWh)",{"$f":"IF(N81=0,\"\",N80/N81)","v":""},null,"Natural Gas ($/CCF)",{"$f":"IF(N83=0,\"\",N82/N83)","v":""},null,"No 2 Fuel Oil ($/CCF)",{"$f":"IF(N85=0,\"\",N84/N85)","v":""},null,"Water/Sewer ($/GAL)",{"$f":"IF(N87=0,\"\",N86/N87)","v":""},null,{"$f":"\"Alt. Energy:  ($/\" & $D$50&\")\"","v":"Alt. Energy:  ($/)"},{"$f":"IF(N89=0,\"\",N88/N89)","v":""},null,{"$f":"\"Other Utility: \" & $D$51 & \" ($/\" & $D$52&\")\"","v":"Other Utility:  ($/)"},{"$f":"IF(N91=0,\"\",N90/N91)","v":""}]
[]
[null,"January","February","March","April","May","June","July","August","September","October","November","December","TOTAL (Yr)","Average","% of Costs"]
[{"$f":"\"Electricity Cost ($)  \"&A79","v":"Electricity Cost ($)  "},null,null,null,null,null,null,null,null,null,null,null,null,{"$f":"SUM(B80:M80)","v":0},{"$f":"IF(SUM(B80:M80)=0,\"\",AVERAGE(B80:M80))","v":""},{"$f":"IF(N$92=0,\"\",N80/N$92)","v":""}]
[{"$f":"\"  Consumption (kWh)  \"& A79","v":"  Consumption (kWh)  "},null,null,null,null,null,null,null,null,null,null,null,null,0,""]
[{"$f":"\"Natural Gas Cost ($)  \"&A79","v":"Natural Gas Cost ($)  "},null,null,null,null,null,null,null,null,null,null,null,null,0,"",{"$f":"IF(N$92=0,\"\",N82/N$92)","v":""}]
[{"$f":"\"  Consumption (CCF)  \"&A79","v":"  Consumption (CCF)  "},null,null,null,null,null,null,null,null,null,null,null,null,0,""]
[{"$f":"\"No 2 Fuel Oil Cost ($)  \"&A79","v":"No 2 Fuel Oil Cost ($)  "},null,null,null,null,null,null,null,null,null,null,null,null,0,"",{"$f":"IF(N$92=0,\"\",N84/N$92)","v":""}]
[{"$f":"\"  Consumption (CCF)  \"&A79","v":"  Consumption (CCF)  "},null,null,null,null,null,null,null,null,null,null,null,null,0,""]
[{"$f":"\"Water & Sewer Cost ($)  \"&A79","v":"Water & Sewer Cost ($)  "},null,null,null,null,null,null,null,null,null,null,null,null,0,"",{"$f":"IF(N$92=0,\"\",N86/N$92)","v":""}]
[{"$f":"\"  Consumption (GAL)  \"&A79","v":"  Consumption (GAL)  "},null,null,null,null,null,null,null,null,null,null,null,null,0,""]
[{"$f":"\"Alternative Energy Cost ($)  \"&A79","v":"Alternative Energy Cost ($)  "},null,null,null,null,null,null,null,null,null,null,null,null,0,"",{"$f":"IF(N$92=0,\"\",N88/N$92)","v":""}]
[{"$f":"\"  Consumption (\" &$D$50 &\")  \"&A79","v":"  Consumption ()  "},null,null,null,null,null,null,null,null,null,null,null,null,0,""]
[{"$f":"\"Other - \"&$D$51&\" Cost ($)  \"&A79","v":"Other -  Cost ($)  "},null,null,null,null,null,null,null,null,null,null,null,null,0,"",{"$f":"IF(N$92=0,\"\",N90/N$92)","v":""}]
[{"$f":"\"  Consumption (\" &$D$52&\")  \"&A79","v":"  Consumption ()  "},null,null,null,null,null,null,null,null,null,null,null,null,0,""]
[{"$f":"\"Total Utility Cost  \"&A79","v":"Total Utility Cost  "},{"$f":"SUM(B80,B82,B84,B86,B88,B90)","v":0},{"$f":"SUM(C80,C82,C84,C86,C88,C90)","v":0},0,0,0,0,0,0,0,0,0,0,0,"",{"$f":"SUM(P80,P82,P84,P86,P88,P90)","v":0}]
[{"$f":"\"Treatment Volume (\" &$D$49&\")  \"&A79","v":"Treatment Volume ()  "},null,null,null,null,null,null,null,null,null,null,null,null,0,""]
[{"$f":"\"Utility Cost/Treatment Volume ($/\"&$D$49&\")   \"&A79","v":"Utility Cost/Treatment Volume ($/)   "},{"$f":"IF(B93=0,\"\",B92/B93)","v":""},{"$f":"IF(C93=0,\"\",C92/C93)","v":""},"","","","","","","","","","",0,""]
[{"$f":"\"Electric Utilization (kWh/\"&$D$49&\") \"&A79","v":"Electric Utilization (kWh/) "},{"$f":"IF(B93=0,\"\",B81/B93)","v":""},{"$f":"IF(C93=0,\"\",C81/C93)","v":""},"","","","","","","","","","",0,""]
[]
[]
[]
[]
[{"$f":"A103","v":0}]
["Electric ($/kWh)",{"$f":"IF(N105=0,\"\",N104/N105)","v":""},null,"Natural Gas ($/CCF)",{"$f":"IF(N107=0,\"\",N106/N107)","v":""},null,"No 2 Fuel Oil ($/CCF)",{"$f":"IF(N109=0,\"\",N108/N109)","v":""},null,"Water/Sewer ($/GAL)",{"$f":"IF(N111=0,\"\",N110/N111)","v":""},null,{"$f":"\"Alt. Energy:  ($/\" & $D$50&\")\"","v":"Alt. Energy:  ($/)"},{"$f":"IF(N113=0,\"\",N112/N113)","v":""},null,{"$f":"\"Other Utility: \" & $D$51 & \" ($/\" & $D$52&\")\"","v":"Other Utility:  ($/)"},{"$f":"IF(N115=0,\"\",N114/N115)","v":""}]
[]
[null,"January","February","March","April","May","June","July","August","September","October","November","December","TOTAL (Yr)","Average","% of Costs"]
[{"$f":"\"Electricity Cost ($)  \"&A103","v":"Electricity Cost ($)  "},null,null,null,null,null,null,null,null,null,null,null,null,{"$f":"SUM(B104:M104)","v":0},{"$f":"IF(SUM(B104:M104)=0,\"\",AVERAGE(B104:M104))","v":""},{"$f":"IF(N$116=0,\"\",N104/N$116)","v":""}]
[{"$f":"\"  Consumption (kWh)  \"& A103","v":"  Consumption (kWh)  "},null,null,null,null,null,null,null,null,null,null,null,null,0,""]
[{"$f":"\"Natural Gas Cost ($)  \"&A103","v":"Natural Gas Cost ($)  "},null,null,null,null,null,null,null,null,null,null,null,null,0,"",{"$f":"IF(N$116=0,\"\",N106/N$116)","v":""}]
[{"$f":"\"  Consumption (CCF)  \"&A103","v":"  Consumption (CCF)  "},null,null,null,null,null,null,null,null,null,null,null,null,0,""]
[{"$f":"\"No 2 Fuel Oil Cost ($)  \"&A103","v":"No 2 Fuel Oil Cost ($)  "},null,null,null,null,null,null,null,null,null,null,null,null,0,"",{"$f":"IF(N$116=0,\"\",N108/N$116)","v":""}]
[{"$f":"\"  Consumption (CCF)  \"&A103","v":"  Consumption (CCF)  "},null,null,null,null,null,null,null,null,null,null,null,null,0,""]
[{"$f":"\"Water & Sewer Cost ($)  \"&A103","v":"Water & Sewer Cost ($)  "},null,null,null,null,null,null,null,null,null,null,null,null,0,"",{"$f":"IF(N$116=0,\"\",N110/N$116)","v":""}]
[{"$f":"\"  Consumption (GAL)  \"&A103","v":"  Consumption (GAL)  "},null,null,null,null,null,null,null,null,null,null,null,null,0,""]
[{"$f":"\"Alternative Energy Cost ($)  \"&A103","v":"Alternative Energy Cost ($)  "},null,null,null,null,null,null,null,null,null,null,null,null,0,"",{"$f":"IF(N$116=0,\"\",N112/N$116)","v":""}]
[{"$f":"\"  Consumption (\" &$D$50 &\")  \"&A103","v":"  Consumption ()  "},null,null,null,null,null,null,null,null,null,null,null,null,0,""]
[{"$f":"\"Other - \"&$D$51&\" Cost ($)  \"&A103","v":"Other -  Cost ($)  "},null,null,null,null,null,null,null,null,null,null,null,null,0,"",{"$f":"IF(N$116=0,\"\",N114/N$116)","v":""}]
[{"$f":"\"  Consumption (\" &$D$52&\")  \"&A103","v":"  Consumption ()  "},null,null,null,null,null,null,null,null,null,null,null,null,0,""]
[{"$f":"\"Total Utility Cost  \"&A103","v":"Total Utility Cost  "},{"$f":"SUM(B104,B106,B108,B110,B112,B114)","v":0},{"$f":"SUM(C104,C106,C108,C110,C112,C114)","v":0},0,0,0,0,0,0,0,0,0,0,0,"",{"$f":"SUM(P104,P106,P108,P110,P112,P114)","v":0}]
[{"$f":"\"Treatment Volume (\" &$D$49&\")  \"&A103","v":"Treatment Volume ()  "},null,null,null,null,null,null,null,null,null,null,null,null,0,""]
[{"$f":"\"Utility Cost/Treatment Volume ($/\"&$D$49&\")   \"&A103","v":"Utility Cost/Treatment Volume ($/)   "},{"$f":"IF(B117=0,\"\",B116/B117)","v":""},{"$f":"IF(C117=0,\"\",C116/C117)","v":""},"","","","","","","","","","",0,""]
[{"$f":"\"Electric Utilization (kWh/\"&$D$49&\") \"&A103","v":"Electric Utilization (kWh/) "},{"$f":"IF(B117=0,\"\",B105/B117)","v":""},{"$f":"IF(C117=0,\"\",C105/C117)","v":""},"","","","","","","","","","",0,""]
[]
[]
[{"$f":"A125","v":0}]
["Electric ($/kWh)",{"$f":"IF(N127=0,\"\",N126/N127)","v":""},null,"Natural Gas ($/CCF)",{"$f":"IF(N129=0,\"\",N128/N129)","v":""},null,"No 2 Fuel Oil ($/CCF)",{"$f":"IF(N131=0,\"\",N130/N131)","v":""},null,"Water/Sewer ($/GAL)",{"$f":"IF(N133=0,\"\",N132/N133)","v":""},null,{"$f":"\"Alt. Energy:  ($/\" & $D$50&\")\"","v":"Alt. Energy:  ($/)"},{"$f":"IF(N135=0,\"\",N134/N135)","v":""},null,{"$f":"\"Other Utility: \" & $D$51 & \" ($/\" & $D$52&\")\"","v":"Other Utility:  ($/)"},{"$f":"IF(N137=0,\"\",N136/N137)","v":""}]
[]
[null,"January","February","March","April","May","June","July","August","September","October","November","December","TOTAL (Yr)","Average","% of Costs"]
[{"$f":"\"Electricity Cost ($)  \"&A125","v":"Electricity Cost ($)  "},null,null,null,null,null,null,null,null,null,null,null,null,{"$f":"SUM(B126:M126)","v":0},{"$f":"IF(SUM(B126:M126)=0,\"\",AVERAGE(B126:M126))","v":""},{"$f":"IF(N$138=0,\"\",N126/N$138)","v":""}]
[{"$f":"\"  Consumption (kWh)  \"& A125","v":"  Consumption (kWh)  "},null,null,null,null,null,null,null,null,null,null,null,null,0,""]
[{"$f":"\"Natural Gas Cost ($)  \"&A125","v":"Natural Gas Cost ($)  "},null,null,null,null,null,null,null,null,null,null,null,null,0,"",{"$f":"IF(N$138=0,\"\",N128/N$138)","v":""}]
[{"$f":"\"  Consumption (CCF)  \"&A125","v":"  Consumption (CCF)  "},null,null,null,null,null,null,null,null,null,null,null,null,0,""]
[{"$f":"\"No 2 Fuel Oil Cost ($)  \"&A125","v":"No 2 Fuel Oil Cost ($)  "},null,null,null,null,null,null,null,null,null,null,null,null,0,"",{"$f":"IF(N$138=0,\"\",N130/N$138)","v":""}]
[{"$f":"\"  Consumption (CCF)  \"&A125","v":"  Consumption (CCF)  "},null,null,null,null,null,null,null,null,null,null,null,null,0,""]
[{"$f":"\"Water & Sewer Cost ($)  \"&A125","v":"Water & Sewer Cost ($)  "},null,null,null,null,null,null,null,null,null,null,null,null,0,"",{"$f":"IF(N$138=0,\"\",N132/N$138)","v":""}]
[{"$f":"\"  Consumption (GAL)  \"&A125","v":"  Consumption (GAL)  "},null,null,null,null,null,null,null,null,null,null,null,null,0,""]
[{"$f":"\"Alternative Energy Cost ($)  \"&A125","v":"Alternative Energy Cost ($)  "},null,null,null,null,null,null,null,null,null,null,null,null,0,"",{"$f":"IF(N$138=0,\"\",N134/N$138)","v":""}]
[{"$f":"\"  Consumption (\" &$D$50 &\")  \"&A125","v":"  Consumption ()  "},null,null,null,null,null,null,null,null,null,null,null,null,0,""]
[{"$f":"\"Other - \"&$D$51&\" Cost ($)  \"&A125","v":"Other -  Cost ($)  "},null,null,null,null,null,null,null,null,null,null,null,null,0,"",{"$f":"IF(N$138=0,\"\",N136/N$138)","v":""}]
[{"$f":"\"  Consumption (\" &$D$52&\")  \"&A125","v":"  Consumption ()  "},null,null,null,null,null,null,null,null,null,null,null,null,0,""]
[{"$f":"\"Total Utility Cost  \"&A125","v":"Total Utility Cost  "},{"$f":"SUM(B126,B128,B130,B132,B134,B136)","v":0},{"$f":"SUM(C126,C128,C130,C132,C134,C136)","v":0},0,0,0,0,0,0,0,0,0,0,0,"",{"$f":"SUM(P126,P128,P130,P132,P134,P136)","v":0}]
[{"$f":"\"Treatment Volume (\" &$D$49&\")  \"&A125","v":"Treatment Volume ()  "},null,null,null,null,null,null,null,null,null,null,null,null,0,""]
[{"$f":"\"Utility Cost/Treatment Volume ($/\"&$D$49&\")   \"&A125","v":"Utility Cost/Treatment Volume ($/)   "},{"$f":"IF(B139=0,\"\",B138/B139)","v":""},{"$f":"IF(C139=0,\"\",C138/C139)","v":""},"","","","","","","","","","",0,""]
[{"$f":"\"Electric Utilization (kWh/\"&$D$49&\") \"&A125","v":"Electric Utilization (kWh/) "},{"$f":"IF(B139=0,\"\",B127/B139)","v":""},{"$f":"IF(C139=0,\"\",C127/C139)","v":""},"","","","","","","","","","",0,""]
[]
[]
[{"$f":"A147","v":0}]
["Electric ($/kWh)",{"$f":"IF(N149=0,\"\",N148/N149)","v":""},null,"Natural Gas ($/CCF)",{"$f":"IF(N151=0,\"\",N150/N151)","v":""},null,"No 2 Fuel Oil ($/CCF)",{"$f":"IF(N153=0,\"\",N152/N153)","v":""},null,"Water/Sewer ($/GAL)",{"$f":"IF(N155=0,\"\",N154/N155)","v":""},null,{"$f":"\"Alt. Energy:  ($/\" & $D$50&\")\"","v":"Alt. Energy:  ($/)"},{"$f":"IF(N157=0,\"\",N156/N157)","v":""},null,{"$f":"\"Other Utility: \" & $D$51 & \" ($/\" & $D$52&\")\"","v":"Other Utility:  ($/)"},{"$f":"IF(N159=0,\"\",N158/N159)","v":""}]
[]
[null,"January","February","March","April","May","June","July","August","September","October","November","December","TOTAL (Yr)","Average","% of Costs"]
[{"$f":"\"Electricity Cost ($)  \"&A147","v":"Electricity Cost ($)  "},null,null,null,null,null,null,null,null,null,null,null,null,{"$f":"SUM(B148:M148)","v":0},{"$f":"IF(SUM(B148:M148)=0,\"\",AVERAGE(B148:M148))","v":""},{"$f":"IF(N$160=0,\"\",N148/N$160)","v":""}]
[{"$f":"\"  Consumption (kWh)  \"& A147","v":"  Consumption (kWh)  "},null,null,null,null,null,null,null,null,null,null,null,null,0,""]
[{"$f":"\"Natural Gas Cost ($)  \"&A147","v":"Natural Gas Cost ($)  "},null,null,null,null,null,null,null,null,null,null,null,null,0,"",{"$f":"IF(N$160=0,\"\",N150/N$160)","v":""}]
[{"$f":"\"  Consumption (CCF)  \"&A147","v":"  Consumption (CCF)  "},null,null,null,null,null,null,null,null,null,null,null,null,0,""]
[{"$f":"\"No 2 Fuel Oil Cost ($)  \"&A147","v":"No 2 Fuel Oil Cost ($)  "},null,null,null,null,null,null,null,null,null,null,null,null,0,"",{"$f":"IF(N$160=0,\"\",N152/N$160)","v":""}]
[{"$f":"\"  Consumption (CCF)  \"&A147","v":"  Consumption (CCF)  "},null,null,null,null,null,null,null,null,null,null,null,null,0,""]
[{"$f":"\"Water & Sewer Cost ($)  \"&A147","v":"Water & Sewer Cost ($)  "},null,null,null,null,null,null,null,null,null,null,null,null,0,"",{"$f":"IF(N$160=0,\"\",N154/N$160)","v":""}]
[{"$f":"\"  Consumption (GAL)  \"&A147","v":"  Consumption (GAL)  "},null,null,null,null,null,null,null,null,null,null,null,null,0,""]
[{"$f":"\"Alternative Energy Cost ($)  \"&A147","v":"Alternative Energy Cost ($)  "},null,null,null,null,null,null,null,null,null,null,null,null,0,"",{"$f":"IF(N$160=0,\"\",N156/N$160)","v":""}]
[{"$f":"\"  Consumption (\" &$D$50 &\")  \"&A147","v":"  Consumption ()  "},null,null,null,null,null,null,null,null,null,null,null,null,0,""]
[{"$f":"\"Other - \"&$D$51&\" Cost ($)  \"&A147","v":"Other -  Cost ($)  "},null,null,null,null,null,null,null,null,null,null,null,null,0,"",{"$f":"IF(N$160=0,\"\",N158/N$160)","v":""}]
[{"$f":"\"  Consumption (\" &$D$52&\")  \"&A147","v":"  Consumption ()  "},null,null,null,null,null,null,null,null,null,null,null,null,0,""]
[{"$f":"\"Total Utility Cost  \"&A147","v":"Total Utility Cost  "},{"$f":"SUM(B148,B150,B152,B154,B156,B158)","v":0},{"$f":"SUM(C148,C150,C152,C154,C156,C158)","v":0},0,0,0,0,0,0,0,0,0,0,0,"",{"$f":"SUM(P148,P150,P152,P154,P156,P158)","v":0}]
[{"$f":"\"Treatment Volume (\" &$D$49&\")  \"&A147","v":"Treatment Volume ()  "},null,null,null,null,null,null,null,null,null,null,null,null,0,""]
[{"$f":"\"Utility Cost/Treatment Volume ($/\"&$D$49&\")   \"&A147","v":"Utility Cost/Treatment Volume ($/)   "},{"$f":"IF(B161=0,\"\",B160/B161)","v":""},{"$f":"IF(C161=0,\"\",C160/C161)","v":""},"","","","","","","","","","",0,""]
[{"$f":"\"Electric Utilization (kWh/\"&$D$49&\") \"&A147","v":"Electric Utilization (kWh/) "},{"$f":"IF(B161=0,\"\",B149/B161)","v":""},{"$f":"IF(C161=0,\"\",C149/C161)","v":""},"","","","","","","","","","",0,""]
[]
[]
[]
[]
[]
[]
[]
[]
[]
[]
[]
[]
[]
[]
[]
[]
[]
[]
[]
[]
[]
[]
[]
[]
[]
[]
[]
[]
[]
[]
[]
[]
[]
[]
[]
[]
[]
[]
[]
[]
[]
[null,"Year","Months","Elec Consumption","Monthly Elec Cost","Monthly Gas Cost","Monthly Water Treated","Elec Rate","Monthly Gas Use","Monthly Fuel2 Use","Monthly Fuel2 Cost","Monthly Alternative Use","Monthly Alt Cost","Monthly Other Use","Monthly Other Cost","Monthly Water & Sewer Use","Monthly Water & Sewer Cost"]
[]
[null,"Sort consumption to take the most recent 12 months with values"]
[null,null,null,null,null,null," "]
[null,{"$f":"$A$57","v":0},12,{"$f":"$M$59","v":0},{"$f":"$M$58","v":0},{"$f":"$M$60","v":0},{"$f":"$M$71","v":0},{"$f":"$B$55","v":""},{"$f":"$M$61","v":0},{"$f":"$M$63","v":0},{"$f":"$M$62","v":0},{"$f":"$M$67","v":0},{"$f":"$M$66","v":0},{"$f":"$M$69","v":0},{"$f":"$M$68","v":0},{"$f":"$M$65","v":0},{"$f":"$M$64","v":0}]
[null,{"$f":"$A$79","v":0},12,{"$f":"$M$81","v":0},{"$f":"$M$80","v":0},{"$f":"$M$82","v":0},{"$f":"$M$93","v":0},{"$f":"B$77","v":""},{"$f":"$M$83","v":0},{"$f":"$M$85","v":0},{"$f":"$M$84","v":0},{"$f":"$M$89","v":0},{"$f":"$M$88","v":0},{"$f":"$M$91","v":0},{"$f":"$M$90","v":0},{"$f":"$M$87","v":0},{"$f":"$M$86","v":0}]
[null,{"$f":"$A$103","v":0},12,{"$f":"$M$105","v":0},{"$f":"$M$104","v":0},{"$f":"$M$106","v":0},{"$f":"$M$117","v":0},{"$f":"$B$101","v":""},{"$f":"$M$107","v":0},{"$f":"$M$109","v":0},{"$f":"$M$108","v":0},{"$f":"$M$113","v":0},{"$f":"$M$112","v":0},{"$f":"$M$115","v":0},{"$f":"$M$114","v":0},{"$f":"$M$111","v":0},{"$f":"$M$110","v":0}]
[null,{"$f":"$A$125","v":0},12,{"$f":"$M$127","v":0},{"$f":"$M$126","v":0},{"$f":"$M$128","v":0},{"$f":"$M$139","v":0},{"$f":"B$123","v":""},{"$f":"$M$129","v":0},{"$f":"$M$131","v":0},{"$f":"$M$130","v":0},{"$f":"$M$135","v":0},{"$f":"$M$134","v":0},{"$f":"$M$137","v":0},{"$f":"$M$136","v":0},{"$f":"$M$133","v":0},{"$f":"$M$132","v":0}]
[null,{"$f":"$A$147","v":0},12,{"$f":"$M$149","v":0},{"$f":"$M$148","v":0},{"$f":"$M$150","v":0},{"$f":"$M$161","v":0},{"$f":"$B$145","v":""},{"$f":"$M$151","v":0},{"$f":"$M$153","v":0},{"$f":"$M$152","v":0},{"$f":"$M$157","v":0},{"$f":"$M$156","v":0},{"$f":"$M$159","v":0},{"$f":"$M$158","v":0},{"$f":"$M$155","v":0},{"$f":"$M$154","v":0}]
[null,{"$f":"$A$57","v":0},11,{"$f":"$L$59","v":0},{"$f":"$L$58","v":0},{"$f":"$L$60","v":0},{"$f":"$L$71","v":0},{"$f":"$B$55","v":""},{"$f":"$L$61","v":0},{"$f":"$L$63","v":0},{"$f":"$L$62","v":0},{"$f":"$L$67","v":0},{"$f":"$L$66","v":0},{"$f":"$L$69","v":0},{"$f":"$L$68","v":0},{"$f":"$L$65","v":0},{"$f":"$L$64","v":0}]
[null,{"$f":"$A$79","v":0},11,{"$f":"$L$81","v":0},{"$f":"$L$80","v":0},{"$f":"$L$82","v":0},{"$f":"$L$93","v":0},{"$f":"B$77","v":""},{"$f":"$L$83","v":0},{"$f":"$L$85","v":0},{"$f":"$L$84","v":0},{"$f":"$L$89","v":0},{"$f":"$L$88","v":0},{"$f":"$L$91","v":0},{"$f":"$L$90","v":0},{"$f":"$L$87","v":0},{"$f":"$L$86","v":0}]
[null,{"$f":"$A$103","v":0},11,{"$f":"$L$105","v":0},{"$f":"$L$104","v":0},{"$f":"$L$106","v":0},{"$f":"$L$117","v":0},{"$f":"$B$101","v":""},{"$f":"$L$107","v":0},{"$f":"$L$109","v":0},{"$f":"$L$108","v":0},{"$f":"$L$113","v":0},{"$f":"$L$112","v":0},{"$f":"$L$115","v":0},{"$f":"$L$114","v":0},{"$f":"$L$111","v":0},{"$f":"$L$110","v":0}]
[null,{"$f":"$A$125","v":0},11,{"$f":"$L$127","v":0},{"$f":"$L$126","v":0},{"$f":"$L$128","v":0},{"$f":"$L$139","v":0},{"$f":"B$123","v":""},{"$f":"$L$129","v":0},{"$f":"$L$131","v":0},{"$f":"$L$130","v":0},{"$f":"$L$135","v":0},{"$f":"$L$134","v":0},{"$f":"$L$137","v":0},{"$f":"$L$136","v":0},{"$f":"$L$133","v":0},{"$f":"$L$132","v":0}]
[null,{"$f":"$A$147","v":0},11,{"$f":"$L$149","v":0},{"$f":"$L$148","v":0},{"$f":"$L$150","v":0},{"$f":"$L$161","v":0},{"$f":"$B$145","v":""},{"$f":"$L$151","v":0},{"$f":"$L$153","v":0},{"$f":"$L$152","v":0},{"$f":"$L$157","v":0},{"$f":"$L$156","v":0},{"$f":"$L$159","v":0},{"$f":"$L$158","v":0},{"$f":"$L$155","v":0},{"$f":"$L$154","v":0}]
[null,{"$f":"$A$57","v":0},10,{"$f":"$K$59","v":0},{"$f":"$K$58","v":0},{"$f":"$K$60","v":0},{"$f":"$K$71","v":0},{"$f":"$B$55","v":""},{"$f":"$K$61","v":0},{"$f":"$K$63","v":0},{"$f":"$K$62","v":0},{"$f":"$K$67","v":0},{"$f":"$K$66","v":0},{"$f":"$K$69","v":0},{"$f":"$K$68","v":0},{"$f":"$K$65","v":0},{"$f":"$K$64","v":0}]
[null,{"$f":"$A$79","v":0},10,{"$f":"$K$81","v":0},{"$f":"$K$80","v":0},{"$f":"$K$82","v":0},{"$f":"$K$93","v":0},{"$f":"B$77","v":""},{"$f":"$K$83","v":0},{"$f":"$K$85","v":0},{"$f":"$K$84","v":0},{"$f":"$K$89","v":0},{"$f":"$K$88","v":0},{"$f":"$K$91","v":0},{"$f":"$K$90","v":0},{"$f":"$K$87","v":0},{"$f":"$K$86","v":0}]
[null,{"$f":"$A$103","v":0},10,{"$f":"$K$105","v":0},{"$f":"$K$104","v":0},{"$f":"$K$106","v":0},{"$f":"$K$117","v":0},{"$f":"$B$101","v":""},{"$f":"$K$107","v":0},{"$f":"$K$109","v":0},{"$f":"$K$108","v":0},{"$f":"$K$113","v":0},{"$f":"$K$112","v":0},{"$f":"$K$115","v":0},{"$f":"$K$114","v":0},{"$f":"$K$111","v":0},{"$f":"$K$110","v":0}]
[null,{"$f":"$A$125","v":0},10,{"$f":"$K$127","v":0},{"$f":"$K$126","v":0},{"$f":"$K$128","v":0},{"$f":"$K$139","v":0},{"$f":"B$123","v":""},{"$f":"$K$129","v":0},{"$f":"$K$131","v":0},{"$f":"$K$130","v":0},{"$f":"$K$135","v":0},{"$f":"$K$134","v":0},{"$f":"$K$137","v":0},{"$f":"$K$136","v":0},{"$f":"$K$133","v":0},{"$f":"$K$132","v":0}]
[null,{"$f":"$A$147","v":0},10,{"$f":"$K$149","v":0},{"$f":"$K$148","v":0},{"$f":"$K$150","v":0},{"$f":"$K$161","v":0},{"$f":"$B$145","v":""},{"$f":"$K$151","v":0},{"$f":"$K$153","v":0},{"$f":"$K$152","v":0},{"$f":"$K$157","v":0},{"$f":"$K$156","v":0},{"$f":"$K$159","v":0},{"$f":"$K$158","v":0},{"$f":"$K$155","v":0},{"$f":"$K$154","v":0}]
[null,{"$f":"$A$57","v":0},9,{"$f":"$J$59","v":0},{"$f":"$J$58","v":0},{"$f":"$J$60","v":0},{"$f":"$J$71","v":0},{"$f":"$B$55","v":""},{"$f":"$J$61","v":0},{"$f":"$J$63","v":0},{"$f":"$J$62","v":0},{"$f":"$J$67","v":0},{"$f":"$J$66","v":0},{"$f":"$J$69","v":0},{"$f":"$J$68","v":0},{"$f":"$J$65","v":0},{"$f":"$J$64","v":0}]
[null,{"$f":"$A$79","v":0},9,{"$f":"$J$81","v":0},{"$f":"$J$80","v":0},{"$f":"$J$82","v":0},{"$f":"$J$93","v":0},{"$f":"B$77","v":""},{"$f":"$J$83","v":0},{"$f":"$J$85","v":0},{"$f":"$J$84","v":0},{"$f":"$J$89","v":0},{"$f":"$J$88","v":0},{"$f":"$J$91","v":0},{"$f":"$J$90","v":0},{"$f":"$J$87","v":0},{"$f":"$J$86","v":0}]
[null,{"$f":"$A$103","v":0},9,{"$f":"$J$105","v":0},{"$f":"$J$104","v":0},{"$f":"$J$106","v":0},{"$f":"$J$117","v":0},{"$f":"$B$101","v":""},{"$f":"$J$107","v":0},{"$f":"$J$109","v":0},{"$f":"$J$108","v":0},{"$f":"$J$113","v":0},{"$f":"$J$112","v":0},{"$f":"$J$115","v":0},{"$f":"$J$114","v":0},{"$f":"$J$111","v":0},{"$f":"$J$110","v":0}]
[null,{"$f":"$A$125","v":0},9,{"$f":"$J$127","v":0},{"$f":"$J$126","v":0},{"$f":"$J$128","v":0},{"$f":"$J$139","v":0},{"$f":"B$123","v":""},{"$f":"$J$129","v":0},{"$f":"$J$131","v":0},{"$f":"$J$130","v":0},{"$f":"$J$135","v":0},{"$f":"$J$134","v":0},{"$f":"$J$137","v":0},{"$f":"$J$136","v":0},{"$f":"$J$133","v":0},{"$f":"$J$132","v":0}]
[null,{"$f":"$A$147","v":0},9,{"$f":"$J$149","v":0},{"$f":"$J$148","v":0},{"$f":"$J$150","v":0},{"$f":"$J$161","v":0},{"$f":"$B$145","v":""},{"$f":"$J$151","v":0},{"$f":"$J$153","v":0},{"$f":"$J$152","v":0},{"$f":"$J$157","v":0},{"$f":"$J$156","v":0},{"$f":"$J$159","v":0},{"$f":"$J$158","v":0},{"$f":"$J$155","v":0},{"$f":"$J$154","v":0}]
[null,{"$f":"$A$57","v":0},8,{"$f":"$I$59","v":0},{"$f":"$I$58","v":0},{"$f":"$I$60","v":0},{"$f":"$I$71","v":0},{"$f":"$B$55","v":""},{"$f":"$I$61","v":0},{"$f":"$I$63","v":0},{"$f":"$I$62","v":0},{"$f":"$I$67","v":0},{"$f":"$I$66","v":0},{"$f":"$I$69","v":0},{"$f":"$I$68","v":0},{"$f":"$I$65","v":0},{"$f":"$I$64","v":0}]
[null,{"$f":"$A$79","v":0},8,{"$f":"$I$81","v":0},{"$f":"$I$80","v":0},{"$f":"$I$82","v":0},{"$f":"$I$93","v":0},{"$f":"B$77","v":""},{"$f":"$I$83","v":0},{"$f":"$I$85","v":0},{"$f":"$I$84","v":0},{"$f":"$I$89","v":0},{"$f":"$I$88","v":0},{"$f":"$I$91","v":0},{"$f":"$I$90","v":0},{"$f":"$I$87","v":0},{"$f":"$I$86","v":0}]
[null,{"$f":"$A$103","v":0},8,{"$f":"$I$105","v":0},{"$f":"$I$104","v":0},{"$f":"$I$106","v":0},{"$f":"$I$117","v":0},{"$f":"$B$101","v":""},{"$f":"$I$107","v":0},{"$f":"$I$109","v":0},{"$f":"$I$108","v":0},{"$f":"$I$113","v":0},{"$f":"$I$112","v":0},{"$f":"$I$115","v":0},{"$f":"$I$114","v":0},{"$f":"$I$111","v":0},{"$f":"$I$110","v":0}]
[null,{"$f":"$A$125","v":0},8,{"$f":"$I$127","v":0},{"$f":"$I$126","v":0},{"$f":"$I$128","v":0},{"$f":"$I$139","v":0},{"$f":"B$123","v":""},{"$f":"$I$129","v":0},{"$f":"$I$131","v":0},{"$f":"$I$130","v":0},{"$f":"$I$135","v":0},{"$f":"$I$134","v":0},{"$f":"$I$137","v":0},{"$f":"$I$136","v":0},{"$f":"$I$133","v":0},{"$f":"$I$132","v":0}]
[null,{"$f":"$A$147","v":0},8,{"$f":"$I$149","v":0},{"$f":"$I$148","v":0},{"$f":"$I$150","v":0},{"$f":"$I$161","v":0},{"$f":"$B$145","v":""},{"$f":"$I$151","v":0},{"$f":"$I$153","v":0},{"$f":"$I$152","v":0},{"$f":"$I$157","v":0},{"$f":"$I$156","v":0},{"$f":"$I$159","v":0},{"$f":"$I$158","v":0},{"$f":"$I$155","v":0},{"$f":"$I$154","v":0}]
[null,{"$f":"$A$57","v":0},7,{"$f":"$H$59","v":0},{"$f":"$H$58","v":0},{"$f":"$H$60","v":0},{"$f":"$H$71","v":0},{"$f":"$B$55","v":""},{"$f":"$H$61","v":0},{"$f":"$H$63","v":0},{"$f":"$H$62","v":0},{"$f":"$H$67","v":0},{"$f":"$H$66","v":0},{"$f":"$H$69","v":0},{"$f":"$H$68","v":0},{"$f":"$H$65","v":0},{"$f":"$H$64","v":0}]
[null,{"$f":"$A$79","v":0},7,{"$f":"$H$81","v":0},{"$f":"$H$80","v":0},{"$f":"$H$82","v":0},{"$f":"$H$93","v":0},{"$f":"B$77","v":""},{"$f":"$H$83","v":0},{"$f":"$H$85","v":0},{"$f":"$H$84","v":0},{"$f":"$H$89","v":0},{"$f":"$H$88","v":0},{"$f":"$H$91","v":0},{"$f":"$H$90","v":0},{"$f":"$H$87","v":0},{"$f":"$H$86","v":0}]
[null,{"$f":"$A$103","v":0},7,{"$f":"$H$105","v":0},{"$f":"$H$104","v":0},{"$f":"$H$106","v":0},{"$f":"$H$117","v":0},{"$f":"$B$101","v":""},{"$f":"$H$107","v":0},{"$f":"$H$109","v":0},{"$f":"$H$108","v":0},{"$f":"$H$113","v":0},{"$f":"$H$112","v":0},{"$f":"$H$115","v":0},{"$f":"$H$114","v":0},{"$f":"$H$111","v":0},{"$f":"$H$110","v":0}]
[null,{"$f":"$A$125","v":0},7,{"$f":"$H$127","v":0},{"$f":"$H$126","v":0},{"$f":"$H$128","v":0},{"$f":"$H$139","v":0},{"$f":"B$123","v":""},{"$f":"$H$129","v":0},{"$f":"$H$131","v":0},{"$f":"$H$130","v":0},{"$f":"$H$135","v":0},{"$f":"$H$134","v":0},{"$f":"$H$137","v":0},{"$f":"$H$136","v":0},{"$f":"$H$133","v":0},{"$f":"$H$132","v":0}]
[null,{"$f":"$A$147","v":0},7,{"$f":"$H$149","v":0},{"$f":"$H$148","v":0},{"$f":"$H$150","v":0},{"$f":"$H$161","v":0},{"$f":"$B$145","v":""},{"$f":"$H$151","v":0},{"$f":"$H$153","v":0},{"$f":"$H$152","v":0},{"$f":"$H$157","v":0},{"$f":"$H$156","v":0},{"$f":"$H$159","v":0},{"$f":"$H$158","v":0},{"$f":"$H$155","v":0},{"$f":"$H$154","v":0}]
[null,{"$f":"$A$57","v":0},6,{"$f":"$G$59","v":0},{"$f":"$G$58","v":0},{"$f":"$G$60","v":0},{"$f":"$G$71","v":0},{"$f":"$B$55","v":""},{"$f":"$G$61","v":0},{"$f":"$G$63","v":0},{"$f":"$G$62","v":0},{"$f":"$G$67","v":0},{"$f":"$G$66","v":0},{"$f":"$G$69","v":0},{"$f":"$G$68","v":0},{"$f":"$G$65","v":0},{"$f":"$G$64","v":0}]
[null,{"$f":"$A$79","v":0},6,{"$f":"$G$81","v":0},{"$f":"$G$80","v":0},{"$f":"$G$82","v":0},{"$f":"$G$93","v":0},{"$f":"B$77","v":""},{"$f":"$G$83","v":0},{"$f":"$G$85","v":0},{"$f":"$G$84","v":0},{"$f":"$G$89","v":0},{"$f":"$G$88","v":0},{"$f":"$G$91","v":0},{"$f":"$G$90","v":0},{"$f":"$G$87","v":0},{"$f":"$G$86","v":0}]
[null,{"$f":"$A$103","v":0},6,{"$f":"$G$105","v":0},{"$f":"$G$104","v":0},{"$f":"$G$106","v":0},{"$f":"$G$117","v":0},{"$f":"$B$101","v":""},{"$f":"$G$107","v":0},{"$f":"$G$109","v":0},{"$f":"$G$108","v":0},{"$f":"$G$113","v":0},{"$f":"$G$112","v":0},{"$f":"$G$115","v":0},{"$f":"$G$114","v":0},{"$f":"$G$111","v":0},{"$f":"$G$110","v":0}]
[null,{"$f":"$A$125","v":0},6,{"$f":"$G$127","v":0},{"$f":"$G$126","v":0},{"$f":"$G$128","v":0},{"$f":"$G$139","v":0},{"$f":"B$123","v":""},{"$f":"$G$129","v":0},{"$f":"$G$131","v":0},{"$f":"$G$130","v":0},{"$f":"$G$135","v":0},{"$f":"$G$134","v":0},{"$f":"$G$137","v":0},{"$f":"$G$136","v":0},{"$f":"$G$133","v":0},{"$f":"$G$132","v":0}]
[null,{"$f":"$A$147","v":0},6,{"$f":"$G$149","v":0},{"$f":"$G$148","v":0},{"$f":"$G$150","v":0},{"$f":"$G$161","v":0},{"$f":"$B$145","v":""},{"$f":"$G$151","v":0},{"$f":"$G$153","v":0},{"$f":"$G$152","v":0},{"$f":"$G$157","v":0},{"$f":"$G$156","v":0},{"$f":"$G$159","v":0},{"$f":"$G$158","v":0},{"$f":"$G$155","v":0},{"$f":"$G$154","v":0}]
[null,{"$f":"$A$57","v":0},5,{"$f":"$F$59","v":0},{"$f":"$F$58","v":0},{"$f":"$F$60","v":0},{"$f":"$F$71","v":0},{"$f":"$B$55","v":""},{"$f":"$F$61","v":0},{"$f":"$F$63","v":0},{"$f":"$F$62","v":0},{"$f":"$F$67","v":0},{"$f":"$F$66","v":0},{"$f":"$F$69","v":0},{"$f":"$F$68","v":0},{"$f":"$F$65","v":0},{"$f":"$F$64","v":0}]
[null,{"$f":"$A$79","v":0},5,{"$f":"$F$81","v":0},{"$f":"$F$80","v":0},{"$f":"$F$82","v":0},{"$f":"$F$93","v":0},{"$f":"B$77","v":""},{"$f":"$F$83","v":0},{"$f":"$F$85","v":0},{"$f":"$F$84","v":0},{"$f":"$F$89","v":0},{"$f":"$F$88","v":0},{"$f":"$F$91","v":0},{"$f":"$F$90","v":0},{"$f":"$F$87","v":0},{"$f":"$F$86","v":0}]
[null,{"$f":"$A$103","v":0},5,{"$f":"$F$105","v":0},{"$f":"$F$104","v":0},{"$f":"$F$106","v":0},{"$f":"$F$117","v":0},{"$f":"$B$101","v":""},{"$f":"$F$107","v":0},{"$f":"$F$109","v":0},{"$f":"$F$108","v":0},{"$f":"$F$113","v":0},{"$f":"$F$112","v":0},{"$f":"$F$115","v":0},{"$f":"$F$114","v":0},{"$f":"$F$111","v":0},{"$f":"$F$110","v":0}]
[null,{"$f":"$A$125","v":0},5,{"$f":"$F$127","v":0},{"$f":"$F$126","v":0},{"$f":"$F$128","v":0},{"$f":"$F$139","v":0},{"$f":"B$123","v":""},{"$f":"$F$129","v":0},{"$f":"$F$131","v":0},{"$f":"$F$130","v":0},{"$f":"$F$135","v":0},{"$f":"$F$134","v":0},{"$f":"$F$137","v":0},{"$f":"$F$136","v":0},{"$f":"$F$133","v":0},{"$f":"$F$132","v":0}]
[null,{"$f":"$A$147","v":0},5,{"$f":"$F$149","v":0},{"$f":"$F$148","v":0},{"$f":"$F$150","v":0},{"$f":"$F$161","v":0},{"$f":"$B$145","v":""},{"$f":"$F$151","v":0},{"$f":"$F$153","v":0},{"$f":"$F$152","v":0},{"$f":"$F$157","v":0},{"$f":"$F$156","v":0},{"$f":"$F$159","v":0},{"$f":"$F$158","v":0},{"$f":"$F$155","v":0},{"$f":"$F$154","v":0}]
[null,{"$f":"$A$57","v":0},4,{"$f":"$E$59","v":0},{"$f":"$E$58","v":0},{"$f":"$E$60","v":0},{"$f":"$E$71","v":0},{"$f":"$B$55","v":""},{"$f":"$E$61","v":0},{"$f":"$E$63","v":0},{"$f":"$E$62","v":0},{"$f":"$E$67","v":0},{"$f":"$E$66","v":0},{"$f":"$E$69","v":0},{"$f":"$E$68","v":0},{"$f":"$E$65","v":0},{"$f":"$E$64","v":0}]
[null,{"$f":"$A$79","v":0},4,{"$f":"$E$81","v":0},{"$f":"$E$80","v":0},{"$f":"$E$82","v":0},{"$f":"$E$93","v":0},{"$f":"B$77","v":""},{"$f":"$E$83","v":0},{"$f":"$E$85","v":0},{"$f":"$E$84","v":0},{"$f":"$E$89","v":0},{"$f":"$E$88","v":0},{"$f":"$E$91","v":0},{"$f":"$E$90","v":0},{"$f":"$E$87","v":0},{"$f":"$E$86","v":0}]
[null,{"$f":"$A$103","v":0},4,{"$f":"$E$105","v":0},{"$f":"$E$104","v":0},{"$f":"$E$106","v":0},{"$f":"$E$117","v":0},{"$f":"$B$101","v":""},{"$f":"$E$107","v":0},{"$f":"$E$109","v":0},{"$f":"$E$108","v":0},{"$f":"$E$113","v":0},{"$f":"$E$112","v":0},{"$f":"$E$115","v":0},{"$f":"$E$114","v":0},{"$f":"$E$111","v":0},{"$f":"$E$110","v":0}]
[null,{"$f":"$A$125","v":0},4,{"$f":"$E$127","v":0},{"$f":"$E$126","v":0},{"$f":"$E$128","v":0},{"$f":"$E$139","v":0},{"$f":"B$123","v":""},{"$f":"$E$129","v":0},{"$f":"$E$131","v":0},{"$f":"$E$130","v":0},{"$f":"$E$135","v":0},{"$f":"$E$134","v":0},{"$f":"$E$137","v":0},{"$f":"$E$136","v":0},{"$f":"$E$133","v":0},{"$f":"$E$132","v":0}]
[null,{"$f":"$A$147","v":0},4,{"$f":"$E$149","v":0},{"$f":"$E$148","v":0},{"$f":"$E$150","v":0},{"$f":"$E$161","v":0},{"$f":"$B$145","v":""},{"$f":"$E$151","v":0},{"$f":"$E$153","v":0},{"$f":"$E$152","v":0},{"$f":"$E$157","v":0},{"$f":"$E$156","v":0},{"$f":"$E$159","v":0},{"$f":"$E$158","v":0},{"$f":"$E$155","v":0},{"$f":"$E$154","v":0}]
[null,{"$f":"$A$57","v":0},3,{"$f":"$D$59","v":0},{"$f":"$D$58","v":0},{"$f":"$D$60","v":0},{"$f":"$D$71","v":0},{"$f":"$B$55","v":""},{"$f":"$D$61","v":0},{"$f":"$D$63","v":0},{"$f":"$D$62","v":0},{"$f":"$D$67","v":0},{"$f":"$D$66","v":0},{"$f":"$D$69","v":0},{"$f":"$D$68","v":0},{"$f":"$D$65","v":0},{"$f":"$D$64","v":0}]
[null,{"$f":"$A$79","v":0},3,{"$f":"$D$81","v":0},{"$f":"$D$80","v":0},{"$f":"$D$82","v":0},{"$f":"$D$93","v":0},{"$f":"B$77","v":""},{"$f":"$D$83","v":0},{"$f":"$D$85","v":0},{"$f":"$D$84","v":0},{"$f":"$D$89","v":0},{"$f":"$D$88","v":0},{"$f":"$D$91","v":0},{"$f":"$D$90","v":0},{"$f":"$D$87","v":0},{"$f":"$D$86","v":0}]
[null,{"$f":"$A$103","v":0},3,{"$f":"$D$105","v":0},{"$f":"$D$104","v":0},{"$f":"$D$106","v":0},{"$f":"$D$117","v":0},{"$f":"$B$101","v":""},{"$f":"$D$107","v":0},{"$f":"$D$109","v":0},{"$f":"$D$108","v":0},{"$f":"$D$113","v":0},{"$f":"$D$112","v":0},{"$f":"$D$115","v":0},{"$f":"$D$114","v":0},{"$f":"$D$111","v":0},{"$f":"$D$110","v":0}]
[null,{"$f":"$A$125","v":0},3,{"$f":"$D$127","v":0},{"$f":"$D$126","v":0},{"$f":"$D$128","v":0},{"$f":"$D$139","v":0},{"$f":"B$123","v":""},{"$f":"$D$129","v":0},{"$f":"$D$131","v":0},{"$f":"$D$130","v":0},{"$f":"$D$135","v":0},{"$f":"$D$134","v":0},{"$f":"$D$137","v":0},{"$f":"$D$136","v":0},{"$f":"$D$133","v":0},{"$f":"$D$132","v":0}]
[null,{"$f":"$A$147","v":0},3,{"$f":"$D$149","v":0},{"$f":"$D$148","v":0},{"$f":"$D$150","v":0},{"$f":"$D$161","v":0},{"$f":"$B$145","v":""},{"$f":"$D$151","v":0},{"$f":"$D$153","v":0},{"$f":"$D$152","v":0},{"$f":"$D$157","v":0},{"$f":"$D$156","v":0},{"$f":"$D$159","v":0},{"$f":"$D$158","v":0},{"$f":"$D$155","v":0},{"$f":"$D$154","v":0}]
[null,{"$f":"$A$57","v":0},2,{"$f":"$C$59","v":0},{"$f":"$C$58","v":0},{"$f":"$C$60","v":0},{"$f":"$C$71","v":0},{"$f":"$B$55","v":""},{"$f":"$C$61","v":0},{"$f":"$C$63","v":0},{"$f":"$C$62","v":0},{"$f":"$C$67","v":0},{"$f":"$C$66","v":0},{"$f":"$C$69","v":0},{"$f":"$C$68","v":0},{"$f":"$C$65","v":0},{"$f":"$C$64","v":0}]
[null,{"$f":"$A$79","v":0},2,{"$f":"$C$81","v":0},{"$f":"$C$80","v":0},{"$f":"$C$82","v":0},{"$f":"$C$93","v":0},{"$f":"B$77","v":""},{"$f":"$C$83","v":0},{"$f":"$C$85","v":0},{"$f":"$C$84","v":0},{"$f":"$C$89","v":0},{"$f":"$C$88","v":0},{"$f":"$C$91","v":0},{"$f":"$C$90","v":0},{"$f":"$C$87","v":0},{"$f":"$C$86","v":0}]
[null,{"$f":"$A$103","v":0},2,{"$f":"$C$105","v":0},{"$f":"$C$104","v":0},{"$f":"$C$106","v":0},{"$f":"$C$117","v":0},{"$f":"$B$101","v":""},{"$f":"$C$107","v":0},{"$f":"$C$109","v":0},{"$f":"$C$108","v":0},{"$f":"$C$113","v":0},{"$f":"$C$112","v":0},{"$f":"$C$115","v":0},{"$f":"$C$114","v":0},{"$f":"$C$111","v":0},{"$f":"$C$110","v":0}]
[null,{"$f":"$A$125","v":0},2,{"$f":"$C$127","v":0},{"$f":"$C$126","v":0},{"$f":"$C$128","v":0},{"$f":"$C$139","v":0},{"$f":"B$123","v":""},{"$f":"$C$129","v":0},{"$f":"$C$131","v":0},{"$f":"$C$130","v":0},{"$f":"$C$135","v":0},{"$f":"$C$134","v":0},{"$f":"$C$137","v":0},{"$f":"$C$136","v":0},{"$f":"$C$133","v":0},{"$f":"$C$132","v":0}]
[null,{"$f":"$A$147","v":0},2,{"$f":"$C$149","v":0},{"$f":"$C$148","v":0},{"$f":"$C$150","v":0},{"$f":"$C$161","v":0},{"$f":"$B$145","v":""},{"$f":"$C$151","v":0},{"$f":"$C$153","v":0},{"$f":"$C$152","v":0},{"$f":"$C$157","v":0},{"$f":"$C$156","v":0},{"$f":"$C$159","v":0},{"$f":"$C$158","v":0},{"$f":"$C$155","v":0},{"$f":"$C$154","v":0}]
[null,{"$f":"$A$57","v":0},1,{"$f":"$B$59","v":0},{"$f":"$B$58","v":0},{"$f":"$B$60","v":0},{"$f":"$B$71","v":0},{"$f":"$B$55","v":""},{"$f":"$B$61","v":0},{"$f":"$B$63","v":0},{"$f":"$B$62","v":0},{"$f":"$B$67","v":0},{"$f":"$B$66","v":0},{"$f":"$B$69","v":0},{"$f":"$B$68","v":0},{"$f":"$B$65","v":0},{"$f":"$B$64","v":0}]
[null,{"$f":"$A$79","v":0},1,{"$f":"$B$81","v":0},{"$f":"$B$80","v":0},{"$f":"$B$82","v":0},{"$f":"$B$93","v":0},{"$f":"B$77","v":""},{"$f":"$B$83","v":0},{"$f":"$B$85","v":0},{"$f":"$B$84","v":0},{"$f":"$B$89","v":0},{"$f":"$B$88","v":0},{"$f":"$B$91","v":0},{"$f":"$B$90","v":0},{"$f":"$B$87","v":0},{"$f":"$B$86","v":0}]
[null,{"$f":"$A$103","v":0},1,{"$f":"$B$105","v":0},{"$f":"$B$104","v":0},{"$f":"$B$106","v":0},{"$f":"$B$117","v":0},{"$f":"$B$101","v":""},{"$f":"$B$107","v":0},{"$f":"$B$109","v":0},{"$f":"$B$108","v":0},{"$f":"$B$113","v":0},{"$f":"$B$112","v":0},{"$f":"$B$115","v":0},{"$f":"$B$114","v":0},{"$f":"$B$111","v":0},{"$f":"$B$110","v":0}]
[null,{"$f":"$A$125","v":0},1,{"$f":"$B$127","v":0},{"$f":"$B$126","v":0},{"$f":"$B$128","v":0},{"$f":"$B$139","v":0},{"$f":"B$123","v":""},{"$f":"$B$129","v":0},{"$f":"$B$131","v":0},{"$f":"$B$130","v":0},{"$f":"$B$135","v":0},{"$f":"$B$134","v":0},{"$f":"$B$137","v":0},{"$f":"$B$136","v":0},{"$f":"$B$133","v":0},{"$f":"$B$132","v":0}]
[null,{"$f":"$A$147","v":0},1,{"$f":"$B$149","v":0},{"$f":"$B$148","v":0},{"$f":"$B$150","v":0},{"$f":"$B$161","v":0},{"$f":"$B$145","v":""},{"$f":"$B$151","v":0},{"$f":"$B$153","v":0},{"$f":"$B$152","v":0},{"$f":"$B$157","v":0},{"$f":"$B$156","v":0},{"$f":"$B$159","v":0},{"$f":"$B$158","v":0},{"$f":"$B$155","v":0},{"$f":"$B$154","v":0}]
[]
[]
[]
[]
[]
["Most recent 12 months for graphs:"]
[]
[null,"Year","Month","Month/Year","Electric Use","Natural Gas Cost","Water Treated","Electric Cost","Electric Energy Utilization","Gas Use","Electric Rate","Monthly Fuel2 Use","Monthly Fuel2 Cost","Monthly Alternative Use","Monthly Alt Cost","Monthly Other Use","Monthly Other Cost","Monthly Water & Sewer Use","Monthly Water & Sewer Cost"]
[]
[null,null,null,{"$f":"C278&\"/\"&B278","v":"/"},null,null,null,null,{"$f":"IF(G278=0,\"\",E278/G278)","v":""},null,{"$f":"IF(E278=0,0,H278/E278)","v":0}]
[null,null,null,{"$f":"C279&\"/\"&B279","v":"/"},null,null,null,null,{"$f":"IF(G279=0,\"\",E279/G279)","v":""},null,{"$f":"IF(E279=0,0,H279/E279)","v":0}]
[null,null,null,"/",null,null,null,null,{"$f":"IF(G280=0,\"\",E280/G280)","v":""},null,{"$f":"IF(E280=0,0,H280/E280)","v":0}]
[null,null,null,"/",null,null,null,null,"",null,0]
[null,null,null,"/",null,null,null,null,"",null,0]
[null,null,null,"/",null,null,null,null,"",null,0]
[null,null,null,"/",null,null,null,null,"",null,0]
[null,null,null,"/",null,null,null,null,"",null,0]
[null,null,null,"/",null,null,null,null,"",null,0]
[null,null,null,"/",null,null,null,null,"",null,0]
[null,null,null,"/",null,null,null,null,"",null,0]
[null,null,null,"/",null,null,null,null,"",null,0]
[null,null,null,null,0,{"$f":"SUM(F278:F289)","v":0},{"$f":"SUM(G278:G289)","v":0},{"$f":"SUM(H278:H289)","v":0},{"$f":"SUM(I278:I289)","v":0},{"$f":"SUM(J278:J289)","v":0},{"$f":"IF(SUM(K278:K289)=0,0,AVERAGE(K278:K289))","v":0},{"$f":"SUM(L278:L289)","v":0},0,0,0,0,0,{"$f":"SUM(R278:R289)","v":0},0]
[]
[]
["Year by year data"]
[null,"Year","Total Electric Use","Total Natural Gas Use","Total Natural Gas Cost","Total  Water Treated","Total Electric Cost","Electric Energy Utilization","Total Alt Energy Cost","Total Water and Sewer Cost","Total No. 2 Fuel Cost","Total Other Cost"]
[]
[null,{"$f":"$A$147","v":0},{"$f":"$N$149","v":0},{"$f":"$N$151","v":0},{"$f":"$N$150","v":0},{"$f":"$N$161","v":0},{"$f":"$N$148","v":0},{"$f":"$N$163","v":0},{"$f":"$N$156","v":0},{"$f":"$N$154","v":0},{"$f":"$N$152","v":0},{"$f":"$N$158","v":0}]
[null,{"$f":"$A$125","v":0},{"$f":"$N$127","v":0},{"$f":"$N$129","v":0},{"$f":"$N$128","v":0},{"$f":"$N$139","v":0},{"$f":"$N$126","v":0},{"$f":"$N$141","v":0},{"$f":"$N$134","v":0},{"$f":"$N$132","v":0},{"$f":"$N$130","v":0},{"$f":"$N$136","v":0}]
[null,{"$f":"$A$103","v":0},{"$f":"$N$105","v":0},{"$f":"$N$107","v":0},{"$f":"$N$106","v":0},{"$f":"$N$117","v":0},{"$f":"$N$104","v":0},{"$f":"$N$119","v":0},{"$f":"$N$112","v":0},{"$f":"$N$110","v":0},{"$f":"$N$108","v":0},{"$f":"$N$114","v":0}]
[null,{"$f":"$A$79","v":0},{"$f":"$N$81","v":0},{"$f":"$N$83","v":0},{"$f":"$N$82","v":0},{"$f":"$N$93","v":0},{"$f":"$N$80","v":0},{"$f":"$N$95","v":0},{"$f":"$N$88","v":0},{"$f":"$N$86","v":0},{"$f":"$N$84","v":0},{"$f":"$N$90","v":0}]
[null,{"$f":"$A$57","v":0},{"$f":"$N$59","v":0},{"$f":"$N$61","v":0},{"$f":"$N$60","v":0},{"$f":"$N$71","v":0},{"$f":"$N$58","v":0},{"$f":"$N$73","v":0},{"$f":"$N$66","v":0},{"$f":"$N$64","v":0},{"$f":"$N$62","v":0},{"$f":"$N$68","v":0}]
[]
[]
[]
[]
["Year by year sorted and formatted for graphs"]
[null,"Year","Electric Use","Natural Gas Use","Natural Gas Cost","Water Treated","Electric Cost","Electric Energy Utilization","Alt. Energy Cost","Water and Sewer Cost","No. 2 Fuel Cost","Other Cost"]
[null,0,0,0,0,0,0,0,0,0,0,0]
[null,0,0,0,0,0,0,0,0,0,0,0]
[null,0,0,0,0,0,0,0,0,0,0,0]
[null,0,0,0,0,0,0,0,0,0,0,0]
[null,{"$f":"B278&\" - \"&monthSortEnd","v":" - "},{"$f":"SUM(E278:E289)","v":0},{"$f":"SUM(J278:J289)","v":0},{"$f":"SUM(F278:F289)","v":0},{"$f":"SUM(G278:G289)","v":0},{"$f":"SUM(H278:H289)","v":0},{"$f":"SUM(I278:I289)","v":0},{"$f":"SUM(O278:O289)","v":0},{"$f":"SUM(S278:S289)","v":0},{"$f":"SUM(M278:M289)","v":0},{"$f":"SUM(Q278:Q289)","v":0}]
[]
[]
[]
[]
[{"$f":"\"Dummy row for invoking calculations to run for\" & A57","v":"Dummy row for invoking calculations to run for"},null,null,{"$f":"SUM(A57,A79,A103,A125,A147)","v":0}]

{"sheet":"Building 1 Data","index":3,"n_rows":111,"n_cols":255,"rows_kept":111,"cut":false,"hidden":false,"merged":[[110,9,110,12],[48,10,48,11],[85,10,85,11],[73,10,73,11],[61,10,61,11],[60,10,60,11],[84,10,84,11],[49,10,49,11],[97,1,99,19],[34,3,34,6],[22,2,22,3],[21,2,21,3],[19,8,19,9],[37,10,37,11],[0,0,0,10],[17,3,17,6],[8,1,9,2],[10,1,10,4],[10,7,10,9],[13,1,13,14],[58,3,58,6],[3,1,3,14],[5,1,6,14],[8,7,9,9],[27,1,31,22],[34,14,34,17],[10,12,10,14],[23,2,23,3],[8,12,9,13],[20,2,20,3],[19,6,20,7],[20,8,20,11],[58,14,58,17],[46,14,46,17],[46,3,46,6],[36,10,36,11],[70,14,70,17],[82,14,82,17],[70,3,70,6],[82,3,82,6],[72,10,72,11]]}
[{"$f":"\"EPA Energy Use Assessment Tool for \" & workbookType","v":"EPA Energy Use Assessment Tool for Drinking Water Systems"}]
["Site Structural Buildings - Major Non-Process Energy Users"]
[]
[null,"\nIn the Building Data tabs, the tool totals each building’s Lighting and HVAC information. You should use the totals for entry on the WTP or WWTP Energy Use tabs.  For instructions on how to enter that information, see the WTP or WWTP Energy Usage tabs. If you have already identified the site's Lighting and HVAC loads or would just like to estimate them without detailing this information here, proceed to the WTP or WWTP Energy Usage tab.\n\nIf you skip this tab, you can come back later to fill in this detail.\n\n\n"]
[]
[null,"\nEnter the following information once for the entire plant.\n\nSelect the Total Number of Buildings on-site and click the \"Set # of Buildings\" button. This lets you enter information for the specified number of buildings.\n\nAfter entering data in a building tab, click the \"Save and Continue\" button at the top. That allows you to enter data for the next building or if building data entry is complete, to return to the General Information tab. You can also click the other Building Data tabs at the bottom. \n"]
[]
[]
[null,"Total Plant Building Area",null,{"$f":"SUM(D19,'Building 2 Data'!D19,'Building 3 Data'!D19,'Building 4 Data'!D19,'Building 5 Data'!D19,'Building 6 Data'!D19,'Building 7 Data'!D19,'Building 8 Data'!D19,'Building 9 Data'!D19,'Building 10 Data'!D19)","v":0},1,null,"Ft2","Total Plant Building Electric Load",null,null,{"$f":"SUM(G24,'Building 2 Data'!G24,'Building 3 Data'!G24,'Building 4 Data'!G24,'Building 5 Data'!G24,'Building 6 Data'!G24,'Building 7 Data'!G24,'Building 8 Data'!G24,'Building 9 Data'!G24,'Building 10 Data'!G24)","v":0},"kW","Total Plant Building Electric Use ",null,{"$f":"SUM(L24,'Building 2 Data'!L24,'Building 3 Data'!L24,'Building 4 Data'!L24,'Building 5 Data'!L24,'Building 6 Data'!L24,'Building 7 Data'!L24,'Building 8 Data'!L24,'Building 9 Data'!L24,'Building 10 Data'!L24)","v":0},"(kWh)",null,"kWh/Yr"]
[]
[null,"Does the site have buildings?",null,null,null,"Yes",null,"Total Number of Buildings On-site",null,null,"1",null,"! Reducing the number of buildings will delete \nany data entered on the additional tabs",null,null,null,null,null,null,null,null,null,null,null,null,null,null,null,null,null,null,null,null,null,null,null,null,null,null,null,null,null,null,null,null,null,null,null,null,null,null,null,null,null,null,null,null,null,null,null,null,null,null,null,null,null,null,null,null,null,null,null,null,null,null,null,null,null,null,null,null,null,null,null,null,null,null,null,null,null,null,null,null,null,null,null,null,null,null,null,null,null,null,null,null,null,null,null,null,null,null,null,null,null,null,null,null,null,null,null,null,null,null,null,null,null,null,null,null,null,null,null,null,null,null,null,null,null,null,null,null,null,null,null,null,null,null,null,null,null,null,null,null,null,null,null,null,null,null,null,null,null,null,null,null,null,null,null,null,null,null,null,null,null,null,null,null,null,null,null,null,null,null,null,null,null,null,null,null,null,null,null,null,null,null,null,null,null,null,null,null,null,null,null,null,null,null,null,null,null,null,null,null,null,null,null,null,null,null,null,null,null,null,null,null,null,null,null,null,null,null,null,null,null,null,null,null,null,null,null,null,null,null,null,null,null,null,null,null,null,null,null,null,null,"2"]
[]
[]
[null,"Enter the following information for each building at the plant.\n\nTo begin, select the number of rooms in the \"No. of Rooms\" dropdown list below and click the \"Set # of rooms\" button.   It is important to know and set the number of rooms upfront, before any lighting data is entered.  If the number of rooms is later changed, all the data that had been entered will be lost. "]
[]
[null,null,"BUILDING 1"]
[]
[null,null,"Name",null,null,null,null,null,"Operating Hours per Year",null,{"$f":"IF(K19=\"\",\"\",K19*K20*52)","v":""},"Hrs/Yr","Approximate Building Age (If known)",null,null,null,null,null,"Yrs"]
[null,null,"Area",{"$f":"I35+T35+T47+I47+I59+T59+T71+I71+I83+T83","v":0},null,null,"Ft2",null,"Operating Hours per Day",null,null,"Hrs/Day"]
[null,null,"No. of Rooms",null,null,null,"! Changing the number of rooms will reset all lighting data entered.",null,"Operating Days per Week",null,null,"Days/Wk","Average Building Lighting Power Density (LPD) ",null,null,null,null,{"$f":"IF(D19=0,\"\",(K38+V38+V50+K50+K62+V62+V74+K74+K86+V86)/D19)","v":""},"W/ft2"]
[null,null,"Estimated Electric Load:",null,null,null,null,null,"Estimated Annual Energy Use:",null,null,null,null,"Estimated Annual Energy Cost:"]
[null,null,{"$f":"\"Total Building \" & $E$9 & \" Lighting\"","v":"Total Building 1 Lighting"},null,null,null,{"$f":"IF((K38+V38+V50+K50+K62+V62+V74+K74+K86+V86)=0,0,(K38+V38+V50+K50+K62+V62+V74+K74+K86+V86)/1000)","v":0},"kW",{"$f":"\"Total Building \" & $E$9 & \" Lighting\"","v":"Total Building 1 Lighting"},null,null,{"$f":"IF((K38+V38+V50+K50+K62+V62+V74+K74+K86+V86)=0,IF(K18=\"\",0,0),IF(K18=\"\",0,((K38+V38+V50+K50+K62+V62+V74+K74+K86+V86)/1000)*K18))","v":0},"kWh/Yr",{"$f":"\"Total Building \" & $E$9 & \" Lighting\"","v":"Total Building 1 Lighting"},null,null,null,{"$f":"L22*'General Information'!$H$46","v":0},"$/Yr"]
[null,null,{"$f":"\"Total Building \" & $E$9 & \" HVAC\"","v":"Total Building 1 HVAC"},null,null,null,{"$f":"N$111","v":0},"kW",{"$f":"\"Total Building \" & $E$9 & \" HVAC\"","v":"Total Building 1 HVAC"},null,null,{"$f":"O$111","v":0},"kWh/Yr",{"$f":"\"Total Building \" & $E$9 & \" HVAC\"","v":"Total Building 1 HVAC"},null,null,null,{"$f":"R111","v":0},"$/Yr"]
[null,null,{"$f":"\"Total Building \" & $E$9 & \" Combined\"","v":"Total Building 1 Combined"},null,null,null,{"$f":"SUM(G22:G23)","v":0},"kW",{"$f":"\"Total Building \" & $E$9 & \" Combined\"","v":"Total Building 1 Combined"},null,null,{"$f":"SUM(L22,L23)","v":0},"kWh/Yr",{"$f":"\"Total Building \" & $E$9 & \" Combined\"","v":"Total Building 1 Combined"},null,null,null,{"$f":"SUM(R22,R23)","v":0},"$/Yr"]
[]
[null,null,"LIGHTING"]
[]
[null,"\nTo determine the site’s lighting loads and energy use, select each of the room’s lighting fixture types and quantity (Qty) using the dropdown lists below.\n\nSelect a light type from the dropdown list for each size and kind of fixture in a room. Then enter the quantity for each type. The tool provides the fixture’s electrical \nenergy load in watts. Do not include task lights (directional lights used to illuminate an area of work) when entering the room's lighting fixtures. \n\nIf a type of fixture is not available in the dropdown list, use the \"Other Type\" input field to enter the fixture and its total wattage.\n\nThe table automatically totals the room's lighting loads, each building's lighting energy use and the site's total lighting energy use per year for use in other areas of the tool.\nEnter the area of each room and the tool calculates the Lighting Power Density (LPD) in watts per square foot.  \nYou can now take an important next step and compare LPD’s from room to room and building to building to determine where excess energy might be in use.\n\n"]
[]
[]
[]
[]
[]
[]
[null,null,"Room 1 Name",null,null,null,null,"Area",null,"Ft2",null,null,null,"Room 2 Name",null,null,null,null,"Area",null,"Ft2"]
[null,null,"Room 1 Lighting (Main Lighting only - Do not include task lights)",null,null,null,null,null,null,null,null,null,null,"Room 2 Lighting (Main Lighting only - Do not include task lights)"]
[null,null,"Select up to 6 Light Fixture Types",null,null,null,null,null,"Fixture Qty",null,"Total Room Wattage (W) ",null,null,"Select up to 6 Light Fixture Types",null,null,null,null,null,"Fixture Qty",null,"Total Room Wattage (W)"]
[null,null,"Light Type 1",null,"Select Light Fixture",{"$f":"VLOOKUP(E38,'Linked Cells (hidden)'!$D$57:$E$150,2,FALSE)","v":"Total"},null,{"$f":"VLOOKUP(E38,'Linked Cells (hidden)'!$D$57:$E$150,2,FALSE)& \"  \" & \"Watts\"","v":"Total  Watts"},null,null,{"$f":"(IF(F38=\"Total\",0,I38*F38)+IF(F39=\"Total\",0,I39*F39)+IF(F40=\"Total\",0,I40*F40)+IF(F41=\"Total\",0,I41*F41)+IF(F42=\"Total\",0,I42*F42)+IF(F43=\"Total\",0,I43*F43))","v":0},null,"W","Light Type 1",null,"Select Light Fixture",{"$f":"VLOOKUP(P38,'Linked Cells (hidden)'!$D$57:$E$150,2,FALSE)","v":"Total"},null,{"$f":"VLOOKUP(P38,'Linked Cells (hidden)'!$D$57:$E$150,2,FALSE)& \"  \" & \"Watts\"","v":"Total  Watts"},null,null,{"$f":"(IF(Q38=\"Total\",0,T38*Q38)+IF(Q39=\"Total\",0,T39*Q39)+IF(Q40=\"Total\",0,T40*Q40)+IF(Q41=\"Total\",0,T41*Q41)+IF(Q42=\"Total\",0,T42*Q42)+IF(Q43=\"Total\",0,T43*Q43))","v":0},"W"]
[null,null,"Light Type 2",null,"Select Light Fixture",{"$f":"VLOOKUP(E39,'Linked Cells (hidden)'!$D$57:$E$150,2,FALSE)","v":"Total"},null,{"$f":"VLOOKUP(E39,'Linked Cells (hidden)'!$D$57:$E$150,2,FALSE)& \"  \" & \"Watts\"","v":"Total  Watts"},null,null,null,null,null,"Light Type 2",null,"Select Light Fixture",{"$f":"VLOOKUP(P39,'Linked Cells (hidden)'!$D$57:$E$150,2,FALSE)","v":"Total"},null,{"$f":"VLOOKUP(P39,'Linked Cells (hidden)'!$D$57:$E$150,2,FALSE)& \"  \" & \"Watts\"","v":"Total  Watts"}]
[null,null,"Light Type 3",null,"Select Light Fixture",{"$f":"VLOOKUP(E40,'Linked Cells (hidden)'!$D$57:$E$150,2,FALSE)","v":"Total"},null,{"$f":"VLOOKUP(E40,'Linked Cells (hidden)'!$D$57:$E$150,2,FALSE)& \"  \" & \"Watts\"","v":"Total  Watts"},null,null,"Room Lighting Power Density (LPD)",null,null,"Light Type 3",null,"Select Light Fixture",{"$f":"VLOOKUP(P40,'Linked Cells (hidden)'!$D$57:$E$150,2,FALSE)","v":"Total"},null,{"$f":"VLOOKUP(P40,'Linked Cells (hidden)'!$D$57:$E$150,2,FALSE)& \"  \" & \"Watts\"","v":"Total  Watts"},null,null,"Room Lighting Power Density (LPD)"]
[null,null,"Light Type 4",null,"Select Light Fixture",{"$f":"VLOOKUP(E41,'Linked Cells (hidden)'!$D$57:$E$150,2,FALSE)","v":"Total"},null,{"$f":"VLOOKUP(E41,'Linked Cells (hidden)'!$D$57:$E$150,2,FALSE)& \"  \" & \"Watts\"","v":"Total  Watts"},null,null,{"$f":"IF(K38=0,\"\",K38/I35)","v":""},"W/ft2",null,"Light Type 4",null,"Select Light Fixture",{"$f":"VLOOKUP(P41,'Linked Cells (hidden)'!$D$57:$E$150,2,FALSE)","v":"Total"},null,{"$f":"VLOOKUP(P41,'Linked Cells (hidden)'!$D$57:$E$150,2,FALSE)& \"  \" & \"Watts\"","v":"Total  Watts"},null,null,{"$f":"IF(V38=0,\"\",V38/T35)","v":""},"W/ft2"]
[null,null,"Light Type 5",null,"Select Light Fixture",{"$f":"VLOOKUP(E42,'Linked Cells (hidden)'!$D$57:$E$150,2,FALSE)","v":"Total"},null,{"$f":"VLOOKUP(E42,'Linked Cells (hidden)'!$D$57:$E$150,2,FALSE)& \"  \" & \"Watts\"","v":"Total  Watts"},null,null,null,null,null,"Light Type 5",null,"Select Light Fixture",{"$f":"VLOOKUP(P42,'Linked Cells (hidden)'!$D$57:$E$150,2,FALSE)","v":"Total"},null,{"$f":"VLOOKUP(P42,'Linked Cells (hidden)'!$D$57:$E$150,2,FALSE)& \"  \" & \"Watts\"","v":"Total  Watts"}]
[null,null,"Other Type : Name",null,null,{"$f":"IF(D44=0,\"Total\",D44)","v":"Total"},null,{"$f":"F43 & \" Watts\"","v":"Total Watts"},null,null,null,null,null,"Other Type : Name",null,null,{"$f":"IF(O44=0,\"Total\",O44)","v":"Total"},null,{"$f":"Q43& \" Watts\"","v":"Total Watts"}]
[null,null,"                      : Watts",null,null,null,null,null,null,null,null,null,null,"                      : Watts"]
[]
[]
[null,null,"Room 3 Name",null,null,null,null,"Area",null,"Ft2",null,null,null,"Room 4 Name",null,null,null,null,"Area",null,"Ft2"]
[null,null,"Room 3 Lighting (Main Lighting only - Do not include task lights)",null,null,null,null,null,null,null,null,null,null,"Room 4 Lighting (Main Lighting only - Do not include task lights)"]
[null,null,"Select up to 6 Light Fixture Types",null,null,null,null,null,null,null,"Total Room Wattage (W) ",null,null,"Select up to 6 Light Fixture Types",null,null,null,null,null,null,null,"Total Room Wattage (W)"]
[null,null,"Light Type 1",null,"Select Light Fixture",{"$f":"VLOOKUP(E50,'Linked Cells (hidden)'!$D$57:$E$150,2,FALSE)","v":"Total"},null,{"$f":"VLOOKUP(E50,'Linked Cells (hidden)'!$D$57:$E$150,2,FALSE)& \"  \" & \"Watts\"","v":"Total  Watts"},null,null,{"$f":"(IF(F50=\"Total\",0,I50*F50)+IF(F51=\"Total\",0,I51*F51)+IF(F52=\"Total\",0,I52*F52)+IF(F53=\"Total\",0,I53*F53)+IF(F54=\"Total\",0,I54*F54)+IF(F55=\"Total\",0,I55*F55))","v":0},null,"W","Light Type 1",null,"Select Light Fixture",{"$f":"VLOOKUP(P50,'Linked Cells (hidden)'!$D$57:$E$150,2,FALSE)","v":"Total"},null,{"$f":"VLOOKUP(P50,'Linked Cells (hidden)'!$D$57:$E$150,2,FALSE)& \"  \" & \"Watts\"","v":"Total  Watts"},null,null,{"$f":"(IF(Q50=\"Total\",0,T50*Q50)+IF(Q51=\"Total\",0,T51*Q51)+IF(Q52=\"Total\",0,T52*Q52)+IF(Q53=\"Total\",0,T53*Q53)+IF(Q54=\"Total\",0,T54*Q54)+IF(Q55=\"Total\",0,T55*Q55))","v":0},"W"]
[null,null,"Light Type 2",null,"Select Light Fixture",{"$f":"VLOOKUP(E51,'Linked Cells (hidden)'!$D$57:$E$150,2,FALSE)","v":"Total"},null,{"$f":"VLOOKUP(E51,'Linked Cells (hidden)'!$D$57:$E$150,2,FALSE)& \"  \" & \"Watts\"","v":"Total  Watts"},null,null,null,null,null,"Light Type 2",null,"Select Light Fixture",{"$f":"VLOOKUP(P51,'Linked Cells (hidden)'!$D$57:$E$150,2,FALSE)","v":"Total"},null,{"$f":"VLOOKUP(P51,'Linked Cells (hidden)'!$D$57:$E$150,2,FALSE)& \"  \" & \"Watts\"","v":"Total  Watts"}]
[null,null,"Light Type 3",null,"Select Light Fixture",{"$f":"VLOOKUP(E52,'Linked Cells (hidden)'!$D$57:$E$150,2,FALSE)","v":"Total"},null,{"$f":"VLOOKUP(E52,'Linked Cells (hidden)'!$D$57:$E$150,2,FALSE)& \"  \" & \"Watts\"","v":"Total  Watts"},null,null,"Room Lighting Power Density (LPD)",null,null,"Light Type 3",null,"Select Light Fixture",{"$f":"VLOOKUP(P52,'Linked Cells (hidden)'!$D$57:$E$150,2,FALSE)","v":"Total"},null,{"$f":"VLOOKUP(P52,'Linked Cells (hidden)'!$D$57:$E$150,2,FALSE)& \"  \" & \"Watts\"","v":"Total  Watts"},null,null,"Room Lighting Power Density (LPD)"]
[null,null,"Light Type 4",null,"Select Light Fixture",{"$f":"VLOOKUP(E53,'Linked Cells (hidden)'!$D$57:$E$150,2,FALSE)","v":"Total"},null,{"$f":"VLOOKUP(E53,'Linked Cells (hidden)'!$D$57:$E$150,2,FALSE)& \"  \" & \"Watts\"","v":"Total  Watts"},null,null,{"$f":"IF(K50=0,\"\",K50/I47)","v":""},"W/ft2",null,"Light Type 4",null,"Select Light Fixture",{"$f":"VLOOKUP(P53,'Linked Cells (hidden)'!$D$57:$E$150,2,FALSE)","v":"Total"},null,{"$f":"VLOOKUP(P53,'Linked Cells (hidden)'!$D$57:$E$150,2,FALSE)& \"  \" & \"Watts\"","v":"Total  Watts"},null,null,{"$f":"IF(V50=0,\"\",V50/T47)","v":""},"W/ft2"]
[null,null,"Light Type 5",null,"Select Light Fixture",{"$f":"VLOOKUP(E54,'Linked Cells (hidden)'!$D$57:$E$150,2,FALSE)","v":"Total"},null,{"$f":"VLOOKUP(E54,'Linked Cells (hidden)'!$D$57:$E$150,2,FALSE)& \"  \" & \"Watts\"","v":"Total  Watts"},null,null,null,null,null,"Light Type 5",null,"Select Light Fixture",{"$f":"VLOOKUP(P54,'Linked Cells (hidden)'!$D$57:$E$150,2,FALSE)","v":"Total"},null,{"$f":"VLOOKUP(P54,'Linked Cells (hidden)'!$D$57:$E$150,2,FALSE)& \"  \" & \"Watts\"","v":"Total  Watts"}]
[null,null,"Other Type : Name",null,null,{"$f":"IF(D56=0,\"Total\",D56)","v":"Total"},null,{"$f":"F55 & \" Watts\"","v":"Total Watts"},null,null,null,null,null,"Other Type : Name",null,null,{"$f":"IF(O56=0,\"Total\",O56)","v":"Total"},null,{"$f":"Q55& \" Watts\"","v":"Total Watts"}]
[null,null,"                      : Watts",null,null,null,null,null,null,null,null,null,null,"                      : Watts"]
[]
[]
[null,null,"Room 5 Name",null,null,null,null,"Area",null,"Ft2",null,null,null,"Room 6 Name",null,null,null,null,"Area",null,"Ft2"]
[null,null,"Room 5 Lighting (Main Lighting only - Do not include task lights)",null,null,null,null,null,null,null,null,null,null,"Room 6 Lighting (Main Lighting only - Do not include task lights)"]
[null,null,"Select up to 6 Light Fixture Types",null,null,null,null,null,null,null,"Total Room Wattage (W) ",null,null,"Select up to 6 Light Fixture Types",null,null,null,null,null,null,null,"Total Room Wattage (W)"]
[null,null,"Light Type 1",null,"Select Light Fixture",{"$f":"VLOOKUP(E62,'Linked Cells (hidden)'!$D$57:$E$150,2,FALSE)","v":"Total"},null,{"$f":"VLOOKUP(E62,'Linked Cells (hidden)'!$D$57:$E$150,2,FALSE)& \"  \" & \"Watts\"","v":"Total  Watts"},null,null,{"$f":"(IF(F62=\"Total\",0,I62*F62)+IF(F63=\"Total\",0,I63*F63)+IF(F64=\"Total\",0,I64*F64)+IF(F65=\"Total\",0,I65*F65)+IF(F66=\"Total\",0,I66*F66)+IF(F67=\"Total\",0,I67*F67))","v":0},null,"W","Light Type 1",null,"Select Light Fixture",{"$f":"VLOOKUP(P62,'Linked Cells (hidden)'!$D$57:$E$150,2,FALSE)","v":"Total"},null,{"$f":"VLOOKUP(P62,'Linked Cells (hidden)'!$D$57:$E$150,2,FALSE)& \"  \" & \"Watts\"","v":"Total  Watts"},null,null,{"$f":"(IF(Q62=\"Total\",0,T62*Q62)+IF(Q63=\"Total\",0,T63*Q63)+IF(Q64=\"Total\",0,T64*Q64)+IF(Q65=\"Total\",0,T65*Q65)+IF(Q66=\"Total\",0,T66*Q66)+IF(Q67=\"Total\",0,T67*Q67))","v":0},"W"]
[null,null,"Light Type 2",null,"Select Light Fixture",{"$f":"VLOOKUP(E63,'Linked Cells (hidden)'!$D$57:$E$150,2,FALSE)","v":"Total"},null,{"$f":"VLOOKUP(E63,'Linked Cells (hidden)'!$D$57:$E$150,2,FALSE)& \"  \" & \"Watts\"","v":"Total  Watts"},null,null,null,null,null,"Light Type 2",null,"Select Light Fixture",{"$f":"VLOOKUP(P63,'Linked Cells (hidden)'!$D$57:$E$150,2,FALSE)","v":"Total"},null,{"$f":"VLOOKUP(P63,'Linked Cells (hidden)'!$D$57:$E$150,2,FALSE)& \"  \" & \"Watts\"","v":"Total  Watts"}]
[null,null,"Light Type 3",null,"Select Light Fixture",{"$f":"VLOOKUP(E64,'Linked Cells (hidden)'!$D$57:$E$150,2,FALSE)","v":"Total"},null,{"$f":"VLOOKUP(E64,'Linked Cells (hidden)'!$D$57:$E$150,2,FALSE)& \"  \" & \"Watts\"","v":"Total  Watts"},null,null,"Room Lighting Power Density (LPD)",null,null,"Light Type 3",null,"Select Light Fixture",{"$f":"VLOOKUP(P64,'Linked Cells (hidden)'!$D$57:$E$150,2,FALSE)","v":"Total"},null,{"$f":"VLOOKUP(P64,'Linked Cells (hidden)'!$D$57:$E$150,2,FALSE)& \"  \" & \"Watts\"","v":"Total  Watts"},null,null,"Room Lighting Power Density (LPD)"]
[null,null,"Light Type 4",null,"Select Light Fixture",{"$f":"VLOOKUP(E65,'Linked Cells (hidden)'!$D$57:$E$150,2,FALSE)","v":"Total"},null,{"$f":"VLOOKUP(E65,'Linked Cells (hidden)'!$D$57:$E$150,2,FALSE)& \"  \" & \"Watts\"","v":"Total  Watts"},null,null,{"$f":"IF(K62=0,\"\",K62/I59)","v":""},"W/ft2",null,"Light Type 4",null,"Select Light Fixture",{"$f":"VLOOKUP(P65,'Linked Cells (hidden)'!$D$57:$E$150,2,FALSE)","v":"Total"},null,{"$f":"VLOOKUP(P65,'Linked Cells (hidden)'!$D$57:$E$150,2,FALSE)& \"  \" & \"Watts\"","v":"Total  Watts"},null,null,{"$f":"IF(V62=0,\"\",V62/T59)","v":""},"W/ft2"]
[null,null,"Light Type 5",null,"Select Light Fixture",{"$f":"VLOOKUP(E66,'Linked Cells (hidden)'!$D$57:$E$150,2,FALSE)","v":"Total"},null,{"$f":"VLOOKUP(E66,'Linked Cells (hidden)'!$D$57:$E$150,2,FALSE)& \"  \" & \"Watts\"","v":"Total  Watts"},null,null,null,null,null,"Light Type 5",null,"Select Light Fixture",{"$f":"VLOOKUP(P66,'Linked Cells (hidden)'!$D$57:$E$150,2,FALSE)","v":"Total"},null,{"$f":"VLOOKUP(P66,'Linked Cells (hidden)'!$D$57:$E$150,2,FALSE)& \"  \" & \"Watts\"","v":"Total  Watts"}]
[null,null,"Other Type : Name",null,null,{"$f":"IF(D68=0,\"Total\",D68)","v":"Total"},null,{"$f":"F67 & \" Watts\"","v":"Total Watts"},null,null,null,null,null,"Other Type : Name",null,null,{"$f":"IF(O68=0,\"Total\",O68)","v":"Total"},null,{"$f":"Q67& \" Watts\"","v":"Total Watts"}]
[null,null,"                      : Watts",null,null,null,null,null,null,null,null,null,null,"                      : Watts"]
[]
[]
[null,null,"Room 7 Name",null,null,null,null,"Area",null,"Ft2",null,null,null,"Room 8 Name",null,null,null,null,"Area",null,"Ft2"]
[null,null,"Room 7 Lighting (Main Lighting only - Do not include task lights)",null,null,null,null,null,null,null,null,null,null,"Room 8 Lighting (Main Lighting only - Do not include task lights)"]
[null,null,"Select up to 6 Light Fixture Types",null,null,null,null,null,null,null,"Total Room Wattage (W) ",null,null,"Select up to 6 Light Fixture Types",null,null,null,null,null,null,null,"Total Room Wattage (W)"]
[null,null,"Light Type 1",null,"Select Light Fixture",{"$f":"VLOOKUP(E74,'Linked Cells (hidden)'!$D$57:$E$150,2,FALSE)","v":"Total"},null,{"$f":"VLOOKUP(E74,'Linked Cells (hidden)'!$D$57:$E$150,2,FALSE)& \"  \" & \"Watts\"","v":"Total  Watts"},null,null,{"$f":"(IF(F74=\"Total\",0,I74*F74)+IF(F75=\"Total\",0,I75*F75)+IF(F76=\"Total\",0,I76*F76)+IF(F77=\"Total\",0,I77*F77)+IF(F78=\"Total\",0,I78*F78)+IF(F79=\"Total\",0,I79*F79))","v":0},null,"W","Light Type 1",null,"Select Light Fixture",{"$f":"VLOOKUP(P74,'Linked Cells (hidden)'!$D$57:$E$150,2,FALSE)","v":"Total"},null,{"$f":"VLOOKUP(P74,'Linked Cells (hidden)'!$D$57:$E$150,2,FALSE)& \"  \" & \"Watts\"","v":"Total  Watts"},null,null,{"$f":"(IF(Q74=\"Total\",0,T74*Q74)+IF(Q75=\"Total\",0,T75*Q75)+IF(Q76=\"Total\",0,T76*Q76)+IF(Q77=\"Total\",0,T77*Q77)+IF(Q78=\"Total\",0,T78*Q78)+IF(Q79=\"Total\",0,T79*Q79))","v":0},"W"]
[null,null,"Light Type 2",null,"Select Light Fixture",{"$f":"VLOOKUP(E75,'Linked Cells (hidden)'!$D$57:$E$150,2,FALSE)","v":"Total"},null,{"$f":"VLOOKUP(E75,'Linked Cells (hidden)'!$D$57:$E$150,2,FALSE)& \"  \" & \"Watts\"","v":"Total  Watts"},null,null,null,null,null,"Light Type 2",null,"Select Light Fixture",{"$f":"VLOOKUP(P75,'Linked Cells (hidden)'!$D$57:$E$150,2,FALSE)","v":"Total"},null,{"$f":"VLOOKUP(P75,'Linked Cells (hidden)'!$D$57:$E$150,2,FALSE)& \"  \" & \"Watts\"","v":"Total  Watts"}]
[null,null,"Light Type 3",null,"Select Light Fixture",{"$f":"VLOOKUP(E76,'Linked Cells (hidden)'!$D$57:$E$150,2,FALSE)","v":"Total"},null,{"$f":"VLOOKUP(E76,'Linked Cells (hidden)'!$D$57:$E$150,2,FALSE)& \"  \" & \"Watts\"","v":"Total  Watts"},null,null,"Room Lighting Power Density (LPD)",null,null,"Light Type 3",null,"Select Light Fixture",{"$f":"VLOOKUP(P76,'Linked Cells (hidden)'!$D$57:$E$150,2,FALSE)","v":"Total"},null,{"$f":"VLOOKUP(P76,'Linked Cells (hidden)'!$D$57:$E$150,2,FALSE)& \"  \" & \"Watts\"","v":"Total  Watts"},null,null,"Room Lighting Power Density (LPD)"]
[null,null,"Light Type 4",null,"Select Light Fixture",{"$f":"VLOOKUP(E77,'Linked Cells (hidden)'!$D$57:$E$150,2,FALSE)","v":"Total"},null,{"$f":"VLOOKUP(E77,'Linked Cells (hidden)'!$D$57:$E$150,2,FALSE)& \"  \" & \"Watts\"","v":"Total  Watts"},null,null,{"$f":"IF(K74=0,\"\",K74/I71)","v":""},"W/ft2",null,"Light Type 4",null,"Select Light Fixture",{"$f":"VLOOKUP(P77,'Linked Cells (hidden)'!$D$57:$E$150,2,FALSE)","v":"Total"},null,{"$f":"VLOOKUP(P77,'Linked Cells (hidden)'!$D$57:$E$150,2,FALSE)& \"  \" & \"Watts\"","v":"Total  Watts"},null,null,{"$f":"IF(V74=0,\"\",V74/T71)","v":""},"W/ft2"]
[null,null,"Light Type 5",null,"Select Light Fixture",{"$f":"VLOOKUP(E78,'Linked Cells (hidden)'!$D$57:$E$150,2,FALSE)","v":"Total"},null,{"$f":"VLOOKUP(E78,'Linked Cells (hidden)'!$D$57:$E$150,2,FALSE)& \"  \" & \"Watts\"","v":"Total  Watts"},null,null,null,null,null,"Light Type 5",null,"Select Light Fixture",{"$f":"VLOOKUP(P78,'Linked Cells (hidden)'!$D$57:$E$150,2,FALSE)","v":"Total"},null,{"$f":"VLOOKUP(P78,'Linked Cells (hidden)'!$D$57:$E$150,2,FALSE)& \"  \" & \"Watts\"","v":"Total  Watts"}]
[null,null,"Other Type : Name",null,null,{"$f":"IF(D80=0,\"Total\",D80)","v":"Total"},null,{"$f":"F79 & \" Watts\"","v":"Total Watts"},null,null,null,null,null,"Other Type : Name",null,null,{"$f":"IF(O80=0,\"Total\",O80)","v":"Total"},null,{"$f":"Q79& \" Watts\"","v":"Total Watts"}]
[null,null,"                      : Watts",null,null,null,null,null,null,null,null,null,null,"                      : Watts"]
[]
[]
[null,null,"Room 9 Name",null,null,null,null,"Area",null,"Ft2",null,null,null,"Room 10 Name",null,null,null,null,"Area",null,"Ft2"]
[null,null,"Room 9 Lighting (Main Lighting only - Do not include task lights)",null,null,null,null,null,null,null,null,null,null,"Room 10 Lighting (Main Lighting only - Do not include task lights)"]
[null,null,"Select up to 6 Light Fixture Types",null,null,null,null,null,null,null,"Total Room Wattage (W) ",null,null,"Select up to 6 Light Fixture Types",null,null,null,null,null,null,null,"Total Room Wattage (W)"]
[null,null,"Light Type 1",null,"Select Light Fixture",{"$f":"VLOOKUP(E86,'Linked Cells (hidden)'!$D$57:$E$150,2,FALSE)","v":"Total"},null,{"$f":"VLOOKUP(E86,'Linked Cells (hidden)'!$D$57:$E$150,2,FALSE)& \"  \" & \"Watts\"","v":"Total  Watts"},null,null,{"$f":"(IF(F86=\"Total\",0,I86*F86)+IF(F87=\"Total\",0,I87*F87)+IF(F88=\"Total\",0,I88*F88)+IF(F89=\"Total\",0,I89*F89)+IF(F90=\"Total\",0,I90*F90)+IF(F91=\"Total\",0,I91*F91))","v":0},null,"W","Light Type 1",null,"Select Light Fixture",{"$f":"VLOOKUP(P86,'Linked Cells (hidden)'!$D$57:$E$150,2,FALSE)","v":"Total"},null,{"$f":"VLOOKUP(P86,'Linked Cells (hidden)'!$D$57:$E$150,2,FALSE)& \"  \" & \"Watts\"","v":"Total  Watts"},null,null,{"$f":"(IF(Q86=\"Total\",0,T86*Q86)+IF(Q87=\"Total\",0,T87*Q87)+IF(Q88=\"Total\",0,T88*Q88)+IF(Q89=\"Total\",0,T89*Q89)+IF(Q90=\"Total\",0,T90*Q90)+IF(Q91=\"Total\",0,T91*Q91))","v":0},"W"]
[null,null,"Light Type 2",null,"Select Light Fixture",{"$f":"VLOOKUP(E87,'Linked Cells (hidden)'!$D$57:$E$150,2,FALSE)","v":"Total"},null,{"$f":"VLOOKUP(E87,'Linked Cells (hidden)'!$D$57:$E$150,2,FALSE)& \"  \" & \"Watts\"","v":"Total  Watts"},null,null,null,null,null,"Light Type 2",null,"Select Light Fixture",{"$f":"VLOOKUP(P87,'Linked Cells (hidden)'!$D$57:$E$150,2,FALSE)","v":"Total"},null,{"$f":"VLOOKUP(P87,'Linked Cells (hidden)'!$D$57:$E$150,2,FALSE)& \"  \" & \"Watts\"","v":"Total  Watts"}]
[null,null,"Light Type 3",null,"Select Light Fixture",{"$f":"VLOOKUP(E88,'Linked Cells (hidden)'!$D$57:$E$150,2,FALSE)","v":"Total"},null,{"$f":"VLOOKUP(E88,'Linked Cells (hidden)'!$D$57:$E$150,2,FALSE)& \"  \" & \"Watts\"","v":"Total  Watts"},null,null,"Room Lighting Power Density (LPD)",null,null,"Light Type 3",null,"Select Light Fixture",{"$f":"VLOOKUP(P88,'Linked Cells (hidden)'!$D$57:$E$150,2,FALSE)","v":"Total"},null,{"$f":"VLOOKUP(P88,'Linked Cells (hidden)'!$D$57:$E$150,2,FALSE)& \"  \" & \"Watts\"","v":"Total  Watts"},null,null,"Room Lighting Power Density (LPD)"]
[null,null,"Light Type 4",null,"Select Light Fixture",{"$f":"VLOOKUP(E89,'Linked Cells (hidden)'!$D$57:$E$150,2,FALSE)","v":"Total"},null,{"$f":"VLOOKUP(E89,'Linked Cells (hidden)'!$D$57:$E$150,2,FALSE)& \"  \" & \"Watts\"","v":"Total  Watts"},null,null,{"$f":"IF(K86=0,\"\",K86/I83)","v":""},"W/ft2",null,"Light Type 4",null,"Select Light Fixture",{"$f":"VLOOKUP(P89,'Linked Cells (hidden)'!$D$57:$E$150,2,FALSE)","v":"Total"},null,{"$f":"VLOOKUP(P89,'Linked Cells (hidden)'!$D$57:$E$150,2,FALSE)& \"  \" & \"Watts\"","v":"Total  Watts"},null,null,{"$f":"IF(V86=0,\"\",V86/T83)","v":""},"W/ft2"]
[null,null,"Light Type 5",null,"Select Light Fixture",{"$f":"VLOOKUP(E90,'Linked Cells (hidden)'!$D$57:$E$150,2,FALSE)","v":"Total"},null,{"$f":"VLOOKUP(E90,'Linked Cells (hidden)'!$D$57:$E$150,2,FALSE)& \"  \" & \"Watts\"","v":"Total  Watts"},null,null,null,null,null,"Light Type 5",null,"Select Light Fixture",{"$f":"VLOOKUP(P90,'Linked Cells (hidden)'!$D$57:$E$150,2,FALSE)","v":"Total"},null,{"$f":"VLOOKUP(P90,'Linked Cells (hidden)'!$D$57:$E$150,2,FALSE)& \"  \" & \"Watts\"","v":"Total  Watts"}]
[null,null,"Other Type : Name",null,null,{"$f":"IF(D92=0,\"Total\",D92)","v":"Total"},null,{"$f":"F91 & \" Watts\"","v":"Total Watts"},null,null,null,null,null,"Other Type : Name",null,null,{"$f":"IF(O92=0,\"Total\",O92)","v":"Total"},null,{"$f":"Q91& \" Watts\"","v":"Total Watts"}]
[null,null,"                      : Watts",null,null,null,null,null,null,null,null,null,null,"                      : Watts"]
[]
[]
[]
[null,null,"HVAC/Non-Process Energy "]
[]
[null,"To determine the site's Non-Process Heating, Ventilating, and Air Conditioning (HVAC) loads and energy use, describe each building's HVAC electrical using units by entering them below. If multiple of a unit exists, either add them into the table as separate units or enter Motor Size as the motor's size (in hp) multiplied by the quantity.\n\nNon-Process HVAC is meant to include all equipment not tied to specific process operations such as general ventilation heaters, office air conditioners, restroom exhaust fans, etc. \nDo not provide process-related ventilation equipment such as odor control fans here.  You can enter process equipment information on the \"WTP or WWTP Energy Usage\" tab.    \n\nFor each Non-Process HVAC unit select the equipment type from the dropdown list and enter an “Equipment Description.”\n\nCollect and enter each unit’s motor size, efficiency and full load amperage (FLA) ratings.  This information can be gathered from the equipment's nameplate or specification datasheet.\nIf the site has authorized personnel capable of taking electrical measurements, enter the motors average operating current. Otherwise leave the \"Average Motor Operating Current\" blank and the tool will use an 80% Load Factor in its calculations. \n\nOnce the equipment's typical operating hours are entered, the tool calculates the estimated annual energy use and operating cost for the unit.\nIf conditions at the plant change, you can adjust these values.\n\nA summary of the HVAC and lighting information entered on the building data tabs is displayed on the top on the WTP and WWTP Energy Usage tabs.  For those values to be included in the total energy use and to be displayed in the pie charts and summary report, you must enter the values in the Equipment Electrical Energy Inventory table (on the WTP or WWTP Energy Usage tab) as Non Process HVAC. See the instructions on that tab on how to enter this information.\n"]
[]
[]
[]
[]
[null,null,"System Type","Equipment Type",null,null,"Equipment Description","Motor Size (hp)","Motor Efficiency","Motor Full Load Amperage (FLA)","Average Motor Operating Current          (Amps)","Motor Operating Hours              (Hours/Year)","Average Load Factor \n(%)","Average HVAC Electric Load (kW)","Estimated Annual Energy Use (kWh/yr)",null,null,"Estimated Annual Operating Costs  ($/Year)","Estimated Percent of Site Electric Use & Cost (%)"]
[null,null,"Non Process HVAC","Select Equipment",null,null,null,null,null,null,null,null,{"$f":"IF(J104=0,0,IF(K104=0,0.75,K104/J104))","v":0},{"$f":"IF(I104=0,0,H104*0.746*M104/I104)","v":0},{"$f":"N104*L104","v":0},null,null,{"$f":"O104*'General Information'!$H$46","v":0},{"$f":"IF('General Information'!$H$44=0,\"\",O104/'General Information'!$H$44)","v":""}]
[null,null,"Non Process HVAC","Select Equipment",null,null,null,null,null,null,null,null,0,0,0,null,null,{"$f":"O105*'General Information'!$H$46","v":0},{"$f":"IF('General Information'!$H$44=0,\"\",O105/'General Information'!$H$44)","v":""}]
[null,null,"Non Process HVAC","Select Equipment",null,null,null,null,null,null,null,null,0,0,0,null,null,{"$f":"O106*'General Information'!$H$46","v":0},{"$f":"IF('General Information'!$H$44=0,\"\",O106/'General Information'!$H$44)","v":""}]
[null,null,"Non Process HVAC","Select Equipment",null,null,null,null,null,null,null,null,0,0,0,null,null,{"$f":"O107*'General Information'!$H$46","v":0},{"$f":"IF('General Information'!$H$44=0,\"\",O107/'General Information'!$H$44)","v":""}]
[null,null,"Non Process HVAC","Select Equipment",null,null,null,null,null,null,null,null,0,0,0,null,null,{"$f":"O108*'General Information'!$H$46","v":0},{"$f":"IF('General Information'!$H$44=0,\"\",O108/'General Information'!$H$44)","v":""}]
[null,null,"Non Process HVAC","Select Equipment",null,null,null,null,null,null,null,null,0,0,0,null,null,{"$f":"O109*'General Information'!$H$46","v":0},{"$f":"IF('General Information'!$H$44=0,\"\",O109/'General Information'!$H$44)","v":""}]
[]
[null,null,null,null,null,null,null,null,null,"Total Building HVAC",null,null,null,{"$f":"SUM(N101:N109)","v":0},{"$f":"SUM(O101:O109)","v":0},null,null,{"$f":"SUM(R104:R109)","v":0},{"$f":"SUM(S104:S109)","v":0}]

{"sheet":"Building 2 Data","index":4,"n_rows":111,"n_cols":24,"rows_kept":111,"cut":false,"hidden":true,"merged":[[60,21,60,22],[58,3,58,6],[49,21,49,22],[58,14,58,17],[60,10,60,11],[49,10,49,11],[85,21,85,22],[85,10,85,11],[70,14,70,17],[61,21,61,22],[73,21,73,22],[84,21,84,22],[61,10,61,11],[72,21,72,22],[84,10,84,11],[73,10,73,11],[48,21,48,22],[36,21,36,22],[27,1,31,14],[48,10,48,11],[46,14,46,17],[46,3,46,6],[34,14,34,17],[37,21,37,22],[34,3,34,6],[36,10,36,11],[0,0,0,10],[8,7,8,9],[10,7,10,9],[2,1,2,3],[37,10,37,11],[10,1,10,2],[20,8,20,10],[19,6,20,7],[12,1,13,14],[20,2,20,3],[17,3,17,6],[8,12,9,13],[20,13,20,14],[3,1,3,17],[5,1,6,17],[8,1,8,2],[110,9,110,12],[70,3,70,6],[82,3,82,6],[97,1,99,20],[82,14,82,17],[72,10,72,11]]}
[{"$f":"\"EPA Energy Use Assessment Tool for \" & workbookType","v":"EPA Energy Use Assessment Tool for Drinking Water Systems"}]
["Site Structural Buildings - Major Non-Process Energy Users"]
[]
[null,"\nIn the Building Data tabs, the tool totals each building’s Lighting and HVAC information. You should use the totals for entry on the WTP or WWTP Energy Use tabs.  For instructions on how to enter that information, see the WTP or WWTP Energy Usage tabs. If you have already identified the site's Lighting and HVAC loads or would just like to estimate them without detailing this information here, proceed to the WTP or WWTP Energy Usage tab.\n\nIf you skip this tab, you can come back later to fill in this detail.\n\n\n\n"]
[]
[null,"\nThe following information is entered once for the entire plant.\n\nTo change the Total Number of Buildings on-site, go to the \"Building 1 Data\" tab and click the \"Set # of Buildings\" button. This lets you enter information for the specified number of buildings.\n\nAfter entering data in a building tab, click the \"Save and Continue\" button at the top. That allows you to enter data for the next building or if building data entry is complete, to return to the General Information tab. You can also click the other Building Data tabs at the bottom. \n\n"]
[]
[]
[null,"Total Plant Building Area",null,{"$f":"'Building 1 Data'!D9","v":0},2,null,"Ft2","Total Plant Building Electric Load",null,null,{"$f":"'Building 1 Data'!K9","v":0},"kW","Total Plant Building Electric Use ",null,{"$f":"'Building 1 Data'!O9","v":0},null,null,"kWh/Yr"]
[]
[null,"Does the site have buildings?",null,{"$f":"hasBldgs","v":"Yes"},null,null,null,"Total Number of Buildings On-site:",null,null,{"$f":"[0]!totalbldgs","v":"1"}]
[]
[null,"Enter the following information for each building at the plant.\n\nTo begin, select the number of rooms in the \"No. of Rooms\" dropdown list below and click the \"Set # of rooms\" button.   It is important to know and set the number of rooms upfront, before any lighting data is entered.  If the number of rooms is later changed, all the data that had been entered will be lost. "]
[]
[]
[null,null,{"$f":"\"BUILDING \" & E9","v":"BUILDING 2"}]
[]
[null,null,"Name",null,null,null,null,null,"Operating Hours per Year",null,{"$f":"IF(K19=\"\",\"\",K19*K20*52)","v":""},"Hrs/Yr","Approximate Building Age (If known)",null,null,null,null,null,"Yrs"]
[null,null,"Area",{"$f":"I35+T35+T47+I47+I59+T59+T71+I71+I83+T83","v":0},null,null,"Ft2",null,"Operating Hours per Day",null,null,"Hrs/Day"]
[null,null,"No. of Rooms",null,null,null,"! Changing the number of rooms will reset all lighting data entered.",null,"Operating Days per Week",null,null,"Days/Wk","Average Building Lighting Power Density (LPD)",null,null,null,null,{"$f":"IF(D19=0,\"\",(K38+V38+V50+K50+K62+V62+V74+K74+K86+V86)/D19)","v":""},"W/ft2"]
[null,null,"Estimated Electric Load:",null,null,null,null,null,"Estimated Annual Energy Use:",null,null,null,null,"Estimated Annual Energy Cost:"]
[null,null,{"$f":"\"Total Building \" & $E$9& \" Lighting\"","v":"Total Building 2 Lighting"},null,null,null,{"$f":"IF((K38+V38+V50+K50+K62+V62+V74+K74+K86+V86)=0,0,(K38+V38+V50+K50+K62+V62+V74+K74+K86+V86)/1000)","v":0},"kW",{"$f":"\"Total Building \" & $E$9& \" Lighting\"","v":"Total Building 2 Lighting"},null,null,{"$f":"IF((K38+V38+V50+K50+K62+V62+V74+K74+K86+V86)=0,IF(K18=\"\",0,0),IF(K18=\"\",0,((K38+V38+V50+K50+K62+V62+V74+K74+K86+V86)/1000)*K18))","v":0},"kWh/Yr",{"$f":"\"Total Building \" & $E$9 & \" Lighting\"","v":"Total Building 2 Lighting"},null,null,null,{"$f":"L22*'General Information'!$H$46","v":0},"$/Yr"]
[null,null,{"$f":"\"Total Building \" & $E$9 & \" HVAC\"","v":"Total Building 2 HVAC"},null,null,null,{"$f":"N111","v":0},"kW",{"$f":"\"Total Building \" & $E$9 & \" HVAC\"","v":"Total Building 2 HVAC"},null,null,{"$f":"O$111","v":0},"kWh/Yr",{"$f":"\"Total Building \" & $E$9 & \" HVAC\"","v":"Total Building 2 HVAC"},null,null,null,{"$f":"R111","v":0},"$/Yr"]
[null,null,{"$f":"\"Total Building \" & $E$9 & \" Combined\"","v":"Total Building 2 Combined"},null,null,null,{"$f":"SUM(G22:G23)","v":0},"kW",{"$f":"\"Total Building \" & $E$9 & \" Combined\"","v":"Total Building 2 Combined"},null,null,{"$f":"SUM(L22,L23)","v":0},"kWh/Yr",{"$f":"\"Total Building \" & $E$9 & \" Combined\"","v":"Total Building 2 Combined"},null,null,null,{"$f":"SUM(R22,R23)","v":0},"$/Yr"]
[]
[null,null,"LIGHTING"]
[]
[null,"\nTo determine the site’s lighting loads and energy use, select each of the room’s lighting fixture types and quantity (Qty) using the dropdown lists below.\n\nSelect a light type from the dropdown list for each size and kind of fixture in a room. Then enter the quantity for each type. The tool provides the fixture’s electrical \nenergy load in watts. Do not include task lights (directional lights used to illuminate an area of work) when entering the room's lighting fixtures. \n\nIf a type of fixture is not available in the dropdown list, use the \"Other Type\" input field to enter the fixture and its total wattage.\n\nThe table automatically totals the room's lighting loads, each building's lighting energy use and the site's total lighting energy use per year for use in other areas of the tool.\nEnter the area of each room and the tool calculates the Lighting Power Density (LPD) in watts per square foot.  \nYou can now take an important next step and compare LPD’s from room to room and building to building to determine where excess energy might be in use.\n\n"]
[]
[]
[]
[]
[]
[]
[null,null,"Room 1 Name",null,null,null,null,"Area",null,"Ft2",null,null,null," Room 2 Name",null,null,null,null,"Area",null,"Ft2"]
[null,null,"Room 1 Lighting (Main Lighting only - Do not include task lights)",null,null,null,null,null,null,null,null,null,null," Room 2 Lighting (Main Lighting only - Do not include task lights)"]
[null,null,"Select up to 6 Light Fixture Types",null,null,null,null,null,null,null,"Total Room Wattage (W)",null,null," Select up to 6 Light Fixture Types",null,null,null,null,null,null,null,"Total Room Wattage (W)"]
[null,null,"Light Type 1",null,"Select Light Fixture",{"$f":"VLOOKUP(E38,'Linked Cells (hidden)'!$D$57:$E$150,2,FALSE)","v":"Total"},null,{"$f":"VLOOKUP(E38,'Linked Cells (hidden)'!$D$57:$E$150,2,FALSE)& \"  \" & \"Watts\"","v":"Total  Watts"},null,null,{"$f":"(IF(F38=\"Total\",0,I38*F38)+IF(F39=\"Total\",0,I39*F39)+IF(F40=\"Total\",0,I40*F40)+IF(F41=\"Total\",0,I41*F41)+IF(F42=\"Total\",0,I42*F42)+IF(F43=\"Total\",0,I43*F43))","v":0},null,"W"," Light Type 1",null,"Select Light Fixture",{"$f":"VLOOKUP(P38,'Linked Cells (hidden)'!$D$57:$E$150,2,FALSE)","v":"Total"},null,{"$f":"VLOOKUP(P38,'Linked Cells (hidden)'!$D$57:$E$140,2,FALSE)& \"  \" & \"Watts\"","v":"Total  Watts"},null,null,{"$f":"(IF(Q38=\"Total\",0,T38*Q38)+IF(Q39=\"Total\",0,T39*Q39)+IF(Q40=\"Total\",0,T40*Q40)+IF(Q41=\"Total\",0,T41*Q41)+IF(Q42=\"Total\",0,T42*Q42)+IF(Q43=\"Total\",0,T43*Q43))","v":0},null,"W"]
[null,null,"Light Type 2",null,"Select Light Fixture",{"$f":"VLOOKUP(E39,'Linked Cells (hidden)'!$D$57:$E$150,2,FALSE)","v":"Total"},null,{"$f":"VLOOKUP(E39,'Linked Cells (hidden)'!$D$57:$E$150,2,FALSE)& \"  \" & \"Watts\"","v":"Total  Watts"},null,null,null,null,null," Light Type 2",null,"Select Light Fixture",{"$f":"VLOOKUP(P39,'Linked Cells (hidden)'!$D$57:$E$150,2,FALSE)","v":"Total"},null,{"$f":"VLOOKUP(P39,'Linked Cells (hidden)'!$D$57:$E$140,2,FALSE)& \"  \" & \"Watts\"","v":"Total  Watts"}]
[null,null,"Light Type 3",null,"Select Light Fixture",{"$f":"VLOOKUP(E40,'Linked Cells (hidden)'!$D$57:$E$150,2,FALSE)","v":"Total"},null,{"$f":"VLOOKUP(E40,'Linked Cells (hidden)'!$D$57:$E$150,2,FALSE)& \"  \" & \"Watts\"","v":"Total  Watts"},null,null,"Room Lighting Power Density (LPD)",null,null," Light Type 3",null,"Select Light Fixture",{"$f":"VLOOKUP(P40,'Linked Cells (hidden)'!$D$57:$E$150,2,FALSE)","v":"Total"},null,{"$f":"VLOOKUP(P40,'Linked Cells (hidden)'!$D$57:$E$140,2,FALSE)& \"  \" & \"Watts\"","v":"Total  Watts"},null,null,"Room Lighting Power Density (LPD)"]
[null,null,"Light Type 4",null,"Select Light Fixture",{"$f":"VLOOKUP(E41,'Linked Cells (hidden)'!$D$57:$E$150,2,FALSE)","v":"Total"},null,{"$f":"VLOOKUP(E41,'Linked Cells (hidden)'!$D$57:$E$150,2,FALSE)& \"  \" & \"Watts\"","v":"Total  Watts"},null,null,{"$f":"IF(K38=0,\"\",K38/I35)","v":""},"W/ft2",null," Light Type 4",null,"Select Light Fixture",{"$f":"VLOOKUP(P41,'Linked Cells (hidden)'!$D$57:$E$150,2,FALSE)","v":"Total"},null,{"$f":"VLOOKUP(P41,'Linked Cells (hidden)'!$D$57:$E$140,2,FALSE)& \"  \" & \"Watts\"","v":"Total  Watts"},null,null,{"$f":"IF(V38=0,\"\",V38/T35)","v":""},"W/ft2"]
[null,null,"Light Type 5",null,"Select Light Fixture",{"$f":"VLOOKUP(E42,'Linked Cells (hidden)'!$D$57:$E$150,2,FALSE)","v":"Total"},null,{"$f":"VLOOKUP(E42,'Linked Cells (hidden)'!$D$57:$E$150,2,FALSE)& \"  \" & \"Watts\"","v":"Total  Watts"},null,null,null,null,null," Light Type 5",null,"Select Light Fixture",{"$f":"VLOOKUP(P42,'Linked Cells (hidden)'!$D$57:$E$150,2,FALSE)","v":"Total"},null,{"$f":"VLOOKUP(P42,'Linked Cells (hidden)'!$D$57:$E$140,2,FALSE)& \"  \" & \"Watts\"","v":"Total  Watts"}]
[null,null,"Other Type : Name",null,null,{"$f":"IF(D44=0,\"Total\",D44)","v":"Total"},null,{"$f":"F43 & \" Watts\"","v":"Total Watts"},null,null,null,null,null," Other Type : Name",null,null,{"$f":"IF(O44=0,\"Total\",O44)","v":"Total"},null,{"$f":"Q43 & \" Watts\"","v":"Total Watts"}]
[null,null,"                      : Watts",null,null,null,null,null,null,null,null,null,null,"                          : Watts"]
[]
[]
[null,null,"Room 3 Name",null,null,null,null,"Area",null,"Ft2",null,null,null," Room 4 Name",null,null,null,null,"Area",null,"Ft2"]
[null,null,"Room 3 Lighting (Main Lighting only - Do not include task lights)",null,null,null,null,null,null,null,null,null,null," Room 4 Lighting (Main Lighting only - Do not include task lights)"]
[null,null,"Select up to 6 Light Fixture Types",null,null,null,null,null,null,null,"Total Room Wattage (W)",null,null," Select up to 6 Light Fixture Types",null,null,null,null,null,null,null,"Total Room Wattage (W)"]
[null,null,"Light Type 1",null,"Select Light Fixture",{"$f":"VLOOKUP(E50,'Linked Cells (hidden)'!$D$57:$E$150,2,FALSE)","v":"Total"},null,{"$f":"VLOOKUP(E50,'Linked Cells (hidden)'!$D$57:$E$150,2,FALSE)& \"  \" & \"Watts\"","v":"Total  Watts"},null,null,{"$f":"(IF(F50=\"Total\",0,I50*F50)+IF(F51=\"Total\",0,I51*F51)+IF(F52=\"Total\",0,I52*F52)+IF(F53=\"Total\",0,I53*F53)+IF(F54=\"Total\",0,I54*F54)+IF(F55=\"Total\",0,I55*F55))","v":0},null,"W"," Light Type 1",null,"Select Light Fixture",{"$f":"VLOOKUP(P50,'Linked Cells (hidden)'!$D$57:$E$150,2,FALSE)","v":"Total"},null,{"$f":"VLOOKUP(P50,'Linked Cells (hidden)'!$D$57:$E$140,2,FALSE)& \"  \" & \"Watts\"","v":"Total  Watts"},null,null,{"$f":"(IF(Q50=\"Total\",0,T50*Q50)+IF(Q51=\"Total\",0,T51*Q51)+IF(Q52=\"Total\",0,T52*Q52)+IF(Q53=\"Total\",0,T53*Q53)+IF(Q54=\"Total\",0,T54*Q54)+IF(Q55=\"Total\",0,T55*Q55))","v":0},null,"W"]
[null,null,"Light Type 2",null,"Select Light Fixture",{"$f":"VLOOKUP(E51,'Linked Cells (hidden)'!$D$57:$E$150,2,FALSE)","v":"Total"},null,{"$f":"VLOOKUP(E51,'Linked Cells (hidden)'!$D$57:$E$150,2,FALSE)& \"  \" & \"Watts\"","v":"Total  Watts"},null,null,null,null,null," Light Type 2",null,"Select Light Fixture",{"$f":"VLOOKUP(P51,'Linked Cells (hidden)'!$D$57:$E$150,2,FALSE)","v":"Total"},null,{"$f":"VLOOKUP(P51,'Linked Cells (hidden)'!$D$57:$E$140,2,FALSE)& \"  \" & \"Watts\"","v":"Total  Watts"}]
[null,null,"Light Type 3",null,"Select Light Fixture",{"$f":"VLOOKUP(E52,'Linked Cells (hidden)'!$D$57:$E$150,2,FALSE)","v":"Total"},null,{"$f":"VLOOKUP(E52,'Linked Cells (hidden)'!$D$57:$E$150,2,FALSE)& \"  \" & \"Watts\"","v":"Total  Watts"},null,null,"Room Lighting Power Density (LPD)",null,null," Light Type 3",null,"Select Light Fixture",{"$f":"VLOOKUP(P52,'Linked Cells (hidden)'!$D$57:$E$150,2,FALSE)","v":"Total"},null,{"$f":"VLOOKUP(P52,'Linked Cells (hidden)'!$D$57:$E$140,2,FALSE)& \"  \" & \"Watts\"","v":"Total  Watts"},null,null,"Room Lighting Power Density (LPD)"]
[null,null,"Light Type 4",null,"Select Light Fixture",{"$f":"VLOOKUP(E53,'Linked Cells (hidden)'!$D$57:$E$150,2,FALSE)","v":"Total"},null,{"$f":"VLOOKUP(E53,'Linked Cells (hidden)'!$D$57:$E$150,2,FALSE)& \"  \" & \"Watts\"","v":"Total  Watts"},null,null,{"$f":"IF(K50=0,\"\",K50/I47)","v":""},"W/ft2",null," Light Type 4",null,"Select Light Fixture",{"$f":"VLOOKUP(P53,'Linked Cells (hidden)'!$D$57:$E$150,2,FALSE)","v":"Total"},null,{"$f":"VLOOKUP(P53,'Linked Cells (hidden)'!$D$57:$E$140,2,FALSE)& \"  \" & \"Watts\"","v":"Total  Watts"},null,null,{"$f":"IF(V50=0,\"\",V50/T47)","v":""},"W/ft2"]
[null,null,"Light Type 5",null,"Select Light Fixture",{"$f":"VLOOKUP(E54,'Linked Cells (hidden)'!$D$57:$E$150,2,FALSE)","v":"Total"},null,{"$f":"VLOOKUP(E54,'Linked Cells (hidden)'!$D$57:$E$150,2,FALSE)& \"  \" & \"Watts\"","v":"Total  Watts"},null,null,null,null,null," Light Type 5",null,"Select Light Fixture",{"$f":"VLOOKUP(P54,'Linked Cells (hidden)'!$D$57:$E$150,2,FALSE)","v":"Total"},null,{"$f":"VLOOKUP(P54,'Linked Cells (hidden)'!$D$57:$E$140,2,FALSE)& \"  \" & \"Watts\"","v":"Total  Watts"}]
[null,null,"Other Type : Name",null,null,{"$f":"IF(D56=0,\"Total\",D56)","v":"Total"},null,{"$f":"F55 & \" Watts\"","v":"Total Watts"},null,null,null,null,null," Other Type : Name",null,null,{"$f":"IF(O56=0,\"Total\",O56)","v":"Total"},null,{"$f":"Q55 & \" Watts\"","v":"Total Watts"}]
[null,null,"                      : Watts",null,null,null,null,null,null,null,null,null,null,"                          : Watts"]
[]
[]
[null,null,"Room 5 Name",null,null,null,null,"Area",null,"Ft2",null,null,null," Room 6 Name",null,null,null,null,"Area",null,"Ft2"]
[null,null,"Room 5 Lighting (Main Lighting only - Do not include task lights)",null,null,null,null,null,null,null,null,null,null," Room 6 Lighting (Main Lighting only - Do not include task lights)"]
[null,null,"Select up to 6 Light Fixture Types",null,null,null,null,null,null,null,"Total Room Wattage (W)",null,null," Select up to 6 Light Fixture Types",null,null,null,null,null,null,null,"Total Room Wattage (W)"]
[null,null,"Light Type 1",null,"Select Light Fixture",{"$f":"VLOOKUP(E62,'Linked Cells (hidden)'!$D$57:$E$150,2,FALSE)","v":"Total"},null,{"$f":"VLOOKUP(E62,'Linked Cells (hidden)'!$D$57:$E$150,2,FALSE)& \"  \" & \"Watts\"","v":"Total  Watts"},null,null,{"$f":"(IF(F62=\"Total\",0,I62*F62)+IF(F63=\"Total\",0,I63*F63)+IF(F64=\"Total\",0,I64*F64)+IF(F65=\"Total\",0,I65*F65)+IF(F66=\"Total\",0,I66*F66)+IF(F67=\"Total\",0,I67*F67))","v":0},null,"W"," Light Type 1",null,"Select Light Fixture",{"$f":"VLOOKUP(P62,'Linked Cells (hidden)'!$D$57:$E$150,2,FALSE)","v":"Total"},null,{"$f":"VLOOKUP(P62,'Linked Cells (hidden)'!$D$57:$E$140,2,FALSE)& \"  \" & \"Watts\"","v":"Total  Watts"},null,null,{"$f":"(IF(Q62=\"Total\",0,T62*Q62)+IF(Q63=\"Total\",0,T63*Q63)+IF(Q64=\"Total\",0,T64*Q64)+IF(Q65=\"Total\",0,T65*Q65)+IF(Q66=\"Total\",0,T66*Q66)+IF(Q67=\"Total\",0,T67*Q67))","v":0},null,"W"]
[null,null,"Light Type 2",null,"Select Light Fixture",{"$f":"VLOOKUP(E63,'Linked Cells (hidden)'!$D$57:$E$150,2,FALSE)","v":"Total"},null,{"$f":"VLOOKUP(E63,'Linked Cells (hidden)'!$D$57:$E$150,2,FALSE)& \"  \" & \"Watts\"","v":"Total  Watts"},null,null,null,null,null," Light Type 2",null,"Select Light Fixture",{"$f":"VLOOKUP(P63,'Linked Cells (hidden)'!$D$57:$E$150,2,FALSE)","v":"Total"},null,{"$f":"VLOOKUP(P63,'Linked Cells (hidden)'!$D$57:$E$140,2,FALSE)& \"  \" & \"Watts\"","v":"Total  Watts"}]
[null,null,"Light Type 3",null,"Select Light Fixture",{"$f":"VLOOKUP(E64,'Linked Cells (hidden)'!$D$57:$E$150,2,FALSE)","v":"Total"},null,{"$f":"VLOOKUP(E64,'Linked Cells (hidden)'!$D$57:$E$150,2,FALSE)& \"  \" & \"Watts\"","v":"Total  Watts"},null,null,"Room Lighting Power Density (LPD)",null,null," Light Type 3",null,"Select Light Fixture",{"$f":"VLOOKUP(P64,'Linked Cells (hidden)'!$D$57:$E$150,2,FALSE)","v":"Total"},null,{"$f":"VLOOKUP(P64,'Linked Cells (hidden)'!$D$57:$E$140,2,FALSE)& \"  \" & \"Watts\"","v":"Total  Watts"},null,null,"Room Lighting Power Density (LPD)"]
[null,null,"Light Type 4",null,"Select Light Fixture",{"$f":"VLOOKUP(E65,'Linked Cells (hidden)'!$D$57:$E$150,2,FALSE)","v":"Total"},null,{"$f":"VLOOKUP(E65,'Linked Cells (hidden)'!$D$57:$E$150,2,FALSE)& \"  \" & \"Watts\"","v":"Total  Watts"},null,null,{"$f":"IF(K62=0,\"\",K62/I59)","v":""},"W/ft2",null," Light Type 4",null,"Select Light Fixture",{"$f":"VLOOKUP(P65,'Linked Cells (hidden)'!$D$57:$E$150,2,FALSE)","v":"Total"},null,{"$f":"VLOOKUP(P65,'Linked Cells (hidden)'!$D$57:$E$140,2,FALSE)& \"  \" & \"Watts\"","v":"Total  Watts"},null,null,{"$f":"IF(V62=0,\"\",V62/T59)","v":""},"W/ft2"]
[null,null,"Light Type 5",null,"Select Light Fixture",{"$f":"VLOOKUP(E66,'Linked Cells (hidden)'!$D$57:$E$150,2,FALSE)","v":"Total"},null,{"$f":"VLOOKUP(E66,'Linked Cells (hidden)'!$D$57:$E$150,2,FALSE)& \"  \" & \"Watts\"","v":"Total  Watts"},null,null,null,null,null," Light Type 5",null,"Select Light Fixture",{"$f":"VLOOKUP(P66,'Linked Cells (hidden)'!$D$57:$E$150,2,FALSE)","v":"Total"},null,{"$f":"VLOOKUP(P66,'Linked Cells (hidden)'!$D$57:$E$140,2,FALSE)& \"  \" & \"Watts\"","v":"Total  Watts"}]
[null,null,"Other Type : Name",null,null,{"$f":"IF(D68=0,\"Total\",D68)","v":"Total"},null,{"$f":"F67 & \" Watts\"","v":"Total Watts"},null,null,null,null,null," Other Type : Name",null,null,{"$f":"IF(O68=0,\"Total\",O68)","v":"Total"},null,{"$f":"Q67 & \" Watts\"","v":"Total Watts"}]
[null,null,"                      : Watts",null,null,null,null,null,null,null,null,null,null,"                          : Watts"]
[]
[]
[null,null,"Room 7 Name",null,null,null,null,"Area",null,"Ft2",null,null,null," Room 8 Name",null,null,null,null,"Area",null,"Ft2"]
[null,null,"Room 7 Lighting (Main Lighting only - Do not include task lights)",null,null,null,null,null,null,null,null,null,null," Room 8 Lighting (Main Lighting only - Do not include task lights)"]
[null,null,"Select up to 6 Light Fixture Types",null,null,null,null,null,null,null,"Total Room Wattage (W)",null,null," Select up to 6 Light Fixture Types",null,null,null,null,null,null,null,"Total Room Wattage (W)"]
[null,null,"Light Type 1",null,"Select Light Fixture",null,null,{"$f":"VLOOKUP(E74,'Linked Cells (hidden)'!$D$57:$E$150,2,FALSE)& \"  \" & \"Watts\"","v":"Total  Watts"},null,null,{"$f":"(IF(F74=\"Total\",0,I74*F74)+IF(F75=\"Total\",0,I75*F75)+IF(F76=\"Total\",0,I76*F76)+IF(F77=\"Total\",0,I77*F77)+IF(F78=\"Total\",0,I78*F78)+IF(F79=\"Total\",0,I79*F79))","v":0},null,"W"," Light Type 1",null,"Select Light Fixture",null,null,{"$f":"VLOOKUP(P74,'Linked Cells (hidden)'!$D$57:$E$140,2,FALSE)& \"  \" & \"Watts\"","v":"Total  Watts"},null,null,{"$f":"(IF(Q74=\"Total\",0,T74*Q74)+IF(Q75=\"Total\",0,T75*Q75)+IF(Q76=\"Total\",0,T76*Q76)+IF(Q77=\"Total\",0,T77*Q77)+IF(Q78=\"Total\",0,T78*Q78)+IF(Q79=\"Total\",0,T79*Q79))","v":0},null,"W"]
[null,null,"Light Type 2",null,"Select Light Fixture",{"$f":"VLOOKUP(E75,'Linked Cells (hidden)'!$D$57:$E$150,2,FALSE)","v":"Total"},null,{"$f":"VLOOKUP(E75,'Linked Cells (hidden)'!$D$57:$E$150,2,FALSE)& \"  \" & \"Watts\"","v":"Total  Watts"},null,null,null,null,null," Light Type 2",null,"Select Light Fixture",{"$f":"VLOOKUP(P75,'Linked Cells (hidden)'!$D$57:$E$150,2,FALSE)","v":"Total"},null,{"$f":"VLOOKUP(P75,'Linked Cells (hidden)'!$D$57:$E$140,2,FALSE)& \"  \" & \"Watts\"","v":"Total  Watts"}]
[null,null,"Light Type 3",null,"Select Light Fixture",{"$f":"VLOOKUP(E76,'Linked Cells (hidden)'!$D$57:$E$150,2,FALSE)","v":"Total"},null,{"$f":"VLOOKUP(E76,'Linked Cells (hidden)'!$D$57:$E$150,2,FALSE)& \"  \" & \"Watts\"","v":"Total  Watts"},null,null,"Room Lighting Power Density (LPD)",null,null," Light Type 3",null,"Select Light Fixture",{"$f":"VLOOKUP(P76,'Linked Cells (hidden)'!$D$57:$E$150,2,FALSE)","v":"Total"},null,{"$f":"VLOOKUP(P76,'Linked Cells (hidden)'!$D$57:$E$140,2,FALSE)& \"  \" & \"Watts\"","v":"Total  Watts"},null,null,"Room Lighting Power Density (LPD)"]
[null,null,"Light Type 4",null,"Select Light Fixture",{"$f":"VLOOKUP(E77,'Linked Cells (hidden)'!$D$57:$E$150,2,FALSE)","v":"Total"},null,{"$f":"VLOOKUP(E77,'Linked Cells (hidden)'!$D$57:$E$150,2,FALSE)& \"  \" & \"Watts\"","v":"Total  Watts"},null,null,{"$f":"IF(K74=0,\"\",K74/I71)","v":""},"W/ft2",null," Light Type 4",null,"Select Light Fixture",{"$f":"VLOOKUP(P77,'Linked Cells (hidden)'!$D$57:$E$150,2,FALSE)","v":"Total"},null,{"$f":"VLOOKUP(P77,'Linked Cells (hidden)'!$D$57:$E$140,2,FALSE)& \"  \" & \"Watts\"","v":"Total  Watts"},null,null,{"$f":"IF(V74=0,\"\",V74/T71)","v":""},"W/ft2"]
[null,null,"Light Type 5",null,"Select Light Fixture",{"$f":"VLOOKUP(E78,'Linked Cells (hidden)'!$D$57:$E$150,2,FALSE)","v":"Total"},null,{"$f":"VLOOKUP(E78,'Linked Cells (hidden)'!$D$57:$E$150,2,FALSE)& \"  \" & \"Watts\"","v":"Total  Watts"},null,null,null,null,null," Light Type 5",null,"Select Light Fixture",{"$f":"VLOOKUP(P78,'Linked Cells (hidden)'!$D$57:$E$150,2,FALSE)","v":"Total"},null,{"$f":"VLOOKUP(P78,'Linked Cells (hidden)'!$D$57:$E$140,2,FALSE)& \"  \" & \"Watts\"","v":"Total  Watts"}]
[null,null,"Other Type : Name",null,null,{"$f":"IF(D80=0,\"Total\",D80)","v":"Total"},null,{"$f":"F79 & \" Watts\"","v":"Total Watts"},null,null,null,null,null," Other Type : Name",null,null,{"$f":"IF(O80=0,\"Total\",O80)","v":"Total"},null,{"$f":"Q79 & \" Watts\"","v":"Total Watts"}]
[null,null,"                      : Watts",null,null,null,null,null,null,null,null,null,null,"                          : Watts"]
[]
[]
[null,null,"Room 9 Name",null,null,null,null,"Area",null,"Ft2",null,null,null," Room 10 Name",null,null,null,null,"Area",null,"Ft2"]
[null,null,"Room 9 Lighting (Main Lighting only - Do not include task lights)",null,null,null,null,null,null,null,null,null,null," Room 10 Lighting (Main Lighting only - Do not include task lights)"]
[null,null,"Select up to 6 Light Fixture Types",null,null,null,null,null,null,null,"Total Room Wattage (W)",null,null," Select up to 6 Light Fixture Types",null,null,null,null,null,null,null,"Total Room Wattage (W)"]
[null,null,"Light Type 1",null,"Select Light Fixture",{"$f":"VLOOKUP(E86,'Linked Cells (hidden)'!$D$57:$E$150,2,FALSE)","v":"Total"},null,{"$f":"VLOOKUP(E86,'Linked Cells (hidden)'!$D$57:$E$150,2,FALSE)& \"  \" & \"Watts\"","v":"Total  Watts"},null,null,{"$f":"(IF(F86=\"Total\",0,I86*F86)+IF(F87=\"Total\",0,I87*F87)+IF(F88=\"Total\",0,I88*F88)+IF(F89=\"Total\",0,I89*F89)+IF(F90=\"Total\",0,I90*F90)+IF(F91=\"Total\",0,I91*F91))","v":0},null,"W"," Light Type 1",null,"Select Light Fixture",{"$f":"VLOOKUP(P86,'Linked Cells (hidden)'!$D$57:$E$150,2,FALSE)","v":"Total"},null,{"$f":"VLOOKUP(P86,'Linked Cells (hidden)'!$D$57:$E$140,2,FALSE)& \"  \" & \"Watts\"","v":"Total  Watts"},null,null,{"$f":"(IF(Q86=\"Total\",0,T86*Q86)+IF(Q87=\"Total\",0,T87*Q87)+IF(Q88=\"Total\",0,T88*Q88)+IF(Q89=\"Total\",0,T89*Q89)+IF(Q90=\"Total\",0,T90*Q90)+IF(Q91=\"Total\",0,T91*Q91))","v":0},null,"W"]
[null,null,"Light Type 2",null,"Select Light Fixture",null,null,{"$f":"VLOOKUP(E87,'Linked Cells (hidden)'!$D$57:$E$150,2,FALSE)& \"  \" & \"Watts\"","v":"Total  Watts"},null,null,null,null,null," Light Type 2",null,"Select Light Fixture",null,null,{"$f":"VLOOKUP(P87,'Linked Cells (hidden)'!$D$57:$E$140,2,FALSE)& \"  \" & \"Watts\"","v":"Total  Watts"}]
[null,null,"Light Type 3",null,"Select Light Fixture",{"$f":"VLOOKUP(E88,'Linked Cells (hidden)'!$D$57:$E$150,2,FALSE)","v":"Total"},null,{"$f":"VLOOKUP(E88,'Linked Cells (hidden)'!$D$57:$E$150,2,FALSE)& \"  \" & \"Watts\"","v":"Total  Watts"},null,null,"Room Lighting Power Density (LPD)",null,null," Light Type 3",null,"Select Light Fixture",{"$f":"VLOOKUP(P88,'Linked Cells (hidden)'!$D$57:$E$150,2,FALSE)","v":"Total"},null,{"$f":"VLOOKUP(P88,'Linked Cells (hidden)'!$D$57:$E$140,2,FALSE)& \"  \" & \"Watts\"","v":"Total  Watts"},null,null,"Room Lighting Power Density (LPD)"]
[null,null,"Light Type 4",null,"Select Light Fixture",{"$f":"VLOOKUP(E89,'Linked Cells (hidden)'!$D$57:$E$150,2,FALSE)","v":"Total"},null,{"$f":"VLOOKUP(E89,'Linked Cells (hidden)'!$D$57:$E$150,2,FALSE)& \"  \" & \"Watts\"","v":"Total  Watts"},null,null,{"$f":"IF(K86=0,\"\",K86/I83)","v":""},"W/ft2",null," Light Type 4",null,"Select Light Fixture",{"$f":"VLOOKUP(P89,'Linked Cells (hidden)'!$D$57:$E$150,2,FALSE)","v":"Total"},null,{"$f":"VLOOKUP(P89,'Linked Cells (hidden)'!$D$57:$E$140,2,FALSE)& \"  \" & \"Watts\"","v":"Total  Watts"},null,null,{"$f":"IF(V86=0,\"\",V86/T83)","v":""},"W/ft2"]
[null,null,"Light Type 5",null,"Select Light Fixture",{"$f":"VLOOKUP(E90,'Linked Cells (hidden)'!$D$57:$E$150,2,FALSE)","v":"Total"},null,{"$f":"VLOOKUP(E90,'Linked Cells (hidden)'!$D$57:$E$150,2,FALSE)& \"  \" & \"Watts\"","v":"Total  Watts"},null,null,null,null,null," Light Type 5",null,"Select Light Fixture",{"$f":"VLOOKUP(P90,'Linked Cells (hidden)'!$D$57:$E$150,2,FALSE)","v":"Total"},null,{"$f":"VLOOKUP(P90,'Linked Cells (hidden)'!$D$57:$E$140,2,FALSE)& \"  \" & \"Watts\"","v":"Total  Watts"}]
[null,null,"Other Type : Name",null,null,{"$f":"IF(D92=0,\"Total\",D92)","v":"Total"},null,{"$f":"F91 & \" Watts\"","v":"Total Watts"},null,null,null,null,null," Other Type : Name",null,null,{"$f":"IF(O92=0,\"Total\",O92)","v":"Total"},null,{"$f":"Q91 & \" Watts\"","v":"Total Watts"}]
[null,null,"                      : Watts",null,null,null,null,null,null,null,null,null,null,"                          : Watts"]
[]
[]
[]
[null,"HVAC/Non-Process Energy "]
[]
[null,"\nTo determine the site's Non-Process Heating, Ventilating, and Air Conditioning (HVAC) loads and energy use, describe each building's HVAC electrical using units by entering them below. If multiple of a unit exists, either add them into the table as separate units or enter Motor Size as the motor's size (in hp) multiplied by the quantity.\n\nNon-Process HVAC is meant to include all equipment not tied to specific process operations such as general ventilation heaters, office air conditioners, restroom exhaust fans, etc. \nDo not provide process-related ventilation equipment such as odor control fans here.  You can enter process equipment information on the \"WTP or WWTP Energy Usage\" tab.    \n\nFor each Non-Process HVAC unit select the equipment type from the dropdown list and enter an “Equipment Description.”\n\nCollect and enter each unit’s motor size, efficiency and full load amperage (FLA) ratings.  This information can be gathered from the equipment's nameplate or specification datasheet.\nIf the site has authorized personnel capable of taking electrical measurements, enter the motors average operating current. Otherwise leave the \"Average Motor Operating Current\" blank and the tool will use an 80% Load Factor in its calculations. \n\nOnce the equipment's typical operating hours are entered, the tool calculates the estimated annual energy use and operating cost for the unit.\nIf conditions at the plant change, you can adjust these values.\n\nA summary of the HVAC and lighting information entered on the building data tabs is displayed on the top on the WTP and WWTP Energy Usage tabs.  For those values to be included in the total energy use and to be displayed in the pie charts and summary report, you must enter the values in the Equipment Electrical Energy Inventory table (on the WTP or WWTP Energy Usage tab) as Non Process HVAC. See the instructions on that tab on how to enter this information.\n"]
[]
[]
[]
[]
[null,null,"System Type","Equipment Type",null,null,"Equipment Description","Motor Size (hp)","Motor Efficiency","Motor Full Load Amperage (FLA)","Average Motor Operating Current          (Amps)","Motor Operating Hours              (Hours/Year)","Average Load Factor\n(%)","Average HVAC Electric Load (kW)","Estimated Annual Energy Use (kWh/yr)",null,null,"Estimated Annual Operating Costs  ($/Year)","Estimated Percent of Site Electric Use & Cost (%)"]
[null,null,"Non Process HVAC","Select Equipment",null,null,null,null,null,null,null,null,{"$f":"IF(J104=0,0,IF(K104=0,0.75,K104/J104))","v":0},{"$f":"IF(I104=0,0,H104*0.746*M104/I104)","v":0},{"$f":"N104*L104","v":0},null,null,{"$f":"O104*'General Information'!$H$46","v":0},{"$f":"IF('General Information'!$H$44=0,\"\",O104/'General Information'!$H$44)","v":""}]
[null,null,"Non Process HVAC","Select Equipment",null,null,null,null,null,null,null,null,0,0,0,null,null,{"$f":"O105*'General Information'!$H$46","v":0},{"$f":"IF('General Information'!$H$44=0,\"\",O105/'General Information'!$H$44)","v":""}]
[null,null,"Non Process HVAC","Select Equipment",null,null,null,null,null,null,null,null,0,0,0,null,null,{"$f":"O106*'General Information'!$H$46","v":0},{"$f":"IF('General Information'!$H$44=0,\"\",O106/'General Information'!$H$44)","v":""}]
[null,null,"Non Process HVAC","Select Equipment",null,null,null,null,null,null,null,null,0,0,0,null,null,{"$f":"O107*'General Information'!$H$46","v":0},{"$f":"IF('General Information'!$H$44=0,\"\",O107/'General Information'!$H$44)","v":""}]
[null,null,"Non Process HVAC","Select Equipment",null,null,null,null,null,null,null,null,0,0,0,null,null,{"$f":"O108*'General Information'!$H$46","v":0},{"$f":"IF('General Information'!$H$44=0,\"\",O108/'General Information'!$H$44)","v":""}]
[null,null,"Non Process HVAC","Select Equipment",null,null,null,null,null,null,null,null,0,0,0,null,null,{"$f":"O109*'General Information'!$H$46","v":0},{"$f":"IF('General Information'!$H$44=0,\"\",O109/'General Information'!$H$44)","v":""}]
[]
[null,null,null,null,null,null,null,null,null,"Total Building HVAC",null,null,null,{"$f":"SUM(N101:N109)","v":0},{"$f":"SUM(O101:O109)","v":0},null,null,{"$f":"SUM(R104:R109)","v":0},{"$f":"SUM(S104:S109)","v":0}]

{"sheet":"Building 3 Data","index":5,"n_rows":111,"n_cols":24,"rows_kept":111,"cut":false,"hidden":true,"merged":[[0,0,0,10],[12,1,13,14],[2,1,2,3],[8,1,8,2],[10,1,10,2],[8,12,9,13],[8,7,8,9],[10,7,10,9],[46,3,46,6],[60,10,60,11],[58,14,58,17],[3,1,3,17],[5,1,6,17],[17,3,17,6],[110,9,110,12],[70,3,70,6],[82,14,82,17],[73,10,73,11],[72,10,72,11],[84,10,84,11],[70,14,70,17],[20,13,20,14],[27,1,31,14],[82,3,82,6],[97,1,99,20],[58,3,58,6],[37,10,37,11],[49,10,49,11],[48,10,48,11],[85,21,85,22],[85,10,85,11],[61,21,61,22],[73,21,73,22],[84,21,84,22],[61,10,61,11],[72,21,72,22],[60,21,60,22],[49,21,49,22],[36,21,36,22],[34,14,34,17],[46,14,46,17],[48,21,48,22],[20,2,20,3],[37,21,37,22],[20,8,20,10],[19,6,20,7],[34,3,34,6],[36,10,36,11]]}
[{"$f":"\"EPA Energy Use Assessment Tool for \" & workbookType","v":"EPA Energy Use Assessment Tool for Drinking Water Systems"}]
["Site Structural Buildings - Major Non-Process Energy Users"]
[]
[null,"\nIn the Building Data tabs, the tool totals each building’s Lighting and HVAC information. You should use the totals for entry on the WTP or WWTP Energy Use tabs.  For instructions on how to enter that information, see the WTP or WWTP Energy Usage tabs. If you have already identified the site's Lighting and HVAC loads or would just like to estimate them without detailing this information here, proceed to the WTP or WWTP Energy Usage tab.\n\nIf you skip this tab, you can come back later to fill in this detail.\n\n\n\n"]
[]
[null,"\n\nThe following information is entered once for the entire plant.\n\nTo change the Total Number of Buildings on-site, go to the \"Building 1 Data\" tab and click the \"Set # of Buildings\" button. This lets you enter information for the specified number of buildings.\n\nAfter entering data in a building tab, click the \"Save and Continue\" button at the top. That allows you to enter data for the next building or if building data entry is complete, to return to the General Information tab. You can also click the other Building Data tabs at the bottom. \n\n"]
[]
[]
[null,"Total Plant Building Area",null,{"$f":"'Building 1 Data'!D9","v":0},3,null,"Ft2","Total Plant Building Electric Load",null,null,{"$f":"'Building 1 Data'!K9","v":0},"kW","Total Plant Building Electric Use ",null,{"$f":"'Building 1 Data'!O9","v":0},null,null,"kWh/Yr"]
[]
[null,"Does the site have buildings?",null,{"$f":"hasBldgs","v":"Yes"},null,null,null,"Total Number of Buildings On-site:",null,null,{"$f":"[0]!totalbldgs","v":"1"}]
[]
[null,"Enter the following information for each building at the plant.\n\nTo begin, select the number of rooms in the \"No. of Rooms\" dropdown list below and click the \"Set # of rooms\" button.   It is important to know and set the number of rooms upfront, before any lighting data is entered.  If the number of rooms is later changed, all the data that had been entered will be lost. "]
[]
[]
[null,null,{"$f":"\"BUILDING \" & E9","v":"BUILDING 3"}]
[]
[null,null,"Name",null,null,null,null,null,"Operating Hours per Year",null,{"$f":"IF(K19=\"\",\"\",K19*K20*52)","v":""},"Hrs/Yr","Approximate Building Age (If known)",null,null,null,null,null,"Yrs"]
[null,null,"Area",{"$f":"I35+T35+T47+I47+I59+T59+T71+I71+I83+T83","v":0},null,null,"Ft2",null,"Operating Hours per Day",null,null,"Hrs/Day"]
[null,null,"No. of Rooms",null,null,null,"! Changing the number of rooms will reset all lighting data entered.",null,"Operating Days per Week",null,null,"Days/Wk","Average Building Lighting Power Density (LPD)",null,null,null,null,{"$f":"IF(D19=0,\"\",(K38+V38+V50+K50+K62+V62+V74+K74+K86+V86)/D19)","v":""},"W/ft2"]
[null,null,"Estimated Electric Load:",null,null,null,null,null,"Estimated Annual Energy Use:",null,null,null,null,"Estimated Annual Energy Cost:"]
[null,null,{"$f":"\"Total Building \" & $E$9& \" Lighting\"","v":"Total Building 3 Lighting"},null,null,null,{"$f":"IF((K38+V38+V50+K50+K62+V62+V74+K74+K86+V86)=0,0,(K38+V38+V50+K50+K62+V62+V74+K74+K86+V86)/1000)","v":0},"kW",{"$f":"\"Total Building \" & $E$9& \" Lighting\"","v":"Total Building 3 Lighting"},null,null,{"$f":"IF((K38+V38+V50+K50+K62+V62+V74+K74+K86+V86)=0,IF(K18=\"\",0,0),IF(K18=\"\",0,((K38+V38+V50+K50+K62+V62+V74+K74+K86+V86)/1000)*K18))","v":0},"kWh/Yr",{"$f":"\"Total Building \" & $E$9 & \" Lighting\"","v":"Total Building 3 Lighting"},null,null,null,{"$f":"L22*'General Information'!$H$46","v":0},"$/Yr"]
[null,null,{"$f":"\"Total Building \" & $E$9 & \" HVAC\"","v":"Total Building 3 HVAC"},null,null,null,{"$f":"N111","v":0},"kW",{"$f":"\"Total Building \" & $E$9 & \" HVAC\"","v":"Total Building 3 HVAC"},null,null,{"$f":"O$111","v":0},"kWh/Yr",{"$f":"\"Total Building \" & $E$9 & \" HVAC\"","v":"Total Building 3 HVAC"},null,null,null,{"$f":"R111","v":0},"$/Yr"]
[null,null,{"$f":"\"Total Building \" & $E$9 & \" Combined\"","v":"Total Building 3 Combined"},null,null,null,{"$f":"SUM(G22:G23)","v":0},"kW",{"$f":"\"Total Building \" & $E$9 & \" Combined\"","v":"Total Building 3 Combined"},null,null,{"$f":"SUM(L22,L23)","v":0},"kWh/Yr",{"$f":"\"Total Building \" & $E$9 & \" Combined\"","v":"Total Building 3 Combined"},null,null,null,{"$f":"SUM(R22,R23)","v":0},"$/Yr"]
[]
[null,null,"LIGHTING"]
[]
[null,"\nTo determine the site’s lighting loads and energy use, select each of the room’s lighting fixture types and quantity (Qty) using the dropdown lists below.\n\nSelect a light type from the dropdown list for each size and kind of fixture in a room. Then enter the quantity for each type. The tool provides the fixture’s electrical \nenergy load in watts. Do not include task lights (directional lights used to illuminate an area of work) when entering the room's lighting fixtures. \n\nIf a type of fixture is not available in the dropdown list, use the \"Other Type\" input field to enter the fixture and its total wattage.\n\nThe table automatically totals the room's lighting loads, each building's lighting energy use and the site's total lighting energy use per year for use in other areas of the tool.\nEnter the area of each room and the tool calculates the Lighting Power Density (LPD) in watts per square foot.  \nYou can now take an important next step and compare LPD’s from room to room and building to building to determine where excess energy might be in use.\n"]
[]
[]
[]
[]
[]
[]
[null,null,"Room 1 Name",null,null,null,null,"Area",null,"Ft2",null,null,null,"Room 2 Name",null,null,null,null,"Area",null,"Ft2"]
[null,null,"Room 1 Lighting (Main Lighting only - Do not include task lights)",null,null,null,null,null,null,null,null,null,null,"Room 2 Lighting (Main Lighting only - Do not include task lights)"]
[null,null,"Select up to 6 Light Fixture Types",null,null,null,null,null,null,null,"Total Room Wattage (W)",null,null,"Select up to 6 Light Fixture Types",null,null,null,null,null,null,null,"Total Room Wattage (W)"]
[null,null,"Light Type 1",null,"Select Light Fixture",{"$f":"VLOOKUP(E38,'Linked Cells (hidden)'!$D$57:$E$150,2,FALSE)","v":"Total"},null,{"$f":"VLOOKUP(E38,'Linked Cells (hidden)'!$D$57:$E$150,2,FALSE)& \"  \" & \"Watts\"","v":"Total  Watts"},null,null,{"$f":"(IF(F38=\"Total\",0,I38*F38)+IF(F39=\"Total\",0,I39*F39)+IF(F40=\"Total\",0,I40*F40)+IF(F41=\"Total\",0,I41*F41)+IF(F42=\"Total\",0,I42*F42)+IF(F43=\"Total\",0,I43*F43))","v":0},null,"W","Light Type 1",null,"Select Light Fixture",{"$f":"VLOOKUP(P38,'Linked Cells (hidden)'!$D$57:$E$150,2,FALSE)","v":"Total"},null,{"$f":"VLOOKUP(P38,'Linked Cells (hidden)'!$D$57:$E$140,2,FALSE)& \"  \" & \"Watts\"","v":"Total  Watts"},null,null,{"$f":"(IF(Q38=\"Total\",0,T38*Q38)+IF(Q39=\"Total\",0,T39*Q39)+IF(Q40=\"Total\",0,T40*Q40)+IF(Q41=\"Total\",0,T41*Q41)+IF(Q42=\"Total\",0,T42*Q42)+IF(Q43=\"Total\",0,T43*Q43))","v":0},null,"W"]
[null,null,"Light Type 2",null,"Select Light Fixture",{"$f":"VLOOKUP(E39,'Linked Cells (hidden)'!$D$57:$E$150,2,FALSE)","v":"Total"},null,{"$f":"VLOOKUP(E39,'Linked Cells (hidden)'!$D$57:$E$150,2,FALSE)& \"  \" & \"Watts\"","v":"Total  Watts"},null,null,null,null,null,"Light Type 2",null,"Select Light Fixture",{"$f":"VLOOKUP(P39,'Linked Cells (hidden)'!$D$57:$E$150,2,FALSE)","v":"Total"},null,{"$f":"VLOOKUP(P39,'Linked Cells (hidden)'!$D$57:$E$140,2,FALSE)& \"  \" & \"Watts\"","v":"Total  Watts"}]
[null,null,"Light Type 3",null,"Select Light Fixture",{"$f":"VLOOKUP(E40,'Linked Cells (hidden)'!$D$57:$E$150,2,FALSE)","v":"Total"},null,{"$f":"VLOOKUP(E40,'Linked Cells (hidden)'!$D$57:$E$150,2,FALSE)& \"  \" & \"Watts\"","v":"Total  Watts"},null,null,"Room Lighting Power Density (LPD)",null,null,"Light Type 3",null,"Select Light Fixture",{"$f":"VLOOKUP(P40,'Linked Cells (hidden)'!$D$57:$E$150,2,FALSE)","v":"Total"},null,{"$f":"VLOOKUP(P40,'Linked Cells (hidden)'!$D$57:$E$140,2,FALSE)& \"  \" & \"Watts\"","v":"Total  Watts"},null,null,"Room Lighting Power Density (LPD)"]
[null,null,"Light Type 4",null,"Select Light Fixture",{"$f":"VLOOKUP(E41,'Linked Cells (hidden)'!$D$57:$E$150,2,FALSE)","v":"Total"},null,{"$f":"VLOOKUP(E41,'Linked Cells (hidden)'!$D$57:$E$150,2,FALSE)& \"  \" & \"Watts\"","v":"Total  Watts"},null,null,{"$f":"IF(K38=0,\"\",K38/I35)","v":""},"W/ft2",null,"Light Type 4",null,"Select Light Fixture",{"$f":"VLOOKUP(P41,'Linked Cells (hidden)'!$D$57:$E$150,2,FALSE)","v":"Total"},null,{"$f":"VLOOKUP(P41,'Linked Cells (hidden)'!$D$57:$E$140,2,FALSE)& \"  \" & \"Watts\"","v":"Total  Watts"},null,null,{"$f":"IF(V38=0,\"\",V38/T35)","v":""},"W/ft2"]
[null,null,"Light Type 5",null,"Select Light Fixture",{"$f":"VLOOKUP(E42,'Linked Cells (hidden)'!$D$57:$E$150,2,FALSE)","v":"Total"},null,{"$f":"VLOOKUP(E42,'Linked Cells (hidden)'!$D$57:$E$150,2,FALSE)& \"  \" & \"Watts\"","v":"Total  Watts"},null,null,null,null,null,"Light Type 5",null,"Select Light Fixture",{"$f":"VLOOKUP(P42,'Linked Cells (hidden)'!$D$57:$E$150,2,FALSE)","v":"Total"},null,{"$f":"VLOOKUP(P42,'Linked Cells (hidden)'!$D$57:$E$140,2,FALSE)& \"  \" & \"Watts\"","v":"Total  Watts"}]
[null,null,"Other Type : Name",null,null,{"$f":"IF(D44=0,\"Total\",D44)","v":"Total"},null,{"$f":"F43 & \" Watts\"","v":"Total Watts"},null,null,null,null,null,"Other Type : Name",null,null,{"$f":"IF(O44=0,\"Total\",O44)","v":"Total"},null,{"$f":"Q43 & \" Watts\"","v":"Total Watts"}]
[null,null,"                     : Watts",null,null,null,null,null,null,null,null,null,null,"                      : Watts"]
[]
[]
[null,null,"Room 3 Name",null,null,null,null,"Area",null,"Ft2",null,null,null,"Room 4 Name",null,null,null,null,"Area",null,"Ft2"]
[null,null,"Room 3 Lighting (Main Lighting only - Do not include task lights)",null,null,null,null,null,null,null,null,null,null,"Room 4 Lighting (Main Lighting only - Do not include task lights)"]
[null,null,"Select up to 6 Light Fixture Types",null,null,null,null,null,null,null,"Total Room Wattage (W)",null,null,"Select up to 6 Light Fixture Types",null,null,null,null,null,null,null,"Total Room Wattage (W)"]
[null,null,"Light Type 1",null,"Select Light Fixture",{"$f":"VLOOKUP(E50,'Linked Cells (hidden)'!$D$57:$E$150,2,FALSE)","v":"Total"},null,{"$f":"VLOOKUP(E50,'Linked Cells (hidden)'!$D$57:$E$150,2,FALSE)& \"  \" & \"Watts\"","v":"Total  Watts"},null,null,{"$f":"(IF(F50=\"Total\",0,I50*F50)+IF(F51=\"Total\",0,I51*F51)+IF(F52=\"Total\",0,I52*F52)+IF(F53=\"Total\",0,I53*F53)+IF(F54=\"Total\",0,I54*F54)+IF(F55=\"Total\",0,I55*F55))","v":0},null,"W","Light Type 1",null,"Select Light Fixture",{"$f":"VLOOKUP(P50,'Linked Cells (hidden)'!$D$57:$E$150,2,FALSE)","v":"Total"},null,{"$f":"VLOOKUP(P50,'Linked Cells (hidden)'!$D$57:$E$140,2,FALSE)& \"  \" & \"Watts\"","v":"Total  Watts"},null,null,{"$f":"(IF(Q50=\"Total\",0,T50*Q50)+IF(Q51=\"Total\",0,T51*Q51)+IF(Q52=\"Total\",0,T52*Q52)+IF(Q53=\"Total\",0,T53*Q53)+IF(Q54=\"Total\",0,T54*Q54)+IF(Q55=\"Total\",0,T55*Q55))","v":0},null,"W"]
[null,null,"Light Type 2",null,"Select Light Fixture",{"$f":"VLOOKUP(E51,'Linked Cells (hidden)'!$D$57:$E$150,2,FALSE)","v":"Total"},null,{"$f":"VLOOKUP(E51,'Linked Cells (hidden)'!$D$57:$E$150,2,FALSE)& \"  \" & \"Watts\"","v":"Total  Watts"},null,null,null,null,null,"Light Type 2",null,"Select Light Fixture",{"$f":"VLOOKUP(P51,'Linked Cells (hidden)'!$D$57:$E$150,2,FALSE)","v":"Total"},null,{"$f":"VLOOKUP(P51,'Linked Cells (hidden)'!$D$57:$E$140,2,FALSE)& \"  \" & \"Watts\"","v":"Total  Watts"}]
[null,null,"Light Type 3",null,"Select Light Fixture",{"$f":"VLOOKUP(E52,'Linked Cells (hidden)'!$D$57:$E$150,2,FALSE)","v":"Total"},null,{"$f":"VLOOKUP(E52,'Linked Cells (hidden)'!$D$57:$E$150,2,FALSE)& \"  \" & \"Watts\"","v":"Total  Watts"},null,null,"Room Lighting Power Density (LPD)",null,null,"Light Type 3",null,"Select Light Fixture",{"$f":"VLOOKUP(P52,'Linked Cells (hidden)'!$D$57:$E$150,2,FALSE)","v":"Total"},null,{"$f":"VLOOKUP(P52,'Linked Cells (hidden)'!$D$57:$E$140,2,FALSE)& \"  \" & \"Watts\"","v":"Total  Watts"},null,null,"Room Lighting Power Density (LPD)"]
[null,null,"Light Type 4",null,"Select Light Fixture",{"$f":"VLOOKUP(E53,'Linked Cells (hidden)'!$D$57:$E$150,2,FALSE)","v":"Total"},null,{"$f":"VLOOKUP(E53,'Linked Cells (hidden)'!$D$57:$E$150,2,FALSE)& \"  \" & \"Watts\"","v":"Total  Watts"},null,null,{"$f":"IF(K50=0,\"\",K50/I47)","v":""},"W/ft2",null,"Light Type 4",null,"Select Light Fixture",{"$f":"VLOOKUP(P53,'Linked Cells (hidden)'!$D$57:$E$150,2,FALSE)","v":"Total"},null,{"$f":"VLOOKUP(P53,'Linked Cells (hidden)'!$D$57:$E$140,2,FALSE)& \"  \" & \"Watts\"","v":"Total  Watts"},null,null,{"$f":"IF(V50=0,\"\",V50/T47)","v":""},"W/ft2"]
[null,null,"Light Type 5",null,"Select Light Fixture",{"$f":"VLOOKUP(E54,'Linked Cells (hidden)'!$D$57:$E$150,2,FALSE)","v":"Total"},null,{"$f":"VLOOKUP(E54,'Linked Cells (hidden)'!$D$57:$E$150,2,FALSE)& \"  \" & \"Watts\"","v":"Total  Watts"},null,null,null,null,null,"Light Type 5",null,"Select Light Fixture",{"$f":"VLOOKUP(P54,'Linked Cells (hidden)'!$D$57:$E$150,2,FALSE)","v":"Total"},null,{"$f":"VLOOKUP(P54,'Linked Cells (hidden)'!$D$57:$E$140,2,FALSE)& \"  \" & \"Watts\"","v":"Total  Watts"}]
[null,null,"Other Type : Name",null,null,{"$f":"IF(D56=0,\"Total\",D56)","v":"Total"},null,{"$f":"F55 & \" Watts\"","v":"Total Watts"},null,null,null,null,null,"Other Type : Name",null,null,{"$f":"IF(O56=0,\"Total\",O56)","v":"Total"},null,{"$f":"Q55 & \" Watts\"","v":"Total Watts"}]
[null,null,"                     : Watts",null,null,null,null,null,null,null,null,null,null,"                      : Watts"]
[]
[]
[null,null,"Room 5 Name",null,null,null,null,"Area",null,"Ft2",null,null,null,"Room 6 Name",null,null,null,null,"Area",null,"Ft2"]
[null,null,"Room 5 Lighting (Main Lighting only - Do not include task lights)",null,null,null,null,null,null,null,null,null,null,"Room 6 Lighting (Main Lighting only - Do not include task lights)"]
[null,null,"Select up to 6 Light Fixture Types",null,null,null,null,null,null,null,"Total Room Wattage (W)",null,null,"Select up to 6 Light Fixture Types",null,null,null,null,null,null,null,"Total Room Wattage (W)"]
[null,null,"Light Type 1",null,"Select Light Fixture",{"$f":"VLOOKUP(E62,'Linked Cells (hidden)'!$D$57:$E$150,2,FALSE)","v":"Total"},null,{"$f":"VLOOKUP(E62,'Linked Cells (hidden)'!$D$57:$E$150,2,FALSE)& \"  \" & \"Watts\"","v":"Total  Watts"},null,null,{"$f":"(IF(F62=\"Total\",0,I62*F62)+IF(F63=\"Total\",0,I63*F63)+IF(F64=\"Total\",0,I64*F64)+IF(F65=\"Total\",0,I65*F65)+IF(F66=\"Total\",0,I66*F66)+IF(F67=\"Total\",0,I67*F67))","v":0},null,"W","Light Type 1",null,"Select Light Fixture",{"$f":"VLOOKUP(P62,'Linked Cells (hidden)'!$D$57:$E$150,2,FALSE)","v":"Total"},null,{"$f":"VLOOKUP(P62,'Linked Cells (hidden)'!$D$57:$E$140,2,FALSE)& \"  \" & \"Watts\"","v":"Total  Watts"},null,null,{"$f":"(IF(Q62=\"Total\",0,T62*Q62)+IF(Q63=\"Total\",0,T63*Q63)+IF(Q64=\"Total\",0,T64*Q64)+IF(Q65=\"Total\",0,T65*Q65)+IF(Q66=\"Total\",0,T66*Q66)+IF(Q67=\"Total\",0,T67*Q67))","v":0},null,"W"]
[null,null,"Light Type 2",null,"Select Light Fixture",{"$f":"VLOOKUP(E63,'Linked Cells (hidden)'!$D$57:$E$150,2,FALSE)","v":"Total"},null,{"$f":"VLOOKUP(E63,'Linked Cells (hidden)'!$D$57:$E$150,2,FALSE)& \"  \" & \"Watts\"","v":"Total  Watts"},null,null,null,null,null,"Light Type 2",null,"Select Light Fixture",{"$f":"VLOOKUP(P63,'Linked Cells (hidden)'!$D$57:$E$150,2,FALSE)","v":"Total"},null,{"$f":"VLOOKUP(P63,'Linked Cells (hidden)'!$D$57:$E$140,2,FALSE)& \"  \" & \"Watts\"","v":"Total  Watts"}]
[null,null,"Light Type 3",null,"Select Light Fixture",{"$f":"VLOOKUP(E64,'Linked Cells (hidden)'!$D$57:$E$150,2,FALSE)","v":"Total"},null,{"$f":"VLOOKUP(E64,'Linked Cells (hidden)'!$D$57:$E$150,2,FALSE)& \"  \" & \"Watts\"","v":"Total  Watts"},null,null,"Room Lighting Power Density (LPD)",null,null,"Light Type 3",null,"Select Light Fixture",{"$f":"VLOOKUP(P64,'Linked Cells (hidden)'!$D$57:$E$150,2,FALSE)","v":"Total"},null,{"$f":"VLOOKUP(P64,'Linked Cells (hidden)'!$D$57:$E$140,2,FALSE)& \"  \" & \"Watts\"","v":"Total  Watts"},null,null,"Room Lighting Power Density (LPD)"]
[null,null,"Light Type 4",null,"Select Light Fixture",{"$f":"VLOOKUP(E65,'Linked Cells (hidden)'!$D$57:$E$150,2,FALSE)","v":"Total"},null,{"$f":"VLOOKUP(E65,'Linked Cells (hidden)'!$D$57:$E$150,2,FALSE)& \"  \" & \"Watts\"","v":"Total  Watts"},null,null,{"$f":"IF(K62=0,\"\",K62/I59)","v":""},"W/ft2",null,"Light Type 4",null,"Select Light Fixture",{"$f":"VLOOKUP(P65,'Linked Cells (hidden)'!$D$57:$E$150,2,FALSE)","v":"Total"},null,{"$f":"VLOOKUP(P65,'Linked Cells (hidden)'!$D$57:$E$140,2,FALSE)& \"  \" & \"Watts\"","v":"Total  Watts"},null,null,{"$f":"IF(V62=0,\"\",V62/T59)","v":""},"W/ft2"]
[null,null,"Light Type 5",null,"Select Light Fixture",{"$f":"VLOOKUP(E66,'Linked Cells (hidden)'!$D$57:$E$150,2,FALSE)","v":"Total"},null,{"$f":"VLOOKUP(E66,'Linked Cells (hidden)'!$D$57:$E$150,2,FALSE)& \"  \" & \"Watts\"","v":"Total  Watts"},null,null,null,null,null,"Light Type 5",null,"Select Light Fixture",{"$f":"VLOOKUP(P66,'Linked Cells (hidden)'!$D$57:$E$150,2,FALSE)","v":"Total"},null,{"$f":"VLOOKUP(P66,'Linked Cells (hidden)'!$D$57:$E$140,2,FALSE)& \"  \" & \"Watts\"","v":"Total  Watts"}]
[null,null,"Other Type : Name",null,null,{"$f":"IF(D68=0,\"Total\",D68)","v":"Total"},null,{"$f":"F67 & \" Watts\"","v":"Total Watts"},null,null,null,null,null,"Other Type : Name",null,null,{"$f":"IF(O68=0,\"Total\",O68)","v":"Total"},null,{"$f":"Q67 & \" Watts\"","v":"Total Watts"}]
[null,null,"                     : Watts",null,null,null,null,null,null,null,null,null,null,"                      : Watts"]
[]
[]
[null,null,"Room 7 Name",null,null,null,null,"Area",null,"Ft2",null,null,null,"Room 8 Name",null,null,null,null,"Area",null,"Ft2"]
[null,null,"Room 7 Lighting (Main Lighting only - Do not include task lights)",null,null,null,null,null,null,null,null,null,null,"Room 8 Lighting (Main Lighting only - Do not include task lights)"]
[null,null,"Select up to 6 Light Fixture Types",null,null,null,null,null,null,null,"Total Room Wattage (W)",null,null,"Select up to 6 Light Fixture Types",null,null,null,null,null,null,null,"Total Room Wattage (W)"]
[null,null,"Light Type 1",null,"Select Light Fixture",null,null,{"$f":"VLOOKUP(E74,'Linked Cells (hidden)'!$D$57:$E$150,2,FALSE)& \"  \" & \"Watts\"","v":"Total  Watts"},null,null,{"$f":"(IF(F74=\"Total\",0,I74*F74)+IF(F75=\"Total\",0,I75*F75)+IF(F76=\"Total\",0,I76*F76)+IF(F77=\"Total\",0,I77*F77)+IF(F78=\"Total\",0,I78*F78)+IF(F79=\"Total\",0,I79*F79))","v":0},null,"W","Light Type 1",null,"Select Light Fixture",null,null,{"$f":"VLOOKUP(P74,'Linked Cells (hidden)'!$D$57:$E$140,2,FALSE)& \"  \" & \"Watts\"","v":"Total  Watts"},null,null,{"$f":"(IF(Q74=\"Total\",0,T74*Q74)+IF(Q75=\"Total\",0,T75*Q75)+IF(Q76=\"Total\",0,T76*Q76)+IF(Q77=\"Total\",0,T77*Q77)+IF(Q78=\"Total\",0,T78*Q78)+IF(Q79=\"Total\",0,T79*Q79))","v":0},null,"W"]
[null,null,"Light Type 2",null,"Select Light Fixture",{"$f":"VLOOKUP(E75,'Linked Cells (hidden)'!$D$57:$E$150,2,FALSE)","v":"Total"},null,{"$f":"VLOOKUP(E75,'Linked Cells (hidden)'!$D$57:$E$150,2,FALSE)& \"  \" & \"Watts\"","v":"Total  Watts"},null,null,null,null,null,"Light Type 2",null,"Select Light Fixture",{"$f":"VLOOKUP(P75,'Linked Cells (hidden)'!$D$57:$E$150,2,FALSE)","v":"Total"},null,{"$f":"VLOOKUP(P75,'Linked Cells (hidden)'!$D$57:$E$140,2,FALSE)& \"  \" & \"Watts\"","v":"Total  Watts"}]
[null,null,"Light Type 3",null,"Select Light Fixture",{"$f":"VLOOKUP(E76,'Linked Cells (hidden)'!$D$57:$E$150,2,FALSE)","v":"Total"},null,{"$f":"VLOOKUP(E76,'Linked Cells (hidden)'!$D$57:$E$150,2,FALSE)& \"  \" & \"Watts\"","v":"Total  Watts"},null,null,"Room Lighting Power Density (LPD)",null,null,"Light Type 3",null,"Select Light Fixture",{"$f":"VLOOKUP(P76,'Linked Cells (hidden)'!$D$57:$E$150,2,FALSE)","v":"Total"},null,{"$f":"VLOOKUP(P76,'Linked Cells (hidden)'!$D$57:$E$140,2,FALSE)& \"  \" & \"Watts\"","v":"Total  Watts"},null,null,"Room Lighting Power Density (LPD)"]
[null,null,"Light Type 4",null,"Select Light Fixture",{"$f":"VLOOKUP(E77,'Linked Cells (hidden)'!$D$57:$E$150,2,FALSE)","v":"Total"},null,{"$f":"VLOOKUP(E77,'Linked Cells (hidden)'!$D$57:$E$150,2,FALSE)& \"  \" & \"Watts\"","v":"Total  Watts"},null,null,{"$f":"IF(K74=0,\"\",K74/I71)","v":""},"W/ft2",null,"Light Type 4",null,"Select Light Fixture",{"$f":"VLOOKUP(P77,'Linked Cells (hidden)'!$D$57:$E$150,2,FALSE)","v":"Total"},null,{"$f":"VLOOKUP(P77,'Linked Cells (hidden)'!$D$57:$E$140,2,FALSE)& \"  \" & \"Watts\"","v":"Total  Watts"},null,null,{"$f":"IF(V74=0,\"\",V74/T71)","v":""},"W/ft2"]
[null,null,"Light Type 5",null,"Select Light Fixture",{"$f":"VLOOKUP(E78,'Linked Cells (hidden)'!$D$57:$E$150,2,FALSE)","v":"Total"},null,{"$f":"VLOOKUP(E78,'Linked Cells (hidden)'!$D$57:$E$150,2,FALSE)& \"  \" & \"Watts\"","v":"Total  Watts"},null,null,null,null,null,"Light Type 5",null,"Select Light Fixture",{"$f":"VLOOKUP(P78,'Linked Cells (hidden)'!$D$57:$E$150,2,FALSE)","v":"Total"},null,{"$f":"VLOOKUP(P78,'Linked Cells (hidden)'!$D$57:$E$140,2,FALSE)& \"  \" & \"Watts\"","v":"Total  Watts"}]
[null,null,"Other Type : Name",null,null,{"$f":"IF(D80=0,\"Total\",D80)","v":"Total"},null,{"$f":"F79 & \" Watts\"","v":"Total Watts"},null,null,null,null,null,"Other Type : Name",null,null,{"$f":"IF(O80=0,\"Total\",O80)","v":"Total"},null,{"$f":"Q79 & \" Watts\"","v":"Total Watts"}]
[null,null,"                     : Watts",null,null,null,null,null,null,null,null,null,null,"                      : Watts"]
[]
[]
[null,null,"Room 9 Name",null,null,null,null,"Area",null,"Ft2",null,null,null,"Room 10 Name",null,null,null,null,"Area",null,"Ft2"]
[null,null,"Room 9 Lighting (Main Lighting only - Do not include task lights)",null,null,null,null,null,null,null,null,null,null,"Room 10 Lighting (Main Lighting only - Do not include task lights)"]
[null,null,"Select up to 6 Light Fixture Types",null,null,null,null,null,null,null,"Total Room Wattage (W)",null,null,"Select up to 6 Light Fixture Types",null,null,null,null,null,null,null,"Total Room Wattage (W)"]
[null,null,"Light Type 1",null,"Select Light Fixture",{"$f":"VLOOKUP(E86,'Linked Cells (hidden)'!$D$57:$E$150,2,FALSE)","v":"Total"},null,{"$f":"VLOOKUP(E86,'Linked Cells (hidden)'!$D$57:$E$150,2,FALSE)& \"  \" & \"Watts\"","v":"Total  Watts"},null,null,{"$f":"(IF(F86=\"Total\",0,I86*F86)+IF(F87=\"Total\",0,I87*F87)+IF(F88=\"Total\",0,I88*F88)+IF(F89=\"Total\",0,I89*F89)+IF(F90=\"Total\",0,I90*F90)+IF(F91=\"Total\",0,I91*F91))","v":0},null,"W","Light Type 1",null,"Select Light Fixture",{"$f":"VLOOKUP(P86,'Linked Cells (hidden)'!$D$57:$E$150,2,FALSE)","v":"Total"},null,{"$f":"VLOOKUP(P86,'Linked Cells (hidden)'!$D$57:$E$140,2,FALSE)& \"  \" & \"Watts\"","v":"Total  Watts"},null,null,{"$f":"(IF(Q86=\"Total\",0,T86*Q86)+IF(Q87=\"Total\",0,T87*Q87)+IF(Q88=\"Total\",0,T88*Q88)+IF(Q89=\"Total\",0,T89*Q89)+IF(Q90=\"Total\",0,T90*Q90)+IF(Q91=\"Total\",0,T91*Q91))","v":0},null,"W"]
[null,null,"Light Type 2",null,"Select Light Fixture",null,null,{"$f":"VLOOKUP(E87,'Linked Cells (hidden)'!$D$57:$E$150,2,FALSE)& \"  \" & \"Watts\"","v":"Total  Watts"},null,null,null,null,null,"Light Type 2",null,"Select Light Fixture",null,null,{"$f":"VLOOKUP(P87,'Linked Cells (hidden)'!$D$57:$E$140,2,FALSE)& \"  \" & \"Watts\"","v":"Total  Watts"}]
[null,null,"Light Type 3",null,"Select Light Fixture",{"$f":"VLOOKUP(E88,'Linked Cells (hidden)'!$D$57:$E$150,2,FALSE)","v":"Total"},null,{"$f":"VLOOKUP(E88,'Linked Cells (hidden)'!$D$57:$E$150,2,FALSE)& \"  \" & \"Watts\"","v":"Total  Watts"},null,null,"Room Lighting Power Density (LPD)",null,null,"Light Type 3",null,"Select Light Fixture",{"$f":"VLOOKUP(P88,'Linked Cells (hidden)'!$D$57:$E$150,2,FALSE)","v":"Total"},null,{"$f":"VLOOKUP(P88,'Linked Cells (hidden)'!$D$57:$E$140,2,FALSE)& \"  \" & \"Watts\"","v":"Total  Watts"},null,null,"Room Lighting Power Density (LPD)"]
[null,null,"Light Type 4",null,"Select Light Fixture",{"$f":"VLOOKUP(E89,'Linked Cells (hidden)'!$D$57:$E$150,2,FALSE)","v":"Total"},null,{"$f":"VLOOKUP(E89,'Linked Cells (hidden)'!$D$57:$E$150,2,FALSE)& \"  \" & \"Watts\"","v":"Total  Watts"},null,null,{"$f":"IF(K86=0,\"\",K86/I83)","v":""},"W/ft2",null,"Light Type 4",null,"Select Light Fixture",{"$f":"VLOOKUP(P89,'Linked Cells (hidden)'!$D$57:$E$150,2,FALSE)","v":"Total"},null,{"$f":"VLOOKUP(P89,'Linked Cells (hidden)'!$D$57:$E$140,2,FALSE)& \"  \" & \"Watts\"","v":"Total  Watts"},null,null,{"$f":"IF(V86=0,\"\",V86/T83)","v":""},"W/ft2"]
[null,null,"Light Type 5",null,"Select Light Fixture",{"$f":"VLOOKUP(E90,'Linked Cells (hidden)'!$D$57:$E$150,2,FALSE)","v":"Total"},null,{"$f":"VLOOKUP(E90,'Linked Cells (hidden)'!$D$57:$E$150,2,FALSE)& \"  \" & \"Watts\"","v":"Total  Watts"},null,null,null,null,null,"Light Type 5",null,"Select Light Fixture",{"$f":"VLOOKUP(P90,'Linked Cells (hidden)'!$D$57:$E$150,2,FALSE)","v":"Total"},null,{"$f":"VLOOKUP(P90,'Linked Cells (hidden)'!$D$57:$E$140,2,FALSE)& \"  \" & \"Watts\"","v":"Total  Watts"}]
[null,null,"Other Type : Name",null,null,{"$f":"IF(D92=0,\"Total\",D92)","v":"Total"},null,{"$f":"F91 & \" Watts\"","v":"Total Watts"},null,null,null,null,null,"Other Type : Name",null,null,{"$f":"IF(O92=0,\"Total\",O92)","v":"Total"},null,{"$f":"Q91 & \" Watts\"","v":"Total Watts"}]
[null,null,"                     : Watts",null,null,null,null,null,null,null,null,null,null,"                      : Watts"]
[]
[]
[]
[null,"HVAC/Non-Process Energy "]
[]
[null,"\nTo determine the site's Non-Process Heating, Ventilating, and Air Conditioning (HVAC) loads and energy use, describe each building's HVAC electrical using units by entering them below. If multiple of a unit exists, either add them into the table as separate units or enter Motor Size as the motor's size (in hp) multiplied by the quantity.\n\nNon-Process HVAC is meant to include all equipment not tied to specific process operations such as general ventilation heaters, office air conditioners, restroom exhaust fans, etc. \nDo not provide process-related ventilation equipment such as odor control fans here.  You can enter process equipment information on the \"WTP or WWTP Energy Usage\" tab.    \n\nFor each Non-Process HVAC unit select the equipment type from the dropdown list and enter an “Equipment Description.”\n\nCollect and enter each unit’s motor size, efficiency and full load amperage (FLA) ratings.  This information can be gathered from the equipment's nameplate or specification datasheet.\nIf the site has authorized personnel capable of taking electrical measurements, enter the motors average operating current. Otherwise leave the \"Average Motor Operating Current\" blank and the tool will use an 80% Load Factor in its calculations. \n\nOnce the equipment's typical operating hours are entered, the tool calculates the estimated annual energy use and operating cost for the unit.\nIf conditions at the plant change, you can adjust these values.\n\nA summary of the HVAC and lighting information entered on the building data tabs is displayed on the top on the WTP and WWTP Energy Usage tabs.  For those values to be included in the total energy use and to be displayed in the pie charts and summary report, you must enter the values in the Equipment Electrical Energy Inventory table (on the WTP or WWTP Energy Usage tab) as Non Process HVAC. See the instructions on that tab on how to enter this information.\n"]
[]
[]
[]
[]
[null,null,"System Type","Equipment Type",null,null,"Equipment Description","Motor Size (hp)","Motor Efficiency","Motor Full Load Amperage (FLA)","Average Motor Operating Current          (Amps)","Motor Operating Hours              (Hours/Year)","Average Load Factor\n(%)","Average HVAC Electric Load (kW)","Estimated Annual Energy Use (kWh/yr)",null,null,"Estimated Annual Operating Costs  ($/Year)","Estimated Percent of Site Electric Use & Cost (%)"]
[null,null,"Non Process HVAC","Select Equipment",null,null,null,null,null,null,null,null,{"$f":"IF(J104=0,0,IF(K104=0,0.75,K104/J104))","v":0},{"$f":"IF(I104=0,0,H104*0.746*M104/I104)","v":0},{"$f":"N104*L104","v":0},null,null,{"$f":"O104*'General Information'!$H$46","v":0},{"$f":"IF('General Information'!$H$44=0,\"\",O104/'General Information'!$H$44)","v":""}]
[null,null,"Non Process HVAC","Select Equipment",null,null,null,null,null,null,null,null,0,0,0,null,null,{"$f":"O105*'General Information'!$H$46","v":0},{"$f":"IF('General Information'!$H$44=0,\"\",O105/'General Information'!$H$44)","v":""}]
[null,null,"Non Process HVAC","Select Equipment",null,null,null,null,null,null,null,null,0,0,0,null,null,{"$f":"O106*'General Information'!$H$46","v":0},{"$f":"IF('General Information'!$H$44=0,\"\",O106/'General Information'!$H$44)","v":""}]
[null,null,"Non Process HVAC","Select Equipment",null,null,null,null,null,null,null,null,0,0,0,null,null,{"$f":"O107*'General Information'!$H$46","v":0},{"$f":"IF('General Information'!$H$44=0,\"\",O107/'General Information'!$H$44)","v":""}]
[null,null,"Non Process HVAC","Select Equipment",null,null,null,null,null,null,null,null,0,0,0,null,null,{"$f":"O108*'General Information'!$H$46","v":0},{"$f":"IF('General Information'!$H$44=0,\"\",O108/'General Information'!$H$44)","v":""}]
[null,null,"Non Process HVAC","Select Equipment",null,null,null,null,null,null,null,null,0,0,0,null,null,{"$f":"O109*'General Information'!$H$46","v":0},{"$f":"IF('General Information'!$H$44=0,\"\",O109/'General Information'!$H$44)","v":""}]
[]
[null,null,null,null,null,null,null,null,null,"Total Building HVAC",null,null,null,{"$f":"SUM(N101:N109)","v":0},{"$f":"SUM(O101:O109)","v":0},null,null,{"$f":"SUM(R104:R109)","v":0},{"$f":"SUM(S104:S109)","v":0}]

{"sheet":"Building 4 Data","index":6,"n_rows":111,"n_cols":24,"rows_kept":111,"cut":false,"hidden":true,"merged":[[36,21,36,22],[49,21,49,22],[84,21,84,22],[37,21,37,22],[46,3,46,6],[37,10,37,11],[48,21,48,22],[46,14,46,17],[85,21,85,22],[85,10,85,11],[70,14,70,17],[60,21,60,22],[61,21,61,22],[73,21,73,22],[0,0,0,10],[12,1,13,14],[20,2,20,3],[8,7,8,9],[10,7,10,9],[3,1,3,17],[10,1,10,2],[20,13,20,14],[19,6,20,7],[20,8,20,10],[2,1,2,3],[8,12,9,13],[36,10,36,11],[34,14,34,17],[58,3,58,6],[49,10,49,11],[48,10,48,11],[61,10,61,11],[72,21,72,22],[60,10,60,11],[72,10,72,11],[84,10,84,11],[110,9,110,12],[70,3,70,6],[82,3,82,6],[97,1,99,20],[82,14,82,17],[73,10,73,11],[58,14,58,17],[5,1,6,17],[8,1,8,2],[27,1,31,14],[34,3,34,6],[17,3,17,6]]}
[{"$f":"\"EPA Energy Use Assessment Tool for \" & workbookType","v":"EPA Energy Use Assessment Tool for Drinking Water Systems"}]
["Site Structural Buildings - Major Non-Process Energy Users"]
[]
[null,"\nIn the Building Data tabs, the tool totals each building’s Lighting and HVAC information. You should use the totals for entry on the WTP or WWTP Energy Use tabs.  For instructions on how to enter that information, see the WTP or WWTP Energy Usage tabs. If you have already identified the site's Lighting and HVAC loads or would just like to estimate them without detailing this information here, proceed to the WTP or WWTP Energy Usage tab.\n\nIf you skip this tab, you can come back later to fill in this detail.\n\n\n"]
[]
[null,"\nThe following information is entered once for the entire plant.\n\nTo change the Total Number of Buildings on-site, go to the \"Building 1 Data\" tab and click the \"Set # of Buildings\" button. This lets you enter information for the specified number of buildings.\n\nAfter entering data in a building tab, click the \"Save and Continue\" button at the top. That allows you to enter data for the next building or if building data entry is complete, to return to the General Information tab. You can also click the other Building Data tabs at the bottom. \n"]
[]
[]
[null,"Total Plant Building Area",null,{"$f":"'Building 1 Data'!D9","v":0},4,null,"Ft2","Total Plant Building Electric Load",null,null,{"$f":"'Building 1 Data'!K9","v":0},"kW","Total Plant Building Electric Use ",null,{"$f":"'Building 1 Data'!O9","v":0},null,null,"kWh/Yr"]
[]
[null,"Does the site have buildings?",null,{"$f":"hasBldgs","v":"Yes"},null,null,null,"Total Number of Buildings On-site:",null,null,{"$f":"[0]!totalbldgs","v":"1"}]
[]
[null,"Enter the following information for each building at the plant.\n\nTo begin, select the number of rooms in the \"No. of Rooms\" dropdown list below and click the \"Set # of rooms\" button.   It is important to know and set the number of rooms upfront, before any lighting data is entered.  If the number of rooms is later changed, all the data that had been entered will be lost. "]
[]
[]
[null,null,{"$f":"\"BUILDING \" & E9","v":"BUILDING 4"}]
[]
[null,null,"Name",null,null,null,null,null,"Operating Hours per Year",null,{"$f":"IF(K19=\"\",\"\",K19*K20*52)","v":""},"Hrs/Yr","Approximate Building Age (If known)",null,null,null,null,null,"Yrs"]
[null,null,"Area",{"$f":"I35+T35+T47+I47+I59+T59+T71+I71+I83+T83","v":0},null,null,"Ft2",null,"Operating Hours per Day",null,null,"Hrs/Day"]
[null,null,"No. of Rooms",null,null,null,"! Changing the number of rooms will reset all lighting data entered.",null,"Operating Days per Week",null,null,"Days/Wk","Average Building Lighting Power Density (LPD)",null,null,null,null,{"$f":"IF(D19=0,\"\",(K38+V38+V50+K50+K62+V62+V74+K74+K86+V86)/D19)","v":""},"W/ft2"]
[null,null,"Estimated Electric Load:",null,null,null,null,null,"Estimated Annual Energy Use:",null,null,null,null,"Estimated Annual Energy Cost:"]
[null,null,{"$f":"\"Total Building \" & $E$9& \" Lighting\"","v":"Total Building 4 Lighting"},null,null,null,{"$f":"IF((K38+V38+V50+K50+K62+V62+V74+K74+K86+V86)=0,0,(K38+V38+V50+K50+K62+V62+V74+K74+K86+V86)/1000)","v":0},"kW",{"$f":"\"Total Building \" & $E$9& \" Lighting\"","v":"Total Building 4 Lighting"},null,null,{"$f":"IF((K38+V38+V50+K50+K62+V62+V74+K74+K86+V86)=0,IF(K18=\"\",0,0),IF(K18=\"\",0,((K38+V38+V50+K50+K62+V62+V74+K74+K86+V86)/1000)*K18))","v":0},"kWh/Yr",{"$f":"\"Total Building \" & $E$9 & \" Lighting\"","v":"Total Building 4 Lighting"},null,null,null,{"$f":"L22*'General Information'!$H$46","v":0},"$/Yr"]
[null,null,{"$f":"\"Total Building \" & $E$9 & \" HVAC\"","v":"Total Building 4 HVAC"},null,null,null,{"$f":"N111","v":0},"kW",{"$f":"\"Total Building \" & $E$9 & \" HVAC\"","v":"Total Building 4 HVAC"},null,null,{"$f":"O$111","v":0},"kWh/Yr",{"$f":"\"Total Building \" & $E$9 & \" HVAC\"","v":"Total Building 4 HVAC"},null,null,null,{"$f":"R111","v":0},"$/Yr"]
[null,null,{"$f":"\"Total Building \" & $E$9 & \" Combined\"","v":"Total Building 4 Combined"},null,null,null,{"$f":"SUM(G22:G23)","v":0},"kW",{"$f":"\"Total Building \" & $E$9 & \" Combined\"","v":"Total Building 4 Combined"},null,null,{"$f":"SUM(L22,L23)","v":0},"kWh/Yr",{"$f":"\"Total Building \" & $E$9 & \" Combined\"","v":"Total Building 4 Combined"},null,null,null,{"$f":"SUM(R22,R23)","v":0},"$/Yr"]
[]
[null,null,"LIGHTING"]
[]
[null,"\nTo determine the site’s lighting loads and energy use, select each of the room’s lighting fixture types and quantity (Qty) using the dropdown lists below.\n\nSelect a light type from the dropdown list for each size and kind of fixture in a room. Then enter the quantity for each type. The tool provides the fixture’s electrical \nenergy load in watts. Do not include task lights (directional lights used to illuminate an area of work) when entering the room's lighting fixtures. \n\nIf a type of fixture is not available in the dropdown list, use the \"Other Type\" input field to enter the fixture and its total wattage.\n\nThe table automatically totals the room's lighting loads, each building's lighting energy use and the site's total lighting energy use per year for use in other areas of the tool.\nEnter the area of each room and the tool calculates the Lighting Power Density (LPD) in watts per square foot.  \nYou can now take an important next step and compare LPD’s from room to room and building to building to determine where excess energy might be in use.\n"]
[]
[]
[]
[]
[]
[]
[null,null,"Room 1 Name",null,null,null,null,"Area",null,"Ft2",null,null,null,"Room 2 Name",null,null,null,null,"Area",null,"Ft2"]
[null,null,"Room 1 Lighting (Main Lighting only - Do not include task lights)",null,null,null,null,null,null,null,null,null,null,"Room 2 Lighting (Main Lighting only - Do not include task lights)"]
[null,null,"Select up to 6 Light Fixture Types",null,null,null,null,null,null,null,"Total Room Wattage (W)",null,null,"Select up to 6 Light Fixture Types",null,null,null,null,null,null,null,"Total Room Wattage (W)"]
[null,null,"Light Type 1",null,"Select Light Fixture",{"$f":"VLOOKUP(E38,'Linked Cells (hidden)'!$D$57:$E$150,2,FALSE)","v":"Total"},null,{"$f":"VLOOKUP(E38,'Linked Cells (hidden)'!$D$57:$E$150,2,FALSE)& \"  \" & \"Watts\"","v":"Total  Watts"},null,null,{"$f":"(IF(F38=\"Total\",0,I38*F38)+IF(F39=\"Total\",0,I39*F39)+IF(F40=\"Total\",0,I40*F40)+IF(F41=\"Total\",0,I41*F41)+IF(F42=\"Total\",0,I42*F42)+IF(F43=\"Total\",0,I43*F43))","v":0},null,"W","Light Type 1",null,"Select Light Fixture",{"$f":"VLOOKUP(P38,'Linked Cells (hidden)'!$D$57:$E$150,2,FALSE)","v":"Total"},null,{"$f":"VLOOKUP(P38,'Linked Cells (hidden)'!$D$57:$E$140,2,FALSE)& \"  \" & \"Watts\"","v":"Total  Watts"},null,null,{"$f":"(IF(Q38=\"Total\",0,T38*Q38)+IF(Q39=\"Total\",0,T39*Q39)+IF(Q40=\"Total\",0,T40*Q40)+IF(Q41=\"Total\",0,T41*Q41)+IF(Q42=\"Total\",0,T42*Q42)+IF(Q43=\"Total\",0,T43*Q43))","v":0},null,"W"]
[null,null,"Light Type 2",null,"Select Light Fixture",{"$f":"VLOOKUP(E39,'Linked Cells (hidden)'!$D$57:$E$150,2,FALSE)","v":"Total"},null,{"$f":"VLOOKUP(E39,'Linked Cells (hidden)'!$D$57:$E$150,2,FALSE)& \"  \" & \"Watts\"","v":"Total  Watts"},null,null,null,null,null,"Light Type 2",null,"Select Light Fixture",{"$f":"VLOOKUP(P39,'Linked Cells (hidden)'!$D$57:$E$150,2,FALSE)","v":"Total"},null,{"$f":"VLOOKUP(P39,'Linked Cells (hidden)'!$D$57:$E$140,2,FALSE)& \"  \" & \"Watts\"","v":"Total  Watts"}]
[null,null,"Light Type 3",null,"Select Light Fixture",{"$f":"VLOOKUP(E40,'Linked Cells (hidden)'!$D$57:$E$150,2,FALSE)","v":"Total"},null,{"$f":"VLOOKUP(E40,'Linked Cells (hidden)'!$D$57:$E$150,2,FALSE)& \"  \" & \"Watts\"","v":"Total  Watts"},null,null,"Room Lighting Power Density (LPD)",null,null,"Light Type 3",null,"Select Light Fixture",{"$f":"VLOOKUP(P40,'Linked Cells (hidden)'!$D$57:$E$150,2,FALSE)","v":"Total"},null,{"$f":"VLOOKUP(P40,'Linked Cells (hidden)'!$D$57:$E$140,2,FALSE)& \"  \" & \"Watts\"","v":"Total  Watts"},null,null,"Room Lighting Power Density (LPD)"]
[null,null,"Light Type 4",null,"Select Light Fixture",{"$f":"VLOOKUP(E41,'Linked Cells (hidden)'!$D$57:$E$150,2,FALSE)","v":"Total"},null,{"$f":"VLOOKUP(E41,'Linked Cells (hidden)'!$D$57:$E$150,2,FALSE)& \"  \" & \"Watts\"","v":"Total  Watts"},null,null,{"$f":"IF(K38=0,\"\",K38/I35)","v":""},"W/ft2",null,"Light Type 4",null,"Select Light Fixture",{"$f":"VLOOKUP(P41,'Linked Cells (hidden)'!$D$57:$E$150,2,FALSE)","v":"Total"},null,{"$f":"VLOOKUP(P41,'Linked Cells (hidden)'!$D$57:$E$140,2,FALSE)& \"  \" & \"Watts\"","v":"Total  Watts"},null,null,{"$f":"IF(V38=0,\"\",V38/T35)","v":""},"W/ft2"]
[null,null,"Light Type 5",null,"Select Light Fixture",{"$f":"VLOOKUP(E42,'Linked Cells (hidden)'!$D$57:$E$150,2,FALSE)","v":"Total"},null,{"$f":"VLOOKUP(E42,'Linked Cells (hidden)'!$D$57:$E$150,2,FALSE)& \"  \" & \"Watts\"","v":"Total  Watts"},null,null,null,null,null,"Light Type 5",null,"Select Light Fixture",{"$f":"VLOOKUP(P42,'Linked Cells (hidden)'!$D$57:$E$150,2,FALSE)","v":"Total"},null,{"$f":"VLOOKUP(P42,'Linked Cells (hidden)'!$D$57:$E$140,2,FALSE)& \"  \" & \"Watts\"","v":"Total  Watts"}]
[null,null,"Other Type : Name",null,null,{"$f":"IF(D44=0,\"Total\",D44)","v":"Total"},null,{"$f":"F43 & \" Watts\"","v":"Total Watts"},null,null,null,null,null,"Other Type : Name",null,null,{"$f":"IF(O44=0,\"Total\",O44)","v":"Total"},null,{"$f":"Q43 & \" Watts\"","v":"Total Watts"}]
[null,null,"                      : Watts",null,null,null,null,null,null,null,null,null,null,"                      : Watts"]
[]
[]
[null,null,"Room 3 Name",null,null,null,null,"Area",null,"Ft2",null,null,null,"Room 4 Name",null,null,null,null,"Area",null,"Ft2"]
[null,null,"Room 3 Lighting (Main Lighting only - Do not include task lights)",null,null,null,null,null,null,null,null,null,null,"Room 4 Lighting (Main Lighting only - Do not include task lights)"]
[null,null,"Select up to 6 Light Fixture Types",null,null,null,null,null,null,null,"Total Room Wattage (W)",null,null,"Select up to 6 Light Fixture Types",null,null,null,null,null,null,null,"Total Room Wattage (W)"]
[null,null,"Light Type 1",null,"Select Light Fixture",{"$f":"VLOOKUP(E50,'Linked Cells (hidden)'!$D$57:$E$150,2,FALSE)","v":"Total"},null,{"$f":"VLOOKUP(E50,'Linked Cells (hidden)'!$D$57:$E$150,2,FALSE)& \"  \" & \"Watts\"","v":"Total  Watts"},null,null,{"$f":"(IF(F50=\"Total\",0,I50*F50)+IF(F51=\"Total\",0,I51*F51)+IF(F52=\"Total\",0,I52*F52)+IF(F53=\"Total\",0,I53*F53)+IF(F54=\"Total\",0,I54*F54)+IF(F55=\"Total\",0,I55*F55))","v":0},null,"W","Light Type 1",null,"Select Light Fixture",{"$f":"VLOOKUP(P50,'Linked Cells (hidden)'!$D$57:$E$150,2,FALSE)","v":"Total"},null,{"$f":"VLOOKUP(P50,'Linked Cells (hidden)'!$D$57:$E$140,2,FALSE)& \"  \" & \"Watts\"","v":"Total  Watts"},null,null,{"$f":"(IF(Q50=\"Total\",0,T50*Q50)+IF(Q51=\"Total\",0,T51*Q51)+IF(Q52=\"Total\",0,T52*Q52)+IF(Q53=\"Total\",0,T53*Q53)+IF(Q54=\"Total\",0,T54*Q54)+IF(Q55=\"Total\",0,T55*Q55))","v":0},null,"W"]
[null,null,"Light Type 2",null,"Select Light Fixture",{"$f":"VLOOKUP(E51,'Linked Cells (hidden)'!$D$57:$E$150,2,FALSE)","v":"Total"},null,{"$f":"VLOOKUP(E51,'Linked Cells (hidden)'!$D$57:$E$150,2,FALSE)& \"  \" & \"Watts\"","v":"Total  Watts"},null,null,null,null,null,"Light Type 2",null,"Select Light Fixture",{"$f":"VLOOKUP(P51,'Linked Cells (hidden)'!$D$57:$E$150,2,FALSE)","v":"Total"},null,{"$f":"VLOOKUP(P51,'Linked Cells (hidden)'!$D$57:$E$140,2,FALSE)& \"  \" & \"Watts\"","v":"Total  Watts"}]
[null,null,"Light Type 3",null,"Select Light Fixture",{"$f":"VLOOKUP(E52,'Linked Cells (hidden)'!$D$57:$E$150,2,FALSE)","v":"Total"},null,{"$f":"VLOOKUP(E52,'Linked Cells (hidden)'!$D$57:$E$150,2,FALSE)& \"  \" & \"Watts\"","v":"Total  Watts"},null,null,"Room Lighting Power Density (LPD)",null,null,"Light Type 3",null,"Select Light Fixture",{"$f":"VLOOKUP(P52,'Linked Cells (hidden)'!$D$57:$E$150,2,FALSE)","v":"Total"},null,{"$f":"VLOOKUP(P52,'Linked Cells (hidden)'!$D$57:$E$140,2,FALSE)& \"  \" & \"Watts\"","v":"Total  Watts"},null,null,"Room Lighting Power Density (LPD)"]
[null,null,"Light Type 4",null,"Select Light Fixture",{"$f":"VLOOKUP(E53,'Linked Cells (hidden)'!$D$57:$E$150,2,FALSE)","v":"Total"},null,{"$f":"VLOOKUP(E53,'Linked Cells (hidden)'!$D$57:$E$150,2,FALSE)& \"  \" & \"Watts\"","v":"Total  Watts"},null,null,{"$f":"IF(K50=0,\"\",K50/I47)","v":""},"W/ft2",null,"Light Type 4",null,"Select Light Fixture",{"$f":"VLOOKUP(P53,'Linked Cells (hidden)'!$D$57:$E$150,2,FALSE)","v":"Total"},null,{"$f":"VLOOKUP(P53,'Linked Cells (hidden)'!$D$57:$E$140,2,FALSE)& \"  \" & \"Watts\"","v":"Total  Watts"},null,null,{"$f":"IF(V50=0,\"\",V50/T47)","v":""},"W/ft2"]
[null,null,"Light Type 5",null,"Select Light Fixture",{"$f":"VLOOKUP(E54,'Linked Cells (hidden)'!$D$57:$E$150,2,FALSE)","v":"Total"},null,{"$f":"VLOOKUP(E54,'Linked Cells (hidden)'!$D$57:$E$150,2,FALSE)& \"  \" & \"Watts\"","v":"Total  Watts"},null,null,null,null,null,"Light Type 5",null,"Select Light Fixture",{"$f":"VLOOKUP(P54,'Linked Cells (hidden)'!$D$57:$E$150,2,FALSE)","v":"Total"},null,{"$f":"VLOOKUP(P54,'Linked Cells (hidden)'!$D$57:$E$140,2,FALSE)& \"  \" & \"Watts\"","v":"Total  Watts"}]
[null,null,"Other Type : Name",null,null,{"$f":"IF(D56=0,\"Total\",D56)","v":"Total"},null,{"$f":"F55 & \" Watts\"","v":"Total Watts"},null,null,null,null,null,"Other Type : Name",null,null,{"$f":"IF(O56=0,\"Total\",O56)","v":"Total"},null,{"$f":"Q55 & \" Watts\"","v":"Total Watts"}]
[null,null,"                      : Watts",null,null,null,null,null,null,null,null,null,null,"                      : Watts"]
[]
[]
[null,null,"Room 5 Name",null,null,null,null,"Area",null,"Ft2",null,null,null,"Room 6 Name",null,null,null,null,"Area",null,"Ft2"]
[null,null,"Room 5 Lighting (Main Lighting only - Do not include task lights)",null,null,null,null,null,null,null,null,null,null,"Room 6 Lighting (Main Lighting only - Do not include task lights)"]
[null,null,"Select up to 6 Light Fixture Types",null,null,null,null,null,null,null,"Total Room Wattage (W)",null,null,"Select up to 6 Light Fixture Types",null,null,null,null,null,null,null,"Total Room Wattage (W)"]
[null,null,"Light Type 1",null,"Select Light Fixture",{"$f":"VLOOKUP(E62,'Linked Cells (hidden)'!$D$57:$E$150,2,FALSE)","v":"Total"},null,{"$f":"VLOOKUP(E62,'Linked Cells (hidden)'!$D$57:$E$150,2,FALSE)& \"  \" & \"Watts\"","v":"Total  Watts"},null,null,{"$f":"(IF(F62=\"Total\",0,I62*F62)+IF(F63=\"Total\",0,I63*F63)+IF(F64=\"Total\",0,I64*F64)+IF(F65=\"Total\",0,I65*F65)+IF(F66=\"Total\",0,I66*F66)+IF(F67=\"Total\",0,I67*F67))","v":0},null,"W","Light Type 1",null,"Select Light Fixture",{"$f":"VLOOKUP(P62,'Linked Cells (hidden)'!$D$57:$E$150,2,FALSE)","v":"Total"},null,{"$f":"VLOOKUP(P62,'Linked Cells (hidden)'!$D$57:$E$140,2,FALSE)& \"  \" & \"Watts\"","v":"Total  Watts"},null,null,{"$f":"(IF(Q62=\"Total\",0,T62*Q62)+IF(Q63=\"Total\",0,T63*Q63)+IF(Q64=\"Total\",0,T64*Q64)+IF(Q65=\"Total\",0,T65*Q65)+IF(Q66=\"Total\",0,T66*Q66)+IF(Q67=\"Total\",0,T67*Q67))","v":0},null,"W"]
[null,null,"Light Type 2",null,"Select Light Fixture",{"$f":"VLOOKUP(E63,'Linked Cells (hidden)'!$D$57:$E$150,2,FALSE)","v":"Total"},null,{"$f":"VLOOKUP(E63,'Linked Cells (hidden)'!$D$57:$E$150,2,FALSE)& \"  \" & \"Watts\"","v":"Total  Watts"},null,null,null,null,null,"Light Type 2",null,"Select Light Fixture",{"$f":"VLOOKUP(P63,'Linked Cells (hidden)'!$D$57:$E$150,2,FALSE)","v":"Total"},null,{"$f":"VLOOKUP(P63,'Linked Cells (hidden)'!$D$57:$E$140,2,FALSE)& \"  \" & \"Watts\"","v":"Total  Watts"}]
[null,null,"Light Type 3",null,"Select Light Fixture",{"$f":"VLOOKUP(E64,'Linked Cells (hidden)'!$D$57:$E$150,2,FALSE)","v":"Total"},null,{"$f":"VLOOKUP(E64,'Linked Cells (hidden)'!$D$57:$E$150,2,FALSE)& \"  \" & \"Watts\"","v":"Total  Watts"},null,null,"Room Lighting Power Density (LPD)",null,null,"Light Type 3",null,"Select Light Fixture",{"$f":"VLOOKUP(P64,'Linked Cells (hidden)'!$D$57:$E$150,2,FALSE)","v":"Total"},null,{"$f":"VLOOKUP(P64,'Linked Cells (hidden)'!$D$57:$E$140,2,FALSE)& \"  \" & \"Watts\"","v":"Total  Watts"},null,null,"Room Lighting Power Density (LPD)"]
[null,null,"Light Type 4",null,"Select Light Fixture",{"$f":"VLOOKUP(E65,'Linked Cells (hidden)'!$D$57:$E$150,2,FALSE)","v":"Total"},null,{"$f":"VLOOKUP(E65,'Linked Cells (hidden)'!$D$57:$E$150,2,FALSE)& \"  \" & \"Watts\"","v":"Total  Watts"},null,null,{"$f":"IF(K62=0,\"\",K62/I59)","v":""},"W/ft2",null,"Light Type 4",null,"Select Light Fixture",{"$f":"VLOOKUP(P65,'Linked Cells (hidden)'!$D$57:$E$150,2,FALSE)","v":"Total"},null,{"$f":"VLOOKUP(P65,'Linked Cells (hidden)'!$D$57:$E$140,2,FALSE)& \"  \" & \"Watts\"","v":"Total  Watts"},null,null,{"$f":"IF(V62=0,\"\",V62/T59)","v":""},"W/ft2"]
[null,null,"Light Type 5",null,"Select Light Fixture",{"$f":"VLOOKUP(E66,'Linked Cells (hidden)'!$D$57:$E$150,2,FALSE)","v":"Total"},null,{"$f":"VLOOKUP(E66,'Linked Cells (hidden)'!$D$57:$E$150,2,FALSE)& \"  \" & \"Watts\"","v":"Total  Watts"},null,null,null,null,null,"Light Type 5",null,"Select Light Fixture",{"$f":"VLOOKUP(P66,'Linked Cells (hidden)'!$D$57:$E$150,2,FALSE)","v":"Total"},null,{"$f":"VLOOKUP(P66,'Linked Cells (hidden)'!$D$57:$E$140,2,FALSE)& \"  \" & \"Watts\"","v":"Total  Watts"}]
[null,null,"Other Type : Name",null,null,{"$f":"IF(D68=0,\"Total\",D68)","v":"Total"},null,{"$f":"F67 & \" Watts\"","v":"Total Watts"},null,null,null,null,null,"Other Type : Name",null,null,{"$f":"IF(O68=0,\"Total\",O68)","v":"Total"},null,{"$f":"Q67 & \" Watts\"","v":"Total Watts"}]
[null,null,"                      : Watts",null,null,null,null,null,null,null,null,null,null,"                      : Watts"]
[]
[]
[null,null,"Room 7 Name",null,null,null,null,"Area",null,"Ft2",null,null,null,"Room 8 Name",null,null,null,null,"Area",null,"Ft2"]
[null,null,"Room 7 Lighting (Main Lighting only - Do not include task lights)",null,null,null,null,null,null,null,null,null,null,"Room 8 Lighting (Main Lighting only - Do not include task lights)"]
[null,null,"Select up to 6 Light Fixture Types",null,null,null,null,null,null,null,"Total Room Wattage (W)",null,null,"Select up to 6 Light Fixture Types",null,null,null,null,null,null,null,"Total Room Wattage (W)"]
[null,null,"Light Type 1",null,"Select Light Fixture",null,null,{"$f":"VLOOKUP(E74,'Linked Cells (hidden)'!$D$57:$E$150,2,FALSE)& \"  \" & \"Watts\"","v":"Total  Watts"},null,null,{"$f":"(IF(F74=\"Total\",0,I74*F74)+IF(F75=\"Total\",0,I75*F75)+IF(F76=\"Total\",0,I76*F76)+IF(F77=\"Total\",0,I77*F77)+IF(F78=\"Total\",0,I78*F78)+IF(F79=\"Total\",0,I79*F79))","v":0},null,"W","Light Type 1",null,"Select Light Fixture",null,null,{"$f":"VLOOKUP(P74,'Linked Cells (hidden)'!$D$57:$E$140,2,FALSE)& \"  \" & \"Watts\"","v":"Total  Watts"},null,null,{"$f":"(IF(Q74=\"Total\",0,T74*Q74)+IF(Q75=\"Total\",0,T75*Q75)+IF(Q76=\"Total\",0,T76*Q76)+IF(Q77=\"Total\",0,T77*Q77)+IF(Q78=\"Total\",0,T78*Q78)+IF(Q79=\"Total\",0,T79*Q79))","v":0},null,"W"]
[null,null,"Light Type 2",null,"Select Light Fixture",{"$f":"VLOOKUP(E75,'Linked Cells (hidden)'!$D$57:$E$150,2,FALSE)","v":"Total"},null,{"$f":"VLOOKUP(E75,'Linked Cells (hidden)'!$D$57:$E$150,2,FALSE)& \"  \" & \"Watts\"","v":"Total  Watts"},null,null,null,null,null,"Light Type 2",null,"Select Light Fixture",{"$f":"VLOOKUP(P75,'Linked Cells (hidden)'!$D$57:$E$150,2,FALSE)","v":"Total"},null,{"$f":"VLOOKUP(P75,'Linked Cells (hidden)'!$D$57:$E$140,2,FALSE)& \"  \" & \"Watts\"","v":"Total  Watts"}]
[null,null,"Light Type 3",null,"Select Light Fixture",{"$f":"VLOOKUP(E76,'Linked Cells (hidden)'!$D$57:$E$150,2,FALSE)","v":"Total"},null,{"$f":"VLOOKUP(E76,'Linked Cells (hidden)'!$D$57:$E$150,2,FALSE)& \"  \" & \"Watts\"","v":"Total  Watts"},null,null,"Room Lighting Power Density (LPD)",null,null,"Light Type 3",null,"Select Light Fixture",{"$f":"VLOOKUP(P76,'Linked Cells (hidden)'!$D$57:$E$150,2,FALSE)","v":"Total"},null,{"$f":"VLOOKUP(P76,'Linked Cells (hidden)'!$D$57:$E$140,2,FALSE)& \"  \" & \"Watts\"","v":"Total  Watts"},null,null,"Room Lighting Power Density (LPD)"]
[null,null,"Light Type 4",null,"Select Light Fixture",{"$f":"VLOOKUP(E77,'Linked Cells (hidden)'!$D$57:$E$150,2,FALSE)","v":"Total"},null,{"$f":"VLOOKUP(E77,'Linked Cells (hidden)'!$D$57:$E$150,2,FALSE)& \"  \" & \"Watts\"","v":"Total  Watts"},null,null,{"$f":"IF(K74=0,\"\",K74/I71)","v":""},"W/ft2",null,"Light Type 4",null,"Select Light Fixture",{"$f":"VLOOKUP(P77,'Linked Cells (hidden)'!$D$57:$E$150,2,FALSE)","v":"Total"},null,{"$f":"VLOOKUP(P77,'Linked Cells (hidden)'!$D$57:$E$140,2,FALSE)& \"  \" & \"Watts\"","v":"Total  Watts"},null,null,{"$f":"IF(V74=0,\"\",V74/T71)","v":""},"W/ft2"]
[null,null,"Light Type 5",null,"Select Light Fixture",{"$f":"VLOOKUP(E78,'Linked Cells (hidden)'!$D$57:$E$150,2,FALSE)","v":"Total"},null,{"$f":"VLOOKUP(E78,'Linked Cells (hidden)'!$D$57:$E$150,2,FALSE)& \"  \" & \"Watts\"","v":"Total  Watts"},null,null,null,null,null,"Light Type 5",null,"Select Light Fixture",{"$f":"VLOOKUP(P78,'Linked Cells (hidden)'!$D$57:$E$150,2,FALSE)","v":"Total"},null,{"$f":"VLOOKUP(P78,'Linked Cells (hidden)'!$D$57:$E$140,2,FALSE)& \"  \" & \"Watts\"","v":"Total  Watts"}]
[null,null,"Other Type : Name",null,null,{"$f":"IF(D80=0,\"Total\",D80)","v":"Total"},null,{"$f":"F79 & \" Watts\"","v":"Total Watts"},null,null,null,null,null,"Other Type : Name",null,null,{"$f":"IF(O80=0,\"Total\",O80)","v":"Total"},null,{"$f":"Q79 & \" Watts\"","v":"Total Watts"}]
[null,null,"                      : Watts",null,null,null,null,null,null,null,null,null,null,"                      : Watts"]
[]
[]
[null,null,"Room 9 Name",null,null,null,null,"Area",null,"Ft2",null,null,null,"Room 10 Name",null,null,null,null,"Area",null,"Ft2"]
[null,null,"Room 9 Lighting (Main Lighting only - Do not include task lights)",null,null,null,null,null,null,null,null,null,null,"Room 10 Lighting (Main Lighting only - Do not include task lights)"]
[null,null,"Select up to 6 Light Fixture Types",null,null,null,null,null,null,null,"Total Room Wattage (W)",null,null,"Select up to 6 Light Fixture Types",null,null,null,null,null,null,null,"Total Room Wattage (W)"]
[null,null,"Light Type 1",null,"Select Light Fixture",{"$f":"VLOOKUP(E86,'Linked Cells (hidden)'!$D$57:$E$150,2,FALSE)","v":"Total"},null,{"$f":"VLOOKUP(E86,'Linked Cells (hidden)'!$D$57:$E$150,2,FALSE)& \"  \" & \"Watts\"","v":"Total  Watts"},null,null,{"$f":"(IF(F86=\"Total\",0,I86*F86)+IF(F87=\"Total\",0,I87*F87)+IF(F88=\"Total\",0,I88*F88)+IF(F89=\"Total\",0,I89*F89)+IF(F90=\"Total\",0,I90*F90)+IF(F91=\"Total\",0,I91*F91))","v":0},null,"W","Light Type 1",null,"Select Light Fixture",{"$f":"VLOOKUP(P86,'Linked Cells (hidden)'!$D$57:$E$150,2,FALSE)","v":"Total"},null,{"$f":"VLOOKUP(P86,'Linked Cells (hidden)'!$D$57:$E$140,2,FALSE)& \"  \" & \"Watts\"","v":"Total  Watts"},null,null,{"$f":"(IF(Q86=\"Total\",0,T86*Q86)+IF(Q87=\"Total\",0,T87*Q87)+IF(Q88=\"Total\",0,T88*Q88)+IF(Q89=\"Total\",0,T89*Q89)+IF(Q90=\"Total\",0,T90*Q90)+IF(Q91=\"Total\",0,T91*Q91))","v":0},null,"W"]
[null,null,"Light Type 2",null,"Select Light Fixture",null,null,{"$f":"VLOOKUP(E87,'Linked Cells (hidden)'!$D$57:$E$150,2,FALSE)& \"  \" & \"Watts\"","v":"Total  Watts"},null,null,null,null,null,"Light Type 2",null,"Select Light Fixture",null,null,{"$f":"VLOOKUP(P87,'Linked Cells (hidden)'!$D$57:$E$140,2,FALSE)& \"  \" & \"Watts\"","v":"Total  Watts"}]
[null,null,"Light Type 3",null,"Select Light Fixture",{"$f":"VLOOKUP(E88,'Linked Cells (hidden)'!$D$57:$E$150,2,FALSE)","v":"Total"},null,{"$f":"VLOOKUP(E88,'Linked Cells (hidden)'!$D$57:$E$150,2,FALSE)& \"  \" & \"Watts\"","v":"Total  Watts"},null,null,"Room Lighting Power Density (LPD)",null,null,"Light Type 3",null,"Select Light Fixture",{"$f":"VLOOKUP(P88,'Linked Cells (hidden)'!$D$57:$E$150,2,FALSE)","v":"Total"},null,{"$f":"VLOOKUP(P88,'Linked Cells (hidden)'!$D$57:$E$140,2,FALSE)& \"  \" & \"Watts\"","v":"Total  Watts"},null,null,"Room Lighting Power Density (LPD)"]
[null,null,"Light Type 4",null,"Select Light Fixture",{"$f":"VLOOKUP(E89,'Linked Cells (hidden)'!$D$57:$E$150,2,FALSE)","v":"Total"},null,{"$f":"VLOOKUP(E89,'Linked Cells (hidden)'!$D$57:$E$150,2,FALSE)& \"  \" & \"Watts\"","v":"Total  Watts"},null,null,{"$f":"IF(K86=0,\"\",K86/I83)","v":""},"W/ft2",null,"Light Type 4",null,"Select Light Fixture",{"$f":"VLOOKUP(P89,'Linked Cells (hidden)'!$D$57:$E$150,2,FALSE)","v":"Total"},null,{"$f":"VLOOKUP(P89,'Linked Cells (hidden)'!$D$57:$E$140,2,FALSE)& \"  \" & \"Watts\"","v":"Total  Watts"},null,null,{"$f":"IF(V86=0,\"\",V86/T83)","v":""},"W/ft2"]
[null,null,"Light Type 5",null,"Select Light Fixture",{"$f":"VLOOKUP(E90,'Linked Cells (hidden)'!$D$57:$E$150,2,FALSE)","v":"Total"},null,{"$f":"VLOOKUP(E90,'Linked Cells (hidden)'!$D$57:$E$150,2,FALSE)& \"  \" & \"Watts\"","v":"Total  Watts"},null,null,null,null,null,"Light Type 5",null,"Select Light Fixture",{"$f":"VLOOKUP(P90,'Linked Cells (hidden)'!$D$57:$E$150,2,FALSE)","v":"Total"},null,{"$f":"VLOOKUP(P90,'Linked Cells (hidden)'!$D$57:$E$140,2,FALSE)& \"  \" & \"Watts\"","v":"Total  Watts"}]
[null,null,"Other Type : Name",null,null,{"$f":"IF(D92=0,\"Total\",D92)","v":"Total"},null,{"$f":"F91 & \" Watts\"","v":"Total Watts"},null,null,null,null,null,"Other Type : Name",null,null,{"$f":"IF(O92=0,\"Total\",O92)","v":"Total"},null,{"$f":"Q91 & \" Watts\"","v":"Total Watts"}]
[null,null,"                      : Watts",null,null,null,null,null,null,null,null,null,null,"                      : Watts"]
[]
[]
[]
[null,"HVAC/Non-Process Energy "]
[]
[null,"\nTo determine the site's Non-Process Heating, Ventilating, and Air Conditioning (HVAC) loads and energy use, describe each building's HVAC electrical using units by entering them below. If multiple of a unit exists, either add them into the table as separate units or enter Motor Size as the motor's size (in hp) multiplied by the quantity.\n\nNon-Process HVAC is meant to include all equipment not tied to specific process operations such as general ventilation heaters, office air conditioners, restroom exhaust fans, etc. \nDo not provide process-related ventilation equipment such as odor control fans here.  You can enter process equipment information on the \"WTP or WWTP Energy Usage\" tab.    \n\nFor each Non-Process HVAC unit select the equipment type from the dropdown list and enter an “Equipment Description.”\n\nCollect and enter each unit’s motor size, efficiency and full load amperage (FLA) ratings.  This information can be gathered from the equipment's nameplate or specification datasheet.\nIf the site has authorized personnel capable of taking electrical measurements, enter the motors average operating current. Otherwise leave the \"Average Motor Operating Current\" blank and the tool will use an 80% Load Factor in its calculations. \n\nOnce the equipment's typical operating hours are entered, the tool calculates the estimated annual energy use and operating cost for the unit.\nIf conditions at the plant change, you can adjust these values.\n\nA summary of the HVAC and lighting information entered on the building data tabs is displayed on the top on the WTP and WWTP Energy Usage tabs.  For those values to be included in the total energy use and to be displayed in the pie charts and summary report, you must enter the values in the Equipment Electrical Energy Inventory table (on the WTP or WWTP Energy Usage tab) as Non Process HVAC. See the instructions on that tab on how to enter this information.\n"]
[]
[]
[]
[]
[null,null,"System Type","Equipment Type",null,null,"Equipment Description","Motor Size (hp)","Motor Efficiency","Motor Full Load Amperage (FLA)","Average Motor Operating Current          (Amps)","Motor Operating Hours              (Hours/Year)","Average Load Factor\n(%)","Average HVAC Electric Load (kW)","Estimated Annual Energy Use (kWh/yr)",null,null,"Estimated Annual Operating Costs  ($/Year)","Estimated Percent of Site Electric Use & Cost (%)"]
[null,null,"Non Process HVAC","Select Equipment",null,null,null,null,null,null,null,null,{"$f":"IF(J104=0,0,IF(K104=0,0.75,K104/J104))","v":0},{"$f":"IF(I104=0,0,H104*0.746*M104/I104)","v":0},{"$f":"N104*L104","v":0},null,null,{"$f":"O104*'General Information'!$H$46","v":0},{"$f":"IF('General Information'!$H$44=0,\"\",O104/'General Information'!$H$44)","v":""}]
[null,null,"Non Process HVAC","Select Equipment",null,null,null,null,null,null,null,null,0,0,0,null,null,{"$f":"O105*'General Information'!$H$46","v":0},{"$f":"IF('General Information'!$H$44=0,\"\",O105/'General Information'!$H$44)","v":""}]
[null,null,"Non Process HVAC","Select Equipment",null,null,null,null,null,null,null,null,0,0,0,null,null,{"$f":"O106*'General Information'!$H$46","v":0},{"$f":"IF('General Information'!$H$44=0,\"\",O106/'General Information'!$H$44)","v":""}]
[null,null,"Non Process HVAC","Select Equipment",null,null,null,null,null,null,null,null,0,0,0,null,null,{"$f":"O107*'General Information'!$H$46","v":0},{"$f":"IF('General Information'!$H$44=0,\"\",O107/'General Information'!$H$44)","v":""}]
[null,null,"Non Process HVAC","Select Equipment",null,null,null,null,null,null,null,null,0,0,0,null,null,{"$f":"O108*'General Information'!$H$46","v":0},{"$f":"IF('General Information'!$H$44=0,\"\",O108/'General Information'!$H$44)","v":""}]
[null,null,"Non Process HVAC","Select Equipment",null,null,null,null,null,null,null,null,0,0,0,null,null,{"$f":"O109*'General Information'!$H$46","v":0},{"$f":"IF('General Information'!$H$44=0,\"\",O109/'General Information'!$H$44)","v":""}]
[]
[null,null,null,null,null,null,null,null,null,"Total Building HVAC",null,null,null,{"$f":"SUM(N101:N109)","v":0},{"$f":"SUM(O101:O109)","v":0},null,null,{"$f":"SUM(R104:R109)","v":0},{"$f":"SUM(S104:S109)","v":0}]

{"sheet":"Building 5 Data","index":7,"n_rows":111,"n_cols":24,"rows_kept":111,"cut":false,"hidden":true,"merged":[[0,0,0,10],[12,1,13,14],[2,1,2,3],[8,1,8,2],[10,1,10,2],[8,12,9,13],[8,7,8,9],[10,7,10,9],[46,3,46,6],[60,10,60,11],[58,14,58,17],[3,1,3,17],[5,1,6,17],[17,3,17,6],[110,9,110,12],[70,3,70,6],[82,14,82,17],[73,10,73,11],[72,10,72,11],[84,10,84,11],[70,14,70,17],[20,13,20,14],[27,1,31,14],[82,3,82,6],[97,1,99,20],[58,3,58,6],[37,10,37,11],[49,10,49,11],[48,10,48,11],[85,21,85,22],[85,10,85,11],[61,21,61,22],[73,21,73,22],[84,21,84,22],[61,10,61,11],[72,21,72,22],[60,21,60,22],[49,21,49,22],[36,21,36,22],[34,14,34,17],[46,14,46,17],[48,21,48,22],[20,2,20,3],[37,21,37,22],[20,8,20,10],[19,6,20,7],[34,3,34,6],[36,10,36,11]]}
[{"$f":"\"EPA Energy Use Assessment Tool for \" & workbookType","v":"EPA Energy Use Assessment Tool for Drinking Water Systems"}]
["Site Structural Buildings - Major Non-Process Energy Users"]
[]
[null,"\nIn the Building Data tabs, the tool totals each building’s Lighting and HVAC information. You should use the totals for entry on the WTP or WWTP Energy Use tabs.  For instructions on how to enter that information, see the WTP or WWTP Energy Usage tabs. If you have already identified the site's Lighting and HVAC loads or would just like to estimate them without detailing this information here, proceed to the WTP or WWTP Energy Usage tab.\n\nIf you skip this tab, you can come back later to fill in this detail.\n\n\n\n"]
[]
[null,"\nThe following information is entered once for the entire plant.\n\nTo change the Total Number of Buildings on-site, go to the \"Building 1 Data\" tab and click the \"Set # of Buildings\" button. This lets you enter information for the specified number of buildings.\n\nAfter entering data in a building tab, click the \"Save and Continue\" button at the top. That allows you to enter data for the next building or if building data entry is complete, to return to the General Information tab. You can also click the other Building Data tabs at the bottom. \n"]
[]
[]
[null,"Total Plant Building Area",null,{"$f":"'Building 1 Data'!D9","v":0},5,null,"Ft2","Total Plant Building Electric Load",null,null,{"$f":"'Building 1 Data'!K9","v":0},"kW","Total Plant Building Electric Use ",null,{"$f":"'Building 1 Data'!O9","v":0},null,null,"kWh/Yr"]
[]
[null,"Does the site have buildings?",null,{"$f":"hasBldgs","v":"Yes"},null,null,null,"Total Number of Buildings On-site:",null,null,{"$f":"[0]!totalbldgs","v":"1"}]
[]
[null,"Enter the following information for each building at the plant.\n\nTo begin, select the number of rooms in the \"No. of Rooms\" dropdown list below and click the \"Set # of rooms\" button.   It is important to know and set the number of rooms upfront, before any lighting data is entered.  If the number of rooms is later changed, all the data that had been entered will be lost. "]
[]
[]
[null,null,{"$f":"\"BUILDING \" & E9","v":"BUILDING 5"}]
[]
[null,null,"Name",null,null,null,null,null,"Operating Hours per Year",null,{"$f":"IF(K19=\"\",\"\",K19*K20*52)","v":""},"Hrs/Yr","Approximate Building Age (If known)",null,null,null,null,null,"Yrs"]
[null,null,"Area",{"$f":"I35+T35+T47+I47+I59+T59+T71+I71+I83+T83","v":0},null,null,"Ft2",null,"Operating Hours per Day",null,null,"Hrs/Day"]
[null,null,"No. of Rooms",null,null,null,"! Changing the number of rooms will reset all lighting data entered.",null,"Operating Days per Week",null,null,"Days/Wk","Average Building Lighting Power Density (LPD)",null,null,null,null,{"$f":"IF(D19=0,\"\",(K38+V38+V50+K50+K62+V62+V74+K74+K86+V86)/D19)","v":""},"W/ft2"]
[null,null,"Estimated Electric Load:",null,null,null,null,null,"Estimated Annual Energy Use:",null,null,null,null,"Estimated Annual Energy Cost:"]
[null,null,{"$f":"\"Total Building \" & $E$9& \" Lighting\"","v":"Total Building 5 Lighting"},null,null,null,{"$f":"IF((K38+V38+V50+K50+K62+V62+V74+K74+K86+V86)=0,0,(K38+V38+V50+K50+K62+V62+V74+K74+K86+V86)/1000)","v":0},"kW",{"$f":"\"Total Building \" & $E$9& \" Lighting\"","v":"Total Building 5 Lighting"},null,null,{"$f":"IF((K38+V38+V50+K50+K62+V62+V74+K74+K86+V86)=0,IF(K18=\"\",0,0),IF(K18=\"\",0,((K38+V38+V50+K50+K62+V62+V74+K74+K86+V86)/1000)*K18))","v":0},"kWh/Yr",{"$f":"\"Total Building \" & $E$9 & \" Lighting\"","v":"Total Building 5 Lighting"},null,null,null,{"$f":"L22*'General Information'!$H$46","v":0},"$/Yr"]
[null,null,{"$f":"\"Total Building \" & $E$9 & \" HVAC\"","v":"Total Building 5 HVAC"},null,null,null,{"$f":"N111","v":0},"kW",{"$f":"\"Total Building \" & $E$9 & \" HVAC\"","v":"Total Building 5 HVAC"},null,null,{"$f":"O$111","v":0},"kWh/Yr",{"$f":"\"Total Building \" & $E$9 & \" HVAC\"","v":"Total Building 5 HVAC"},null,null,null,{"$f":"R111","v":0},"$/Yr"]
[null,null,{"$f":"\"Total Building \" & $E$9 & \" Combined\"","v":"Total Building 5 Combined"},null,null,null,{"$f":"SUM(G22:G23)","v":0},"kW",{"$f":"\"Total Building \" & $E$9 & \" Combined\"","v":"Total Building 5 Combined"},null,null,{"$f":"SUM(L22,L23)","v":0},"kWh/Yr",{"$f":"\"Total Building \" & $E$9 & \" Combined\"","v":"Total Building 5 Combined"},null,null,null,{"$f":"SUM(R22,R23)","v":0},"$/Yr"]
[]
[null,null,"LIGHTING"]
[]
[null,"\nTo determine the site’s lighting loads and energy use, select each of the room’s lighting fixture types and quantity (Qty) using the dropdown lists below.\n\nSelect a light type from the dropdown list for each size and kind of fixture in a room. Then enter the quantity for each type. The tool provides the fixture’s electrical \nenergy load in watts. Do not include task lights (directional lights used to illuminate an area of work) when entering the room's lighting fixtures. \n\nIf a type of fixture is not available in the dropdown list, use the \"Other Type\" input field to enter the fixture and its total wattage.\n\nThe table automatically totals the room's lighting loads, each building's lighting energy use and the site's total lighting energy use per year for use in other areas of the tool.\nEnter the area of each room and the tool calculates the Lighting Power Density (LPD) in watts per square foot.  \nYou can now take an important next step and compare LPD’s from room to room and building to building to determine where excess energy might be in use.\n"]
[]
[]
[]
[]
[]
[]
[null,null,"Room 1 Name",null,null,null,null,"Area",null,"Ft2",null,null,null,"Room 2 Name",null,null,null,null,"Area",null,"Ft2"]
[null,null,"Room 1 Lighting (Main Lighting only - Do not include task lights)",null,null,null,null,null,null,null,null,null,null,"Room 2 Lighting (Main Lighting only - Do not include task lights)"]
[null,null,"Select up to 6 Light Fixture Types",null,null,null,null,null,null,null,"Total Room Wattage (W)",null,null,"Select up to 6 Light Fixture Types",null,null,null,null,null,null,null,"Total Room Wattage (W)"]
[null,null,"Light Type 1",null,"Select Light Fixture",{"$f":"VLOOKUP(E38,'Linked Cells (hidden)'!$D$57:$E$150,2,FALSE)","v":"Total"},null,{"$f":"VLOOKUP(E38,'Linked Cells (hidden)'!$D$57:$E$150,2,FALSE)& \"  \" & \"Watts\"","v":"Total  Watts"},null,null,{"$f":"(IF(F38=\"Total\",0,I38*F38)+IF(F39=\"Total\",0,I39*F39)+IF(F40=\"Total\",0,I40*F40)+IF(F41=\"Total\",0,I41*F41)+IF(F42=\"Total\",0,I42*F42)+IF(F43=\"Total\",0,I43*F43))","v":0},null,"W","Light Type 1",null,"Select Light Fixture",{"$f":"VLOOKUP(P38,'Linked Cells (hidden)'!$D$57:$E$150,2,FALSE)","v":"Total"},null,{"$f":"VLOOKUP(P38,'Linked Cells (hidden)'!$D$57:$E$140,2,FALSE)& \"  \" & \"Watts\"","v":"Total  Watts"},null,null,{"$f":"(IF(Q38=\"Total\",0,T38*Q38)+IF(Q39=\"Total\",0,T39*Q39)+IF(Q40=\"Total\",0,T40*Q40)+IF(Q41=\"Total\",0,T41*Q41)+IF(Q42=\"Total\",0,T42*Q42)+IF(Q43=\"Total\",0,T43*Q43))","v":0},null,"W"]
[null,null,"Light Type 2",null,"Select Light Fixture",{"$f":"VLOOKUP(E39,'Linked Cells (hidden)'!$D$57:$E$150,2,FALSE)","v":"Total"},null,{"$f":"VLOOKUP(E39,'Linked Cells (hidden)'!$D$57:$E$150,2,FALSE)& \"  \" & \"Watts\"","v":"Total  Watts"},null,null,null,null,null,"Light Type 2",null,"Select Light Fixture",{"$f":"VLOOKUP(P39,'Linked Cells (hidden)'!$D$57:$E$150,2,FALSE)","v":"Total"},null,{"$f":"VLOOKUP(P39,'Linked Cells (hidden)'!$D$57:$E$140,2,FALSE)& \"  \" & \"Watts\"","v":"Total  Watts"}]
[null,null,"Light Type 3",null,"Select Light Fixture",{"$f":"VLOOKUP(E40,'Linked Cells (hidden)'!$D$57:$E$150,2,FALSE)","v":"Total"},null,{"$f":"VLOOKUP(E40,'Linked Cells (hidden)'!$D$57:$E$150,2,FALSE)& \"  \" & \"Watts\"","v":"Total  Watts"},null,null,"Room Lighting Power Density (LPD)",null,null,"Light Type 3",null,"Select Light Fixture",{"$f":"VLOOKUP(P40,'Linked Cells (hidden)'!$D$57:$E$150,2,FALSE)","v":"Total"},null,{"$f":"VLOOKUP(P40,'Linked Cells (hidden)'!$D$57:$E$140,2,FALSE)& \"  \" & \"Watts\"","v":"Total  Watts"},null,null,"Room Lighting Power Density (LPD)"]
[null,null,"Light Type 4",null,"Select Light Fixture",{"$f":"VLOOKUP(E41,'Linked Cells (hidden)'!$D$57:$E$150,2,FALSE)","v":"Total"},null,{"$f":"VLOOKUP(E41,'Linked Cells (hidden)'!$D$57:$E$150,2,FALSE)& \"  \" & \"Watts\"","v":"Total  Watts"},null,null,{"$f":"IF(K38=0,\"\",K38/I35)","v":""},"W/ft2",null,"Light Type 4",null,"Select Light Fixture",{"$f":"VLOOKUP(P41,'Linked Cells (hidden)'!$D$57:$E$150,2,FALSE)","v":"Total"},null,{"$f":"VLOOKUP(P41,'Linked Cells (hidden)'!$D$57:$E$140,2,FALSE)& \"  \" & \"Watts\"","v":"Total  Watts"},null,null,{"$f":"IF(V38=0,\"\",V38/T35)","v":""},"W/ft2"]
[null,null,"Light Type 5",null,"Select Light Fixture",{"$f":"VLOOKUP(E42,'Linked Cells (hidden)'!$D$57:$E$150,2,FALSE)","v":"Total"},null,{"$f":"VLOOKUP(E42,'Linked Cells (hidden)'!$D$57:$E$150,2,FALSE)& \"  \" & \"Watts\"","v":"Total  Watts"},null,null,null,null,null,"Light Type 5",null,"Select Light Fixture",{"$f":"VLOOKUP(P42,'Linked Cells (hidden)'!$D$57:$E$150,2,FALSE)","v":"Total"},null,{"$f":"VLOOKUP(P42,'Linked Cells (hidden)'!$D$57:$E$140,2,FALSE)& \"  \" & \"Watts\"","v":"Total  Watts"}]
[null,null,"Other Type : Name",null,null,{"$f":"IF(D44=0,\"Total\",D44)","v":"Total"},null,{"$f":"F43 & \" Watts\"","v":"Total Watts"},null,null,null,null,null,"Other Type : Name",null,null,{"$f":"IF(O44=0,\"Total\",O44)","v":"Total"},null,{"$f":"Q43 & \" Watts\"","v":"Total Watts"}]
[null,null,"                      : Watts",null,null,null,null,null,null,null,null,null,null,"                     : Watts"]
[]
[]
[null,null,"Room 3 Name",null,null,null,null,"Area",null,"Ft2",null,null,null,"Room 4 Name",null,null,null,null,"Area",null,"Ft2"]
[null,null,"Room 3 Lighting (Main Lighting only - Do not include task lights)",null,null,null,null,null,null,null,null,null,null,"Room 4 Lighting (Main Lighting only - Do not include task lights)"]
[null,null,"Select up to 6 Light Fixture Types",null,null,null,null,null,null,null,"Total Room Wattage (W)",null,null,"Select up to 6 Light Fixture Types",null,null,null,null,null,null,null,"Total Room Wattage (W)"]
[null,null,"Light Type 1",null,"Select Light Fixture",{"$f":"VLOOKUP(E50,'Linked Cells (hidden)'!$D$57:$E$150,2,FALSE)","v":"Total"},null,{"$f":"VLOOKUP(E50,'Linked Cells (hidden)'!$D$57:$E$150,2,FALSE)& \"  \" & \"Watts\"","v":"Total  Watts"},null,null,{"$f":"(IF(F50=\"Total\",0,I50*F50)+IF(F51=\"Total\",0,I51*F51)+IF(F52=\"Total\",0,I52*F52)+IF(F53=\"Total\",0,I53*F53)+IF(F54=\"Total\",0,I54*F54)+IF(F55=\"Total\",0,I55*F55))","v":0},null,"W","Light Type 1",null,"Select Light Fixture",{"$f":"VLOOKUP(P50,'Linked Cells (hidden)'!$D$57:$E$150,2,FALSE)","v":"Total"},null,{"$f":"VLOOKUP(P50,'Linked Cells (hidden)'!$D$57:$E$140,2,FALSE)& \"  \" & \"Watts\"","v":"Total  Watts"},null,null,{"$f":"(IF(Q50=\"Total\",0,T50*Q50)+IF(Q51=\"Total\",0,T51*Q51)+IF(Q52=\"Total\",0,T52*Q52)+IF(Q53=\"Total\",0,T53*Q53)+IF(Q54=\"Total\",0,T54*Q54)+IF(Q55=\"Total\",0,T55*Q55))","v":0},null,"W"]
[null,null,"Light Type 2",null,"Select Light Fixture",{"$f":"VLOOKUP(E51,'Linked Cells (hidden)'!$D$57:$E$150,2,FALSE)","v":"Total"},null,{"$f":"VLOOKUP(E51,'Linked Cells (hidden)'!$D$57:$E$150,2,FALSE)& \"  \" & \"Watts\"","v":"Total  Watts"},null,null,null,null,null,"Light Type 2",null,"Select Light Fixture",{"$f":"VLOOKUP(P51,'Linked Cells (hidden)'!$D$57:$E$150,2,FALSE)","v":"Total"},null,{"$f":"VLOOKUP(P51,'Linked Cells (hidden)'!$D$57:$E$140,2,FALSE)& \"  \" & \"Watts\"","v":"Total  Watts"}]
[null,null,"Light Type 3",null,"Select Light Fixture",{"$f":"VLOOKUP(E52,'Linked Cells (hidden)'!$D$57:$E$150,2,FALSE)","v":"Total"},null,{"$f":"VLOOKUP(E52,'Linked Cells (hidden)'!$D$57:$E$150,2,FALSE)& \"  \" & \"Watts\"","v":"Total  Watts"},null,null,"Room Lighting Power Density (LPD)",null,null,"Light Type 3",null,"Select Light Fixture",{"$f":"VLOOKUP(P52,'Linked Cells (hidden)'!$D$57:$E$150,2,FALSE)","v":"Total"},null,{"$f":"VLOOKUP(P52,'Linked Cells (hidden)'!$D$57:$E$140,2,FALSE)& \"  \" & \"Watts\"","v":"Total  Watts"},null,null,"Room Lighting Power Density (LPD)"]
[null,null,"Light Type 4",null,"Select Light Fixture",{"$f":"VLOOKUP(E53,'Linked Cells (hidden)'!$D$57:$E$150,2,FALSE)","v":"Total"},null,{"$f":"VLOOKUP(E53,'Linked Cells (hidden)'!$D$57:$E$150,2,FALSE)& \"  \" & \"Watts\"","v":"Total  Watts"},null,null,{"$f":"IF(K50=0,\"\",K50/I47)","v":""},"W/ft2",null,"Light Type 4",null,"Select Light Fixture",{"$f":"VLOOKUP(P53,'Linked Cells (hidden)'!$D$57:$E$150,2,FALSE)","v":"Total"},null,{"$f":"VLOOKUP(P53,'Linked Cells (hidden)'!$D$57:$E$140,2,FALSE)& \"  \" & \"Watts\"","v":"Total  Watts"},null,null,{"$f":"IF(V50=0,\"\",V50/T47)","v":""},"W/ft2"]
[null,null,"Light Type 5",null,"Select Light Fixture",{"$f":"VLOOKUP(E54,'Linked Cells (hidden)'!$D$57:$E$150,2,FALSE)","v":"Total"},null,{"$f":"VLOOKUP(E54,'Linked Cells (hidden)'!$D$57:$E$150,2,FALSE)& \"  \" & \"Watts\"","v":"Total  Watts"},null,null,null,null,null,"Light Type 5",null,"Select Light Fixture",{"$f":"VLOOKUP(P54,'Linked Cells (hidden)'!$D$57:$E$150,2,FALSE)","v":"Total"},null,{"$f":"VLOOKUP(P54,'Linked Cells (hidden)'!$D$57:$E$140,2,FALSE)& \"  \" & \"Watts\"","v":"Total  Watts"}]
[null,null,"Other Type : Name",null,null,{"$f":"IF(D56=0,\"Total\",D56)","v":"Total"},null,{"$f":"F55 & \" Watts\"","v":"Total Watts"},null,null,null,null,null,"Other Type : Name",null,null,{"$f":"IF(O56=0,\"Total\",O56)","v":"Total"},null,{"$f":"Q55 & \" Watts\"","v":"Total Watts"}]
[null,null,"                      : Watts",null,null,null,null,null,null,null,null,null,null,"                     : Watts"]
[]
[]
[null,null,"Room 5 Name",null,null,null,null,"Area",null,"Ft2",null,null,null,"Room 6 Name",null,null,null,null,"Area",null,"Ft2"]
[null,null,"Room 5 Lighting (Main Lighting only - Do not include task lights)",null,null,null,null,null,null,null,null,null,null,"Room 6 Lighting (Main Lighting only - Do not include task lights)"]
[null,null,"Select up to 6 Light Fixture Types",null,null,null,null,null,null,null,"Total Room Wattage (W)",null,null,"Select up to 6 Light Fixture Types",null,null,null,null,null,null,null,"Total Room Wattage (W)"]
[null,null,"Light Type 1",null,"Select Light Fixture",{"$f":"VLOOKUP(E62,'Linked Cells (hidden)'!$D$57:$E$150,2,FALSE)","v":"Total"},null,{"$f":"VLOOKUP(E62,'Linked Cells (hidden)'!$D$57:$E$150,2,FALSE)& \"  \" & \"Watts\"","v":"Total  Watts"},null,null,{"$f":"(IF(F62=\"Total\",0,I62*F62)+IF(F63=\"Total\",0,I63*F63)+IF(F64=\"Total\",0,I64*F64)+IF(F65=\"Total\",0,I65*F65)+IF(F66=\"Total\",0,I66*F66)+IF(F67=\"Total\",0,I67*F67))","v":0},null,"W","Light Type 1",null,"Select Light Fixture",{"$f":"VLOOKUP(P62,'Linked Cells (hidden)'!$D$57:$E$150,2,FALSE)","v":"Total"},null,{"$f":"VLOOKUP(P62,'Linked Cells (hidden)'!$D$57:$E$140,2,FALSE)& \"  \" & \"Watts\"","v":"Total  Watts"},null,null,{"$f":"(IF(Q62=\"Total\",0,T62*Q62)+IF(Q63=\"Total\",0,T63*Q63)+IF(Q64=\"Total\",0,T64*Q64)+IF(Q65=\"Total\",0,T65*Q65)+IF(Q66=\"Total\",0,T66*Q66)+IF(Q67=\"Total\",0,T67*Q67))","v":0},null,"W"]
[null,null,"Light Type 2",null,"Select Light Fixture",{"$f":"VLOOKUP(E63,'Linked Cells (hidden)'!$D$57:$E$150,2,FALSE)","v":"Total"},null,{"$f":"VLOOKUP(E63,'Linked Cells (hidden)'!$D$57:$E$150,2,FALSE)& \"  \" & \"Watts\"","v":"Total  Watts"},null,null,null,null,null,"Light Type 2",null,"Select Light Fixture",{"$f":"VLOOKUP(P63,'Linked Cells (hidden)'!$D$57:$E$150,2,FALSE)","v":"Total"},null,{"$f":"VLOOKUP(P63,'Linked Cells (hidden)'!$D$57:$E$140,2,FALSE)& \"  \" & \"Watts\"","v":"Total  Watts"}]
[null,null,"Light Type 3",null,"Select Light Fixture",{"$f":"VLOOKUP(E64,'Linked Cells (hidden)'!$D$57:$E$150,2,FALSE)","v":"Total"},null,{"$f":"VLOOKUP(E64,'Linked Cells (hidden)'!$D$57:$E$150,2,FALSE)& \"  \" & \"Watts\"","v":"Total  Watts"},null,null,"Room Lighting Power Density (LPD)",null,null,"Light Type 3",null,"Select Light Fixture",{"$f":"VLOOKUP(P64,'Linked Cells (hidden)'!$D$57:$E$150,2,FALSE)","v":"Total"},null,{"$f":"VLOOKUP(P64,'Linked Cells (hidden)'!$D$57:$E$140,2,FALSE)& \"  \" & \"Watts\"","v":"Total  Watts"},null,null,"Room Lighting Power Density (LPD)"]
[null,null,"Light Type 4",null,"Select Light Fixture",{"$f":"VLOOKUP(E65,'Linked Cells (hidden)'!$D$57:$E$150,2,FALSE)","v":"Total"},null,{"$f":"VLOOKUP(E65,'Linked Cells (hidden)'!$D$57:$E$150,2,FALSE)& \"  \" & \"Watts\"","v":"Total  Watts"},null,null,{"$f":"IF(K62=0,\"\",K62/I59)","v":""},"W/ft2",null,"Light Type 4",null,"Select Light Fixture",{"$f":"VLOOKUP(P65,'Linked Cells (hidden)'!$D$57:$E$150,2,FALSE)","v":"Total"},null,{"$f":"VLOOKUP(P65,'Linked Cells (hidden)'!$D$57:$E$140,2,FALSE)& \"  \" & \"Watts\"","v":"Total  Watts"},null,null,{"$f":"IF(V62=0,\"\",V62/T59)","v":""},"W/ft2"]
[null,null,"Light Type 5",null,"Select Light Fixture",{"$f":"VLOOKUP(E66,'Linked Cells (hidden)'!$D$57:$E$150,2,FALSE)","v":"Total"},null,{"$f":"VLOOKUP(E66,'Linked Cells (hidden)'!$D$57:$E$150,2,FALSE)& \"  \" & \"Watts\"","v":"Total  Watts"},null,null,null,null,null,"Light Type 5",null,"Select Light Fixture",{"$f":"VLOOKUP(P66,'Linked Cells (hidden)'!$D$57:$E$150,2,FALSE)","v":"Total"},null,{"$f":"VLOOKUP(P66,'Linked Cells (hidden)'!$D$57:$E$140,2,FALSE)& \"  \" & \"Watts\"","v":"Total  Watts"}]
[null,null,"Other Type : Name",null,null,{"$f":"IF(D68=0,\"Total\",D68)","v":"Total"},null,{"$f":"F67 & \" Watts\"","v":"Total Watts"},null,null,null,null,null,"Other Type : Name",null,null,{"$f":"IF(O68=0,\"Total\",O68)","v":"Total"},null,{"$f":"Q67 & \" Watts\"","v":"Total Watts"}]
[null,null,"                      : Watts",null,null,null,null,null,null,null,null,null,null,"                     : Watts"]
[]
[]
[null,null,"Room 7 Name",null,null,null,null,"Area",null,"Ft2",null,null,null,"Room 8 Name",null,null,null,null,"Area",null,"Ft2"]
[null,null,"Room 7 Lighting (Main Lighting only - Do not include task lights)",null,null,null,null,null,null,null,null,null,null,"Room 8 Lighting (Main Lighting only - Do not include task lights)"]
[null,null,"Select up to 6 Light Fixture Types",null,null,null,null,null,null,null,"Total Room Wattage (W)",null,null,"Select up to 6 Light Fixture Types",null,null,null,null,null,null,null,"Total Room Wattage (W)"]
[null,null,"Light Type 1",null,"Select Light Fixture",null,null,{"$f":"VLOOKUP(E74,'Linked Cells (hidden)'!$D$57:$E$150,2,FALSE)& \"  \" & \"Watts\"","v":"Total  Watts"},null,null,{"$f":"(IF(F74=\"Total\",0,I74*F74)+IF(F75=\"Total\",0,I75*F75)+IF(F76=\"Total\",0,I76*F76)+IF(F77=\"Total\",0,I77*F77)+IF(F78=\"Total\",0,I78*F78)+IF(F79=\"Total\",0,I79*F79))","v":0},null,"W","Light Type 1",null,"Select Light Fixture",null,null,{"$f":"VLOOKUP(P74,'Linked Cells (hidden)'!$D$57:$E$140,2,FALSE)& \"  \" & \"Watts\"","v":"Total  Watts"},null,null,{"$f":"(IF(Q74=\"Total\",0,T74*Q74)+IF(Q75=\"Total\",0,T75*Q75)+IF(Q76=\"Total\",0,T76*Q76)+IF(Q77=\"Total\",0,T77*Q77)+IF(Q78=\"Total\",0,T78*Q78)+IF(Q79=\"Total\",0,T79*Q79))","v":0},null,"W"]
[null,null,"Light Type 2",null,"Select Light Fixture",{"$f":"VLOOKUP(E75,'Linked Cells (hidden)'!$D$57:$E$150,2,FALSE)","v":"Total"},null,{"$f":"VLOOKUP(E75,'Linked Cells (hidden)'!$D$57:$E$150,2,FALSE)& \"  \" & \"Watts\"","v":"Total  Watts"},null,null,null,null,null,"Light Type 2",null,"Select Light Fixture",{"$f":"VLOOKUP(P75,'Linked Cells (hidden)'!$D$57:$E$150,2,FALSE)","v":"Total"},null,{"$f":"VLOOKUP(P75,'Linked Cells (hidden)'!$D$57:$E$140,2,FALSE)& \"  \" & \"Watts\"","v":"Total  Watts"}]
[null,null,"Light Type 3",null,"Select Light Fixture",{"$f":"VLOOKUP(E76,'Linked Cells (hidden)'!$D$57:$E$150,2,FALSE)","v":"Total"},null,{"$f":"VLOOKUP(E76,'Linked Cells (hidden)'!$D$57:$E$150,2,FALSE)& \"  \" & \"Watts\"","v":"Total  Watts"},null,null,"Room Lighting Power Density (LPD)",null,null,"Light Type 3",null,"Select Light Fixture",{"$f":"VLOOKUP(P76,'Linked Cells (hidden)'!$D$57:$E$150,2,FALSE)","v":"Total"},null,{"$f":"VLOOKUP(P76,'Linked Cells (hidden)'!$D$57:$E$140,2,FALSE)& \"  \" & \"Watts\"","v":"Total  Watts"},null,null,"Room Lighting Power Density (LPD)"]
[null,null,"Light Type 4",null,"Select Light Fixture",{"$f":"VLOOKUP(E77,'Linked Cells (hidden)'!$D$57:$E$150,2,FALSE)","v":"Total"},null,{"$f":"VLOOKUP(E77,'Linked Cells (hidden)'!$D$57:$E$150,2,FALSE)& \"  \" & \"Watts\"","v":"Total  Watts"},null,null,{"$f":"IF(K74=0,\"\",K74/I71)","v":""},"W/ft2",null,"Light Type 4",null,"Select Light Fixture",{"$f":"VLOOKUP(P77,'Linked Cells (hidden)'!$D$57:$E$150,2,FALSE)","v":"Total"},null,{"$f":"VLOOKUP(P77,'Linked Cells (hidden)'!$D$57:$E$140,2,FALSE)& \"  \" & \"Watts\"","v":"Total  Watts"},null,null,{"$f":"IF(V74=0,\"\",V74/T71)","v":""},"W/ft2"]
[null,null,"Light Type 5",null,"Select Light Fixture",{"$f":"VLOOKUP(E78,'Linked Cells (hidden)'!$D$57:$E$150,2,FALSE)","v":"Total"},null,{"$f":"VLOOKUP(E78,'Linked Cells (hidden)'!$D$57:$E$150,2,FALSE)& \"  \" & \"Watts\"","v":"Total  Watts"},null,null,null,null,null,"Light Type 5",null,"Select Light Fixture",{"$f":"VLOOKUP(P78,'Linked Cells (hidden)'!$D$57:$E$150,2,FALSE)","v":"Total"},null,{"$f":"VLOOKUP(P78,'Linked Cells (hidden)'!$D$57:$E$140,2,FALSE)& \"  \" & \"Watts\"","v":"Total  Watts"}]
[null,null,"Other Type : Name",null,null,{"$f":"IF(D80=0,\"Total\",D80)","v":"Total"},null,{"$f":"F79 & \" Watts\"","v":"Total Watts"},null,null,null,null,null,"Other Type : Name",null,null,{"$f":"IF(O80=0,\"Total\",O80)","v":"Total"},null,{"$f":"Q79 & \" Watts\"","v":"Total Watts"}]
[null,null,"                      : Watts",null,null,null,null,null,null,null,null,null,null,"                     : Watts"]
[]
[]
[null,null,"Room 9 Name",null,null,null,null,"Area",null,"Ft2",null,null,null,"Room 10 Name",null,null,null,null,"Area",null,"Ft2"]
[null,null,"Room 9 Lighting (Main Lighting only - Do not include task lights)",null,null,null,null,null,null,null,null,null,null,"Room 10 Lighting (Main Lighting only - Do not include task lights)"]
[null,null,"Select up to 6 Light Fixture Types",null,null,null,null,null,null,null,"Total Room Wattage (W)",null,null,"Select up to 6 Light Fixture Types",null,null,null,null,null,null,null,"Total Room Wattage (W)"]
[null,null,"Light Type 1",null,"Select Light Fixture",{"$f":"VLOOKUP(E86,'Linked Cells (hidden)'!$D$57:$E$150,2,FALSE)","v":"Total"},null,{"$f":"VLOOKUP(E86,'Linked Cells (hidden)'!$D$57:$E$150,2,FALSE)& \"  \" & \"Watts\"","v":"Total  Watts"},null,null,{"$f":"(IF(F86=\"Total\",0,I86*F86)+IF(F87=\"Total\",0,I87*F87)+IF(F88=\"Total\",0,I88*F88)+IF(F89=\"Total\",0,I89*F89)+IF(F90=\"Total\",0,I90*F90)+IF(F91=\"Total\",0,I91*F91))","v":0},null,"W","Light Type 1",null,"Select Light Fixture",{"$f":"VLOOKUP(P86,'Linked Cells (hidden)'!$D$57:$E$150,2,FALSE)","v":"Total"},null,{"$f":"VLOOKUP(P86,'Linked Cells (hidden)'!$D$57:$E$140,2,FALSE)& \"  \" & \"Watts\"","v":"Total  Watts"},null,null,{"$f":"(IF(Q86=\"Total\",0,T86*Q86)+IF(Q87=\"Total\",0,T87*Q87)+IF(Q88=\"Total\",0,T88*Q88)+IF(Q89=\"Total\",0,T89*Q89)+IF(Q90=\"Total\",0,T90*Q90)+IF(Q91=\"Total\",0,T91*Q91))","v":0},null,"W"]
[null,null,"Light Type 2",null,"Select Light Fixture",null,null,{"$f":"VLOOKUP(E87,'Linked Cells (hidden)'!$D$57:$E$150,2,FALSE)& \"  \" & \"Watts\"","v":"Total  Watts"},null,null,null,null,null,"Light Type 2",null,"Select Light Fixture",null,null,{"$f":"VLOOKUP(P87,'Linked Cells (hidden)'!$D$57:$E$140,2,FALSE)& \"  \" & \"Watts\"","v":"Total  Watts"}]
[null,null,"Light Type 3",null,"Select Light Fixture",{"$f":"VLOOKUP(E88,'Linked Cells (hidden)'!$D$57:$E$150,2,FALSE)","v":"Total"},null,{"$f":"VLOOKUP(E88,'Linked Cells (hidden)'!$D$57:$E$150,2,FALSE)& \"  \" & \"Watts\"","v":"Total  Watts"},null,null,"Room Lighting Power Density (LPD)",null,null,"Light Type 3",null,"Select Light Fixture",{"$f":"VLOOKUP(P88,'Linked Cells (hidden)'!$D$57:$E$150,2,FALSE)","v":"Total"},null,{"$f":"VLOOKUP(P88,'Linked Cells (hidden)'!$D$57:$E$140,2,FALSE)& \"  \" & \"Watts\"","v":"Total  Watts"},null,null,"Room Lighting Power Density (LPD)"]
[null,null,"Light Type 4",null,"Select Light Fixture",{"$f":"VLOOKUP(E89,'Linked Cells (hidden)'!$D$57:$E$150,2,FALSE)","v":"Total"},null,{"$f":"VLOOKUP(E89,'Linked Cells (hidden)'!$D$57:$E$150,2,FALSE)& \"  \" & \"Watts\"","v":"Total  Watts"},null,null,{"$f":"IF(K86=0,\"\",K86/I83)","v":""},"W/ft2",null,"Light Type 4",null,"Select Light Fixture",{"$f":"VLOOKUP(P89,'Linked Cells (hidden)'!$D$57:$E$150,2,FALSE)","v":"Total"},null,{"$f":"VLOOKUP(P89,'Linked Cells (hidden)'!$D$57:$E$140,2,FALSE)& \"  \" & \"Watts\"","v":"Total  Watts"},null,null,{"$f":"IF(V86=0,\"\",V86/T83)","v":""},"W/ft2"]
[null,null,"Light Type 5",null,"Select Light Fixture",{"$f":"VLOOKUP(E90,'Linked Cells (hidden)'!$D$57:$E$150,2,FALSE)","v":"Total"},null,{"$f":"VLOOKUP(E90,'Linked Cells (hidden)'!$D$57:$E$150,2,FALSE)& \"  \" & \"Watts\"","v":"Total  Watts"},null,null,null,null,null,"Light Type 5",null,"Select Light Fixture",{"$f":"VLOOKUP(P90,'Linked Cells (hidden)'!$D$57:$E$150,2,FALSE)","v":"Total"},null,{"$f":"VLOOKUP(P90,'Linked Cells (hidden)'!$D$57:$E$140,2,FALSE)& \"  \" & \"Watts\"","v":"Total  Watts"}]
[null,null,"Other Type : Name",null,null,{"$f":"IF(D92=0,\"Total\",D92)","v":"Total"},null,{"$f":"F91 & \" Watts\"","v":"Total Watts"},null,null,null,null,null,"Other Type : Name",null,null,{"$f":"IF(O92=0,\"Total\",O92)","v":"Total"},null,{"$f":"Q91 & \" Watts\"","v":"Total Watts"}]
[null,null,"                      : Watts",null,null,null,null,null,null,null,null,null,null,"                     : Watts"]
[]
[]
[]
[null,"HVAC/Non-Process Energy "]
[]
[null,"\nTo determine the site's Non-Process Heating, Ventilating, and Air Conditioning (HVAC) loads and energy use, describe each building's HVAC electrical using units by entering them below. If multiple of a unit exists, either add them into the table as separate units or enter Motor Size as the motor's size (in hp) multiplied by the quantity.\n\nNon-Process HVAC is meant to include all equipment not tied to specific process operations such as general ventilation heaters, office air conditioners, restroom exhaust fans, etc. \nDo not provide process-related ventilation equipment such as odor control fans here.  You can enter process equipment information on the \"WTP or WWTP Energy Usage\" tab.    \n\nFor each Non-Process HVAC unit select the equipment type from the dropdown list and enter an “Equipment Description.”\n\nCollect and enter each unit’s motor size, efficiency and full load amperage (FLA) ratings.  This information can be gathered from the equipment's nameplate or specification datasheet.\nIf the site has authorized personnel capable of taking electrical measurements, enter the motors average operating current. Otherwise leave the \"Average Motor Operating Current\" blank and the tool will use an 80% Load Factor in its calculations. \n\nOnce the equipment's typical operating hours are entered, the tool calculates the estimated annual energy use and operating cost for the unit.\nIf conditions at the plant change, you can adjust these values.\n\nA summary of the HVAC and lighting information entered on the building data tabs is displayed on the top on the WTP and WWTP Energy Usage tabs.  For those values to be included in the total energy use and to be displayed in the pie charts and summary report, you must enter the values in the Equipment Electrical Energy Inventory table (on the WTP or WWTP Energy Usage tab) as Non Process HVAC. See the instructions on that tab on how to enter this information.\n"]
[]
[]
[]
[]
[null,null,"System Type","Equipment Type",null,null,"Equipment Description","Motor Size (hp)","Motor Efficiency","Motor Full Load Amperage (FLA)","Average Motor Operating Current          (Amps)","Motor Operating Hours              (Hours/Year)","Average Load Factor\n(%)","Average HVAC Electric Load (kW)","Estimated Annual Energy Use (kWh/yr)",null,null,"Estimated Annual Operating Costs  ($/Year)","Estimated Percent of Site Electric Use & Cost (%)"]
[null,null,"Non Process HVAC","Select Equipment",null,null,null,null,null,null,null,null,{"$f":"IF(J104=0,0,IF(K104=0,0.75,K104/J104))","v":0},{"$f":"IF(I104=0,0,H104*0.746*M104/I104)","v":0},{"$f":"N104*L104","v":0},null,null,{"$f":"O104*'General Information'!$H$46","v":0},{"$f":"IF('General Information'!$H$44=0,\"\",O104/'General Information'!$H$44)","v":""}]
[null,null,"Non Process HVAC","Select Equipment",null,null,null,null,null,null,null,null,0,0,0,null,null,{"$f":"O105*'General Information'!$H$46","v":0},{"$f":"IF('General Information'!$H$44=0,\"\",O105/'General Information'!$H$44)","v":""}]
[null,null,"Non Process HVAC","Select Equipment",null,null,null,null,null,null,null,null,0,0,0,null,null,{"$f":"O106*'General Information'!$H$46","v":0},{"$f":"IF('General Information'!$H$44=0,\"\",O106/'General Information'!$H$44)","v":""}]
[null,null,"Non Process HVAC","Select Equipment",null,null,null,null,null,null,null,null,0,0,0,null,null,{"$f":"O107*'General Information'!$H$46","v":0},{"$f":"IF('General Information'!$H$44=0,\"\",O107/'General Information'!$H$44)","v":""}]
[null,null,"Non Process HVAC","Select Equipment",null,null,null,null,null,null,null,null,0,0,0,null,null,{"$f":"O108*'General Information'!$H$46","v":0},{"$f":"IF('General Information'!$H$44=0,\"\",O108/'General Information'!$H$44)","v":""}]
[null,null,"Non Process HVAC","Select Equipment",null,null,null,null,null,null,null,null,0,0,0,null,null,{"$f":"O109*'General Information'!$H$46","v":0},{"$f":"IF('General Information'!$H$44=0,\"\",O109/'General Information'!$H$44)","v":""}]
[]
[null,null,null,null,null,null,null,null,null,"Total Building HVAC",null,null,null,{"$f":"SUM(N101:N109)","v":0},{"$f":"SUM(O101:O109)","v":0},null,null,{"$f":"SUM(R104:R109)","v":0},{"$f":"SUM(S104:S109)","v":0}]

{"sheet":"Building 6 Data","index":8,"n_rows":111,"n_cols":24,"rows_kept":111,"cut":false,"hidden":true,"merged":[[36,21,36,22],[49,21,49,22],[84,21,84,22],[37,21,37,22],[46,3,46,6],[37,10,37,11],[48,21,48,22],[46,14,46,17],[85,21,85,22],[85,10,85,11],[70,14,70,17],[60,21,60,22],[61,21,61,22],[73,21,73,22],[0,0,0,10],[12,1,13,14],[20,2,20,3],[8,7,8,9],[10,7,10,9],[3,1,3,17],[10,1,10,2],[20,13,20,14],[19,6,20,7],[20,8,20,10],[2,1,2,3],[8,12,9,13],[36,10,36,11],[34,14,34,17],[58,3,58,6],[49,10,49,11],[48,10,48,11],[61,10,61,11],[72,21,72,22],[60,10,60,11],[72,10,72,11],[84,10,84,11],[110,9,110,12],[70,3,70,6],[82,3,82,6],[97,1,99,20],[82,14,82,17],[73,10,73,11],[58,14,58,17],[5,1,6,17],[8,1,8,2],[27,1,31,14],[34,3,34,6],[17,3,17,6]]}
[{"$f":"\"EPA Energy Use Assessment Tool for \" & workbookType","v":"EPA Energy Use Assessment Tool for Drinking Water Systems"}]
["Site Structural Buildings - Major Non-Process Energy Users"]
[]
[null,"\nIn the Building Data tabs, the tool totals each building’s Lighting and HVAC information. You should use the totals for entry on the WTP or WWTP Energy Use tabs.  For instructions on how to enter that information, see the WTP or WWTP Energy Usage tabs. If you have already identified the site's Lighting and HVAC loads or would just like to estimate them without detailing this information here, proceed to the WTP or WWTP Energy Usage tab.\n\nIf you skip this tab, you can come back later to fill in this detail.\n\n\n\n"]
[]
[null,"\nThe following information is entered once for the entire plant.\n\nTo change the Total Number of Buildings on-site, go to the \"Building 1 Data\" tab and click the \"Set # of Buildings\" button. This lets you enter information for the specified number of buildings.\n\nAfter entering data in a building tab, click the \"Save and Continue\" button at the top. That allows you to enter data for the next building or if building data entry is complete, to return to the General Information tab. You can also click the other Building Data tabs at the bottom. \n"]
[]
[]
[null,"Total Plant Building Area",null,{"$f":"'Building 1 Data'!D9","v":0},6,null,"Ft2","Total Plant Building Electric Load",null,null,{"$f":"'Building 1 Data'!K9","v":0},"kW","Total Plant Building Electric Use ",null,{"$f":"'Building 1 Data'!O9","v":0},null,null,"kWh/Yr"]
[]
[null,"Does the site have buildings?",null,{"$f":"hasBldgs","v":"Yes"},null,null,null,"Total Number of Buildings On-site:",null,null,{"$f":"[0]!totalbldgs","v":"1"}]
[]
[null,"Enter the following information for each building at the plant.\n\nTo begin, select the number of rooms in the \"No. of Rooms\" dropdown list below and click the \"Set # of rooms\" button.   It is important to know and set the number of rooms upfront, before any lighting data is entered.  If the number of rooms is later changed, all the data that had been entered will be lost. "]
[]
[]
[null,null,{"$f":"\"BUILDING \" & E9","v":"BUILDING 6"}]
[]
[null,null,"Name",null,null,null,null,null,"Operating Hours per Year",null,{"$f":"IF(K19=\"\",\"\",K19*K20*52)","v":""},"Hrs/Yr","Approximate Building Age (If known)",null,null,null,null,null,"Yrs"]
[null,null,"Area",{"$f":"I35+T35+T47+I47+I59+T59+T71+I71+I83+T83","v":0},null,null,"Ft2",null,"Operating Hours per Day",null,null,"Hrs/Day"]
[null,null,"No. of Rooms",null,null,null,"! Changing the number of rooms will reset all lighting data entered.",null,"Operating Days per Week",null,null,"Days/Wk","Average Building Lighting Power Density (LPD)",null,null,null,null,{"$f":"IF(D19=0,\"\",(K38+V38+V50+K50+K62+V62+V74+K74+K86+V86)/D19)","v":""},"W/ft2"]
[null,null,"Estimated Electric Load:",null,null,null,null,null,"Estimated Annual Energy Use:",null,null,null,null,"Estimated Annual Energy Cost:"]
[null,null,{"$f":"\"Total Building \" & $E$9& \" Lighting\"","v":"Total Building 6 Lighting"},null,null,null,{"$f":"IF((K38+V38+V50+K50+K62+V62+V74+K74+K86+V86)=0,0,(K38+V38+V50+K50+K62+V62+V74+K74+K86+V86)/1000)","v":0},"kW",{"$f":"\"Total Building \" & $E$9& \" Lighting\"","v":"Total Building 6 Lighting"},null,null,{"$f":"IF((K38+V38+V50+K50+K62+V62+V74+K74+K86+V86)=0,IF(K18=\"\",0,0),IF(K18=\"\",0,((K38+V38+V50+K50+K62+V62+V74+K74+K86+V86)/1000)*K18))","v":0},"kWh/Yr",{"$f":"\"Total Building \" & $E$9 & \" Lighting\"","v":"Total Building 6 Lighting"},null,null,null,{"$f":"L22*'General Information'!$H$46","v":0},"$/Yr"]
[null,null,{"$f":"\"Total Building \" & $E$9 & \" HVAC\"","v":"Total Building 6 HVAC"},null,null,null,{"$f":"N111","v":0},"kW",{"$f":"\"Total Building \" & $E$9 & \" HVAC\"","v":"Total Building 6 HVAC"},null,null,{"$f":"O$111","v":0},"kWh/Yr",{"$f":"\"Total Building \" & $E$9 & \" HVAC\"","v":"Total Building 6 HVAC"},null,null,null,{"$f":"R111","v":0},"$/Yr"]
[null,null,{"$f":"\"Total Building \" & $E$9 & \" Combined\"","v":"Total Building 6 Combined"},null,null,null,{"$f":"SUM(G22:G23)","v":0},"kW",{"$f":"\"Total Building \" & $E$9 & \" Combined\"","v":"Total Building 6 Combined"},null,null,{"$f":"SUM(L22,L23)","v":0},"kWh/Yr",{"$f":"\"Total Building \" & $E$9 & \" Combined\"","v":"Total Building 6 Combined"},null,null,null,{"$f":"SUM(R22,R23)","v":0},"$/Yr"]
[]
[null,null,"LIGHTING"]
[]
[null,"\nTo determine the site’s lighting loads and energy use, select each of the room’s lighting fixture types and quantity (Qty) using the dropdown lists below.\n\nSelect a light type from the dropdown list for each size and kind of fixture in a room. Then enter the quantity for each type. The tool provides the fixture’s electrical \nenergy load in watts. Do not include task lights (directional lights used to illuminate an area of work) when entering the room's lighting fixtures. \n\nIf a type of fixture is not available in the dropdown list, use the \"Other Type\" input field to enter the fixture and its total wattage.\n\nThe table automatically totals the room's lighting loads, each building's lighting energy use and the site's total lighting energy use per year for use in other areas of the tool.\nEnter the area of each room and the tool calculates the Lighting Power Density (LPD) in watts per square foot.  \nYou can now take an important next step and compare LPD’s from room to room and building to building to determine where excess energy might be in use.\n"]
[]
[]
[]
[]
[]
[]
[null,null,"Room 1 Name",null,null,null,null,"Area",null,"Ft2",null,null,null,"Room 2 Name",null,null,null,null,"Area",null,"Ft2"]
[null,null,"Room 1 Lighting (Main Lighting only - Do not include task lights)",null,null,null,null,null,null,null,null,null,null,"Room 2 Lighting (Main Lighting only - Do not include task lights)"]
[null,null,"Select up to 6 Light Fixture Types",null,null,null,null,null,null,null,"Total Room Wattage (W)",null,null,"Select up to 6 Light Fixture Types",null,null,null,null,null,null,null,"Total Room Wattage (W)"]
[null,null,"Light Type 1",null,"Select Light Fixture",{"$f":"VLOOKUP(E38,'Linked Cells (hidden)'!$D$57:$E$150,2,FALSE)","v":"Total"},null,{"$f":"VLOOKUP(E38,'Linked Cells (hidden)'!$D$57:$E$150,2,FALSE)& \"  \" & \"Watts\"","v":"Total  Watts"},null,null,{"$f":"(IF(F38=\"Total\",0,I38*F38)+IF(F39=\"Total\",0,I39*F39)+IF(F40=\"Total\",0,I40*F40)+IF(F41=\"Total\",0,I41*F41)+IF(F42=\"Total\",0,I42*F42)+IF(F43=\"Total\",0,I43*F43))","v":0},null,"W","Light Type 1",null,"Select Light Fixture",{"$f":"VLOOKUP(P38,'Linked Cells (hidden)'!$D$57:$E$150,2,FALSE)","v":"Total"},null,{"$f":"VLOOKUP(P38,'Linked Cells (hidden)'!$D$57:$E$140,2,FALSE)& \"  \" & \"Watts\"","v":"Total  Watts"},null,null,{"$f":"(IF(Q38=\"Total\",0,T38*Q38)+IF(Q39=\"Total\",0,T39*Q39)+IF(Q40=\"Total\",0,T40*Q40)+IF(Q41=\"Total\",0,T41*Q41)+IF(Q42=\"Total\",0,T42*Q42)+IF(Q43=\"Total\",0,T43*Q43))","v":0},null,"W"]
[null,null,"Light Type 2",null,"Select Light Fixture",{"$f":"VLOOKUP(E39,'Linked Cells (hidden)'!$D$57:$E$150,2,FALSE)","v":"Total"},null,{"$f":"VLOOKUP(E39,'Linked Cells (hidden)'!$D$57:$E$150,2,FALSE)& \"  \" & \"Watts\"","v":"Total  Watts"},null,null,null,null,null,"Light Type 2",null,"Select Light Fixture",{"$f":"VLOOKUP(P39,'Linked Cells (hidden)'!$D$57:$E$150,2,FALSE)","v":"Total"},null,{"$f":"VLOOKUP(P39,'Linked Cells (hidden)'!$D$57:$E$140,2,FALSE)& \"  \" & \"Watts\"","v":"Total  Watts"}]
[null,null,"Light Type 3",null,"Select Light Fixture",{"$f":"VLOOKUP(E40,'Linked Cells (hidden)'!$D$57:$E$150,2,FALSE)","v":"Total"},null,{"$f":"VLOOKUP(E40,'Linked Cells (hidden)'!$D$57:$E$150,2,FALSE)& \"  \" & \"Watts\"","v":"Total  Watts"},null,null,"Room Lighting Power Density (LPD)",null,null,"Light Type 3",null,"Select Light Fixture",{"$f":"VLOOKUP(P40,'Linked Cells (hidden)'!$D$57:$E$150,2,FALSE)","v":"Total"},null,{"$f":"VLOOKUP(P40,'Linked Cells (hidden)'!$D$57:$E$140,2,FALSE)& \"  \" & \"Watts\"","v":"Total  Watts"},null,null,"Room Lighting Power Density (LPD)"]
[null,null,"Light Type 4",null,"Select Light Fixture",{"$f":"VLOOKUP(E41,'Linked Cells (hidden)'!$D$57:$E$150,2,FALSE)","v":"Total"},null,{"$f":"VLOOKUP(E41,'Linked Cells (hidden)'!$D$57:$E$150,2,FALSE)& \"  \" & \"Watts\"","v":"Total  Watts"},null,null,{"$f":"IF(K38=0,\"\",K38/I35)","v":""},"W/ft2",null,"Light Type 4",null,"Select Light Fixture",{"$f":"VLOOKUP(P41,'Linked Cells (hidden)'!$D$57:$E$150,2,FALSE)","v":"Total"},null,{"$f":"VLOOKUP(P41,'Linked Cells (hidden)'!$D$57:$E$140,2,FALSE)& \"  \" & \"Watts\"","v":"Total  Watts"},null,null,{"$f":"IF(V38=0,\"\",V38/T35)","v":""},"W/ft2"]
[null,null,"Light Type 5",null,"Select Light Fixture",{"$f":"VLOOKUP(E42,'Linked Cells (hidden)'!$D$57:$E$150,2,FALSE)","v":"Total"},null,{"$f":"VLOOKUP(E42,'Linked Cells (hidden)'!$D$57:$E$150,2,FALSE)& \"  \" & \"Watts\"","v":"Total  Watts"},null,null,null,null,null,"Light Type 5",null,"Select Light Fixture",{"$f":"VLOOKUP(P42,'Linked Cells (hidden)'!$D$57:$E$150,2,FALSE)","v":"Total"},null,{"$f":"VLOOKUP(P42,'Linked Cells (hidden)'!$D$57:$E$140,2,FALSE)& \"  \" & \"Watts\"","v":"Total  Watts"}]
[null,null,"Other Type : Name",null,null,{"$f":"IF(D44=0,\"Total\",D44)","v":"Total"},null,{"$f":"F43 & \" Watts\"","v":"Total Watts"},null,null,null,null,null,"Other Type : Name",null,null,{"$f":"IF(O44=0,\"Total\",O44)","v":"Total"},null,{"$f":"Q43 & \" Watts\"","v":"Total Watts"}]
[null,null,"                      : Watts",null,null,null,null,null,null,null,null,null,null,"                      : Watts"]
[]
[]
[null,null,"Room 3 Name",null,null,null,null,"Area",null,"Ft2",null,null,null,"Room 4 Name",null,null,null,null,"Area",null,"Ft2"]
[null,null,"Room 3 Lighting (Main Lighting only - Do not include task lights)",null,null,null,null,null,null,null,null,null,null,"Room 4 Lighting (Main Lighting only - Do not include task lights)"]
[null,null,"Select up to 6 Light Fixture Types",null,null,null,null,null,null,null,"Total Room Wattage (W)",null,null,"Select up to 6 Light Fixture Types",null,null,null,null,null,null,null,"Total Room Wattage (W)"]
[null,null,"Light Type 1",null,"Select Light Fixture",{"$f":"VLOOKUP(E50,'Linked Cells (hidden)'!$D$57:$E$150,2,FALSE)","v":"Total"},null,{"$f":"VLOOKUP(E50,'Linked Cells (hidden)'!$D$57:$E$150,2,FALSE)& \"  \" & \"Watts\"","v":"Total  Watts"},null,null,{"$f":"(IF(F50=\"Total\",0,I50*F50)+IF(F51=\"Total\",0,I51*F51)+IF(F52=\"Total\",0,I52*F52)+IF(F53=\"Total\",0,I53*F53)+IF(F54=\"Total\",0,I54*F54)+IF(F55=\"Total\",0,I55*F55))","v":0},null,"W","Light Type 1",null,"Select Light Fixture",{"$f":"VLOOKUP(P50,'Linked Cells (hidden)'!$D$57:$E$150,2,FALSE)","v":"Total"},null,{"$f":"VLOOKUP(P50,'Linked Cells (hidden)'!$D$57:$E$140,2,FALSE)& \"  \" & \"Watts\"","v":"Total  Watts"},null,null,{"$f":"(IF(Q50=\"Total\",0,T50*Q50)+IF(Q51=\"Total\",0,T51*Q51)+IF(Q52=\"Total\",0,T52*Q52)+IF(Q53=\"Total\",0,T53*Q53)+IF(Q54=\"Total\",0,T54*Q54)+IF(Q55=\"Total\",0,T55*Q55))","v":0},null,"W"]
[null,null,"Light Type 2",null,"Select Light Fixture",{"$f":"VLOOKUP(E51,'Linked Cells (hidden)'!$D$57:$E$150,2,FALSE)","v":"Total"},null,{"$f":"VLOOKUP(E51,'Linked Cells (hidden)'!$D$57:$E$150,2,FALSE)& \"  \" & \"Watts\"","v":"Total  Watts"},null,null,null,null,null,"Light Type 2",null,"Select Light Fixture",{"$f":"VLOOKUP(P51,'Linked Cells (hidden)'!$D$57:$E$150,2,FALSE)","v":"Total"},null,{"$f":"VLOOKUP(P51,'Linked Cells (hidden)'!$D$57:$E$140,2,FALSE)& \"  \" & \"Watts\"","v":"Total  Watts"}]
[null,null,"Light Type 3",null,"Select Light Fixture",{"$f":"VLOOKUP(E52,'Linked Cells (hidden)'!$D$57:$E$150,2,FALSE)","v":"Total"},null,{"$f":"VLOOKUP(E52,'Linked Cells (hidden)'!$D$57:$E$150,2,FALSE)& \"  \" & \"Watts\"","v":"Total  Watts"},null,null,"Room Lighting Power Density (LPD)",null,null,"Light Type 3",null,"Select Light Fixture",{"$f":"VLOOKUP(P52,'Linked Cells (hidden)'!$D$57:$E$150,2,FALSE)","v":"Total"},null,{"$f":"VLOOKUP(P52,'Linked Cells (hidden)'!$D$57:$E$140,2,FALSE)& \"  \" & \"Watts\"","v":"Total  Watts"},null,null,"Room Lighting Power Density (LPD)"]
[null,null,"Light Type 4",null,"Select Light Fixture",{"$f":"VLOOKUP(E53,'Linked Cells (hidden)'!$D$57:$E$150,2,FALSE)","v":"Total"},null,{"$f":"VLOOKUP(E53,'Linked Cells (hidden)'!$D$57:$E$150,2,FALSE)& \"  \" & \"Watts\"","v":"Total  Watts"},null,null,{"$f":"IF(K50=0,\"\",K50/I47)","v":""},"W/ft2",null,"Light Type 4",null,"Select Light Fixture",{"$f":"VLOOKUP(P53,'Linked Cells (hidden)'!$D$57:$E$150,2,FALSE)","v":"Total"},null,{"$f":"VLOOKUP(P53,'Linked Cells (hidden)'!$D$57:$E$140,2,FALSE)& \"  \" & \"Watts\"","v":"Total  Watts"},null,null,{"$f":"IF(V50=0,\"\",V50/T47)","v":""},"W/ft2"]
[null,null,"Light Type 5",null,"Select Light Fixture",{"$f":"VLOOKUP(E54,'Linked Cells (hidden)'!$D$57:$E$150,2,FALSE)","v":"Total"},null,{"$f":"VLOOKUP(E54,'Linked Cells (hidden)'!$D$57:$E$150,2,FALSE)& \"  \" & \"Watts\"","v":"Total  Watts"},null,null,null,null,null,"Light Type 5",null,"Select Light Fixture",{"$f":"VLOOKUP(P54,'Linked Cells (hidden)'!$D$57:$E$150,2,FALSE)","v":"Total"},null,{"$f":"VLOOKUP(P54,'Linked Cells (hidden)'!$D$57:$E$140,2,FALSE)& \"  \" & \"Watts\"","v":"Total  Watts"}]
[null,null,"Other Type : Name",null,null,{"$f":"IF(D56=0,\"Total\",D56)","v":"Total"},null,{"$f":"F55 & \" Watts\"","v":"Total Watts"},null,null,null,null,null,"Other Type : Name",null,null,{"$f":"IF(O56=0,\"Total\",O56)","v":"Total"},null,{"$f":"Q55 & \" Watts\"","v":"Total Watts"}]
[null,null,"                      : Watts",null,null,null,null,null,null,null,null,null,null,"                      : Watts"]
[]
[]
[null,null,"Room 5 Name",null,null,null,null,"Area",null,"Ft2",null,null,null,"Room 6 Name",null,null,null,null,"Area",null,"Ft2"]
[null,null,"Room 5 Lighting (Main Lighting only - Do not include task lights)",null,null,null,null,null,null,null,null,null,null,"Room 6 Lighting (Main Lighting only - Do not include task lights)"]
[null,null,"Select up to 6 Light Fixture Types",null,null,null,null,null,null,null,"Total Room Wattage (W)",null,null,"Select up to 6 Light Fixture Types",null,null,null,null,null,null,null,"Total Room Wattage (W)"]
[null,null,"Light Type 1",null,"Select Light Fixture",{"$f":"VLOOKUP(E62,'Linked Cells (hidden)'!$D$57:$E$150,2,FALSE)","v":"Total"},null,{"$f":"VLOOKUP(E62,'Linked Cells (hidden)'!$D$57:$E$150,2,FALSE)& \"  \" & \"Watts\"","v":"Total  Watts"},null,null,{"$f":"(IF(F62=\"Total\",0,I62*F62)+IF(F63=\"Total\",0,I63*F63)+IF(F64=\"Total\",0,I64*F64)+IF(F65=\"Total\",0,I65*F65)+IF(F66=\"Total\",0,I66*F66)+IF(F67=\"Total\",0,I67*F67))","v":0},null,"W","Light Type 1",null,"Select Light Fixture",{"$f":"VLOOKUP(P62,'Linked Cells (hidden)'!$D$57:$E$150,2,FALSE)","v":"Total"},null,{"$f":"VLOOKUP(P62,'Linked Cells (hidden)'!$D$57:$E$140,2,FALSE)& \"  \" & \"Watts\"","v":"Total  Watts"},null,null,{"$f":"(IF(Q62=\"Total\",0,T62*Q62)+IF(Q63=\"Total\",0,T63*Q63)+IF(Q64=\"Total\",0,T64*Q64)+IF(Q65=\"Total\",0,T65*Q65)+IF(Q66=\"Total\",0,T66*Q66)+IF(Q67=\"Total\",0,T67*Q67))","v":0},null,"W"]
[null,null,"Light Type 2",null,"Select Light Fixture",{"$f":"VLOOKUP(E63,'Linked Cells (hidden)'!$D$57:$E$150,2,FALSE)","v":"Total"},null,{"$f":"VLOOKUP(E63,'Linked Cells (hidden)'!$D$57:$E$150,2,FALSE)& \"  \" & \"Watts\"","v":"Total  Watts"},null,null,null,null,null,"Light Type 2",null,"Select Light Fixture",{"$f":"VLOOKUP(P63,'Linked Cells (hidden)'!$D$57:$E$150,2,FALSE)","v":"Total"},null,{"$f":"VLOOKUP(P63,'Linked Cells (hidden)'!$D$57:$E$140,2,FALSE)& \"  \" & \"Watts\"","v":"Total  Watts"}]
[null,null,"Light Type 3",null,"Select Light Fixture",{"$f":"VLOOKUP(E64,'Linked Cells (hidden)'!$D$57:$E$150,2,FALSE)","v":"Total"},null,{"$f":"VLOOKUP(E64,'Linked Cells (hidden)'!$D$57:$E$150,2,FALSE)& \"  \" & \"Watts\"","v":"Total  Watts"},null,null,"Room Lighting Power Density (LPD)",null,null,"Light Type 3",null,"Select Light Fixture",{"$f":"VLOOKUP(P64,'Linked Cells (hidden)'!$D$57:$E$150,2,FALSE)","v":"Total"},null,{"$f":"VLOOKUP(P64,'Linked Cells (hidden)'!$D$57:$E$140,2,FALSE)& \"  \" & \"Watts\"","v":"Total  Watts"},null,null,"Room Lighting Power Density (LPD)"]
[null,null,"Light Type 4",null,"Select Light Fixture",{"$f":"VLOOKUP(E65,'Linked Cells (hidden)'!$D$57:$E$150,2,FALSE)","v":"Total"},null,{"$f":"VLOOKUP(E65,'Linked Cells (hidden)'!$D$57:$E$150,2,FALSE)& \"  \" & \"Watts\"","v":"Total  Watts"},null,null,{"$f":"IF(K62=0,\"\",K62/I59)","v":""},"W/ft2",null,"Light Type 4",null,"Select Light Fixture",{"$f":"VLOOKUP(P65,'Linked Cells (hidden)'!$D$57:$E$150,2,FALSE)","v":"Total"},null,{"$f":"VLOOKUP(P65,'Linked Cells (hidden)'!$D$57:$E$140,2,FALSE)& \"  \" & \"Watts\"","v":"Total  Watts"},null,null,{"$f":"IF(V62=0,\"\",V62/T59)","v":""},"W/ft2"]
[null,null,"Light Type 5",null,"Select Light Fixture",{"$f":"VLOOKUP(E66,'Linked Cells (hidden)'!$D$57:$E$150,2,FALSE)","v":"Total"},null,{"$f":"VLOOKUP(E66,'Linked Cells (hidden)'!$D$57:$E$150,2,FALSE)& \"  \" & \"Watts\"","v":"Total  Watts"},null,null,null,null,null,"Light Type 5",null,"Select Light Fixture",{"$f":"VLOOKUP(P66,'Linked Cells (hidden)'!$D$57:$E$150,2,FALSE)","v":"Total"},null,{"$f":"VLOOKUP(P66,'Linked Cells (hidden)'!$D$57:$E$140,2,FALSE)& \"  \" & \"Watts\"","v":"Total  Watts"}]
[null,null,"Other Type : Name",null,null,{"$f":"IF(D68=0,\"Total\",D68)","v":"Total"},null,{"$f":"F67 & \" Watts\"","v":"Total Watts"},null,null,null,null,null,"Other Type : Name",null,null,{"$f":"IF(O68=0,\"Total\",O68)","v":"Total"},null,{"$f":"Q67 & \" Watts\"","v":"Total Watts"}]
[null,null,"                      : Watts",null,null,null,null,null,null,null,null,null,null,"                      : Watts"]
[]
[]
[null,null,"Room 7 Name",null,null,null,null,"Area",null,"Ft2",null,null,null,"Room 8 Name",null,null,null,null,"Area",null,"Ft2"]
[null,null,"Room 7 Lighting (Main Lighting only - Do not include task lights)",null,null,null,null,null,null,null,null,null,null,"Room 8 Lighting (Main Lighting only - Do not include task lights)"]
[null,null,"Select up to 6 Light Fixture Types",null,null,null,null,null,null,null,"Total Room Wattage (W)",null,null,"Select up to 6 Light Fixture Types",null,null,null,null,null,null,null,"Total Room Wattage (W)"]
[null,null,"Light Type 1",null,"Select Light Fixture",null,null,{"$f":"VLOOKUP(E74,'Linked Cells (hidden)'!$D$57:$E$150,2,FALSE)& \"  \" & \"Watts\"","v":"Total  Watts"},null,null,{"$f":"(IF(F74=\"Total\",0,I74*F74)+IF(F75=\"Total\",0,I75*F75)+IF(F76=\"Total\",0,I76*F76)+IF(F77=\"Total\",0,I77*F77)+IF(F78=\"Total\",0,I78*F78)+IF(F79=\"Total\",0,I79*F79))","v":0},null,"W","Light Type 1",null,"Select Light Fixture",null,null,{"$f":"VLOOKUP(P74,'Linked Cells (hidden)'!$D$57:$E$140,2,FALSE)& \"  \" & \"Watts\"","v":"Total  Watts"},null,null,{"$f":"(IF(Q74=\"Total\",0,T74*Q74)+IF(Q75=\"Total\",0,T75*Q75)+IF(Q76=\"Total\",0,T76*Q76)+IF(Q77=\"Total\",0,T77*Q77)+IF(Q78=\"Total\",0,T78*Q78)+IF(Q79=\"Total\",0,T79*Q79))","v":0},null,"W"]
[null,null,"Light Type 2",null,"Select Light Fixture",{"$f":"VLOOKUP(E75,'Linked Cells (hidden)'!$D$57:$E$150,2,FALSE)","v":"Total"},null,{"$f":"VLOOKUP(E75,'Linked Cells (hidden)'!$D$57:$E$150,2,FALSE)& \"  \" & \"Watts\"","v":"Total  Watts"},null,null,null,null,null,"Light Type 2",null,"Select Light Fixture",{"$f":"VLOOKUP(P75,'Linked Cells (hidden)'!$D$57:$E$150,2,FALSE)","v":"Total"},null,{"$f":"VLOOKUP(P75,'Linked Cells (hidden)'!$D$57:$E$140,2,FALSE)& \"  \" & \"Watts\"","v":"Total  Watts"}]
[null,null,"Light Type 3",null,"Select Light Fixture",{"$f":"VLOOKUP(E76,'Linked Cells (hidden)'!$D$57:$E$150,2,FALSE)","v":"Total"},null,{"$f":"VLOOKUP(E76,'Linked Cells (hidden)'!$D$57:$E$150,2,FALSE)& \"  \" & \"Watts\"","v":"Total  Watts"},null,null,"Room Lighting Power Density (LPD)",null,null,"Light Type 3",null,"Select Light Fixture",{"$f":"VLOOKUP(P76,'Linked Cells (hidden)'!$D$57:$E$150,2,FALSE)","v":"Total"},null,{"$f":"VLOOKUP(P76,'Linked Cells (hidden)'!$D$57:$E$140,2,FALSE)& \"  \" & \"Watts\"","v":"Total  Watts"},null,null,"Room Lighting Power Density (LPD)"]
[null,null,"Light Type 4",null,"Select Light Fixture",{"$f":"VLOOKUP(E77,'Linked Cells (hidden)'!$D$57:$E$150,2,FALSE)","v":"Total"},null,{"$f":"VLOOKUP(E77,'Linked Cells (hidden)'!$D$57:$E$150,2,FALSE)& \"  \" & \"Watts\"","v":"Total  Watts"},null,null,{"$f":"IF(K74=0,\"\",K74/I71)","v":""},"W/ft2",null,"Light Type 4",null,"Select Light Fixture",{"$f":"VLOOKUP(P77,'Linked Cells (hidden)'!$D$57:$E$150,2,FALSE)","v":"Total"},null,{"$f":"VLOOKUP(P77,'Linked Cells (hidden)'!$D$57:$E$140,2,FALSE)& \"  \" & \"Watts\"","v":"Total  Watts"},null,null,{"$f":"IF(V74=0,\"\",V74/T71)","v":""},"W/ft2"]
[null,null,"Light Type 5",null,"Select Light Fixture",{"$f":"VLOOKUP(E78,'Linked Cells (hidden)'!$D$57:$E$150,2,FALSE)","v":"Total"},null,{"$f":"VLOOKUP(E78,'Linked Cells (hidden)'!$D$57:$E$150,2,FALSE)& \"  \" & \"Watts\"","v":"Total  Watts"},null,null,null,null,null,"Light Type 5",null,"Select Light Fixture",{"$f":"VLOOKUP(P78,'Linked Cells (hidden)'!$D$57:$E$150,2,FALSE)","v":"Total"},null,{"$f":"VLOOKUP(P78,'Linked Cells (hidden)'!$D$57:$E$140,2,FALSE)& \"  \" & \"Watts\"","v":"Total  Watts"}]
[null,null,"Other Type : Name",null,null,{"$f":"IF(D80=0,\"Total\",D80)","v":"Total"},null,{"$f":"F79 & \" Watts\"","v":"Total Watts"},null,null,null,null,null,"Other Type : Name",null,null,{"$f":"IF(O80=0,\"Total\",O80)","v":"Total"},null,{"$f":"Q79 & \" Watts\"","v":"Total Watts"}]
[null,null,"                      : Watts",null,null,null,null,null,null,null,null,null,null,"                      : Watts"]
[]
[]
[null,null,"Room 9 Name",null,null,null,null,"Area",null,"Ft2",null,null,null,"Room 10 Name",null,null,null,null,"Area",null,"Ft2"]
[null,null,"Room 9 Lighting (Main Lighting only - Do not include task lights)",null,null,null,null,null,null,null,null,null,null,"Room 10 Lighting (Main Lighting only - Do not include task lights)"]
[null,null,"Select up to 6 Light Fixture Types",null,null,null,null,null,null,null,"Total Room Wattage (W)",null,null,"Select up to 6 Light Fixture Types",null,null,null,null,null,null,null,"Total Room Wattage (W)"]
[null,null,"Light Type 1",null,"Select Light Fixture",{"$f":"VLOOKUP(E86,'Linked Cells (hidden)'!$D$57:$E$150,2,FALSE)","v":"Total"},null,{"$f":"VLOOKUP(E86,'Linked Cells (hidden)'!$D$57:$E$150,2,FALSE)& \"  \" & \"Watts\"","v":"Total  Watts"},null,null,{"$f":"(IF(F86=\"Total\",0,I86*F86)+IF(F87=\"Total\",0,I87*F87)+IF(F88=\"Total\",0,I88*F88)+IF(F89=\"Total\",0,I89*F89)+IF(F90=\"Total\",0,I90*F90)+IF(F91=\"Total\",0,I91*F91))","v":0},null,"W","Light Type 1",null,"Select Light Fixture",{"$f":"VLOOKUP(P86,'Linked Cells (hidden)'!$D$57:$E$150,2,FALSE)","v":"Total"},null,{"$f":"VLOOKUP(P86,'Linked Cells (hidden)'!$D$57:$E$140,2,FALSE)& \"  \" & \"Watts\"","v":"Total  Watts"},null,null,{"$f":"(IF(Q86=\"Total\",0,T86*Q86)+IF(Q87=\"Total\",0,T87*Q87)+IF(Q88=\"Total\",0,T88*Q88)+IF(Q89=\"Total\",0,T89*Q89)+IF(Q90=\"Total\",0,T90*Q90)+IF(Q91=\"Total\",0,T91*Q91))","v":0},null,"W"]
[null,null,"Light Type 2",null,"Select Light Fixture",null,null,{"$f":"VLOOKUP(E87,'Linked Cells (hidden)'!$D$57:$E$150,2,FALSE)& \"  \" & \"Watts\"","v":"Total  Watts"},null,null,null,null,null,"Light Type 2",null,"Select Light Fixture",null,null,{"$f":"VLOOKUP(P87,'Linked Cells (hidden)'!$D$57:$E$140,2,FALSE)& \"  \" & \"Watts\"","v":"Total  Watts"}]
[null,null,"Light Type 3",null,"Select Light Fixture",{"$f":"VLOOKUP(E88,'Linked Cells (hidden)'!$D$57:$E$150,2,FALSE)","v":"Total"},null,{"$f":"VLOOKUP(E88,'Linked Cells (hidden)'!$D$57:$E$150,2,FALSE)& \"  \" & \"Watts\"","v":"Total  Watts"},null,null,"Room Lighting Power Density (LPD)",null,null,"Light Type 3",null,"Select Light Fixture",{"$f":"VLOOKUP(P88,'Linked Cells (hidden)'!$D$57:$E$150,2,FALSE)","v":"Total"},null,{"$f":"VLOOKUP(P88,'Linked Cells (hidden)'!$D$57:$E$140,2,FALSE)& \"  \" & \"Watts\"","v":"Total  Watts"},null,null,"Room Lighting Power Density (LPD)"]
[null,null,"Light Type 4",null,"Select Light Fixture",{"$f":"VLOOKUP(E89,'Linked Cells (hidden)'!$D$57:$E$150,2,FALSE)","v":"Total"},null,{"$f":"VLOOKUP(E89,'Linked Cells (hidden)'!$D$57:$E$150,2,FALSE)& \"  \" & \"Watts\"","v":"Total  Watts"},null,null,{"$f":"IF(K86=0,\"\",K86/I83)","v":""},"W/ft2",null,"Light Type 4",null,"Select Light Fixture",{"$f":"VLOOKUP(P89,'Linked Cells (hidden)'!$D$57:$E$150,2,FALSE)","v":"Total"},null,{"$f":"VLOOKUP(P89,'Linked Cells (hidden)'!$D$57:$E$140,2,FALSE)& \"  \" & \"Watts\"","v":"Total  Watts"},null,null,{"$f":"IF(V86=0,\"\",V86/T83)","v":""},"W/ft2"]
[null,null,"Light Type 5",null,"Select Light Fixture",{"$f":"VLOOKUP(E90,'Linked Cells (hidden)'!$D$57:$E$150,2,FALSE)","v":"Total"},null,{"$f":"VLOOKUP(E90,'Linked Cells (hidden)'!$D$57:$E$150,2,FALSE)& \"  \" & \"Watts\"","v":"Total  Watts"},null,null,null,null,null,"Light Type 5",null,"Select Light Fixture",{"$f":"VLOOKUP(P90,'Linked Cells (hidden)'!$D$57:$E$150,2,FALSE)","v":"Total"},null,{"$f":"VLOOKUP(P90,'Linked Cells (hidden)'!$D$57:$E$140,2,FALSE)& \"  \" & \"Watts\"","v":"Total  Watts"}]
[null,null,"Other Type : Name",null,null,{"$f":"IF(D92=0,\"Total\",D92)","v":"Total"},null,{"$f":"F91 & \" Watts\"","v":"Total Watts"},null,null,null,null,null,"Other Type : Name",null,null,{"$f":"IF(O92=0,\"Total\",O92)","v":"Total"},null,{"$f":"Q91 & \" Watts\"","v":"Total Watts"}]
[null,null,"                      : Watts",null,null,null,null,null,null,null,null,null,null,"                      : Watts"]
[]
[]
[]
[null,"HVAC/Non-Process Energy "]
[]
[null,"\nTo determine the site's Non-Process Heating, Ventilating, and Air Conditioning (HVAC) loads and energy use, describe each building's HVAC electrical using units by entering them below. If multiple of a unit exists, either add them into the table as separate units or enter Motor Size as the motor's size (in hp) multiplied by the quantity.\n\nNon-Process HVAC is meant to include all equipment not tied to specific process operations such as general ventilation heaters, office air conditioners, restroom exhaust fans, etc. \nDo not provide process-related ventilation equipment such as odor control fans here.  You can enter process equipment information on the \"WTP or WWTP Energy Usage\" tab.    \n\nFor each Non-Process HVAC unit select the equipment type from the dropdown list and enter an “Equipment Description.”\n\nCollect and enter each unit’s motor size, efficiency and full load amperage (FLA) ratings.  This information can be gathered from the equipment's nameplate or specification datasheet.\nIf the site has authorized personnel capable of taking electrical measurements, enter the motors average operating current. Otherwise leave the \"Average Motor Operating Current\" blank and the tool will use an 80% Load Factor in its calculations. \n\nOnce the equipment's typical operating hours are entered, the tool calculates the estimated annual energy use and operating cost for the unit.\nIf conditions at the plant change, you can adjust these values.\n\nA summary of the HVAC and lighting information entered on the building data tabs is displayed on the top on the WTP and WWTP Energy Usage tabs.  For those values to be included in the total energy use and to be displayed in the pie charts and summary report, you must enter the values in the Equipment Electrical Energy Inventory table (on the WTP or WWTP Energy Usage tab) as Non Process HVAC. See the instructions on that tab on how to enter this information.\n\n"]
[]
[]
[]
[]
[null,null,"System Type","Equipment Type",null,null,"Equipment Description","Motor Size (hp)","Motor Efficiency","Motor Full Load Amperage (FLA)","Average Motor Operating Current          (Amps)","Motor Operating Hours              (Hours/Year)","Average Load Factor\n(%)","Average HVAC Electric Load (kW)","Estimated Annual Energy Use (kWh/yr)",null,null,"Estimated Annual Operating Costs  ($/Year)","Estimated Percent of Site Electric Use & Cost (%)"]
[null,null,"Non Process HVAC","Select Equipment",null,null,null,null,null,null,null,null,{"$f":"IF(J104=0,0,IF(K104=0,0.75,K104/J104))","v":0},{"$f":"IF(I104=0,0,H104*0.746*M104/I104)","v":0},{"$f":"N104*L104","v":0},null,null,{"$f":"O104*'General Information'!$H$46","v":0},{"$f":"IF('General Information'!$H$44=0,\"\",O104/'General Information'!$H$44)","v":""}]
[null,null,"Non Process HVAC","Select Equipment",null,null,null,null,null,null,null,null,0,0,0,null,null,{"$f":"O105*'General Information'!$H$46","v":0},{"$f":"IF('General Information'!$H$44=0,\"\",O105/'General Information'!$H$44)","v":""}]
[null,null,"Non Process HVAC","Select Equipment",null,null,null,null,null,null,null,null,0,0,0,null,null,{"$f":"O106*'General Information'!$H$46","v":0},{"$f":"IF('General Information'!$H$44=0,\"\",O106/'General Information'!$H$44)","v":""}]
[null,null,"Non Process HVAC","Select Equipment",null,null,null,null,null,null,null,null,0,0,0,null,null,{"$f":"O107*'General Information'!$H$46","v":0},{"$f":"IF('General Information'!$H$44=0,\"\",O107/'General Information'!$H$44)","v":""}]
[null,null,"Non Process HVAC","Select Equipment",null,null,null,null,null,null,null,null,0,0,0,null,null,{"$f":"O108*'General Information'!$H$46","v":0},{"$f":"IF('General Information'!$H$44=0,\"\",O108/'General Information'!$H$44)","v":""}]
[null,null,"Non Process HVAC","Select Equipment",null,null,null,null,null,null,null,null,0,0,0,null,null,{"$f":"O109*'General Information'!$H$46","v":0},{"$f":"IF('General Information'!$H$44=0,\"\",O109/'General Information'!$H$44)","v":""}]
[]
[null,null,null,null,null,null,null,null,null,"Total Building HVAC",null,null,null,{"$f":"SUM(N101:N109)","v":0},{"$f":"SUM(O101:O109)","v":0},null,null,{"$f":"SUM(R104:R109)","v":0},{"$f":"SUM(S104:S109)","v":0}]

{"sheet":"Building 7 Data","index":9,"n_rows":111,"n_cols":24,"rows_kept":111,"cut":false,"hidden":true,"merged":[[0,0,0,10],[12,1,13,14],[2,1,2,3],[8,1,8,2],[10,1,10,2],[8,12,9,13],[8,7,8,9],[10,7,10,9],[46,3,46,6],[60,10,60,11],[58,14,58,17],[3,1,3,17],[5,1,6,17],[17,3,17,6],[110,9,110,12],[70,3,70,6],[82,14,82,17],[73,10,73,11],[72,10,72,11],[84,10,84,11],[70,14,70,17],[20,13,20,14],[27,1,31,14],[82,3,82,6],[97,1,99,20],[58,3,58,6],[37,10,37,11],[49,10,49,11],[48,10,48,11],[85,21,85,22],[85,10,85,11],[61,21,61,22],[73,21,73,22],[84,21,84,22],[61,10,61,11],[72,21,72,22],[60,21,60,22],[49,21,49,22],[36,21,36,22],[34,14,34,17],[46,14,46,17],[48,21,48,22],[20,2,20,3],[37,21,37,22],[20,8,20,10],[19,6,20,7],[34,3,34,6],[36,10,36,11]]}
[{"$f":"\"EPA Energy Use Assessment Tool for \" & workbookType","v":"EPA Energy Use Assessment Tool for Drinking Water Systems"}]
["Site Structural Buildings - Major Non-Process Energy Users"]
[]
[null,"\nIn the Building Data tabs, the tool totals each building’s Lighting and HVAC information. You should use the totals for entry on the WTP or WWTP Energy Use tabs.  For instructions on how to enter that information, see the WTP or WWTP Energy Usage tabs. If you have already identified the site's Lighting and HVAC loads or would just like to estimate them without detailing this information here, proceed to the WTP or WWTP Energy Usage tab.\n\nIf you skip this tab, you can come back later to fill in this detail.\n\n\n\n"]
[]
[null,"\nThe following information is entered once for the entire plant.\n\nTo change the Total Number of Buildings on-site, go to the \"Building 1 Data\" tab and click the \"Set # of Buildings\" button. This lets you enter information for the specified number of buildings.\n\nAfter entering data in a building tab, click the \"Save and Continue\" button at the top. That allows you to enter data for the next building or if building data entry is complete, to return to the General Information tab. You can also click the other Building Data tabs at the bottom. \n\n\n"]
[]
[]
[null,"Total Plant Building Area",null,{"$f":"'Building 1 Data'!D9","v":0},7,null,"Ft2","Total Plant Building Electric Load",null,null,{"$f":"'Building 1 Data'!K9","v":0},"kW","Total Plant Building Electric Use ",null,{"$f":"'Building 1 Data'!O9","v":0},null,null,"kWh/Yr"]
[]
[null,"Does the site have buildings?",null,{"$f":"hasBldgs","v":"Yes"},null,null,null,"Total Number of Buildings On-site:",null,null,{"$f":"[0]!totalbldgs","v":"1"}]
[]
[null,"Enter the following information for each building at the plant.\n\nTo begin, select the number of rooms in the \"No. of Rooms\" dropdown list below and click the \"Set # of rooms\" button.   It is important to know and set the number of rooms upfront, before any lighting data is entered.  If the number of rooms is later changed, all the data that had been entered will be lost. "]
[]
[]
[null,null,{"$f":"\"BUILDING \" & E9","v":"BUILDING 7"}]
[]
[null,null,"Name",null,null,null,null,null,"Operating Hours per Year",null,{"$f":"IF(K19=\"\",\"\",K19*K20*52)","v":""},"Hrs/Yr","Approximate Building Age (If known)",null,null,null,null,null,"Yrs"]
[null,null,"Area",{"$f":"I35+T35+T47+I47+I59+T59+T71+I71+I83+T83","v":0},null,null,"Ft2",null,"Operating Hours per Day",null,null,"Hrs/Day"]
[null,null,"No. of Rooms",null,null,null,"! Changing the number of rooms will reset all lighting data entered.",null,"Operating Days per Week",null,null,"Days/Wk","Average Building Lighting Power Density (LPD)",null,null,null,null,{"$f":"IF(D19=0,\"\",(K38+V38+V50+K50+K62+V62+V74+K74+K86+V86)/D19)","v":""},"W/ft2"]
[null,null,"Estimated Electric Load:",null,null,null,null,null,"Estimated Annual Energy Use:",null,null,null,null,"Estimated Annual Energy Cost:"]
[null,null,{"$f":"\"Total Building \" & $E$9& \" Lighting\"","v":"Total Building 7 Lighting"},null,null,null,{"$f":"IF((K38+V38+V50+K50+K62+V62+V74+K74+K86+V86)=0,0,(K38+V38+V50+K50+K62+V62+V74+K74+K86+V86)/1000)","v":0},"kW",{"$f":"\"Total Building \" & $E$9& \" Lighting\"","v":"Total Building 7 Lighting"},null,null,{"$f":"IF((K38+V38+V50+K50+K62+V62+V74+K74+K86+V86)=0,IF(K18=\"\",0,0),IF(K18=\"\",0,((K38+V38+V50+K50+K62+V62+V74+K74+K86+V86)/1000)*K18))","v":0},"kWh/Yr",{"$f":"\"Total Building \" & $E$9 & \" Lighting\"","v":"Total Building 7 Lighting"},null,null,null,{"$f":"L22*'General Information'!$H$46","v":0},"$/Yr"]
[null,null,{"$f":"\"Total Building \" & $E$9 & \" HVAC\"","v":"Total Building 7 HVAC"},null,null,null,{"$f":"N111","v":0},"kW",{"$f":"\"Total Building \" & $E$9 & \" HVAC\"","v":"Total Building 7 HVAC"},null,null,{"$f":"O$111","v":0},"kWh/Yr",{"$f":"\"Total Building \" & $E$9 & \" HVAC\"","v":"Total Building 7 HVAC"},null,null,null,{"$f":"R111","v":0},"$/Yr"]
[null,null,{"$f":"\"Total Building \" & $E$9 & \" Combined\"","v":"Total Building 7 Combined"},null,null,null,{"$f":"SUM(G22:G23)","v":0},"kW",{"$f":"\"Total Building \" & $E$9 & \" Combined\"","v":"Total Building 7 Combined"},null,null,{"$f":"SUM(L22,L23)","v":0},"kWh/Yr",{"$f":"\"Total Building \" & $E$9 & \" Combined\"","v":"Total Building 7 Combined"},null,null,null,{"$f":"SUM(R22,R23)","v":0},"$/Yr"]
[]
[null,null,"LIGHTING"]
[]
[null,"\nTo determine the site’s lighting loads and energy use, select each of the room’s lighting fixture types and quantity (Qty) using the dropdown lists below.\n\nSelect a light type from the dropdown list for each size and kind of fixture in a room. Then enter the quantity for each type. The tool provides the fixture’s electrical \nenergy load in watts. Do not include task lights (directional lights used to illuminate an area of work) when entering the room's lighting fixtures. \n\nIf a type of fixture is not available in the dropdown list, use the \"Other Type\" input field to enter the fixture and its total wattage.\n\nThe table automatically totals the room's lighting loads, each building's lighting energy use and the site's total lighting energy use per year for use in other areas of the tool.\nEnter the area of each room and the tool calculates the Lighting Power Density (LPD) in watts per square foot.  \nYou can now take an important next step and compare LPD’s from room to room and building to building to determine where excess energy might be in use.\n"]
[]
[]
[]
[]
[]
[]
[null,null,"Room 1 Name",null,null,null,null,"Area",null,"Ft2",null,null,null,"Room 2 Name",null,null,null,null,"Area",null,"Ft2"]
[null,null,"Room 1 Lighting (Main Lighting only - Do not include task lights)",null,null,null,null,null,null,null,null,null,null,"Room 2 Lighting (Main Lighting only - Do not include task lights)"]
[null,null,"Select up to 6 Light Fixture Types",null,null,null,null,null,null,null,"Total Room Wattage (W)",null,null,"Select up to 6 Light Fixture Types",null,null,null,null,null,null,null,"Total Room Wattage (W)"]
[null,null,"Light Type 1",null,"Select Light Fixture",{"$f":"VLOOKUP(E38,'Linked Cells (hidden)'!$D$57:$E$150,2,FALSE)","v":"Total"},null,{"$f":"VLOOKUP(E38,'Linked Cells (hidden)'!$D$57:$E$150,2,FALSE)& \"  \" & \"Watts\"","v":"Total  Watts"},null,null,{"$f":"(IF(F38=\"Total\",0,I38*F38)+IF(F39=\"Total\",0,I39*F39)+IF(F40=\"Total\",0,I40*F40)+IF(F41=\"Total\",0,I41*F41)+IF(F42=\"Total\",0,I42*F42)+IF(F43=\"Total\",0,I43*F43))","v":0},null,"W","Light Type 1",null,"Select Light Fixture",{"$f":"VLOOKUP(P38,'Linked Cells (hidden)'!$D$57:$E$150,2,FALSE)","v":"Total"},null,{"$f":"VLOOKUP(P38,'Linked Cells (hidden)'!$D$57:$E$140,2,FALSE)& \"  \" & \"Watts\"","v":"Total  Watts"},null,null,{"$f":"(IF(Q38=\"Total\",0,T38*Q38)+IF(Q39=\"Total\",0,T39*Q39)+IF(Q40=\"Total\",0,T40*Q40)+IF(Q41=\"Total\",0,T41*Q41)+IF(Q42=\"Total\",0,T42*Q42)+IF(Q43=\"Total\",0,T43*Q43))","v":0},null,"W"]
[null,null,"Light Type 2",null,"Select Light Fixture",{"$f":"VLOOKUP(E39,'Linked Cells (hidden)'!$D$57:$E$150,2,FALSE)","v":"Total"},null,{"$f":"VLOOKUP(E39,'Linked Cells (hidden)'!$D$57:$E$150,2,FALSE)& \"  \" & \"Watts\"","v":"Total  Watts"},null,null,null,null,null,"Light Type 2",null,"Select Light Fixture",{"$f":"VLOOKUP(P39,'Linked Cells (hidden)'!$D$57:$E$150,2,FALSE)","v":"Total"},null,{"$f":"VLOOKUP(P39,'Linked Cells (hidden)'!$D$57:$E$140,2,FALSE)& \"  \" & \"Watts\"","v":"Total  Watts"}]
[null,null,"Light Type 3",null,"Select Light Fixture",{"$f":"VLOOKUP(E40,'Linked Cells (hidden)'!$D$57:$E$150,2,FALSE)","v":"Total"},null,{"$f":"VLOOKUP(E40,'Linked Cells (hidden)'!$D$57:$E$150,2,FALSE)& \"  \" & \"Watts\"","v":"Total  Watts"},null,null,"Room Lighting Power Density (LPD)",null,null,"Light Type 3",null,"Select Light Fixture",{"$f":"VLOOKUP(P40,'Linked Cells (hidden)'!$D$57:$E$150,2,FALSE)","v":"Total"},null,{"$f":"VLOOKUP(P40,'Linked Cells (hidden)'!$D$57:$E$140,2,FALSE)& \"  \" & \"Watts\"","v":"Total  Watts"},null,null,"Room Lighting Power Density (LPD)"]
[null,null,"Light Type 4",null,"Select Light Fixture",{"$f":"VLOOKUP(E41,'Linked Cells (hidden)'!$D$57:$E$150,2,FALSE)","v":"Total"},null,{"$f":"VLOOKUP(E41,'Linked Cells (hidden)'!$D$57:$E$150,2,FALSE)& \"  \" & \"Watts\"","v":"Total  Watts"},null,null,{"$f":"IF(K38=0,\"\",K38/I35)","v":""},"W/ft2",null,"Light Type 4",null,"Select Light Fixture",{"$f":"VLOOKUP(P41,'Linked Cells (hidden)'!$D$57:$E$150,2,FALSE)","v":"Total"},null,{"$f":"VLOOKUP(P41,'Linked Cells (hidden)'!$D$57:$E$140,2,FALSE)& \"  \" & \"Watts\"","v":"Total  Watts"},null,null,{"$f":"IF(V38=0,\"\",V38/T35)","v":""},"W/ft2"]
[null,null,"Light Type 5",null,"Select Light Fixture",{"$f":"VLOOKUP(E42,'Linked Cells (hidden)'!$D$57:$E$150,2,FALSE)","v":"Total"},null,{"$f":"VLOOKUP(E42,'Linked Cells (hidden)'!$D$57:$E$150,2,FALSE)& \"  \" & \"Watts\"","v":"Total  Watts"},null,null,null,null,null,"Light Type 5",null,"Select Light Fixture",{"$f":"VLOOKUP(P42,'Linked Cells (hidden)'!$D$57:$E$150,2,FALSE)","v":"Total"},null,{"$f":"VLOOKUP(P42,'Linked Cells (hidden)'!$D$57:$E$140,2,FALSE)& \"  \" & \"Watts\"","v":"Total  Watts"}]
[null,null,"Other Type : Name",null,null,{"$f":"IF(D44=0,\"Total\",D44)","v":"Total"},null,{"$f":"F43 & \" Watts\"","v":"Total Watts"},null,null,null,null,null,"Other Type : Name",null,null,{"$f":"IF(O44=0,\"Total\",O44)","v":"Total"},null,{"$f":"Q43 & \" Watts\"","v":"Total Watts"}]
[null,null,"                      : Watts",null,null,null,null,null,null,null,null,null,null,"                      : Watts"]
[]
[]
[null,null,"Room 3 Name",null,null,null,null,"Area",null,"Ft2",null,null,null,"Room 4 Name",null,null,null,null,"Area",null,"Ft2"]
[null,null,"Room 3 Lighting (Main Lighting only - Do not include task lights)",null,null,null,null,null,null,null,null,null,null,"Room 4 Lighting (Main Lighting only - Do not include task lights)"]
[null,null,"Select up to 6 Light Fixture Types",null,null,null,null,null,null,null,"Total Room Wattage (W)",null,null,"Select up to 6 Light Fixture Types",null,null,null,null,null,null,null,"Total Room Wattage (W)"]
[null,null,"Light Type 1",null,"Select Light Fixture",{"$f":"VLOOKUP(E50,'Linked Cells (hidden)'!$D$57:$E$150,2,FALSE)","v":"Total"},null,{"$f":"VLOOKUP(E50,'Linked Cells (hidden)'!$D$57:$E$150,2,FALSE)& \"  \" & \"Watts\"","v":"Total  Watts"},null,null,{"$f":"(IF(F50=\"Total\",0,I50*F50)+IF(F51=\"Total\",0,I51*F51)+IF(F52=\"Total\",0,I52*F52)+IF(F53=\"Total\",0,I53*F53)+IF(F54=\"Total\",0,I54*F54)+IF(F55=\"Total\",0,I55*F55))","v":0},null,"W","Light Type 1",null,"Select Light Fixture",{"$f":"VLOOKUP(P50,'Linked Cells (hidden)'!$D$57:$E$150,2,FALSE)","v":"Total"},null,{"$f":"VLOOKUP(P50,'Linked Cells (hidden)'!$D$57:$E$140,2,FALSE)& \"  \" & \"Watts\"","v":"Total  Watts"},null,null,{"$f":"(IF(Q50=\"Total\",0,T50*Q50)+IF(Q51=\"Total\",0,T51*Q51)+IF(Q52=\"Total\",0,T52*Q52)+IF(Q53=\"Total\",0,T53*Q53)+IF(Q54=\"Total\",0,T54*Q54)+IF(Q55=\"Total\",0,T55*Q55))","v":0},null,"W"]
[null,null,"Light Type 2",null,"Select Light Fixture",{"$f":"VLOOKUP(E51,'Linked Cells (hidden)'!$D$57:$E$150,2,FALSE)","v":"Total"},null,{"$f":"VLOOKUP(E51,'Linked Cells (hidden)'!$D$57:$E$150,2,FALSE)& \"  \" & \"Watts\"","v":"Total  Watts"},null,null,null,null,null,"Light Type 2",null,"Select Light Fixture",{"$f":"VLOOKUP(P51,'Linked Cells (hidden)'!$D$57:$E$150,2,FALSE)","v":"Total"},null,{"$f":"VLOOKUP(P51,'Linked Cells (hidden)'!$D$57:$E$140,2,FALSE)& \"  \" & \"Watts\"","v":"Total  Watts"}]
[null,null,"Light Type 3",null,"Select Light Fixture",{"$f":"VLOOKUP(E52,'Linked Cells (hidden)'!$D$57:$E$150,2,FALSE)","v":"Total"},null,{"$f":"VLOOKUP(E52,'Linked Cells (hidden)'!$D$57:$E$150,2,FALSE)& \"  \" & \"Watts\"","v":"Total  Watts"},null,null,"Room Lighting Power Density (LPD)",null,null,"Light Type 3",null,"Select Light Fixture",{"$f":"VLOOKUP(P52,'Linked Cells (hidden)'!$D$57:$E$150,2,FALSE)","v":"Total"},null,{"$f":"VLOOKUP(P52,'Linked Cells (hidden)'!$D$57:$E$140,2,FALSE)& \"  \" & \"Watts\"","v":"Total  Watts"},null,null,"Room Lighting Power Density (LPD)"]
[null,null,"Light Type 4",null,"Select Light Fixture",{"$f":"VLOOKUP(E53,'Linked Cells (hidden)'!$D$57:$E$150,2,FALSE)","v":"Total"},null,{"$f":"VLOOKUP(E53,'Linked Cells (hidden)'!$D$57:$E$150,2,FALSE)& \"  \" & \"Watts\"","v":"Total  Watts"},null,null,{"$f":"IF(K50=0,\"\",K50/I47)","v":""},"W/ft2",null,"Light Type 4",null,"Select Light Fixture",{"$f":"VLOOKUP(P53,'Linked Cells (hidden)'!$D$57:$E$150,2,FALSE)","v":"Total"},null,{"$f":"VLOOKUP(P53,'Linked Cells (hidden)'!$D$57:$E$140,2,FALSE)& \"  \" & \"Watts\"","v":"Total  Watts"},null,null,{"$f":"IF(V50=0,\"\",V50/T47)","v":""},"W/ft2"]
[null,null,"Light Type 5",null,"Select Light Fixture",{"$f":"VLOOKUP(E54,'Linked Cells (hidden)'!$D$57:$E$150,2,FALSE)","v":"Total"},null,{"$f":"VLOOKUP(E54,'Linked Cells (hidden)'!$D$57:$E$150,2,FALSE)& \"  \" & \"Watts\"","v":"Total  Watts"},null,null,null,null,null,"Light Type 5",null,"Select Light Fixture",{"$f":"VLOOKUP(P54,'Linked Cells (hidden)'!$D$57:$E$150,2,FALSE)","v":"Total"},null,{"$f":"VLOOKUP(P54,'Linked Cells (hidden)'!$D$57:$E$140,2,FALSE)& \"  \" & \"Watts\"","v":"Total  Watts"}]
[null,null,"Other Type : Name",null,null,{"$f":"IF(D56=0,\"Total\",D56)","v":"Total"},null,{"$f":"F55 & \" Watts\"","v":"Total Watts"},null,null,null,null,null,"Other Type : Name",null,null,{"$f":"IF(O56=0,\"Total\",O56)","v":"Total"},null,{"$f":"Q55 & \" Watts\"","v":"Total Watts"}]
[null,null,"                      : Watts",null,null,null,null,null,null,null,null,null,null,"                      : Watts"]
[]
[]
[null,null,"Room 5 Name",null,null,null,null,"Area",null,"Ft2",null,null,null,"Room 6 Name",null,null,null,null,"Area",null,"Ft2"]
[null,null,"Room 5 Lighting (Main Lighting only - Do not include task lights)",null,null,null,null,null,null,null,null,null,null,"Room 6 Lighting (Main Lighting only - Do not include task lights)"]
[null,null,"Select up to 6 Light Fixture Types",null,null,null,null,null,null,null,"Total Room Wattage (W)",null,null,"Select up to 6 Light Fixture Types",null,null,null,null,null,null,null,"Total Room Wattage (W)"]
[null,null,"Light Type 1",null,"Select Light Fixture",{"$f":"VLOOKUP(E62,'Linked Cells (hidden)'!$D$57:$E$150,2,FALSE)","v":"Total"},null,{"$f":"VLOOKUP(E62,'Linked Cells (hidden)'!$D$57:$E$150,2,FALSE)& \"  \" & \"Watts\"","v":"Total  Watts"},null,null,{"$f":"(IF(F62=\"Total\",0,I62*F62)+IF(F63=\"Total\",0,I63*F63)+IF(F64=\"Total\",0,I64*F64)+IF(F65=\"Total\",0,I65*F65)+IF(F66=\"Total\",0,I66*F66)+IF(F67=\"Total\",0,I67*F67))","v":0},null,"W","Light Type 1",null,"Select Light Fixture",{"$f":"VLOOKUP(P62,'Linked Cells (hidden)'!$D$57:$E$150,2,FALSE)","v":"Total"},null,{"$f":"VLOOKUP(P62,'Linked Cells (hidden)'!$D$57:$E$140,2,FALSE)& \"  \" & \"Watts\"","v":"Total  Watts"},null,null,{"$f":"(IF(Q62=\"Total\",0,T62*Q62)+IF(Q63=\"Total\",0,T63*Q63)+IF(Q64=\"Total\",0,T64*Q64)+IF(Q65=\"Total\",0,T65*Q65)+IF(Q66=\"Total\",0,T66*Q66)+IF(Q67=\"Total\",0,T67*Q67))","v":0},null,"W"]
[null,null,"Light Type 2",null,"Select Light Fixture",{"$f":"VLOOKUP(E63,'Linked Cells (hidden)'!$D$57:$E$150,2,FALSE)","v":"Total"},null,{"$f":"VLOOKUP(E63,'Linked Cells (hidden)'!$D$57:$E$150,2,FALSE)& \"  \" & \"Watts\"","v":"Total  Watts"},null,null,null,null,null,"Light Type 2",null,"Select Light Fixture",{"$f":"VLOOKUP(P63,'Linked Cells (hidden)'!$D$57:$E$150,2,FALSE)","v":"Total"},null,{"$f":"VLOOKUP(P63,'Linked Cells (hidden)'!$D$57:$E$140,2,FALSE)& \"  \" & \"Watts\"","v":"Total  Watts"}]
[null,null,"Light Type 3",null,"Select Light Fixture",{"$f":"VLOOKUP(E64,'Linked Cells (hidden)'!$D$57:$E$150,2,FALSE)","v":"Total"},null,{"$f":"VLOOKUP(E64,'Linked Cells (hidden)'!$D$57:$E$150,2,FALSE)& \"  \" & \"Watts\"","v":"Total  Watts"},null,null,"Room Lighting Power Density (LPD)",null,null,"Light Type 3",null,"Select Light Fixture",{"$f":"VLOOKUP(P64,'Linked Cells (hidden)'!$D$57:$E$150,2,FALSE)","v":"Total"},null,{"$f":"VLOOKUP(P64,'Linked Cells (hidden)'!$D$57:$E$140,2,FALSE)& \"  \" & \"Watts\"","v":"Total  Watts"},null,null,"Room Lighting Power Density (LPD)"]
[null,null,"Light Type 4",null,"Select Light Fixture",{"$f":"VLOOKUP(E65,'Linked Cells (hidden)'!$D$57:$E$150,2,FALSE)","v":"Total"},null,{"$f":"VLOOKUP(E65,'Linked Cells (hidden)'!$D$57:$E$150,2,FALSE)& \"  \" & \"Watts\"","v":"Total  Watts"},null,null,{"$f":"IF(K62=0,\"\",K62/I59)","v":""},"W/ft2",null,"Light Type 4",null,"Select Light Fixture",{"$f":"VLOOKUP(P65,'Linked Cells (hidden)'!$D$57:$E$150,2,FALSE)","v":"Total"},null,{"$f":"VLOOKUP(P65,'Linked Cells (hidden)'!$D$57:$E$140,2,FALSE)& \"  \" & \"Watts\"","v":"Total  Watts"},null,null,{"$f":"IF(V62=0,\"\",V62/T59)","v":""},"W/ft2"]
[null,null,"Light Type 5",null,"Select Light Fixture",{"$f":"VLOOKUP(E66,'Linked Cells (hidden)'!$D$57:$E$150,2,FALSE)","v":"Total"},null,{"$f":"VLOOKUP(E66,'Linked Cells (hidden)'!$D$57:$E$150,2,FALSE)& \"  \" & \"Watts\"","v":"Total  Watts"},null,null,null,null,null,"Light Type 5",null,"Select Light Fixture",{"$f":"VLOOKUP(P66,'Linked Cells (hidden)'!$D$57:$E$150,2,FALSE)","v":"Total"},null,{"$f":"VLOOKUP(P66,'Linked Cells (hidden)'!$D$57:$E$140,2,FALSE)& \"  \" & \"Watts\"","v":"Total  Watts"}]
[null,null,"Other Type : Name",null,null,{"$f":"IF(D68=0,\"Total\",D68)","v":"Total"},null,{"$f":"F67 & \" Watts\"","v":"Total Watts"},null,null,null,null,null,"Other Type : Name",null,null,{"$f":"IF(O68=0,\"Total\",O68)","v":"Total"},null,{"$f":"Q67 & \" Watts\"","v":"Total Watts"}]
[null,null,"                      : Watts",null,null,null,null,null,null,null,null,null,null,"                      : Watts"]
[]
[]
[null,null,"Room 7 Name",null,null,null,null,"Area",null,"Ft2",null,null,null,"Room 8 Name",null,null,null,null,"Area",null,"Ft2"]
[null,null,"Room 7 Lighting (Main Lighting only - Do not include task lights)",null,null,null,null,null,null,null,null,null,null,"Room 8 Lighting (Main Lighting only - Do not include task lights)"]
[null,null,"Select up to 6 Light Fixture Types",null,null,null,null,null,null,null,"Total Room Wattage (W)",null,null,"Select up to 6 Light Fixture Types",null,null,null,null,null,null,null,"Total Room Wattage (W)"]
[null,null,"Light Type 1",null,"Select Light Fixture",null,null,{"$f":"VLOOKUP(E74,'Linked Cells (hidden)'!$D$57:$E$150,2,FALSE)& \"  \" & \"Watts\"","v":"Total  Watts"},null,null,{"$f":"(IF(F74=\"Total\",0,I74*F74)+IF(F75=\"Total\",0,I75*F75)+IF(F76=\"Total\",0,I76*F76)+IF(F77=\"Total\",0,I77*F77)+IF(F78=\"Total\",0,I78*F78)+IF(F79=\"Total\",0,I79*F79))","v":0},null,"W","Light Type 1",null,"Select Light Fixture",null,null,{"$f":"VLOOKUP(P74,'Linked Cells (hidden)'!$D$57:$E$140,2,FALSE)& \"  \" & \"Watts\"","v":"Total  Watts"},null,null,{"$f":"(IF(Q74=\"Total\",0,T74*Q74)+IF(Q75=\"Total\",0,T75*Q75)+IF(Q76=\"Total\",0,T76*Q76)+IF(Q77=\"Total\",0,T77*Q77)+IF(Q78=\"Total\",0,T78*Q78)+IF(Q79=\"Total\",0,T79*Q79))","v":0},null,"W"]
[null,null,"Light Type 2",null,"Select Light Fixture",{"$f":"VLOOKUP(E75,'Linked Cells (hidden)'!$D$57:$E$150,2,FALSE)","v":"Total"},null,{"$f":"VLOOKUP(E75,'Linked Cells (hidden)'!$D$57:$E$150,2,FALSE)& \"  \" & \"Watts\"","v":"Total  Watts"},null,null,null,null,null,"Light Type 2",null,"Select Light Fixture",{"$f":"VLOOKUP(P75,'Linked Cells (hidden)'!$D$57:$E$150,2,FALSE)","v":"Total"},null,{"$f":"VLOOKUP(P75,'Linked Cells (hidden)'!$D$57:$E$140,2,FALSE)& \"  \" & \"Watts\"","v":"Total  Watts"}]
[null,null,"Light Type 3",null,"Select Light Fixture",{"$f":"VLOOKUP(E76,'Linked Cells (hidden)'!$D$57:$E$150,2,FALSE)","v":"Total"},null,{"$f":"VLOOKUP(E76,'Linked Cells (hidden)'!$D$57:$E$150,2,FALSE)& \"  \" & \"Watts\"","v":"Total  Watts"},null,null,"Room Lighting Power Density (LPD)",null,null,"Light Type 3",null,"Select Light Fixture",{"$f":"VLOOKUP(P76,'Linked Cells (hidden)'!$D$57:$E$150,2,FALSE)","v":"Total"},null,{"$f":"VLOOKUP(P76,'Linked Cells (hidden)'!$D$57:$E$140,2,FALSE)& \"  \" & \"Watts\"","v":"Total  Watts"},null,null,"Room Lighting Power Density (LPD)"]
[null,null,"Light Type 4",null,"Select Light Fixture",{"$f":"VLOOKUP(E77,'Linked Cells (hidden)'!$D$57:$E$150,2,FALSE)","v":"Total"},null,{"$f":"VLOOKUP(E77,'Linked Cells (hidden)'!$D$57:$E$150,2,FALSE)& \"  \" & \"Watts\"","v":"Total  Watts"},null,null,{"$f":"IF(K74=0,\"\",K74/I71)","v":""},"W/ft2",null,"Light Type 4",null,"Select Light Fixture",{"$f":"VLOOKUP(P77,'Linked Cells (hidden)'!$D$57:$E$150,2,FALSE)","v":"Total"},null,{"$f":"VLOOKUP(P77,'Linked Cells (hidden)'!$D$57:$E$140,2,FALSE)& \"  \" & \"Watts\"","v":"Total  Watts"},null,null,{"$f":"IF(V74=0,\"\",V74/T71)","v":""},"W/ft2"]
[null,null,"Light Type 5",null,"Select Light Fixture",{"$f":"VLOOKUP(E78,'Linked Cells (hidden)'!$D$57:$E$150,2,FALSE)","v":"Total"},null,{"$f":"VLOOKUP(E78,'Linked Cells (hidden)'!$D$57:$E$150,2,FALSE)& \"  \" & \"Watts\"","v":"Total  Watts"},null,null,null,null,null,"Light Type 5",null,"Select Light Fixture",{"$f":"VLOOKUP(P78,'Linked Cells (hidden)'!$D$57:$E$150,2,FALSE)","v":"Total"},null,{"$f":"VLOOKUP(P78,'Linked Cells (hidden)'!$D$57:$E$140,2,FALSE)& \"  \" & \"Watts\"","v":"Total  Watts"}]
[null,null,"Other Type : Name",null,null,{"$f":"IF(D80=0,\"Total\",D80)","v":"Total"},null,{"$f":"F79 & \" Watts\"","v":"Total Watts"},null,null,null,null,null,"Other Type : Name",null,null,{"$f":"IF(O80=0,\"Total\",O80)","v":"Total"},null,{"$f":"Q79 & \" Watts\"","v":"Total Watts"}]
[null,null,"                      : Watts",null,null,null,null,null,null,null,null,null,null,"                      : Watts"]
[]
[]
[null,null,"Room 9 Name",null,null,null,null,"Area",null,"Ft2",null,null,null,"Room 10 Name",null,null,null,null,"Area",null,"Ft2"]
[null,null,"Room 9 Lighting (Main Lighting only - Do not include task lights)",null,null,null,null,null,null,null,null,null,null,"Room 10 Lighting (Main Lighting only - Do not include task lights)"]
[null,null,"Select up to 6 Light Fixture Types",null,null,null,null,null,null,null,"Total Room Wattage (W)",null,null,"Select up to 6 Light Fixture Types",null,null,null,null,null,null,null,"Total Room Wattage (W)"]
[null,null,"Light Type 1",null,"Select Light Fixture",{"$f":"VLOOKUP(E86,'Linked Cells (hidden)'!$D$57:$E$150,2,FALSE)","v":"Total"},null,{"$f":"VLOOKUP(E86,'Linked Cells (hidden)'!$D$57:$E$150,2,FALSE)& \"  \" & \"Watts\"","v":"Total  Watts"},null,null,{"$f":"(IF(F86=\"Total\",0,I86*F86)+IF(F87=\"Total\",0,I87*F87)+IF(F88=\"Total\",0,I88*F88)+IF(F89=\"Total\",0,I89*F89)+IF(F90=\"Total\",0,I90*F90)+IF(F91=\"Total\",0,I91*F91))","v":0},null,"W","Light Type 1",null,"Select Light Fixture",{"$f":"VLOOKUP(P86,'Linked Cells (hidden)'!$D$57:$E$150,2,FALSE)","v":"Total"},null,{"$f":"VLOOKUP(P86,'Linked Cells (hidden)'!$D$57:$E$140,2,FALSE)& \"  \" & \"Watts\"","v":"Total  Watts"},null,null,{"$f":"(IF(Q86=\"Total\",0,T86*Q86)+IF(Q87=\"Total\",0,T87*Q87)+IF(Q88=\"Total\",0,T88*Q88)+IF(Q89=\"Total\",0,T89*Q89)+IF(Q90=\"Total\",0,T90*Q90)+IF(Q91=\"Total\",0,T91*Q91))","v":0},null,"W"]
[null,null,"Light Type 2",null,"Select Light Fixture",null,null,{"$f":"VLOOKUP(E87,'Linked Cells (hidden)'!$D$57:$E$150,2,FALSE)& \"  \" & \"Watts\"","v":"Total  Watts"},null,null,null,null,null,"Light Type 2",null,"Select Light Fixture",null,null,{"$f":"VLOOKUP(P87,'Linked Cells (hidden)'!$D$57:$E$140,2,FALSE)& \"  \" & \"Watts\"","v":"Total  Watts"}]
[null,null,"Light Type 3",null,"Select Light Fixture",{"$f":"VLOOKUP(E88,'Linked Cells (hidden)'!$D$57:$E$150,2,FALSE)","v":"Total"},null,{"$f":"VLOOKUP(E88,'Linked Cells (hidden)'!$D$57:$E$150,2,FALSE)& \"  \" & \"Watts\"","v":"Total  Watts"},null,null,"Room Lighting Power Density (LPD)",null,null,"Light Type 3",null,"Select Light Fixture",{"$f":"VLOOKUP(P88,'Linked Cells (hidden)'!$D$57:$E$150,2,FALSE)","v":"Total"},null,{"$f":"VLOOKUP(P88,'Linked Cells (hidden)'!$D$57:$E$140,2,FALSE)& \"  \" & \"Watts\"","v":"Total  Watts"},null,null,"Room Lighting Power Density (LPD)"]
[null,null,"Light Type 4",null,"Select Light Fixture",{"$f":"VLOOKUP(E89,'Linked Cells (hidden)'!$D$57:$E$150,2,FALSE)","v":"Total"},null,{"$f":"VLOOKUP(E89,'Linked Cells (hidden)'!$D$57:$E$150,2,FALSE)& \"  \" & \"Watts\"","v":"Total  Watts"},null,null,{"$f":"IF(K86=0,\"\",K86/I83)","v":""},"W/ft2",null,"Light Type 4",null,"Select Light Fixture",{"$f":"VLOOKUP(P89,'Linked Cells (hidden)'!$D$57:$E$150,2,FALSE)","v":"Total"},null,{"$f":"VLOOKUP(P89,'Linked Cells (hidden)'!$D$57:$E$140,2,FALSE)& \"  \" & \"Watts\"","v":"Total  Watts"},null,null,{"$f":"IF(V86=0,\"\",V86/T83)","v":""},"W/ft2"]
[null,null,"Light Type 5",null,"Select Light Fixture",{"$f":"VLOOKUP(E90,'Linked Cells (hidden)'!$D$57:$E$150,2,FALSE)","v":"Total"},null,{"$f":"VLOOKUP(E90,'Linked Cells (hidden)'!$D$57:$E$150,2,FALSE)& \"  \" & \"Watts\"","v":"Total  Watts"},null,null,null,null,null,"Light Type 5",null,"Select Light Fixture",{"$f":"VLOOKUP(P90,'Linked Cells (hidden)'!$D$57:$E$150,2,FALSE)","v":"Total"},null,{"$f":"VLOOKUP(P90,'Linked Cells (hidden)'!$D$57:$E$140,2,FALSE)& \"  \" & \"Watts\"","v":"Total  Watts"}]
[null,null,"Other Type : Name",null,null,{"$f":"IF(D92=0,\"Total\",D92)","v":"Total"},null,{"$f":"F91 & \" Watts\"","v":"Total Watts"},null,null,null,null,null,"Other Type : Name",null,null,{"$f":"IF(O92=0,\"Total\",O92)","v":"Total"},null,{"$f":"Q91 & \" Watts\"","v":"Total Watts"}]
[null,null,"                      : Watts",null,null,null,null,null,null,null,null,null,null,"                      : Watts"]
[]
[]
[]
[null,"HVAC/Non-Process Energy "]
[]
[null,"\nTo determine the site's Non-Process Heating, Ventilating, and Air Conditioning (HVAC) loads and energy use, describe each building's HVAC electrical using units by entering them below. If multiple of a unit exists, either add them into the table as separate units or enter Motor Size as the motor's size (in hp) multiplied by the quantity.\n\nNon-Process HVAC is meant to include all equipment not tied to specific process operations such as general ventilation heaters, office air conditioners, restroom exhaust fans, etc. \nDo not provide process-related ventilation equipment such as odor control fans here.  You can enter process equipment information on the \"WTP or WWTP Energy Usage\" tab.    \n\nFor each Non-Process HVAC unit select the equipment type from the dropdown list and enter an “Equipment Description.”\n\nCollect and enter each unit’s motor size, efficiency and full load amperage (FLA) ratings.  This information can be gathered from the equipment's nameplate or specification datasheet.\nIf the site has authorized personnel capable of taking electrical measurements, enter the motors average operating current. Otherwise leave the \"Average Motor Operating Current\" blank and the tool will use an 80% Load Factor in its calculations. \n\nOnce the equipment's typical operating hours are entered, the tool calculates the estimated annual energy use and operating cost for the unit.\nIf conditions at the plant change, you can adjust these values.\n\nA summary of the HVAC and lighting information entered on the building data tabs is displayed on the top on the WTP and WWTP Energy Usage tabs.  For those values to be included in the total energy use and to be displayed in the pie charts and summary report, you must enter the values in the Equipment Electrical Energy Inventory table (on the WTP or WWTP Energy Usage tab) as Non Process HVAC. See the instructions on that tab on how to enter this information.\n"]
[]
[]
[]
[]
[null,null,"System Type","Equipment Type",null,null,"Equipment Description","Motor Size (hp)","Motor Efficiency","Motor Full Load Amperage (FLA)","Average Motor Operating Current          (Amps)","Motor Operating Hours              (Hours/Year)","Average Load Factor\n(%)","Average HVAC Electric Load (kW)","Estimated Annual Energy Use (kWh/yr)",null,null,"Estimated Annual Operating Costs  ($/Year)","Estimated Percent of Site Electric Use & Cost (%)"]
[null,null,"Non Process HVAC","Select Equipment",null,null,null,null,null,null,null,null,{"$f":"IF(J104=0,0,IF(K104=0,0.75,K104/J104))","v":0},{"$f":"IF(I104=0,0,H104*0.746*M104/I104)","v":0},{"$f":"N104*L104","v":0},null,null,{"$f":"O104*'General Information'!$H$46","v":0},{"$f":"IF('General Information'!$H$44=0,\"\",O104/'General Information'!$H$44)","v":""}]
[null,null,"Non Process HVAC","Select Equipment",null,null,null,null,null,null,null,null,0,0,0,null,null,{"$f":"O105*'General Information'!$H$46","v":0},{"$f":"IF('General Information'!$H$44=0,\"\",O105/'General Information'!$H$44)","v":""}]
[null,null,"Non Process HVAC","Select Equipment",null,null,null,null,null,null,null,null,0,0,0,null,null,{"$f":"O106*'General Information'!$H$46","v":0},{"$f":"IF('General Information'!$H$44=0,\"\",O106/'General Information'!$H$44)","v":""}]
[null,null,"Non Process HVAC","Select Equipment",null,null,null,null,null,null,null,null,0,0,0,null,null,{"$f":"O107*'General Information'!$H$46","v":0},{"$f":"IF('General Information'!$H$44=0,\"\",O107/'General Information'!$H$44)","v":""}]
[null,null,"Non Process HVAC","Select Equipment",null,null,null,null,null,null,null,null,0,0,0,null,null,{"$f":"O108*'General Information'!$H$46","v":0},{"$f":"IF('General Information'!$H$44=0,\"\",O108/'General Information'!$H$44)","v":""}]
[null,null,"Non Process HVAC","Select Equipment",null,null,null,null,null,null,null,null,0,0,0,null,null,{"$f":"O109*'General Information'!$H$46","v":0},{"$f":"IF('General Information'!$H$44=0,\"\",O109/'General Information'!$H$44)","v":""}]
[]
[null,null,null,null,null,null,null,null,null,"Total Building HVAC",null,null,null,{"$f":"SUM(N101:N109)","v":0},{"$f":"SUM(O101:O109)","v":0},null,null,{"$f":"SUM(R104:R109)","v":0},{"$f":"SUM(S104:S109)","v":0}]

{"sheet":"Building 8 Data","index":10,"n_rows":111,"n_cols":24,"rows_kept":111,"cut":false,"hidden":true,"merged":[[36,21,36,22],[49,21,49,22],[84,21,84,22],[37,21,37,22],[46,3,46,6],[37,10,37,11],[48,21,48,22],[46,14,46,17],[85,21,85,22],[85,10,85,11],[70,14,70,17],[60,21,60,22],[61,21,61,22],[73,21,73,22],[0,0,0,10],[12,1,13,14],[20,2,20,3],[8,7,8,9],[10,7,10,9],[3,1,3,17],[10,1,10,2],[20,13,20,14],[19,6,20,7],[20,8,20,10],[2,1,2,3],[8,12,9,13],[36,10,36,11],[34,14,34,17],[58,3,58,6],[49,10,49,11],[48,10,48,11],[61,10,61,11],[72,21,72,22],[60,10,60,11],[72,10,72,11],[84,10,84,11],[110,9,110,12],[70,3,70,6],[82,3,82,6],[97,1,99,20],[82,14,82,17],[73,10,73,11],[58,14,58,17],[5,1,6,17],[8,1,8,2],[27,1,31,14],[34,3,34,6],[17,3,17,6]]}
[{"$f":"\"EPA Energy Use Assessment Tool for \" & workbookType","v":"EPA Energy Use Assessment Tool for Drinking Water Systems"}]
["Site Structural Buildings - Major Non-Process Energy Users"]
[]
[null,"\nIn the Building Data tabs, the tool totals each building’s Lighting and HVAC information. You should use the totals for entry on the WTP or WWTP Energy Use tabs.  For instructions on how to enter that information, see the WTP or WWTP Energy Usage tabs. If you have already identified the site's Lighting and HVAC loads or would just like to estimate them without detailing this information here, proceed to the WTP or WWTP Energy Usage tab.\n\nIf you skip this tab, you can come back later to fill in this detail.\n\n\n\n"]
[]
[null,"\nThe following information is entered once for the entire plant.\n\nTo change the Total Number of Buildings on-site, go to the \"Building 1 Data\" tab and click the \"Set # of Buildings\" button. This lets you enter information for the specified number of buildings.\n\nAfter entering data in a building tab, click the \"Save and Continue\" button at the top. That allows you to enter data for the next building or if building data entry is complete, to return to the General Information tab. You can also click the other Building Data tabs at the bottom. \n\n"]
[]
[]
[null,"Total Plant Building Area",null,{"$f":"'Building 1 Data'!D9","v":0},8,null,"Ft2","Total Plant Building Electric Load",null,null,{"$f":"'Building 1 Data'!K9","v":0},"kW","Total Plant Building Electric Use ",null,{"$f":"'Building 1 Data'!O9","v":0},null,null,"kWh/Yr"]
[]
[null,"Does the site have buildings?",null,{"$f":"hasBldgs","v":"Yes"},null,null,null,"Total Number of Buildings On-site:",null,null,{"$f":"[0]!totalbldgs","v":"1"}]
[]
[null,"Enter the following information for each building at the plant.\n\nTo begin, select the number of rooms in the \"No. of Rooms\" dropdown list below and click the \"Set # of rooms\" button.   It is important to know and set the number of rooms upfront, before any lighting data is entered.  If the number of rooms is later changed, all the data that had been entered will be lost. "]
[]
[]
[null,null,{"$f":"\"BUILDING \" & E9","v":"BUILDING 8"}]
[]
[null,null,"Name",null,null,null,null,null,"Operating Hours per Year",null,{"$f":"IF(K19=\"\",\"\",K19*K20*52)","v":""},"Hrs/Yr","Approximate Building Age (If known)",null,null,null,null,null,"Yrs"]
[null,null,"Area",{"$f":"I35+T35+T47+I47+I59+T59+T71+I71+I83+T83","v":0},null,null,"Ft2",null,"Operating Hours per Day",null,null,"Hrs/Day"]
[null,null,"No. of Rooms",null,null,null,"! Changing the number of rooms will reset all lighting data entered.",null,"Operating Days per Week",null,null,"Days/Wk","Average Building Lighting Power Density (LPD)",null,null,null,null,{"$f":"IF(D19=0,\"\",(K38+V38+V50+K50+K62+V62+V74+K74+K86+V86)/D19)","v":""},"W/ft2"]
[null,null,"Estimated Electric Load:",null,null,null,null,null,"Estimated Annual Energy Use:",null,null,null,null,"Estimated Annual Energy Cost:"]
[null,null,{"$f":"\"Total Building \" & $E$9& \" Lighting\"","v":"Total Building 8 Lighting"},null,null,null,{"$f":"IF((K38+V38+V50+K50+K62+V62+V74+K74+K86+V86)=0,0,(K38+V38+V50+K50+K62+V62+V74+K74+K86+V86)/1000)","v":0},"kW",{"$f":"\"Total Building \" & $E$9& \" Lighting\"","v":"Total Building 8 Lighting"},null,null,{"$f":"IF((K38+V38+V50+K50+K62+V62+V74+K74+K86+V86)=0,IF(K18=\"\",0,0),IF(K18=\"\",0,((K38+V38+V50+K50+K62+V62+V74+K74+K86+V86)/1000)*K18))","v":0},"kWh/Yr",{"$f":"\"Total Building \" & $E$9 & \" Lighting\"","v":"Total Building 8 Lighting"},null,null,null,{"$f":"L22*'General Information'!$H$46","v":0},"$/Yr"]
[null,null,{"$f":"\"Total Building \" & $E$9 & \" HVAC\"","v":"Total Building 8 HVAC"},null,null,null,{"$f":"N111","v":0},"kW",{"$f":"\"Total Building \" & $E$9 & \" HVAC\"","v":"Total Building 8 HVAC"},null,null,{"$f":"O$111","v":0},"kWh/Yr",{"$f":"\"Total Building \" & $E$9 & \" HVAC\"","v":"Total Building 8 HVAC"},null,null,null,{"$f":"R111","v":0},"$/Yr"]
[null,null,{"$f":"\"Total Building \" & $E$9 & \" Combined\"","v":"Total Building 8 Combined"},null,null,null,{"$f":"SUM(G22:G23)","v":0},"kW",{"$f":"\"Total Building \" & $E$9 & \" Combined\"","v":"Total Building 8 Combined"},null,null,{"$f":"SUM(L22,L23)","v":0},"kWh/Yr",{"$f":"\"Total Building \" & $E$9 & \" Combined\"","v":"Total Building 8 Combined"},null,null,null,{"$f":"SUM(R22,R23)","v":0},"$/Yr"]
[]
[null,null,"LIGHTING"]
[]
[null,"\nTo determine the site’s lighting loads and energy use, select each of the room’s lighting fixture types and quantity (Qty) using the dropdown lists below.\n\nSelect a light type from the dropdown list for each size and kind of fixture in a room. Then enter the quantity for each type. The tool provides the fixture’s electrical \nenergy load in watts. Do not include task lights (directional lights used to illuminate an area of work) when entering the room's lighting fixtures. \n\nIf a type of fixture is not available in the dropdown list, use the \"Other Type\" input field to enter the fixture and its total wattage.\n\nThe table automatically totals the room's lighting loads, each building's lighting energy use and the site's total lighting energy use per year for use in other areas of the tool.\nEnter the area of each room and the tool calculates the Lighting Power Density (LPD) in watts per square foot.  \nYou can now take an important next step and compare LPD’s from room to room and building to building to determine where excess energy might be in use.\n"]
[]
[]
[]
[]
[]
[]
[null,null,"Room 1 Name",null,null,null,null,"Area",null,"Ft2",null,null,null,"Room 2 Name",null,null,null,null,"Area",null,"Ft2"]
[null,null,"Room 1 Lighting (Main Lighting only - Do not include task lights)",null,null,null,null,null,null,null,null,null,null,"Room 2 Lighting (Main Lighting only - Do not include task lights)"]
[null,null,"Select up to 6 Light Fixture Types",null,null,null,null,null,null,null,"Total Room Wattage (W)",null,null,"Select up to 6 Light Fixture Types",null,null,null,null,null,null,null,"Total Room Wattage (W)"]
[null,null,"Light Type 1",null,"Select Light Fixture",{"$f":"VLOOKUP(E38,'Linked Cells (hidden)'!$D$57:$E$150,2,FALSE)","v":"Total"},null,{"$f":"VLOOKUP(E38,'Linked Cells (hidden)'!$D$57:$E$150,2,FALSE)& \"  \" & \"Watts\"","v":"Total  Watts"},null,null,{"$f":"(IF(F38=\"Total\",0,I38*F38)+IF(F39=\"Total\",0,I39*F39)+IF(F40=\"Total\",0,I40*F40)+IF(F41=\"Total\",0,I41*F41)+IF(F42=\"Total\",0,I42*F42)+IF(F43=\"Total\",0,I43*F43))","v":0},null,"W","Light Type 1",null,"Select Light Fixture",{"$f":"VLOOKUP(P38,'Linked Cells (hidden)'!$D$57:$E$150,2,FALSE)","v":"Total"},null,{"$f":"VLOOKUP(P38,'Linked Cells (hidden)'!$D$57:$E$140,2,FALSE)& \"  \" & \"Watts\"","v":"Total  Watts"},null,null,{"$f":"(IF(Q38=\"Total\",0,T38*Q38)+IF(Q39=\"Total\",0,T39*Q39)+IF(Q40=\"Total\",0,T40*Q40)+IF(Q41=\"Total\",0,T41*Q41)+IF(Q42=\"Total\",0,T42*Q42)+IF(Q43=\"Total\",0,T43*Q43))","v":0},null,"W"]
[null,null,"Light Type 2",null,"Select Light Fixture",{"$f":"VLOOKUP(E39,'Linked Cells (hidden)'!$D$57:$E$150,2,FALSE)","v":"Total"},null,{"$f":"VLOOKUP(E39,'Linked Cells (hidden)'!$D$57:$E$150,2,FALSE)& \"  \" & \"Watts\"","v":"Total  Watts"},null,null,null,null,null,"Light Type 2",null,"Select Light Fixture",{"$f":"VLOOKUP(P39,'Linked Cells (hidden)'!$D$57:$E$150,2,FALSE)","v":"Total"},null,{"$f":"VLOOKUP(P39,'Linked Cells (hidden)'!$D$57:$E$140,2,FALSE)& \"  \" & \"Watts\"","v":"Total  Watts"}]
[null,null,"Light Type 3",null,"Select Light Fixture",{"$f":"VLOOKUP(E40,'Linked Cells (hidden)'!$D$57:$E$150,2,FALSE)","v":"Total"},null,{"$f":"VLOOKUP(E40,'Linked Cells (hidden)'!$D$57:$E$150,2,FALSE)& \"  \" & \"Watts\"","v":"Total  Watts"},null,null,"Room Lighting Power Density (LPD)",null,null,"Light Type 3",null,"Select Light Fixture",{"$f":"VLOOKUP(P40,'Linked Cells (hidden)'!$D$57:$E$150,2,FALSE)","v":"Total"},null,{"$f":"VLOOKUP(P40,'Linked Cells (hidden)'!$D$57:$E$140,2,FALSE)& \"  \" & \"Watts\"","v":"Total  Watts"},null,null,"Room Lighting Power Density (LPD)"]
[null,null,"Light Type 4",null,"Select Light Fixture",{"$f":"VLOOKUP(E41,'Linked Cells (hidden)'!$D$57:$E$150,2,FALSE)","v":"Total"},null,{"$f":"VLOOKUP(E41,'Linked Cells (hidden)'!$D$57:$E$150,2,FALSE)& \"  \" & \"Watts\"","v":"Total  Watts"},null,null,{"$f":"IF(K38=0,\"\",K38/I35)","v":""},"W/ft2",null,"Light Type 4",null,"Select Light Fixture",{"$f":"VLOOKUP(P41,'Linked Cells (hidden)'!$D$57:$E$150,2,FALSE)","v":"Total"},null,{"$f":"VLOOKUP(P41,'Linked Cells (hidden)'!$D$57:$E$140,2,FALSE)& \"  \" & \"Watts\"","v":"Total  Watts"},null,null,{"$f":"IF(V38=0,\"\",V38/T35)","v":""},"W/ft2"]
[null,null,"Light Type 5",null,"Select Light Fixture",{"$f":"VLOOKUP(E42,'Linked Cells (hidden)'!$D$57:$E$150,2,FALSE)","v":"Total"},null,{"$f":"VLOOKUP(E42,'Linked Cells (hidden)'!$D$57:$E$150,2,FALSE)& \"  \" & \"Watts\"","v":"Total  Watts"},null,null,null,null,null,"Light Type 5",null,"Select Light Fixture",{"$f":"VLOOKUP(P42,'Linked Cells (hidden)'!$D$57:$E$150,2,FALSE)","v":"Total"},null,{"$f":"VLOOKUP(P42,'Linked Cells (hidden)'!$D$57:$E$140,2,FALSE)& \"  \" & \"Watts\"","v":"Total  Watts"}]
[null,null,"Other Type : Name",null,null,{"$f":"IF(D44=0,\"Total\",D44)","v":"Total"},null,{"$f":"F43 & \" Watts\"","v":"Total Watts"},null,null,null,null,null,"Other Type : Name",null,null,{"$f":"IF(O44=0,\"Total\",O44)","v":"Total"},null,{"$f":"Q43 & \" Watts\"","v":"Total Watts"}]
[null,null,"                      : Watts",null,null,null,null,null,null,null,null,null,null,"                      : Watts"]
[]
[]
[null,null,"Room 3 Name",null,null,null,null,"Area",null,"Ft2",null,null,null,"Room 4 Name",null,null,null,null,"Area",null,"Ft2"]
[null,null,"Room 3 Lighting (Main Lighting only - Do not include task lights)",null,null,null,null,null,null,null,null,null,null,"Room 4 Lighting (Main Lighting only - Do not include task lights)"]
[null,null,"Select up to 6 Light Fixture Types",null,null,null,null,null,null,null,"Total Room Wattage (W)",null,null,"Select up to 6 Light Fixture Types",null,null,null,null,null,null,null,"Total Room Wattage (W)"]
[null,null,"Light Type 1",null,"Select Light Fixture",{"$f":"VLOOKUP(E50,'Linked Cells (hidden)'!$D$57:$E$150,2,FALSE)","v":"Total"},null,{"$f":"VLOOKUP(E50,'Linked Cells (hidden)'!$D$57:$E$150,2,FALSE)& \"  \" & \"Watts\"","v":"Total  Watts"},null,null,{"$f":"(IF(F50=\"Total\",0,I50*F50)+IF(F51=\"Total\",0,I51*F51)+IF(F52=\"Total\",0,I52*F52)+IF(F53=\"Total\",0,I53*F53)+IF(F54=\"Total\",0,I54*F54)+IF(F55=\"Total\",0,I55*F55))","v":0},null,"W","Light Type 1",null,"Select Light Fixture",{"$f":"VLOOKUP(P50,'Linked Cells (hidden)'!$D$57:$E$150,2,FALSE)","v":"Total"},null,{"$f":"VLOOKUP(P50,'Linked Cells (hidden)'!$D$57:$E$140,2,FALSE)& \"  \" & \"Watts\"","v":"Total  Watts"},null,null,{"$f":"(IF(Q50=\"Total\",0,T50*Q50)+IF(Q51=\"Total\",0,T51*Q51)+IF(Q52=\"Total\",0,T52*Q52)+IF(Q53=\"Total\",0,T53*Q53)+IF(Q54=\"Total\",0,T54*Q54)+IF(Q55=\"Total\",0,T55*Q55))","v":0},null,"W"]
[null,null,"Light Type 2",null,"Select Light Fixture",{"$f":"VLOOKUP(E51,'Linked Cells (hidden)'!$D$57:$E$150,2,FALSE)","v":"Total"},null,{"$f":"VLOOKUP(E51,'Linked Cells (hidden)'!$D$57:$E$150,2,FALSE)& \"  \" & \"Watts\"","v":"Total  Watts"},null,null,null,null,null,"Light Type 2",null,"Select Light Fixture",{"$f":"VLOOKUP(P51,'Linked Cells (hidden)'!$D$57:$E$150,2,FALSE)","v":"Total"},null,{"$f":"VLOOKUP(P51,'Linked Cells (hidden)'!$D$57:$E$140,2,FALSE)& \"  \" & \"Watts\"","v":"Total  Watts"}]
[null,null,"Light Type 3",null,"Select Light Fixture",{"$f":"VLOOKUP(E52,'Linked Cells (hidden)'!$D$57:$E$150,2,FALSE)","v":"Total"},null,{"$f":"VLOOKUP(E52,'Linked Cells (hidden)'!$D$57:$E$150,2,FALSE)& \"  \" & \"Watts\"","v":"Total  Watts"},null,null,"Room Lighting Power Density (LPD)",null,null,"Light Type 3",null,"Select Light Fixture",{"$f":"VLOOKUP(P52,'Linked Cells (hidden)'!$D$57:$E$150,2,FALSE)","v":"Total"},null,{"$f":"VLOOKUP(P52,'Linked Cells (hidden)'!$D$57:$E$140,2,FALSE)& \"  \" & \"Watts\"","v":"Total  Watts"},null,null,"Room Lighting Power Density (LPD)"]
[null,null,"Light Type 4",null,"Select Light Fixture",{"$f":"VLOOKUP(E53,'Linked Cells (hidden)'!$D$57:$E$150,2,FALSE)","v":"Total"},null,{"$f":"VLOOKUP(E53,'Linked Cells (hidden)'!$D$57:$E$150,2,FALSE)& \"  \" & \"Watts\"","v":"Total  Watts"},null,null,{"$f":"IF(K50=0,\"\",K50/I47)","v":""},"W/ft2",null,"Light Type 4",null,"Select Light Fixture",{"$f":"VLOOKUP(P53,'Linked Cells (hidden)'!$D$57:$E$150,2,FALSE)","v":"Total"},null,{"$f":"VLOOKUP(P53,'Linked Cells (hidden)'!$D$57:$E$140,2,FALSE)& \"  \" & \"Watts\"","v":"Total  Watts"},null,null,{"$f":"IF(V50=0,\"\",V50/T47)","v":""},"W/ft2"]
[null,null,"Light Type 5",null,"Select Light Fixture",{"$f":"VLOOKUP(E54,'Linked Cells (hidden)'!$D$57:$E$150,2,FALSE)","v":"Total"},null,{"$f":"VLOOKUP(E54,'Linked Cells (hidden)'!$D$57:$E$150,2,FALSE)& \"  \" & \"Watts\"","v":"Total  Watts"},null,null,null,null,null,"Light Type 5",null,"Select Light Fixture",{"$f":"VLOOKUP(P54,'Linked Cells (hidden)'!$D$57:$E$150,2,FALSE)","v":"Total"},null,{"$f":"VLOOKUP(P54,'Linked Cells (hidden)'!$D$57:$E$140,2,FALSE)& \"  \" & \"Watts\"","v":"Total  Watts"}]
[null,null,"Other Type : Name",null,null,{"$f":"IF(D56=0,\"Total\",D56)","v":"Total"},null,{"$f":"F55 & \" Watts\"","v":"Total Watts"},null,null,null,null,null,"Other Type : Name",null,null,{"$f":"IF(O56=0,\"Total\",O56)","v":"Total"},null,{"$f":"Q55 & \" Watts\"","v":"Total Watts"}]
[null,null,"                      : Watts",null,null,null,null,null,null,null,null,null,null,"                      : Watts"]
[]
[]
[null,null,"Room 5 Name",null,null,null,null,"Area",null,"Ft2",null,null,null,"Room 6 Name",null,null,null,null,"Area",null,"Ft2"]
[null,null,"Room 5 Lighting (Main Lighting only - Do not include task lights)",null,null,null,null,null,null,null,null,null,null,"Room 6 Lighting (Main Lighting only - Do not include task lights)"]
[null,null,"Select up to 6 Light Fixture Types",null,null,null,null,null,null,null,"Total Room Wattage (W)",null,null,"Select up to 6 Light Fixture Types",null,null,null,null,null,null,null,"Total Room Wattage (W)"]
[null,null,"Light Type 1",null,"Select Light Fixture",{"$f":"VLOOKUP(E62,'Linked Cells (hidden)'!$D$57:$E$150,2,FALSE)","v":"Total"},null,{"$f":"VLOOKUP(E62,'Linked Cells (hidden)'!$D$57:$E$150,2,FALSE)& \"  \" & \"Watts\"","v":"Total  Watts"},null,null,{"$f":"(IF(F62=\"Total\",0,I62*F62)+IF(F63=\"Total\",0,I63*F63)+IF(F64=\"Total\",0,I64*F64)+IF(F65=\"Total\",0,I65*F65)+IF(F66=\"Total\",0,I66*F66)+IF(F67=\"Total\",0,I67*F67))","v":0},null,"W","Light Type 1",null,"Select Light Fixture",{"$f":"VLOOKUP(P62,'Linked Cells (hidden)'!$D$57:$E$150,2,FALSE)","v":"Total"},null,{"$f":"VLOOKUP(P62,'Linked Cells (hidden)'!$D$57:$E$140,2,FALSE)& \"  \" & \"Watts\"","v":"Total  Watts"},null,null,{"$f":"(IF(Q62=\"Total\",0,T62*Q62)+IF(Q63=\"Total\",0,T63*Q63)+IF(Q64=\"Total\",0,T64*Q64)+IF(Q65=\"Total\",0,T65*Q65)+IF(Q66=\"Total\",0,T66*Q66)+IF(Q67=\"Total\",0,T67*Q67))","v":0},null,"W"]
[null,null,"Light Type 2",null,"Select Light Fixture",{"$f":"VLOOKUP(E63,'Linked Cells (hidden)'!$D$57:$E$150,2,FALSE)","v":"Total"},null,{"$f":"VLOOKUP(E63,'Linked Cells (hidden)'!$D$57:$E$150,2,FALSE)& \"  \" & \"Watts\"","v":"Total  Watts"},null,null,null,null,null,"Light Type 2",null,"Select Light Fixture",{"$f":"VLOOKUP(P63,'Linked Cells (hidden)'!$D$57:$E$150,2,FALSE)","v":"Total"},null,{"$f":"VLOOKUP(P63,'Linked Cells (hidden)'!$D$57:$E$140,2,FALSE)& \"  \" & \"Watts\"","v":"Total  Watts"}]
[null,null,"Light Type 3",null,"Select Light Fixture",{"$f":"VLOOKUP(E64,'Linked Cells (hidden)'!$D$57:$E$150,2,FALSE)","v":"Total"},null,{"$f":"VLOOKUP(E64,'Linked Cells (hidden)'!$D$57:$E$150,2,FALSE)& \"  \" & \"Watts\"","v":"Total  Watts"},null,null,"Room Lighting Power Density (LPD)",null,null,"Light Type 3",null,"Select Light Fixture",{"$f":"VLOOKUP(P64,'Linked Cells (hidden)'!$D$57:$E$150,2,FALSE)","v":"Total"},null,{"$f":"VLOOKUP(P64,'Linked Cells (hidden)'!$D$57:$E$140,2,FALSE)& \"  \" & \"Watts\"","v":"Total  Watts"},null,null,"Room Lighting Power Density (LPD)"]
[null,null,"Light Type 4",null,"Select Light Fixture",{"$f":"VLOOKUP(E65,'Linked Cells (hidden)'!$D$57:$E$150,2,FALSE)","v":"Total"},null,{"$f":"VLOOKUP(E65,'Linked Cells (hidden)'!$D$57:$E$150,2,FALSE)& \"  \" & \"Watts\"","v":"Total  Watts"},null,null,{"$f":"IF(K62=0,\"\",K62/I59)","v":""},"W/ft2",null,"Light Type 4",null,"Select Light Fixture",{"$f":"VLOOKUP(P65,'Linked Cells (hidden)'!$D$57:$E$150,2,FALSE)","v":"Total"},null,{"$f":"VLOOKUP(P65,'Linked Cells (hidden)'!$D$57:$E$140,2,FALSE)& \"  \" & \"Watts\"","v":"Total  Watts"},null,null,{"$f":"IF(V62=0,\"\",V62/T59)","v":""},"W/ft2"]
[null,null,"Light Type 5",null,"Select Light Fixture",{"$f":"VLOOKUP(E66,'Linked Cells (hidden)'!$D$57:$E$150,2,FALSE)","v":"Total"},null,{"$f":"VLOOKUP(E66,'Linked Cells (hidden)'!$D$57:$E$150,2,FALSE)& \"  \" & \"Watts\"","v":"Total  Watts"},null,null,null,null,null,"Light Type 5",null,"Select Light Fixture",{"$f":"VLOOKUP(P66,'Linked Cells (hidden)'!$D$57:$E$150,2,FALSE)","v":"Total"},null,{"$f":"VLOOKUP(P66,'Linked Cells (hidden)'!$D$57:$E$140,2,FALSE)& \"  \" & \"Watts\"","v":"Total  Watts"}]
[null,null,"Other Type : Name",null,null,{"$f":"IF(D68=0,\"Total\",D68)","v":"Total"},null,{"$f":"F67 & \" Watts\"","v":"Total Watts"},null,null,null,null,null,"Other Type : Name",null,null,{"$f":"IF(O68=0,\"Total\",O68)","v":"Total"},null,{"$f":"Q67 & \" Watts\"","v":"Total Watts"}]
[null,null,"                      : Watts",null,null,null,null,null,null,null,null,null,null,"                      : Watts"]
[]
[]
[null,null,"Room 7 Name",null,null,null,null,"Area",null,"Ft2",null,null,null,"Room 8 Name",null,null,null,null,"Area",null,"Ft2"]
[null,null,"Room 7 Lighting (Main Lighting only - Do not include task lights)",null,null,null,null,null,null,null,null,null,null,"Room 8 Lighting (Main Lighting only - Do not include task lights)"]
[null,null,"Select up to 6 Light Fixture Types",null,null,null,null,null,null,null,"Total Room Wattage (W)",null,null,"Select up to 6 Light Fixture Types",null,null,null,null,null,null,null,"Total Room Wattage (W)"]
[null,null,"Light Type 1",null,"Select Light Fixture",null,null,{"$f":"VLOOKUP(E74,'Linked Cells (hidden)'!$D$57:$E$150,2,FALSE)& \"  \" & \"Watts\"","v":"Total  Watts"},null,null,{"$f":"(IF(F74=\"Total\",0,I74*F74)+IF(F75=\"Total\",0,I75*F75)+IF(F76=\"Total\",0,I76*F76)+IF(F77=\"Total\",0,I77*F77)+IF(F78=\"Total\",0,I78*F78)+IF(F79=\"Total\",0,I79*F79))","v":0},null,"W","Light Type 1",null,"Select Light Fixture",null,null,{"$f":"VLOOKUP(P74,'Linked Cells (hidden)'!$D$57:$E$140,2,FALSE)& \"  \" & \"Watts\"","v":"Total  Watts"},null,null,{"$f":"(IF(Q74=\"Total\",0,T74*Q74)+IF(Q75=\"Total\",0,T75*Q75)+IF(Q76=\"Total\",0,T76*Q76)+IF(Q77=\"Total\",0,T77*Q77)+IF(Q78=\"Total\",0,T78*Q78)+IF(Q79=\"Total\",0,T79*Q79))","v":0},null,"W"]
[null,null,"Light Type 2",null,"Select Light Fixture",{"$f":"VLOOKUP(E75,'Linked Cells (hidden)'!$D$57:$E$150,2,FALSE)","v":"Total"},null,{"$f":"VLOOKUP(E75,'Linked Cells (hidden)'!$D$57:$E$150,2,FALSE)& \"  \" & \"Watts\"","v":"Total  Watts"},null,null,null,null,null,"Light Type 2",null,"Select Light Fixture",{"$f":"VLOOKUP(P75,'Linked Cells (hidden)'!$D$57:$E$150,2,FALSE)","v":"Total"},null,{"$f":"VLOOKUP(P75,'Linked Cells (hidden)'!$D$57:$E$140,2,FALSE)& \"  \" & \"Watts\"","v":"Total  Watts"}]
[null,null,"Light Type 3",null,"Select Light Fixture",{"$f":"VLOOKUP(E76,'Linked Cells (hidden)'!$D$57:$E$150,2,FALSE)","v":"Total"},null,{"$f":"VLOOKUP(E76,'Linked Cells (hidden)'!$D$57:$E$150,2,FALSE)& \"  \" & \"Watts\"","v":"Total  Watts"},null,null,"Room Lighting Power Density (LPD)",null,null,"Light Type 3",null,"Select Light Fixture",{"$f":"VLOOKUP(P76,'Linked Cells (hidden)'!$D$57:$E$150,2,FALSE)","v":"Total"},null,{"$f":"VLOOKUP(P76,'Linked Cells (hidden)'!$D$57:$E$140,2,FALSE)& \"  \" & \"Watts\"","v":"Total  Watts"},null,null,"Room Lighting Power Density (LPD)"]
[null,null,"Light Type 4",null,"Select Light Fixture",{"$f":"VLOOKUP(E77,'Linked Cells (hidden)'!$D$57:$E$150,2,FALSE)","v":"Total"},null,{"$f":"VLOOKUP(E77,'Linked Cells (hidden)'!$D$57:$E$150,2,FALSE)& \"  \" & \"Watts\"","v":"Total  Watts"},null,null,{"$f":"IF(K74=0,\"\",K74/I71)","v":""},"W/ft2",null,"Light Type 4",null,"Select Light Fixture",{"$f":"VLOOKUP(P77,'Linked Cells (hidden)'!$D$57:$E$150,2,FALSE)","v":"Total"},null,{"$f":"VLOOKUP(P77,'Linked Cells (hidden)'!$D$57:$E$140,2,FALSE)& \"  \" & \"Watts\"","v":"Total  Watts"},null,null,{"$f":"IF(V74=0,\"\",V74/T71)","v":""},"W/ft2"]
[null,null,"Light Type 5",null,"Select Light Fixture",{"$f":"VLOOKUP(E78,'Linked Cells (hidden)'!$D$57:$E$150,2,FALSE)","v":"Total"},null,{"$f":"VLOOKUP(E78,'Linked Cells (hidden)'!$D$57:$E$150,2,FALSE)& \"  \" & \"Watts\"","v":"Total  Watts"},null,null,null,null,null,"Light Type 5",null,"Select Light Fixture",{"$f":"VLOOKUP(P78,'Linked Cells (hidden)'!$D$57:$E$150,2,FALSE)","v":"Total"},null,{"$f":"VLOOKUP(P78,'Linked Cells (hidden)'!$D$57:$E$140,2,FALSE)& \"  \" & \"Watts\"","v":"Total  Watts"}]
[null,null,"Other Type : Name",null,null,{"$f":"IF(D80=0,\"Total\",D80)","v":"Total"},null,{"$f":"F79 & \" Watts\"","v":"Total Watts"},null,null,null,null,null,"Other Type : Name",null,null,{"$f":"IF(O80=0,\"Total\",O80)","v":"Total"},null,{"$f":"Q79 & \" Watts\"","v":"Total Watts"}]
[null,null,"                      : Watts",null,null,null,null,null,null,null,null,null,null,"                      : Watts"]
[]
[]
[null,null,"Room 9 Name",null,null,null,null,"Area",null,"Ft2",null,null,null,"Room 10 Name",null,null,null,null,"Area",null,"Ft2"]
[null,null,"Room 9 Lighting (Main Lighting only - Do not include task lights)",null,null,null,null,null,null,null,null,null,null,"Room 10 Lighting (Main Lighting only - Do not include task lights)"]
[null,null,"Select up to 6 Light Fixture Types",null,null,null,null,null,null,null,"Total Room Wattage (W)",null,null,"Select up to 6 Light Fixture Types",null,null,null,null,null,null,null,"Total Room Wattage (W)"]
[null,null,"Light Type 1",null,"Select Light Fixture",{"$f":"VLOOKUP(E86,'Linked Cells (hidden)'!$D$57:$E$150,2,FALSE)","v":"Total"},null,{"$f":"VLOOKUP(E86,'Linked Cells (hidden)'!$D$57:$E$150,2,FALSE)& \"  \" & \"Watts\"","v":"Total  Watts"},null,null,{"$f":"(IF(F86=\"Total\",0,I86*F86)+IF(F87=\"Total\",0,I87*F87)+IF(F88=\"Total\",0,I88*F88)+IF(F89=\"Total\",0,I89*F89)+IF(F90=\"Total\",0,I90*F90)+IF(F91=\"Total\",0,I91*F91))","v":0},null,"W","Light Type 1",null,"Select Light Fixture",{"$f":"VLOOKUP(P86,'Linked Cells (hidden)'!$D$57:$E$150,2,FALSE)","v":"Total"},null,{"$f":"VLOOKUP(P86,'Linked Cells (hidden)'!$D$57:$E$140,2,FALSE)& \"  \" & \"Watts\"","v":"Total  Watts"},null,null,{"$f":"(IF(Q86=\"Total\",0,T86*Q86)+IF(Q87=\"Total\",0,T87*Q87)+IF(Q88=\"Total\",0,T88*Q88)+IF(Q89=\"Total\",0,T89*Q89)+IF(Q90=\"Total\",0,T90*Q90)+IF(Q91=\"Total\",0,T91*Q91))","v":0},null,"W"]
[null,null,"Light Type 2",null,"Select Light Fixture",null,null,{"$f":"VLOOKUP(E87,'Linked Cells (hidden)'!$D$57:$E$150,2,FALSE)& \"  \" & \"Watts\"","v":"Total  Watts"},null,null,null,null,null,"Light Type 2",null,"Select Light Fixture",null,null,{"$f":"VLOOKUP(P87,'Linked Cells (hidden)'!$D$57:$E$140,2,FALSE)& \"  \" & \"Watts\"","v":"Total  Watts"}]
[null,null,"Light Type 3",null,"Select Light Fixture",{"$f":"VLOOKUP(E88,'Linked Cells (hidden)'!$D$57:$E$150,2,FALSE)","v":"Total"},null,{"$f":"VLOOKUP(E88,'Linked Cells (hidden)'!$D$57:$E$150,2,FALSE)& \"  \" & \"Watts\"","v":"Total  Watts"},null,null,"Room Lighting Power Density (LPD)",null,null,"Light Type 3",null,"Select Light Fixture",{"$f":"VLOOKUP(P88,'Linked Cells (hidden)'!$D$57:$E$150,2,FALSE)","v":"Total"},null,{"$f":"VLOOKUP(P88,'Linked Cells (hidden)'!$D$57:$E$140,2,FALSE)& \"  \" & \"Watts\"","v":"Total  Watts"},null,null,"Room Lighting Power Density (LPD)"]
[null,null,"Light Type 4",null,"Select Light Fixture",{"$f":"VLOOKUP(E89,'Linked Cells (hidden)'!$D$57:$E$150,2,FALSE)","v":"Total"},null,{"$f":"VLOOKUP(E89,'Linked Cells (hidden)'!$D$57:$E$150,2,FALSE)& \"  \" & \"Watts\"","v":"Total  Watts"},null,null,{"$f":"IF(K86=0,\"\",K86/I83)","v":""},"W/ft2",null,"Light Type 4",null,"Select Light Fixture",{"$f":"VLOOKUP(P89,'Linked Cells (hidden)'!$D$57:$E$150,2,FALSE)","v":"Total"},null,{"$f":"VLOOKUP(P89,'Linked Cells (hidden)'!$D$57:$E$140,2,FALSE)& \"  \" & \"Watts\"","v":"Total  Watts"},null,null,{"$f":"IF(V86=0,\"\",V86/T83)","v":""},"W/ft2"]
[null,null,"Light Type 5",null,"Select Light Fixture",{"$f":"VLOOKUP(E90,'Linked Cells (hidden)'!$D$57:$E$150,2,FALSE)","v":"Total"},null,{"$f":"VLOOKUP(E90,'Linked Cells (hidden)'!$D$57:$E$150,2,FALSE)& \"  \" & \"Watts\"","v":"Total  Watts"},null,null,null,null,null,"Light Type 5",null,"Select Light Fixture",{"$f":"VLOOKUP(P90,'Linked Cells (hidden)'!$D$57:$E$150,2,FALSE)","v":"Total"},null,{"$f":"VLOOKUP(P90,'Linked Cells (hidden)'!$D$57:$E$140,2,FALSE)& \"  \" & \"Watts\"","v":"Total  Watts"}]
[null,null,"Other Type : Name",null,null,{"$f":"IF(D92=0,\"Total\",D92)","v":"Total"},null,{"$f":"F91 & \" Watts\"","v":"Total Watts"},null,null,null,null,null,"Other Type : Name",null,null,{"$f":"IF(O92=0,\"Total\",O92)","v":"Total"},null,{"$f":"Q91 & \" Watts\"","v":"Total Watts"}]
[null,null,"                      : Watts",null,null,null,null,null,null,null,null,null,null,"                      : Watts"]
[]
[]
[]
[null,"HVAC/Non-Process Energy "]
[]
[null,"\nTo determine the site's Non-Process Heating, Ventilating, and Air Conditioning (HVAC) loads and energy use, describe each building's HVAC electrical using units by entering them below. If multiple of a unit exists, either add them into the table as separate units or enter Motor Size as the motor's size (in hp) multiplied by the quantity.\n\nNon-Process HVAC is meant to include all equipment not tied to specific process operations such as general ventilation heaters, office air conditioners, restroom exhaust fans, etc. \nDo not provide process-related ventilation equipment such as odor control fans here.  You can enter process equipment information on the \"WTP or WWTP Energy Usage\" tab.    \n\nFor each Non-Process HVAC unit select the equipment type from the dropdown list and enter an “Equipment Description.”\n\nCollect and enter each unit’s motor size, efficiency and full load amperage (FLA) ratings.  This information can be gathered from the equipment's nameplate or specification datasheet.\nIf the site has authorized personnel capable of taking electrical measurements, enter the motors average operating current. Otherwise leave the \"Average Motor Operating Current\" blank and the tool will use an 80% Load Factor in its calculations. \n\nOnce the equipment's typical operating hours are entered, the tool calculates the estimated annual energy use and operating cost for the unit.\nIf conditions at the plant change, you can adjust these values.\n\nA summary of the HVAC and lighting information entered on the building data tabs is displayed on the top on the WTP and WWTP Energy Usage tabs.  For those values to be included in the total energy use and to be displayed in the pie charts and summary report, you must enter the values in the Equipment Electrical Energy Inventory table (on the WTP or WWTP Energy Usage tab) as Non Process HVAC. See the instructions on that tab on how to enter this information.\n\n"]
[]
[]
[]
[]
[null,null,"System Type","Equipment Type",null,null,"Equipment Description","Motor Size (hp)","Motor Efficiency","Motor Full Load Amperage (FLA)","Average Motor Operating Current          (Amps)","Motor Operating Hours              (Hours/Year)","Average Load Factor\n(%)","Average HVAC Electric Load (kW)","Estimated Annual Energy Use (kWh/yr)",null,null,"Estimated Annual Operating Costs  ($/Year)","Estimated Percent of Site Electric Use & Cost (%)"]
[null,null,"Non Process HVAC","Select Equipment",null,null,null,null,null,null,null,null,{"$f":"IF(J104=0,0,IF(K104=0,0.75,K104/J104))","v":0},{"$f":"IF(I104=0,0,H104*0.746*M104/I104)","v":0},{"$f":"N104*L104","v":0},null,null,{"$f":"O104*'General Information'!$H$46","v":0},{"$f":"IF('General Information'!$H$44=0,\"\",O104/'General Information'!$H$44)","v":""}]
[null,null,"Non Process HVAC","Select Equipment",null,null,null,null,null,null,null,null,0,0,0,null,null,{"$f":"O105*'General Information'!$H$46","v":0},{"$f":"IF('General Information'!$H$44=0,\"\",O105/'General Information'!$H$44)","v":""}]
[null,null,"Non Process HVAC","Select Equipment",null,null,null,null,null,null,null,null,0,0,0,null,null,{"$f":"O106*'General Information'!$H$46","v":0},{"$f":"IF('General Information'!$H$44=0,\"\",O106/'General Information'!$H$44)","v":""}]
[null,null,"Non Process HVAC","Select Equipment",null,null,null,null,null,null,null,null,0,0,0,null,null,{"$f":"O107*'General Information'!$H$46","v":0},{"$f":"IF('General Information'!$H$44=0,\"\",O107/'General Information'!$H$44)","v":""}]
[null,null,"Non Process HVAC","Select Equipment",null,null,null,null,null,null,null,null,0,0,0,null,null,{"$f":"O108*'General Information'!$H$46","v":0},{"$f":"IF('General Information'!$H$44=0,\"\",O108/'General Information'!$H$44)","v":""}]
[null,null,"Non Process HVAC","Select Equipment",null,null,null,null,null,null,null,null,0,0,0,null,null,{"$f":"O109*'General Information'!$H$46","v":0},{"$f":"IF('General Information'!$H$44=0,\"\",O109/'General Information'!$H$44)","v":""}]
[]
[null,null,null,null,null,null,null,null,null,"Total Building HVAC",null,null,null,{"$f":"SUM(N101:N109)","v":0},{"$f":"SUM(O101:O109)","v":0},null,null,{"$f":"SUM(R104:R109)","v":0},{"$f":"SUM(S104:S109)","v":0}]

{"sheet":"Building 9 Data","index":11,"n_rows":111,"n_cols":24,"rows_kept":111,"cut":false,"hidden":true,"merged":[[0,0,0,10],[12,1,13,14],[2,1,2,3],[8,1,8,2],[10,1,10,2],[8,12,9,13],[8,7,8,9],[10,7,10,9],[46,3,46,6],[60,10,60,11],[58,14,58,17],[3,1,3,17],[5,1,6,17],[17,3,17,6],[110,9,110,12],[70,3,70,6],[82,14,82,17],[73,10,73,11],[72,10,72,11],[84,10,84,11],[70,14,70,17],[20,13,20,14],[27,1,31,14],[82,3,82,6],[97,1,99,20],[58,3,58,6],[37,10,37,11],[49,10,49,11],[48,10,48,11],[85,21,85,22],[85,10,85,11],[61,21,61,22],[73,21,73,22],[84,21,84,22],[61,10,61,11],[72,21,72,22],[60,21,60,22],[49,21,49,22],[36,21,36,22],[34,14,34,17],[46,14,46,17],[48,21,48,22],[20,2,20,3],[37,21,37,22],[20,8,20,10],[19,6,20,7],[34,3,34,6],[36,10,36,11]]}
[{"$f":"\"EPA Energy Use Assessment Tool for \" & workbookType","v":"EPA Energy Use Assessment Tool for Drinking Water Systems"}]
["Site Structural Buildings - Major Non-Process Energy Users"]
[]
[null,"\nIn the Building Data tabs, the tool totals each building’s Lighting and HVAC information. You should use the totals for entry on the WTP or WWTP Energy Use tabs.  For instructions on how to enter that information, see the WTP or WWTP Energy Usage tabs. If you have already identified the site's Lighting and HVAC loads or would just like to estimate them without detailing this information here, proceed to the WTP or WWTP Energy Usage tab.\n\nIf you skip this tab, you can come back later to fill in this detail.\n\n\n\n"]
[]
[null,"\nThe following information is entered once for the entire plant.\n\nTo change the Total Number of Buildings on-site, go to the \"Building 1 Data\" tab and click the \"Set # of Buildings\" button. This lets you enter information for the specified number of buildings.\n\nAfter entering data in a building tab, click the \"Save and Continue\" button at the top. That allows you to enter data for the next building or if building data entry is complete, to return to the General Information tab. You can also click the other Building Data tabs at the bottom. \n\n"]
[]
[]
[null,"Total Plant Building Area",null,{"$f":"'Building 1 Data'!D9","v":0},9,null,"Ft2","Total Plant Building Electric Load",null,null,{"$f":"'Building 1 Data'!K9","v":0},"kW","Total Plant Building Electric Use ",null,{"$f":"'Building 1 Data'!O9","v":0},null,null,"kWh/Yr"]
[]
[null,"Does the site have buildings?",null,{"$f":"hasBldgs","v":"Yes"},null,null,null,"Total Number of Buildings On-site:",null,null,{"$f":"[0]!totalbldgs","v":"1"}]
[]
[null,"Enter the following information for each building at the plant.\n\nTo begin, select the number of rooms in the \"No. of Rooms\" dropdown list below and click the \"Set # of rooms\" button.   It is important to know and set the number of rooms upfront, before any lighting data is entered.  If the number of rooms is later changed, all the data that had been entered will be lost. "]
[]
[]
[null,null,{"$f":"\"BUILDING \" & E9","v":"BUILDING 9"}]
[]
[null,null,"Name",null,null,null,null,null,"Operating Hours per Year",null,{"$f":"IF(K19=\"\",\"\",K19*K20*52)","v":""},"Hrs/Yr","Approximate Building Age (If known)",null,null,null,null,null,"Yrs"]
[null,null,"Area",{"$f":"I35+T35+T47+I47+I59+T59+T71+I71+I83+T83","v":0},null,null,"Ft2",null,"Operating Hours per Day",null,null,"Hrs/Day"]
[null,null,"No. of Rooms",null,null,null,"! Changing the number of rooms will reset all lighting data entered.",null,"Operating Days per Week",null,null,"Days/Wk","Average Building Lighting Power Density (LPD)",null,null,null,null,{"$f":"IF(D19=0,\"\",(K38+V38+V50+K50+K62+V62+V74+K74+K86+V86)/D19)","v":""},"W/ft2"]
[null,null,"Estimated Electric Load:",null,null,null,null,null,"Estimated Annual Energy Use:",null,null,null,null,"Estimated Annual Energy Cost:"]
[null,null,{"$f":"\"Total Building \" & $E$9& \" Lighting\"","v":"Total Building 9 Lighting"},null,null,null,{"$f":"IF((K38+V38+V50+K50+K62+V62+V74+K74+K86+V86)=0,0,(K38+V38+V50+K50+K62+V62+V74+K74+K86+V86)/1000)","v":0},"kW",{"$f":"\"Total Building \" & $E$9& \" Lighting\"","v":"Total Building 9 Lighting"},null,null,{"$f":"IF((K38+V38+V50+K50+K62+V62+V74+K74+K86+V86)=0,IF(K18=\"\",0,0),IF(K18=\"\",0,((K38+V38+V50+K50+K62+V62+V74+K74+K86+V86)/1000)*K18))","v":0},"kWh/Yr",{"$f":"\"Total Building \" & $E$9 & \" Lighting\"","v":"Total Building 9 Lighting"},null,null,null,{"$f":"L22*'General Information'!$H$46","v":0},"$/Yr"]
[null,null,{"$f":"\"Total Building \" & $E$9 & \" HVAC\"","v":"Total Building 9 HVAC"},null,null,null,{"$f":"N111","v":0},"kW",{"$f":"\"Total Building \" & $E$9 & \" HVAC\"","v":"Total Building 9 HVAC"},null,null,{"$f":"O$111","v":0},"kWh/Yr",{"$f":"\"Total Building \" & $E$9 & \" HVAC\"","v":"Total Building 9 HVAC"},null,null,null,{"$f":"R111","v":0},"$/Yr"]
[null,null,{"$f":"\"Total Building \" & $E$9 & \" Combined\"","v":"Total Building 9 Combined"},null,null,null,{"$f":"SUM(G22:G23)","v":0},"kW",{"$f":"\"Total Building \" & $E$9 & \" Combined\"","v":"Total Building 9 Combined"},null,null,{"$f":"SUM(L22,L23)","v":0},"kWh/Yr",{"$f":"\"Total Building \" & $E$9 & \" Combined\"","v":"Total Building 9 Combined"},null,null,null,{"$f":"SUM(R22,R23)","v":0},"$/Yr"]
[]
[null,null,"LIGHTING"]
[]
[null,"\nTo determine the site’s lighting loads and energy use, select each of the room’s lighting fixture types and quantity (Qty) using the dropdown lists below.\n\nSelect a light type from the dropdown list for each size and kind of fixture in a room. Then enter the quantity for each type. The tool provides the fixture’s electrical \nenergy load in watts. Do not include task lights (directional lights used to illuminate an area of work) when entering the room's lighting fixtures. \n\nIf a type of fixture is not available in the dropdown list, use the \"Other Type\" input field to enter the fixture and its total wattage.\n\nThe table automatically totals the room's lighting loads, each building's lighting energy use and the site's total lighting energy use per year for use in other areas of the tool.\nEnter the area of each room and the tool calculates the Lighting Power Density (LPD) in watts per square foot.  \nYou can now take an important next step and compare LPD’s from room to room and building to building to determine where excess energy might be in use.\n"]
[]
[]
[]
[]
[]
[]
[null,null,"Room 1 Name",null,null,null,null,"Area",null,"Ft2",null,null,null,"Room 2 Name",null,null,null,null,"Area",null,"Ft2"]
[null,null,"Room 1 Lighting (Main Lighting only - Do not include task lights)",null,null,null,null,null,null,null,null,null,null,"Room 2 Lighting (Main Lighting only - Do not include task lights)"]
[null,null,"Select up to 6 Light Fixture Types",null,null,null,null,null,null,null,"Total Room Wattage (W)",null,null,"Select up to 6 Light Fixture Types",null,null,null,null,null,null,null,"Total Room Wattage (W)"]
[null,null,"Light Type 1",null,"Select Light Fixture",{"$f":"VLOOKUP(E38,'Linked Cells (hidden)'!$D$57:$E$150,2,FALSE)","v":"Total"},null,{"$f":"VLOOKUP(E38,'Linked Cells (hidden)'!$D$57:$E$150,2,FALSE)& \"  \" & \"Watts\"","v":"Total  Watts"},null,null,{"$f":"(IF(F38=\"Total\",0,I38*F38)+IF(F39=\"Total\",0,I39*F39)+IF(F40=\"Total\",0,I40*F40)+IF(F41=\"Total\",0,I41*F41)+IF(F42=\"Total\",0,I42*F42)+IF(F43=\"Total\",0,I43*F43))","v":0},null,"W","Light Type 1",null,"Select Light Fixture",{"$f":"VLOOKUP(P38,'Linked Cells (hidden)'!$D$57:$E$150,2,FALSE)","v":"Total"},null,{"$f":"VLOOKUP(P38,'Linked Cells (hidden)'!$D$57:$E$140,2,FALSE)& \"  \" & \"Watts\"","v":"Total  Watts"},null,null,{"$f":"(IF(Q38=\"Total\",0,T38*Q38)+IF(Q39=\"Total\",0,T39*Q39)+IF(Q40=\"Total\",0,T40*Q40)+IF(Q41=\"Total\",0,T41*Q41)+IF(Q42=\"Total\",0,T42*Q42)+IF(Q43=\"Total\",0,T43*Q43))","v":0},null,"W"]
[null,null,"Light Type 2",null,"Select Light Fixture",{"$f":"VLOOKUP(E39,'Linked Cells (hidden)'!$D$57:$E$150,2,FALSE)","v":"Total"},null,{"$f":"VLOOKUP(E39,'Linked Cells (hidden)'!$D$57:$E$150,2,FALSE)& \"  \" & \"Watts\"","v":"Total  Watts"},null,null,null,null,null,"Light Type 2",null,"Select Light Fixture",{"$f":"VLOOKUP(P39,'Linked Cells (hidden)'!$D$57:$E$150,2,FALSE)","v":"Total"},null,{"$f":"VLOOKUP(P39,'Linked Cells (hidden)'!$D$57:$E$140,2,FALSE)& \"  \" & \"Watts\"","v":"Total  Watts"}]
[null,null,"Light Type 3",null,"Select Light Fixture",{"$f":"VLOOKUP(E40,'Linked Cells (hidden)'!$D$57:$E$150,2,FALSE)","v":"Total"},null,{"$f":"VLOOKUP(E40,'Linked Cells (hidden)'!$D$57:$E$150,2,FALSE)& \"  \" & \"Watts\"","v":"Total  Watts"},null,null,"Room Lighting Power Density (LPD)",null,null,"Light Type 3",null,"Select Light Fixture",{"$f":"VLOOKUP(P40,'Linked Cells (hidden)'!$D$57:$E$150,2,FALSE)","v":"Total"},null,{"$f":"VLOOKUP(P40,'Linked Cells (hidden)'!$D$57:$E$140,2,FALSE)& \"  \" & \"Watts\"","v":"Total  Watts"},null,null,"Room Lighting Power Density (LPD)"]
[null,null,"Light Type 4",null,"Select Light Fixture",{"$f":"VLOOKUP(E41,'Linked Cells (hidden)'!$D$57:$E$150,2,FALSE)","v":"Total"},null,{"$f":"VLOOKUP(E41,'Linked Cells (hidden)'!$D$57:$E$150,2,FALSE)& \"  \" & \"Watts\"","v":"Total  Watts"},null,null,{"$f":"IF(K38=0,\"\",K38/I35)","v":""},"W/ft2",null,"Light Type 4",null,"Select Light Fixture",{"$f":"VLOOKUP(P41,'Linked Cells (hidden)'!$D$57:$E$150,2,FALSE)","v":"Total"},null,{"$f":"VLOOKUP(P41,'Linked Cells (hidden)'!$D$57:$E$140,2,FALSE)& \"  \" & \"Watts\"","v":"Total  Watts"},null,null,{"$f":"IF(V38=0,\"\",V38/T35)","v":""},"W/ft2"]
[null,null,"Light Type 5",null,"Select Light Fixture",{"$f":"VLOOKUP(E42,'Linked Cells (hidden)'!$D$57:$E$150,2,FALSE)","v":"Total"},null,{"$f":"VLOOKUP(E42,'Linked Cells (hidden)'!$D$57:$E$150,2,FALSE)& \"  \" & \"Watts\"","v":"Total  Watts"},null,null,null,null,null,"Light Type 5",null,"Select Light Fixture",{"$f":"VLOOKUP(P42,'Linked Cells (hidden)'!$D$57:$E$150,2,FALSE)","v":"Total"},null,{"$f":"VLOOKUP(P42,'Linked Cells (hidden)'!$D$57:$E$140,2,FALSE)& \"  \" & \"Watts\"","v":"Total  Watts"}]
[null,null,"Other Type : Name",null,null,{"$f":"IF(D44=0,\"Total\",D44)","v":"Total"},null,{"$f":"F43 & \" Watts\"","v":"Total Watts"},null,null,null,null,null,"Other Type : Name",null,null,{"$f":"IF(O44=0,\"Total\",O44)","v":"Total"},null,{"$f":"Q43 & \" Watts\"","v":"Total Watts"}]
[null,null,"                      : Watts",null,null,null,null,null,null,null,null,null,null,"                      : Watts"]
[]
[]
[null,null,"Room 3 Name",null,null,null,null,"Area",null,"Ft2",null,null,null,"Room 4 Name",null,null,null,null,"Area",null,"Ft2"]
[null,null,"Room 3 Lighting (Main Lighting only - Do not include task lights)",null,null,null,null,null,null,null,null,null,null,"Room 4 Lighting (Main Lighting only - Do not include task lights)"]
[null,null,"Select up to 6 Light Fixture Types",null,null,null,null,null,null,null,"Total Room Wattage (W)",null,null,"Select up to 6 Light Fixture Types",null,null,null,null,null,null,null,"Total Room Wattage (W)"]
[null,null,"Light Type 1",null,"Select Light Fixture",{"$f":"VLOOKUP(E50,'Linked Cells (hidden)'!$D$57:$E$150,2,FALSE)","v":"Total"},null,{"$f":"VLOOKUP(E50,'Linked Cells (hidden)'!$D$57:$E$150,2,FALSE)& \"  \" & \"Watts\"","v":"Total  Watts"},null,null,{"$f":"(IF(F50=\"Total\",0,I50*F50)+IF(F51=\"Total\",0,I51*F51)+IF(F52=\"Total\",0,I52*F52)+IF(F53=\"Total\",0,I53*F53)+IF(F54=\"Total\",0,I54*F54)+IF(F55=\"Total\",0,I55*F55))","v":0},null,"W","Light Type 1",null,"Select Light Fixture",{"$f":"VLOOKUP(P50,'Linked Cells (hidden)'!$D$57:$E$150,2,FALSE)","v":"Total"},null,{"$f":"VLOOKUP(P50,'Linked Cells (hidden)'!$D$57:$E$140,2,FALSE)& \"  \" & \"Watts\"","v":"Total  Watts"},null,null,{"$f":"(IF(Q50=\"Total\",0,T50*Q50)+IF(Q51=\"Total\",0,T51*Q51)+IF(Q52=\"Total\",0,T52*Q52)+IF(Q53=\"Total\",0,T53*Q53)+IF(Q54=\"Total\",0,T54*Q54)+IF(Q55=\"Total\",0,T55*Q55))","v":0},null,"W"]
[null,null,"Light Type 2",null,"Select Light Fixture",{"$f":"VLOOKUP(E51,'Linked Cells (hidden)'!$D$57:$E$150,2,FALSE)","v":"Total"},null,{"$f":"VLOOKUP(E51,'Linked Cells (hidden)'!$D$57:$E$150,2,FALSE)& \"  \" & \"Watts\"","v":"Total  Watts"},null,null,null,null,null,"Light Type 2",null,"Select Light Fixture",{"$f":"VLOOKUP(P51,'Linked Cells (hidden)'!$D$57:$E$150,2,FALSE)","v":"Total"},null,{"$f":"VLOOKUP(P51,'Linked Cells (hidden)'!$D$57:$E$140,2,FALSE)& \"  \" & \"Watts\"","v":"Total  Watts"}]
[null,null,"Light Type 3",null,"Select Light Fixture",{"$f":"VLOOKUP(E52,'Linked Cells (hidden)'!$D$57:$E$150,2,FALSE)","v":"Total"},null,{"$f":"VLOOKUP(E52,'Linked Cells (hidden)'!$D$57:$E$150,2,FALSE)& \"  \" & \"Watts\"","v":"Total  Watts"},null,null,"Room Lighting Power Density (LPD)",null,null,"Light Type 3",null,"Select Light Fixture",{"$f":"VLOOKUP(P52,'Linked Cells (hidden)'!$D$57:$E$150,2,FALSE)","v":"Total"},null,{"$f":"VLOOKUP(P52,'Linked Cells (hidden)'!$D$57:$E$140,2,FALSE)& \"  \" & \"Watts\"","v":"Total  Watts"},null,null,"Room Lighting Power Density (LPD)"]
[null,null,"Light Type 4",null,"Select Light Fixture",{"$f":"VLOOKUP(E53,'Linked Cells (hidden)'!$D$57:$E$150,2,FALSE)","v":"Total"},null,{"$f":"VLOOKUP(E53,'Linked Cells (hidden)'!$D$57:$E$150,2,FALSE)& \"  \" & \"Watts\"","v":"Total  Watts"},null,null,{"$f":"IF(K50=0,\"\",K50/I47)","v":""},"W/ft2",null,"Light Type 4",null,"Select Light Fixture",{"$f":"VLOOKUP(P53,'Linked Cells (hidden)'!$D$57:$E$150,2,FALSE)","v":"Total"},null,{"$f":"VLOOKUP(P53,'Linked Cells (hidden)'!$D$57:$E$140,2,FALSE)& \"  \" & \"Watts\"","v":"Total  Watts"},null,null,{"$f":"IF(V50=0,\"\",V50/T47)","v":""},"W/ft2"]
[null,null,"Light Type 5",null,"Select Light Fixture",{"$f":"VLOOKUP(E54,'Linked Cells (hidden)'!$D$57:$E$150,2,FALSE)","v":"Total"},null,{"$f":"VLOOKUP(E54,'Linked Cells (hidden)'!$D$57:$E$150,2,FALSE)& \"  \" & \"Watts\"","v":"Total  Watts"},null,null,null,null,null,"Light Type 5",null,"Select Light Fixture",{"$f":"VLOOKUP(P54,'Linked Cells (hidden)'!$D$57:$E$150,2,FALSE)","v":"Total"},null,{"$f":"VLOOKUP(P54,'Linked Cells (hidden)'!$D$57:$E$140,2,FALSE)& \"  \" & \"Watts\"","v":"Total  Watts"}]
[null,null,"Other Type : Name",null,null,{"$f":"IF(D56=0,\"Total\",D56)","v":"Total"},null,{"$f":"F55 & \" Watts\"","v":"Total Watts"},null,null,null,null,null,"Other Type : Name",null,null,{"$f":"IF(O56=0,\"Total\",O56)","v":"Total"},null,{"$f":"Q55 & \" Watts\"","v":"Total Watts"}]
[null,null,"                      : Watts",null,null,null,null,null,null,null,null,null,null,"                      : Watts"]
[]
[]
[null,null,"Room 5 Name",null,null,null,null,"Area",null,"Ft2",null,null,null,"Room 6 Name",null,null,null,null,"Area",null,"Ft2"]
[null,null,"Room 5 Lighting (Main Lighting only - Do not include task lights)",null,null,null,null,null,null,null,null,null,null,"Room 6 Lighting (Main Lighting only - Do not include task lights)"]
[null,null,"Select up to 6 Light Fixture Types",null,null,null,null,null,null,null,"Total Room Wattage (W)",null,null,"Select up to 6 Light Fixture Types",null,null,null,null,null,null,null,"Total Room Wattage (W)"]
[null,null,"Light Type 1",null,"Select Light Fixture",{"$f":"VLOOKUP(E62,'Linked Cells (hidden)'!$D$57:$E$150,2,FALSE)","v":"Total"},null,{"$f":"VLOOKUP(E62,'Linked Cells (hidden)'!$D$57:$E$150,2,FALSE)& \"  \" & \"Watts\"","v":"Total  Watts"},null,null,{"$f":"(IF(F62=\"Total\",0,I62*F62)+IF(F63=\"Total\",0,I63*F63)+IF(F64=\"Total\",0,I64*F64)+IF(F65=\"Total\",0,I65*F65)+IF(F66=\"Total\",0,I66*F66)+IF(F67=\"Total\",0,I67*F67))","v":0},null,"W","Light Type 1",null,"Select Light Fixture",{"$f":"VLOOKUP(P62,'Linked Cells (hidden)'!$D$57:$E$150,2,FALSE)","v":"Total"},null,{"$f":"VLOOKUP(P62,'Linked Cells (hidden)'!$D$57:$E$140,2,FALSE)& \"  \" & \"Watts\"","v":"Total  Watts"},null,null,{"$f":"(IF(Q62=\"Total\",0,T62*Q62)+IF(Q63=\"Total\",0,T63*Q63)+IF(Q64=\"Total\",0,T64*Q64)+IF(Q65=\"Total\",0,T65*Q65)+IF(Q66=\"Total\",0,T66*Q66)+IF(Q67=\"Total\",0,T67*Q67))","v":0},null,"W"]
[null,null,"Light Type 2",null,"Select Light Fixture",{"$f":"VLOOKUP(E63,'Linked Cells (hidden)'!$D$57:$E$150,2,FALSE)","v":"Total"},null,{"$f":"VLOOKUP(E63,'Linked Cells (hidden)'!$D$57:$E$150,2,FALSE)& \"  \" & \"Watts\"","v":"Total  Watts"},null,null,null,null,null,"Light Type 2",null,"Select Light Fixture",{"$f":"VLOOKUP(P63,'Linked Cells (hidden)'!$D$57:$E$150,2,FALSE)","v":"Total"},null,{"$f":"VLOOKUP(P63,'Linked Cells (hidden)'!$D$57:$E$140,2,FALSE)& \"  \" & \"Watts\"","v":"Total  Watts"}]
[null,null,"Light Type 3",null,"Select Light Fixture",{"$f":"VLOOKUP(E64,'Linked Cells (hidden)'!$D$57:$E$150,2,FALSE)","v":"Total"},null,{"$f":"VLOOKUP(E64,'Linked Cells (hidden)'!$D$57:$E$150,2,FALSE)& \"  \" & \"Watts\"","v":"Total  Watts"},null,null,"Room Lighting Power Density (LPD)",null,null,"Light Type 3",null,"Select Light Fixture",{"$f":"VLOOKUP(P64,'Linked Cells (hidden)'!$D$57:$E$150,2,FALSE)","v":"Total"},null,{"$f":"VLOOKUP(P64,'Linked Cells (hidden)'!$D$57:$E$140,2,FALSE)& \"  \" & \"Watts\"","v":"Total  Watts"},null,null,"Room Lighting Power Density (LPD)"]
[null,null,"Light Type 4",null,"Select Light Fixture",{"$f":"VLOOKUP(E65,'Linked Cells (hidden)'!$D$57:$E$150,2,FALSE)","v":"Total"},null,{"$f":"VLOOKUP(E65,'Linked Cells (hidden)'!$D$57:$E$150,2,FALSE)& \"  \" & \"Watts\"","v":"Total  Watts"},null,null,{"$f":"IF(K62=0,\"\",K62/I59)","v":""},"W/ft2",null,"Light Type 4",null,"Select Light Fixture",{"$f":"VLOOKUP(P65,'Linked Cells (hidden)'!$D$57:$E$150,2,FALSE)","v":"Total"},null,{"$f":"VLOOKUP(P65,'Linked Cells (hidden)'!$D$57:$E$140,2,FALSE)& \"  \" & \"Watts\"","v":"Total  Watts"},null,null,{"$f":"IF(V62=0,\"\",V62/T59)","v":""},"W/ft2"]
[null,null,"Light Type 5",null,"Select Light Fixture",{"$f":"VLOOKUP(E66,'Linked Cells (hidden)'!$D$57:$E$150,2,FALSE)","v":"Total"},null,{"$f":"VLOOKUP(E66,'Linked Cells (hidden)'!$D$57:$E$150,2,FALSE)& \"  \" & \"Watts\"","v":"Total  Watts"},null,null,null,null,null,"Light Type 5",null,"Select Light Fixture",{"$f":"VLOOKUP(P66,'Linked Cells (hidden)'!$D$57:$E$150,2,FALSE)","v":"Total"},null,{"$f":"VLOOKUP(P66,'Linked Cells (hidden)'!$D$57:$E$140,2,FALSE)& \"  \" & \"Watts\"","v":"Total  Watts"}]
[null,null,"Other Type : Name",null,null,{"$f":"IF(D68=0,\"Total\",D68)","v":"Total"},null,{"$f":"F67 & \" Watts\"","v":"Total Watts"},null,null,null,null,null,"Other Type : Name",null,null,{"$f":"IF(O68=0,\"Total\",O68)","v":"Total"},null,{"$f":"Q67 & \" Watts\"","v":"Total Watts"}]
[null,null,"                      : Watts",null,null,null,null,null,null,null,null,null,null,"                      : Watts"]
[]
[]
[null,null,"Room 7 Name",null,null,null,null,"Area",null,"Ft2",null,null,null,"Room 8 Name",null,null,null,null,"Area",null,"Ft2"]
[null,null,"Room 7 Lighting (Main Lighting only - Do not include task lights)",null,null,null,null,null,null,null,null,null,null,"Room 8 Lighting (Main Lighting only - Do not include task lights)"]
[null,null,"Select up to 6 Light Fixture Types",null,null,null,null,null,null,null,"Total Room Wattage (W)",null,null,"Select up to 6 Light Fixture Types",null,null,null,null,null,null,null,"Total Room Wattage (W)"]
[null,null,"Light Type 1",null,"Select Light Fixture",null,null,{"$f":"VLOOKUP(E74,'Linked Cells (hidden)'!$D$57:$E$150,2,FALSE)& \"  \" & \"Watts\"","v":"Total  Watts"},null,null,{"$f":"(IF(F74=\"Total\",0,I74*F74)+IF(F75=\"Total\",0,I75*F75)+IF(F76=\"Total\",0,I76*F76)+IF(F77=\"Total\",0,I77*F77)+IF(F78=\"Total\",0,I78*F78)+IF(F79=\"Total\",0,I79*F79))","v":0},null,"W","Light Type 1",null,"Select Light Fixture",null,null,{"$f":"VLOOKUP(P74,'Linked Cells (hidden)'!$D$57:$E$140,2,FALSE)& \"  \" & \"Watts\"","v":"Total  Watts"},null,null,{"$f":"(IF(Q74=\"Total\",0,T74*Q74)+IF(Q75=\"Total\",0,T75*Q75)+IF(Q76=\"Total\",0,T76*Q76)+IF(Q77=\"Total\",0,T77*Q77)+IF(Q78=\"Total\",0,T78*Q78)+IF(Q79=\"Total\",0,T79*Q79))","v":0},null,"W"]
[null,null,"Light Type 2",null,"Select Light Fixture",{"$f":"VLOOKUP(E75,'Linked Cells (hidden)'!$D$57:$E$150,2,FALSE)","v":"Total"},null,{"$f":"VLOOKUP(E75,'Linked Cells (hidden)'!$D$57:$E$150,2,FALSE)& \"  \" & \"Watts\"","v":"Total  Watts"},null,null,null,null,null,"Light Type 2",null,"Select Light Fixture",{"$f":"VLOOKUP(P75,'Linked Cells (hidden)'!$D$57:$E$150,2,FALSE)","v":"Total"},null,{"$f":"VLOOKUP(P75,'Linked Cells (hidden)'!$D$57:$E$140,2,FALSE)& \"  \" & \"Watts\"","v":"Total  Watts"}]
[null,null,"Light Type 3",null,"Select Light Fixture",{"$f":"VLOOKUP(E76,'Linked Cells (hidden)'!$D$57:$E$150,2,FALSE)","v":"Total"},null,{"$f":"VLOOKUP(E76,'Linked Cells (hidden)'!$D$57:$E$150,2,FALSE)& \"  \" & \"Watts\"","v":"Total  Watts"},null,null,"Room Lighting Power Density (LPD)",null,null,"Light Type 3",null,"Select Light Fixture",{"$f":"VLOOKUP(P76,'Linked Cells (hidden)'!$D$57:$E$150,2,FALSE)","v":"Total"},null,{"$f":"VLOOKUP(P76,'Linked Cells (hidden)'!$D$57:$E$140,2,FALSE)& \"  \" & \"Watts\"","v":"Total  Watts"},null,null,"Room Lighting Power Density (LPD)"]
[null,null,"Light Type 4",null,"Select Light Fixture",{"$f":"VLOOKUP(E77,'Linked Cells (hidden)'!$D$57:$E$150,2,FALSE)","v":"Total"},null,{"$f":"VLOOKUP(E77,'Linked Cells (hidden)'!$D$57:$E$150,2,FALSE)& \"  \" & \"Watts\"","v":"Total  Watts"},null,null,{"$f":"IF(K74=0,\"\",K74/I71)","v":""},"W/ft2",null,"Light Type 4",null,"Select Light Fixture",{"$f":"VLOOKUP(P77,'Linked Cells (hidden)'!$D$57:$E$150,2,FALSE)","v":"Total"},null,{"$f":"VLOOKUP(P77,'Linked Cells (hidden)'!$D$57:$E$140,2,FALSE)& \"  \" & \"Watts\"","v":"Total  Watts"},null,null,{"$f":"IF(V74=0,\"\",V74/T71)","v":""},"W/ft2"]
[null,null,"Light Type 5",null,"Select Light Fixture",{"$f":"VLOOKUP(E78,'Linked Cells (hidden)'!$D$57:$E$150,2,FALSE)","v":"Total"},null,{"$f":"VLOOKUP(E78,'Linked Cells (hidden)'!$D$57:$E$150,2,FALSE)& \"  \" & \"Watts\"","v":"Total  Watts"},null,null,null,null,null,"Light Type 5",null,"Select Light Fixture",{"$f":"VLOOKUP(P78,'Linked Cells (hidden)'!$D$57:$E$150,2,FALSE)","v":"Total"},null,{"$f":"VLOOKUP(P78,'Linked Cells (hidden)'!$D$57:$E$140,2,FALSE)& \"  \" & \"Watts\"","v":"Total  Watts"}]
[null,null,"Other Type : Name",null,null,{"$f":"IF(D80=0,\"Total\",D80)","v":"Total"},null,{"$f":"F79 & \" Watts\"","v":"Total Watts"},null,null,null,null,null,"Other Type : Name",null,null,{"$f":"IF(O80=0,\"Total\",O80)","v":"Total"},null,{"$f":"Q79 & \" Watts\"","v":"Total Watts"}]
[null,null,"                      : Watts",null,null,null,null,null,null,null,null,null,null,"                      : Watts"]
[]
[]
[null,null,"Room 9 Name",null,null,null,null,"Area",null,"Ft2",null,null,null,"Room 10 Name",null,null,null,null,"Area",null,"Ft2"]
[null,null,"Room 9 Lighting (Main Lighting only - Do not include task lights)",null,null,null,null,null,null,null,null,null,null,"Room 10 Lighting (Main Lighting only - Do not include task lights)"]
[null,null,"Select up to 6 Light Fixture Types",null,null,null,null,null,null,null,"Total Room Wattage (W)",null,null,"Select up to 6 Light Fixture Types",null,null,null,null,null,null,null,"Total Room Wattage (W)"]
[null,null,"Light Type 1",null,"Select Light Fixture",{"$f":"VLOOKUP(E86,'Linked Cells (hidden)'!$D$57:$E$150,2,FALSE)","v":"Total"},null,{"$f":"VLOOKUP(E86,'Linked Cells (hidden)'!$D$57:$E$150,2,FALSE)& \"  \" & \"Watts\"","v":"Total  Watts"},null,null,{"$f":"(IF(F86=\"Total\",0,I86*F86)+IF(F87=\"Total\",0,I87*F87)+IF(F88=\"Total\",0,I88*F88)+IF(F89=\"Total\",0,I89*F89)+IF(F90=\"Total\",0,I90*F90)+IF(F91=\"Total\",0,I91*F91))","v":0},null,"W","Light Type 1",null,"Select Light Fixture",{"$f":"VLOOKUP(P86,'Linked Cells (hidden)'!$D$57:$E$150,2,FALSE)","v":"Total"},null,{"$f":"VLOOKUP(P86,'Linked Cells (hidden)'!$D$57:$E$140,2,FALSE)& \"  \" & \"Watts\"","v":"Total  Watts"},null,null,{"$f":"(IF(Q86=\"Total\",0,T86*Q86)+IF(Q87=\"Total\",0,T87*Q87)+IF(Q88=\"Total\",0,T88*Q88)+IF(Q89=\"Total\",0,T89*Q89)+IF(Q90=\"Total\",0,T90*Q90)+IF(Q91=\"Total\",0,T91*Q91))","v":0},null,"W"]
[null,null,"Light Type 2",null,"Select Light Fixture",null,null,{"$f":"VLOOKUP(E87,'Linked Cells (hidden)'!$D$57:$E$150,2,FALSE)& \"  \" & \"Watts\"","v":"Total  Watts"},null,null,null,null,null,"Light Type 2",null,"Select Light Fixture",null,null,{"$f":"VLOOKUP(P87,'Linked Cells (hidden)'!$D$57:$E$140,2,FALSE)& \"  \" & \"Watts\"","v":"Total  Watts"}]
[null,null,"Light Type 3",null,"Select Light Fixture",{"$f":"VLOOKUP(E88,'Linked Cells (hidden)'!$D$57:$E$150,2,FALSE)","v":"Total"},null,{"$f":"VLOOKUP(E88,'Linked Cells (hidden)'!$D$57:$E$150,2,FALSE)& \"  \" & \"Watts\"","v":"Total  Watts"},null,null,"Room Lighting Power Density (LPD)",null,null,"Light Type 3",null,"Select Light Fixture",{"$f":"VLOOKUP(P88,'Linked Cells (hidden)'!$D$57:$E$150,2,FALSE)","v":"Total"},null,{"$f":"VLOOKUP(P88,'Linked Cells (hidden)'!$D$57:$E$140,2,FALSE)& \"  \" & \"Watts\"","v":"Total  Watts"},null,null,"Room Lighting Power Density (LPD)"]
[null,null,"Light Type 4",null,"Select Light Fixture",{"$f":"VLOOKUP(E89,'Linked Cells (hidden)'!$D$57:$E$150,2,FALSE)","v":"Total"},null,{"$f":"VLOOKUP(E89,'Linked Cells (hidden)'!$D$57:$E$150,2,FALSE)& \"  \" & \"Watts\"","v":"Total  Watts"},null,null,{"$f":"IF(K86=0,\"\",K86/I83)","v":""},"W/ft2",null,"Light Type 4",null,"Select Light Fixture",{"$f":"VLOOKUP(P89,'Linked Cells (hidden)'!$D$57:$E$150,2,FALSE)","v":"Total"},null,{"$f":"VLOOKUP(P89,'Linked Cells (hidden)'!$D$57:$E$140,2,FALSE)& \"  \" & \"Watts\"","v":"Total  Watts"},null,null,{"$f":"IF(V86=0,\"\",V86/T83)","v":""},"W/ft2"]
[null,null,"Light Type 5",null,"Select Light Fixture",{"$f":"VLOOKUP(E90,'Linked Cells (hidden)'!$D$57:$E$150,2,FALSE)","v":"Total"},null,{"$f":"VLOOKUP(E90,'Linked Cells (hidden)'!$D$57:$E$150,2,FALSE)& \"  \" & \"Watts\"","v":"Total  Watts"},null,null,null,null,null,"Light Type 5",null,"Select Light Fixture",{"$f":"VLOOKUP(P90,'Linked Cells (hidden)'!$D$57:$E$150,2,FALSE)","v":"Total"},null,{"$f":"VLOOKUP(P90,'Linked Cells (hidden)'!$D$57:$E$140,2,FALSE)& \"  \" & \"Watts\"","v":"Total  Watts"}]
[null,null,"Other Type : Name",null,null,{"$f":"IF(D92=0,\"Total\",D92)","v":"Total"},null,{"$f":"F91 & \" Watts\"","v":"Total Watts"},null,null,null,null,null,"Other Type : Name",null,null,{"$f":"IF(O92=0,\"Total\",O92)","v":"Total"},null,{"$f":"Q91 & \" Watts\"","v":"Total Watts"}]
[null,null,"                      : Watts",null,null,null,null,null,null,null,null,null,null,"                      : Watts"]
[]
[]
[]
[null,"HVAC/Non-Process Energy "]
[]
[null,"\nTo determine the site's Non-Process Heating, Ventilating, and Air Conditioning (HVAC) loads and energy use, describe each building's HVAC electrical using units by entering them below. If multiple of a unit exists, either add them into the table as separate units or enter Motor Size as the motor's size (in hp) multiplied by the quantity.\n\nNon-Process HVAC is meant to include all equipment not tied to specific process operations such as general ventilation heaters, office air conditioners, restroom exhaust fans, etc. \nDo not provide process-related ventilation equipment such as odor control fans here.  You can enter process equipment information on the \"WTP or WWTP Energy Usage\" tab.    \n\nFor each Non-Process HVAC unit select the equipment type from the dropdown list and enter an “Equipment Description.”\n\nCollect and enter each unit’s motor size, efficiency and full load amperage (FLA) ratings.  This information can be gathered from the equipment's nameplate or specification datasheet.\nIf the site has authorized personnel capable of taking electrical measurements, enter the motors average operating current. Otherwise leave the \"Average Motor Operating Current\" blank and the tool will use an 80% Load Factor in its calculations. \n\nOnce the equipment's typical operating hours are entered, the tool calculates the estimated annual energy use and operating cost for the unit.\nIf conditions at the plant change, you can adjust these values.\n\nA summary of the HVAC and lighting information entered on the building data tabs is displayed on the top on the WTP and WWTP Energy Usage tabs.  For those values to be included in the total energy use and to be displayed in the pie charts and summary report, you must enter the values in the Equipment Electrical Energy Inventory table (on the WTP or WWTP Energy Usage tab) as Non Process HVAC. See the instructions on that tab on how to enter this information.\n\n"]
[]
[]
[]
[]
[null,null,"System Type","Equipment Type",null,null,"Equipment Description","Motor Size (hp)","Motor Efficiency","Motor Full Load Amperage (FLA)","Average Motor Operating Current          (Amps)","Motor Operating Hours              (Hours/Year)","Average Load Factor\n(%)","Average HVAC Electric Load (kW)","Estimated Annual Energy Use (kWh/yr)",null,null,"Estimated Annual Operating Costs  ($/Year)","Estimated Percent of Site Electric Use & Cost (%)"]
[null,null,"Non Process HVAC","Select Equipment",null,null,null,null,null,null,null,null,{"$f":"IF(J104=0,0,IF(K104=0,0.75,K104/J104))","v":0},{"$f":"IF(I104=0,0,H104*0.746*M104/I104)","v":0},{"$f":"N104*L104","v":0},null,null,{"$f":"O104*'General Information'!$H$46","v":0},{"$f":"IF('General Information'!$H$44=0,\"\",O104/'General Information'!$H$44)","v":""}]
[null,null,"Non Process HVAC","Select Equipment",null,null,null,null,null,null,null,null,0,0,0,null,null,{"$f":"O105*'General Information'!$H$46","v":0},{"$f":"IF('General Information'!$H$44=0,\"\",O105/'General Information'!$H$44)","v":""}]
[null,null,"Non Process HVAC","Select Equipment",null,null,null,null,null,null,null,null,0,0,0,null,null,{"$f":"O106*'General Information'!$H$46","v":0},{"$f":"IF('General Information'!$H$44=0,\"\",O106/'General Information'!$H$44)","v":""}]
[null,null,"Non Process HVAC","Select Equipment",null,null,null,null,null,null,null,null,0,0,0,null,null,{"$f":"O107*'General Information'!$H$46","v":0},{"$f":"IF('General Information'!$H$44=0,\"\",O107/'General Information'!$H$44)","v":""}]
[null,null,"Non Process HVAC","Select Equipment",null,null,null,null,null,null,null,null,0,0,0,null,null,{"$f":"O108*'General Information'!$H$46","v":0},{"$f":"IF('General Information'!$H$44=0,\"\",O108/'General Information'!$H$44)","v":""}]
[null,null,"Non Process HVAC","Select Equipment",null,null,null,null,null,null,null,null,0,0,0,null,null,{"$f":"O109*'General Information'!$H$46","v":0},{"$f":"IF('General Information'!$H$44=0,\"\",O109/'General Information'!$H$44)","v":""}]
[]
[null,null,null,null,null,null,null,null,null,"Total Building HVAC",null,null,null,{"$f":"SUM(N101:N109)","v":0},{"$f":"SUM(O101:O109)","v":0},null,null,{"$f":"SUM(R104:R109)","v":0},{"$f":"SUM(S104:S109)","v":0}]

{"sheet":"Building 10 Data","index":12,"n_rows":111,"n_cols":24,"rows_kept":111,"cut":false,"hidden":true,"merged":[[36,21,36,22],[49,21,49,22],[84,21,84,22],[37,21,37,22],[46,3,46,6],[37,10,37,11],[48,21,48,22],[46,14,46,17],[85,21,85,22],[85,10,85,11],[70,14,70,17],[60,21,60,22],[61,21,61,22],[73,21,73,22],[0,0,0,10],[12,1,13,14],[20,2,20,3],[8,7,8,9],[10,7,10,9],[3,1,3,17],[10,1,10,2],[20,13,20,14],[19,6,20,7],[20,8,20,10],[2,1,2,3],[8,12,9,13],[36,10,36,11],[34,14,34,17],[58,3,58,6],[49,10,49,11],[48,10,48,11],[61,10,61,11],[72,21,72,22],[60,10,60,11],[72,10,72,11],[84,10,84,11],[110,9,110,12],[70,3,70,6],[82,3,82,6],[97,1,99,20],[82,14,82,17],[73,10,73,11],[58,14,58,17],[5,1,6,17],[8,1,8,2],[27,1,31,14],[34,3,34,6],[17,3,17,6]]}
[{"$f":"\"EPA Energy Use Assessment Tool for \" & workbookType","v":"EPA Energy Use Assessment Tool for Drinking Water Systems"}]
["Site Structural Buildings - Major Non-Process Energy Users"]
[]
[null,"\nIn the Building Data tabs, the tool totals each building’s Lighting and HVAC information. You should use the totals for entry on the WTP or WWTP Energy Use tabs.  For instructions on how to enter that information, see the WTP or WWTP Energy Usage tabs. If you have already identified the site's Lighting and HVAC loads or would just like to estimate them without detailing this information here, proceed to the WTP or WWTP Energy Usage tab.\n\nIf you skip this tab, you can come back later to fill in this detail.\n\n\n"]
[]
[null,"\nThe following information is entered once for the entire plant.\n\nTo change the Total Number of Buildings on-site, go to the \"Building 1 Data\" tab and click the \"Set # of Buildings\" button. This lets you enter information for the specified number of buildings.\n\nAfter entering data in a building tab, click the \"Save and Continue\" button at the top. That allows you to enter data for the next building or if building data entry is complete, to return to the General Information tab. You can also click the other Building Data tabs at the bottom. \n"]
[]
[]
[null,"Total Plant Building Area",null,{"$f":"'Building 1 Data'!D9","v":0},10,null,"Ft2","Total Plant Building Electric Load",null,null,{"$f":"'Building 1 Data'!K9","v":0},"kW","Total Plant Building Electric Use ",null,{"$f":"'Building 1 Data'!O9","v":0},null,null,"kWh/Yr"]
[]
[null,"Does the site have buildings?",null,{"$f":"hasBldgs","v":"Yes"},null,null,null,"Total Number of Buildings On-site:",null,null,{"$f":"[0]!totalbldgs","v":"1"}]
[]
[null,"Enter the following information for each building at the plant.\n\nTo begin, select the number of rooms in the \"No. of Rooms\" dropdown list below and click the \"Set # of rooms\" button.   It is important to know and set the number of rooms upfront, before any lighting data is entered.  If the number of rooms is later changed, all the data that had been entered will be lost. "]
[]
[]
[null,null,{"$f":"\"BUILDING \" & E9","v":"BUILDING 10"}]
[]
[null,null,"Name",null,null,null,null,null,"Operating Hours per Year",null,{"$f":"IF(K19=\"\",\"\",K19*K20*52)","v":""},"Hrs/Yr","Approximate Building Age (If known)",null,null,null,null,null,"Yrs"]
[null,null,"Area",{"$f":"I35+T35+T47+I47+I59+T59+T71+I71+I83+T83","v":0},null,null,"Ft2",null,"Operating Hours per Day",null,null,"Hrs/Day"]
[null,null,"No. of Rooms",null,null,null,"! Changing the number of rooms will reset all lighting data entered.",null,"Operating Days per Week",null,null,"Days/Wk","Average Building Lighting Power Density (LPD)",null,null,null,null,{"$f":"IF(D19=0,\"\",(K38+V38+V50+K50+K62+V62+V74+K74+K86+V86)/D19)","v":""},"W/ft2"]
[null,null,"Estimated Electric Load:",null,null,null,null,null,"Estimated Annual Energy Use:",null,null,null,null,"Estimated Annual Energy Cost:"]
[null,null,{"$f":"\"Total Building \" & $E$9& \" Lighting\"","v":"Total Building 10 Lighting"},null,null,null,{"$f":"IF((K38+V38+V50+K50+K62+V62+V74+K74+K86+V86)=0,0,(K38+V38+V50+K50+K62+V62+V74+K74+K86+V86)/1000)","v":0},"kW",{"$f":"\"Total Building \" & $E$9& \" Lighting\"","v":"Total Building 10 Lighting"},null,null,{"$f":"IF((K38+V38+V50+K50+K62+V62+V74+K74+K86+V86)=0,IF(K18=\"\",0,0),IF(K18=\"\",0,((K38+V38+V50+K50+K62+V62+V74+K74+K86+V86)/1000)*K18))","v":0},"kWh/Yr",{"$f":"\"Total Building \" & $E$9 & \" Lighting\"","v":"Total Building 10 Lighting"},null,null,null,{"$f":"L22*'General Information'!$H$46","v":0},"$/Yr"]
[null,null,{"$f":"\"Total Building \" & $E$9 & \" HVAC\"","v":"Total Building 10 HVAC"},null,null,null,{"$f":"N111","v":0},"kW",{"$f":"\"Total Building \" & $E$9 & \" HVAC\"","v":"Total Building 10 HVAC"},null,null,{"$f":"O$111","v":0},"kWh/Yr",{"$f":"\"Total Building \" & $E$9 & \" HVAC\"","v":"Total Building 10 HVAC"},null,null,null,{"$f":"R111","v":0},"$/Yr"]
[null,null,{"$f":"\"Total Building \" & $E$9 & \" Combined\"","v":"Total Building 10 Combined"},null,null,null,{"$f":"SUM(G22:G23)","v":0},"kW",{"$f":"\"Total Building \" & $E$9 & \" Combined\"","v":"Total Building 10 Combined"},null,null,{"$f":"SUM(L22,L23)","v":0},"kWh/Yr",{"$f":"\"Total Building \" & $E$9 & \" Combined\"","v":"Total Building 10 Combined"},null,null,null,{"$f":"SUM(R22,R23)","v":0},"$/Yr"]
[]
[null,null,"LIGHTING"]
[]
[null,"\nTo determine the site’s lighting loads and energy use, select each of the room’s lighting fixture types and quantity (Qty) using the dropdown lists below.\n\nSelect a light type from the dropdown list for each size and kind of fixture in a room. Then enter the quantity for each type. The tool provides the fixture’s electrical \nenergy load in watts. Do not include task lights (directional lights used to illuminate an area of work) when entering the room's lighting fixtures. \n\nIf a type of fixture is not available in the dropdown list, use the \"Other Type\" input field to enter the fixture and its total wattage.\n\nThe table automatically totals the room's lighting loads, each building's lighting energy use and the site's total lighting energy use per year for use in other areas of the tool.\nEnter the area of each room and the tool calculates the Lighting Power Density (LPD) in watts per square foot.  \nYou can now take an important next step and compare LPD’s from room to room and building to building to determine where excess energy might be in use.\n\n"]
[]
[]
[]
[]
[]
[]
[null,null,"Room 1 Name",null,null,null,null,"Area",null,"Ft2",null,null,null,"Room 2 Name",null,null,null,null,"Area",null,"Ft2"]
[null,null,"Room 1 Lighting (Main Lighting only - Do not include task lights)",null,null,null,null,null,null,null,null,null,null,"Room 2 Lighting (Main Lighting only - Do not include task lights)"]
[null,null,"Select up to 6 Light Fixture Types",null,null,null,null,null,null,null,"Total Room Wattage (W)",null,null,"Select up to 6 Light Fixture Types",null,null,null,null,null,null,null,"Total Room Wattage (W)"]
[null,null,"Light Type 1",null,"Select Light Fixture",{"$f":"VLOOKUP(E38,'Linked Cells (hidden)'!$D$57:$E$150,2,FALSE)","v":"Total"},null,{"$f":"VLOOKUP(E38,'Linked Cells (hidden)'!$D$57:$E$150,2,FALSE)& \"  \" & \"Watts\"","v":"Total  Watts"},null,null,{"$f":"(IF(F38=\"Total\",0,I38*F38)+IF(F39=\"Total\",0,I39*F39)+IF(F40=\"Total\",0,I40*F40)+IF(F41=\"Total\",0,I41*F41)+IF(F42=\"Total\",0,I42*F42)+IF(F43=\"Total\",0,I43*F43))","v":0},null,"W","Light Type 1",null,"Select Light Fixture",{"$f":"VLOOKUP(P38,'Linked Cells (hidden)'!$D$57:$E$150,2,FALSE)","v":"Total"},null,{"$f":"VLOOKUP(P38,'Linked Cells (hidden)'!$D$57:$E$140,2,FALSE)& \"  \" & \"Watts\"","v":"Total  Watts"},null,null,{"$f":"(IF(Q38=\"Total\",0,T38*Q38)+IF(Q39=\"Total\",0,T39*Q39)+IF(Q40=\"Total\",0,T40*Q40)+IF(Q41=\"Total\",0,T41*Q41)+IF(Q42=\"Total\",0,T42*Q42)+IF(Q43=\"Total\",0,T43*Q43))","v":0},null,"W"]
[null,null,"Light Type 2",null,"Select Light Fixture",{"$f":"VLOOKUP(E39,'Linked Cells (hidden)'!$D$57:$E$150,2,FALSE)","v":"Total"},null,{"$f":"VLOOKUP(E39,'Linked Cells (hidden)'!$D$57:$E$150,2,FALSE)& \"  \" & \"Watts\"","v":"Total  Watts"},null,null,null,null,null,"Light Type 2",null,"Select Light Fixture",{"$f":"VLOOKUP(P39,'Linked Cells (hidden)'!$D$57:$E$150,2,FALSE)","v":"Total"},null,{"$f":"VLOOKUP(P39,'Linked Cells (hidden)'!$D$57:$E$140,2,FALSE)& \"  \" & \"Watts\"","v":"Total  Watts"}]
[null,null,"Light Type 3",null,"Select Light Fixture",{"$f":"VLOOKUP(E40,'Linked Cells (hidden)'!$D$57:$E$150,2,FALSE)","v":"Total"},null,{"$f":"VLOOKUP(E40,'Linked Cells (hidden)'!$D$57:$E$150,2,FALSE)& \"  \" & \"Watts\"","v":"Total  Watts"},null,null,"Room Lighting Power Density (LPD)",null,null,"Light Type 3",null,"Select Light Fixture",{"$f":"VLOOKUP(P40,'Linked Cells (hidden)'!$D$57:$E$150,2,FALSE)","v":"Total"},null,{"$f":"VLOOKUP(P40,'Linked Cells (hidden)'!$D$57:$E$140,2,FALSE)& \"  \" & \"Watts\"","v":"Total  Watts"},null,null,"Room Lighting Power Density (LPD)"]
[null,null,"Light Type 4",null,"Select Light Fixture",{"$f":"VLOOKUP(E41,'Linked Cells (hidden)'!$D$57:$E$150,2,FALSE)","v":"Total"},null,{"$f":"VLOOKUP(E41,'Linked Cells (hidden)'!$D$57:$E$150,2,FALSE)& \"  \" & \"Watts\"","v":"Total  Watts"},null,null,{"$f":"IF(K38=0,\"\",K38/I35)","v":""},"W/ft2",null,"Light Type 4",null,"Select Light Fixture",{"$f":"VLOOKUP(P41,'Linked Cells (hidden)'!$D$57:$E$150,2,FALSE)","v":"Total"},null,{"$f":"VLOOKUP(P41,'Linked Cells (hidden)'!$D$57:$E$140,2,FALSE)& \"  \" & \"Watts\"","v":"Total  Watts"},null,null,{"$f":"IF(V38=0,\"\",V38/T35)","v":""},"W/ft2"]
[null,null,"Light Type 5",null,"Select Light Fixture",{"$f":"VLOOKUP(E42,'Linked Cells (hidden)'!$D$57:$E$150,2,FALSE)","v":"Total"},null,{"$f":"VLOOKUP(E42,'Linked Cells (hidden)'!$D$57:$E$150,2,FALSE)& \"  \" & \"Watts\"","v":"Total  Watts"},null,null,null,null,null,"Light Type 5",null,"Select Light Fixture",{"$f":"VLOOKUP(P42,'Linked Cells (hidden)'!$D$57:$E$150,2,FALSE)","v":"Total"},null,{"$f":"VLOOKUP(P42,'Linked Cells (hidden)'!$D$57:$E$140,2,FALSE)& \"  \" & \"Watts\"","v":"Total  Watts"}]
[null,null,"Other Type : Name",null,null,{"$f":"IF(D44=0,\"Total\",D44)","v":"Total"},null,{"$f":"F43 & \" Watts\"","v":"Total Watts"},null,null,null,null,null,"Other Type : Name",null,null,{"$f":"IF(O44=0,\"Total\",O44)","v":"Total"},null,{"$f":"Q43 & \" Watts\"","v":"Total Watts"}]
[null,null,"                      : Watts",null,null,null,null,null,null,null,null,null,null,"                      : Watts"]
[]
[]
[null,null,"Room 3 Name",null,null,null,null,"Area",null,"Ft2",null,null,null,"Room 4 Name",null,null,null,null,"Area",null,"Ft2"]
[null,null,"Room 3 Lighting (Main Lighting only - Do not include task lights)",null,null,null,null,null,null,null,null,null,null,"Room 4 Lighting (Main Lighting only - Do not include task lights)"]
[null,null,"Select up to 6 Light Fixture Types",null,null,null,null,null,null,null,"Total Room Wattage (W)",null,null,"Select up to 6 Light Fixture Types",null,null,null,null,null,null,null,"Total Room Wattage (W)"]
[null,null,"Light Type 1",null,"Select Light Fixture",{"$f":"VLOOKUP(E50,'Linked Cells (hidden)'!$D$57:$E$150,2,FALSE)","v":"Total"},null,{"$f":"VLOOKUP(E50,'Linked Cells (hidden)'!$D$57:$E$150,2,FALSE)& \"  \" & \"Watts\"","v":"Total  Watts"},null,null,{"$f":"(IF(F50=\"Total\",0,I50*F50)+IF(F51=\"Total\",0,I51*F51)+IF(F52=\"Total\",0,I52*F52)+IF(F53=\"Total\",0,I53*F53)+IF(F54=\"Total\",0,I54*F54)+IF(F55=\"Total\",0,I55*F55))","v":0},null,"W","Light Type 1",null,"Select Light Fixture",{"$f":"VLOOKUP(P50,'Linked Cells (hidden)'!$D$57:$E$150,2,FALSE)","v":"Total"},null,{"$f":"VLOOKUP(P50,'Linked Cells (hidden)'!$D$57:$E$140,2,FALSE)& \"  \" & \"Watts\"","v":"Total  Watts"},null,null,{"$f":"(IF(Q50=\"Total\",0,T50*Q50)+IF(Q51=\"Total\",0,T51*Q51)+IF(Q52=\"Total\",0,T52*Q52)+IF(Q53=\"Total\",0,T53*Q53)+IF(Q54=\"Total\",0,T54*Q54)+IF(Q55=\"Total\",0,T55*Q55))","v":0},null,"W"]
[null,null,"Light Type 2",null,"Select Light Fixture",{"$f":"VLOOKUP(E51,'Linked Cells (hidden)'!$D$57:$E$150,2,FALSE)","v":"Total"},null,{"$f":"VLOOKUP(E51,'Linked Cells (hidden)'!$D$57:$E$150,2,FALSE)& \"  \" & \"Watts\"","v":"Total  Watts"},null,null,null,null,null,"Light Type 2",null,"Select Light Fixture",{"$f":"VLOOKUP(P51,'Linked Cells (hidden)'!$D$57:$E$150,2,FALSE)","v":"Total"},null,{"$f":"VLOOKUP(P51,'Linked Cells (hidden)'!$D$57:$E$140,2,FALSE)& \"  \" & \"Watts\"","v":"Total  Watts"}]
[null,null,"Light Type 3",null,"Select Light Fixture",{"$f":"VLOOKUP(E52,'Linked Cells (hidden)'!$D$57:$E$150,2,FALSE)","v":"Total"},null,{"$f":"VLOOKUP(E52,'Linked Cells (hidden)'!$D$57:$E$150,2,FALSE)& \"  \" & \"Watts\"","v":"Total  Watts"},null,null,"Room Lighting Power Density (LPD)",null,null,"Light Type 3",null,"Select Light Fixture",{"$f":"VLOOKUP(P52,'Linked Cells (hidden)'!$D$57:$E$150,2,FALSE)","v":"Total"},null,{"$f":"VLOOKUP(P52,'Linked Cells (hidden)'!$D$57:$E$140,2,FALSE)& \"  \" & \"Watts\"","v":"Total  Watts"},null,null,"Room Lighting Power Density (LPD)"]
[null,null,"Light Type 4",null,"Select Light Fixture",{"$f":"VLOOKUP(E53,'Linked Cells (hidden)'!$D$57:$E$150,2,FALSE)","v":"Total"},null,{"$f":"VLOOKUP(E53,'Linked Cells (hidden)'!$D$57:$E$150,2,FALSE)& \"  \" & \"Watts\"","v":"Total  Watts"},null,null,{"$f":"IF(K50=0,\"\",K50/I47)","v":""},"W/ft2",null,"Light Type 4",null,"Select Light Fixture",{"$f":"VLOOKUP(P53,'Linked Cells (hidden)'!$D$57:$E$150,2,FALSE)","v":"Total"},null,{"$f":"VLOOKUP(P53,'Linked Cells (hidden)'!$D$57:$E$140,2,FALSE)& \"  \" & \"Watts\"","v":"Total  Watts"},null,null,{"$f":"IF(V50=0,\"\",V50/T47)","v":""},"W/ft2"]
[null,null,"Light Type 5",null,"Select Light Fixture",{"$f":"VLOOKUP(E54,'Linked Cells (hidden)'!$D$57:$E$150,2,FALSE)","v":"Total"},null,{"$f":"VLOOKUP(E54,'Linked Cells (hidden)'!$D$57:$E$150,2,FALSE)& \"  \" & \"Watts\"","v":"Total  Watts"},null,null,null,null,null,"Light Type 5",null,"Select Light Fixture",{"$f":"VLOOKUP(P54,'Linked Cells (hidden)'!$D$57:$E$150,2,FALSE)","v":"Total"},null,{"$f":"VLOOKUP(P54,'Linked Cells (hidden)'!$D$57:$E$140,2,FALSE)& \"  \" & \"Watts\"","v":"Total  Watts"}]
[null,null,"Other Type : Name",null,null,{"$f":"IF(D56=0,\"Total\",D56)","v":"Total"},null,{"$f":"F55 & \" Watts\"","v":"Total Watts"},null,null,null,null,null,"Other Type : Name",null,null,{"$f":"IF(O56=0,\"Total\",O56)","v":"Total"},null,{"$f":"Q55 & \" Watts\"","v":"Total Watts"}]
[null,null,"                      : Watts",null,null,null,null,null,null,null,null,null,null,"                      : Watts"]
[]
[]
[null,null,"Room 5 Name",null,null,null,null,"Area",null,"Ft2",null,null,null,"Room 6 Name",null,null,null,null,"Area",null,"Ft2"]
[null,null,"Room 5 Lighting (Main Lighting only - Do not include task lights)",null,null,null,null,null,null,null,null,null,null,"Room 6 Lighting (Main Lighting only - Do not include task lights)"]
[null,null,"Select up to 6 Light Fixture Types",null,null,null,null,null,null,null,"Total Room Wattage (W)",null,null,"Select up to 6 Light Fixture Types",null,null,null,null,null,null,null,"Total Room Wattage (W)"]
[null,null,"Light Type 1",null,"Select Light Fixture",{"$f":"VLOOKUP(E62,'Linked Cells (hidden)'!$D$57:$E$150,2,FALSE)","v":"Total"},null,{"$f":"VLOOKUP(E62,'Linked Cells (hidden)'!$D$57:$E$150,2,FALSE)& \"  \" & \"Watts\"","v":"Total  Watts"},null,null,{"$f":"(IF(F62=\"Total\",0,I62*F62)+IF(F63=\"Total\",0,I63*F63)+IF(F64=\"Total\",0,I64*F64)+IF(F65=\"Total\",0,I65*F65)+IF(F66=\"Total\",0,I66*F66)+IF(F67=\"Total\",0,I67*F67))","v":0},null,"W","Light Type 1",null,"Select Light Fixture",{"$f":"VLOOKUP(P62,'Linked Cells (hidden)'!$D$57:$E$150,2,FALSE)","v":"Total"},null,{"$f":"VLOOKUP(P62,'Linked Cells (hidden)'!$D$57:$E$140,2,FALSE)& \"  \" & \"Watts\"","v":"Total  Watts"},null,null,{"$f":"(IF(Q62=\"Total\",0,T62*Q62)+IF(Q63=\"Total\",0,T63*Q63)+IF(Q64=\"Total\",0,T64*Q64)+IF(Q65=\"Total\",0,T65*Q65)+IF(Q66=\"Total\",0,T66*Q66)+IF(Q67=\"Total\",0,T67*Q67))","v":0},null,"W"]
[null,null,"Light Type 2",null,"Select Light Fixture",{"$f":"VLOOKUP(E63,'Linked Cells (hidden)'!$D$57:$E$150,2,FALSE)","v":"Total"},null,{"$f":"VLOOKUP(E63,'Linked Cells (hidden)'!$D$57:$E$150,2,FALSE)& \"  \" & \"Watts\"","v":"Total  Watts"},null,null,null,null,null,"Light Type 2",null,"Select Light Fixture",{"$f":"VLOOKUP(P63,'Linked Cells (hidden)'!$D$57:$E$150,2,FALSE)","v":"Total"},null,{"$f":"VLOOKUP(P63,'Linked Cells (hidden)'!$D$57:$E$140,2,FALSE)& \"  \" & \"Watts\"","v":"Total  Watts"}]
[null,null,"Light Type 3",null,"Select Light Fixture",{"$f":"VLOOKUP(E64,'Linked Cells (hidden)'!$D$57:$E$150,2,FALSE)","v":"Total"},null,{"$f":"VLOOKUP(E64,'Linked Cells (hidden)'!$D$57:$E$150,2,FALSE)& \"  \" & \"Watts\"","v":"Total  Watts"},null,null,"Room Lighting Power Density (LPD)",null,null,"Light Type 3",null,"Select Light Fixture",{"$f":"VLOOKUP(P64,'Linked Cells (hidden)'!$D$57:$E$150,2,FALSE)","v":"Total"},null,{"$f":"VLOOKUP(P64,'Linked Cells (hidden)'!$D$57:$E$140,2,FALSE)& \"  \" & \"Watts\"","v":"Total  Watts"},null,null,"Room Lighting Power Density (LPD)"]
[null,null,"Light Type 4",null,"Select Light Fixture",{"$f":"VLOOKUP(E65,'Linked Cells (hidden)'!$D$57:$E$150,2,FALSE)","v":"Total"},null,{"$f":"VLOOKUP(E65,'Linked Cells (hidden)'!$D$57:$E$150,2,FALSE)& \"  \" & \"Watts\"","v":"Total  Watts"},null,null,{"$f":"IF(K62=0,\"\",K62/I59)","v":""},"W/ft2",null,"Light Type 4",null,"Select Light Fixture",{"$f":"VLOOKUP(P65,'Linked Cells (hidden)'!$D$57:$E$150,2,FALSE)","v":"Total"},null,{"$f":"VLOOKUP(P65,'Linked Cells (hidden)'!$D$57:$E$140,2,FALSE)& \"  \" & \"Watts\"","v":"Total  Watts"},null,null,{"$f":"IF(V62=0,\"\",V62/T59)","v":""},"W/ft2"]
[null,null,"Light Type 5",null,"Select Light Fixture",{"$f":"VLOOKUP(E66,'Linked Cells (hidden)'!$D$57:$E$150,2,FALSE)","v":"Total"},null,{"$f":"VLOOKUP(E66,'Linked Cells (hidden)'!$D$57:$E$150,2,FALSE)& \"  \" & \"Watts\"","v":"Total  Watts"},null,null,null,null,null,"Light Type 5",null,"Select Light Fixture",{"$f":"VLOOKUP(P66,'Linked Cells (hidden)'!$D$57:$E$150,2,FALSE)","v":"Total"},null,{"$f":"VLOOKUP(P66,'Linked Cells (hidden)'!$D$57:$E$140,2,FALSE)& \"  \" & \"Watts\"","v":"Total  Watts"}]
[null,null,"Other Type : Name",null,null,{"$f":"IF(D68=0,\"Total\",D68)","v":"Total"},null,{"$f":"F67 & \" Watts\"","v":"Total Watts"},null,null,null,null,null,"Other Type : Name",null,null,{"$f":"IF(O68=0,\"Total\",O68)","v":"Total"},null,{"$f":"Q67 & \" Watts\"","v":"Total Watts"}]
[null,null,"                      : Watts",null,null,null,null,null,null,null,null,null,null,"                      : Watts"]
[]
[]
[null,null,"Room 7 Name",null,null,null,null,"Area",null,"Ft2",null,null,null,"Room 8 Name",null,null,null,null,"Area",null,"Ft2"]
[null,null,"Room 7 Lighting (Main Lighting only - Do not include task lights)",null,null,null,null,null,null,null,null,null,null,"Room 8 Lighting (Main Lighting only - Do not include task lights)"]
[null,null,"Select up to 6 Light Fixture Types",null,null,null,null,null,null,null,"Total Room Wattage (W)",null,null,"Select up to 6 Light Fixture Types",null,null,null,null,null,null,null,"Total Room Wattage (W)"]
[null,null,"Light Type 1",null,"Select Light Fixture",null,null,{"$f":"VLOOKUP(E74,'Linked Cells (hidden)'!$D$57:$E$150,2,FALSE)& \"  \" & \"Watts\"","v":"Total  Watts"},null,null,{"$f":"(IF(F74=\"Total\",0,I74*F74)+IF(F75=\"Total\",0,I75*F75)+IF(F76=\"Total\",0,I76*F76)+IF(F77=\"Total\",0,I77*F77)+IF(F78=\"Total\",0,I78*F78)+IF(F79=\"Total\",0,I79*F79))","v":0},null,"W","Light Type 1",null,"Select Light Fixture",null,null,{"$f":"VLOOKUP(P74,'Linked Cells (hidden)'!$D$57:$E$140,2,FALSE)& \"  \" & \"Watts\"","v":"Total  Watts"},null,null,{"$f":"(IF(Q74=\"Total\",0,T74*Q74)+IF(Q75=\"Total\",0,T75*Q75)+IF(Q76=\"Total\",0,T76*Q76)+IF(Q77=\"Total\",0,T77*Q77)+IF(Q78=\"Total\",0,T78*Q78)+IF(Q79=\"Total\",0,T79*Q79))","v":0},null,"W"]
[null,null,"Light Type 2",null,"Select Light Fixture",{"$f":"VLOOKUP(E75,'Linked Cells (hidden)'!$D$57:$E$150,2,FALSE)","v":"Total"},null,{"$f":"VLOOKUP(E75,'Linked Cells (hidden)'!$D$57:$E$150,2,FALSE)& \"  \" & \"Watts\"","v":"Total  Watts"},null,null,null,null,null,"Light Type 2",null,"Select Light Fixture",{"$f":"VLOOKUP(P75,'Linked Cells (hidden)'!$D$57:$E$150,2,FALSE)","v":"Total"},null,{"$f":"VLOOKUP(P75,'Linked Cells (hidden)'!$D$57:$E$140,2,FALSE)& \"  \" & \"Watts\"","v":"Total  Watts"}]
[null,null,"Light Type 3",null,"Select Light Fixture",{"$f":"VLOOKUP(E76,'Linked Cells (hidden)'!$D$57:$E$150,2,FALSE)","v":"Total"},null,{"$f":"VLOOKUP(E76,'Linked Cells (hidden)'!$D$57:$E$150,2,FALSE)& \"  \" & \"Watts\"","v":"Total  Watts"},null,null,"Room Lighting Power Density (LPD)",null,null,"Light Type 3",null,"Select Light Fixture",{"$f":"VLOOKUP(P76,'Linked Cells (hidden)'!$D$57:$E$150,2,FALSE)","v":"Total"},null,{"$f":"VLOOKUP(P76,'Linked Cells (hidden)'!$D$57:$E$140,2,FALSE)& \"  \" & \"Watts\"","v":"Total  Watts"},null,null,"Room Lighting Power Density (LPD)"]
[null,null,"Light Type 4",null,"Select Light Fixture",{"$f":"VLOOKUP(E77,'Linked Cells (hidden)'!$D$57:$E$150,2,FALSE)","v":"Total"},null,{"$f":"VLOOKUP(E77,'Linked Cells (hidden)'!$D$57:$E$150,2,FALSE)& \"  \" & \"Watts\"","v":"Total  Watts"},null,null,{"$f":"IF(K74=0,\"\",K74/I71)","v":""},"W/ft2",null,"Light Type 4",null,"Select Light Fixture",{"$f":"VLOOKUP(P77,'Linked Cells (hidden)'!$D$57:$E$150,2,FALSE)","v":"Total"},null,{"$f":"VLOOKUP(P77,'Linked Cells (hidden)'!$D$57:$E$140,2,FALSE)& \"  \" & \"Watts\"","v":"Total  Watts"},null,null,{"$f":"IF(V74=0,\"\",V74/T71)","v":""},"W/ft2"]
[null,null,"Light Type 5",null,"Select Light Fixture",{"$f":"VLOOKUP(E78,'Linked Cells (hidden)'!$D$57:$E$150,2,FALSE)","v":"Total"},null,{"$f":"VLOOKUP(E78,'Linked Cells (hidden)'!$D$57:$E$150,2,FALSE)& \"  \" & \"Watts\"","v":"Total  Watts"},null,null,null,null,null,"Light Type 5",null,"Select Light Fixture",{"$f":"VLOOKUP(P78,'Linked Cells (hidden)'!$D$57:$E$150,2,FALSE)","v":"Total"},null,{"$f":"VLOOKUP(P78,'Linked Cells (hidden)'!$D$57:$E$140,2,FALSE)& \"  \" & \"Watts\"","v":"Total  Watts"}]
[null,null,"Other Type : Name",null,null,{"$f":"IF(D80=0,\"Total\",D80)","v":"Total"},null,{"$f":"F79 & \" Watts\"","v":"Total Watts"},null,null,null,null,null,"Other Type : Name",null,null,{"$f":"IF(O80=0,\"Total\",O80)","v":"Total"},null,{"$f":"Q79 & \" Watts\"","v":"Total Watts"}]
[null,null,"                      : Watts",null,null,null,null,null,null,null,null,null,null,"                      : Watts"]
[]
[]
[null,null,"Room 9 Name",null,null,null,null,"Area",null,"Ft2",null,null,null,"Room 10 Name",null,null,null,null,"Area",null,"Ft2"]
[null,null,"Room 9 Lighting (Main Lighting only - Do not include task lights)",null,null,null,null,null,null,null,null,null,null,"Room 10 Lighting (Main Lighting only - Do not include task lights)"]
[null,null,"Select up to 6 Light Fixture Types",null,null,null,null,null,null,null,"Total Room Wattage (W)",null,null,"Select up to 6 Light Fixture Types",null,null,null,null,null,null,null,"Total Room Wattage (W)"]
[null,null,"Light Type 1",null,"Select Light Fixture",{"$f":"VLOOKUP(E86,'Linked Cells (hidden)'!$D$57:$E$150,2,FALSE)","v":"Total"},null,{"$f":"VLOOKUP(E86,'Linked Cells (hidden)'!$D$57:$E$150,2,FALSE)& \"  \" & \"Watts\"","v":"Total  Watts"},null,null,{"$f":"(IF(F86=\"Total\",0,I86*F86)+IF(F87=\"Total\",0,I87*F87)+IF(F88=\"Total\",0,I88*F88)+IF(F89=\"Total\",0,I89*F89)+IF(F90=\"Total\",0,I90*F90)+IF(F91=\"Total\",0,I91*F91))","v":0},null,"W","Light Type 1",null,"Select Light Fixture",{"$f":"VLOOKUP(P86,'Linked Cells (hidden)'!$D$57:$E$150,2,FALSE)","v":"Total"},null,{"$f":"VLOOKUP(P86,'Linked Cells (hidden)'!$D$57:$E$140,2,FALSE)& \"  \" & \"Watts\"","v":"Total  Watts"},null,null,{"$f":"(IF(Q86=\"Total\",0,T86*Q86)+IF(Q87=\"Total\",0,T87*Q87)+IF(Q88=\"Total\",0,T88*Q88)+IF(Q89=\"Total\",0,T89*Q89)+IF(Q90=\"Total\",0,T90*Q90)+IF(Q91=\"Total\",0,T91*Q91))","v":0},null,"W"]
[null,null,"Light Type 2",null,"Select Light Fixture",null,null,{"$f":"VLOOKUP(E87,'Linked Cells (hidden)'!$D$57:$E$150,2,FALSE)& \"  \" & \"Watts\"","v":"Total  Watts"},null,null,null,null,null,"Light Type 2",null,"Select Light Fixture",null,null,{"$f":"VLOOKUP(P87,'Linked Cells (hidden)'!$D$57:$E$140,2,FALSE)& \"  \" & \"Watts\"","v":"Total  Watts"}]
[null,null,"Light Type 3",null,"Select Light Fixture",{"$f":"VLOOKUP(E88,'Linked Cells (hidden)'!$D$57:$E$150,2,FALSE)","v":"Total"},null,{"$f":"VLOOKUP(E88,'Linked Cells (hidden)'!$D$57:$E$150,2,FALSE)& \"  \" & \"Watts\"","v":"Total  Watts"},null,null,"Room Lighting Power Density (LPD)",null,null,"Light Type 3",null,"Select Light Fixture",{"$f":"VLOOKUP(P88,'Linked Cells (hidden)'!$D$57:$E$150,2,FALSE)","v":"Total"},null,{"$f":"VLOOKUP(P88,'Linked Cells (hidden)'!$D$57:$E$140,2,FALSE)& \"  \" & \"Watts\"","v":"Total  Watts"},null,null,"Room Lighting Power Density (LPD)"]
[null,null,"Light Type 4",null,"Select Light Fixture",{"$f":"VLOOKUP(E89,'Linked Cells (hidden)'!$D$57:$E$150,2,FALSE)","v":"Total"},null,{"$f":"VLOOKUP(E89,'Linked Cells (hidden)'!$D$57:$E$150,2,FALSE)& \"  \" & \"Watts\"","v":"Total  Watts"},null,null,{"$f":"IF(K86=0,\"\",K86/I83)","v":""},"W/ft2",null,"Light Type 4",null,"Select Light Fixture",{"$f":"VLOOKUP(P89,'Linked Cells (hidden)'!$D$57:$E$150,2,FALSE)","v":"Total"},null,{"$f":"VLOOKUP(P89,'Linked Cells (hidden)'!$D$57:$E$140,2,FALSE)& \"  \" & \"Watts\"","v":"Total  Watts"},null,null,{"$f":"IF(V86=0,\"\",V86/T83)","v":""},"W/ft2"]
[null,null,"Light Type 5",null,"Select Light Fixture",{"$f":"VLOOKUP(E90,'Linked Cells (hidden)'!$D$57:$E$150,2,FALSE)","v":"Total"},null,{"$f":"VLOOKUP(E90,'Linked Cells (hidden)'!$D$57:$E$150,2,FALSE)& \"  \" & \"Watts\"","v":"Total  Watts"},null,null,null,null,null,"Light Type 5",null,"Select Light Fixture",{"$f":"VLOOKUP(P90,'Linked Cells (hidden)'!$D$57:$E$150,2,FALSE)","v":"Total"},null,{"$f":"VLOOKUP(P90,'Linked Cells (hidden)'!$D$57:$E$140,2,FALSE)& \"  \" & \"Watts\"","v":"Total  Watts"}]
[null,null,"Other Type : Name",null,null,{"$f":"IF(D92=0,\"Total\",D92)","v":"Total"},null,{"$f":"F91 & \" Watts\"","v":"Total Watts"},null,null,null,null,null,"Other Type : Name",null,null,{"$f":"IF(O92=0,\"Total\",O92)","v":"Total"},null,{"$f":"Q91 & \" Watts\"","v":"Total Watts"}]
[null,null,"                      : Watts",null,null,null,null,null,null,null,null,null,null,"                      : Watts"]
[]
[]
[]
[null,"HVAC/Non-Process Energy "]
[]
[null,"\nTo determine the site's Non-Process Heating, Ventilating, and Air Conditioning (HVAC) loads and energy use, describe each building's HVAC electrical using units by entering them below. If multiple of a unit exists, either add them into the table as separate units or enter Motor Size as the motor's size (in hp) multiplied by the quantity.\n\nNon-Process HVAC is meant to include all equipment not tied to specific process operations such as general ventilation heaters, office air conditioners, restroom exhaust fans, etc. \nDo not provide process-related ventilation equipment such as odor control fans here.  You can enter process equipment information on the \"WTP or WWTP Energy Usage\" tab.    \n\nFor each Non-Process HVAC unit select the equipment type from the dropdown list and enter an “Equipment Description.”\n\nCollect and enter each unit’s motor size, efficiency and full load amperage (FLA) ratings.  This information can be gathered from the equipment's nameplate or specification datasheet.\nIf the site has authorized personnel capable of taking electrical measurements, enter the motors average operating current. Otherwise leave the \"Average Motor Operating Current\" blank and the tool will use an 80% Load Factor in its calculations. \n\nOnce the equipment's typical operating hours are entered, the tool calculates the estimated annual energy use and operating cost for the unit.\nIf conditions at the plant change, you can adjust these values.\n\nA summary of the HVAC and lighting information entered on the building data tabs is displayed on the top on the WTP and WWTP Energy Usage tabs.  For those values to be included in the total energy use and to be displayed in the pie charts and summary report, you must enter the values in the Equipment Electrical Energy Inventory table (on the WTP or WWTP Energy Usage tab) as Non Process HVAC. See the instructions on that tab on how to enter this information.\n\n"]
[]
[]
[]
[]
[null,null,"System Type","Equipment Type",null,null,"Equipment Description","Motor Size (hp)","Motor Efficiency","Motor Full Load Amperage (FLA)","Average Motor Operating Current          (Amps)","Motor Operating Hours              (Hours/Year)","Average Load Factor\n(%)","Average HVAC Electric Load (kW)","Estimated Annual Energy Use (kWh/yr)",null,null,"Estimated Annual Operating Costs  ($/Year)","Estimated Percent of Site Electric Use & Cost (%)"]
[null,null,"Non Process HVAC","Select Equipment",null,null,null,null,null,null,null,null,{"$f":"IF(J104=0,0,IF(K104=0,0.75,K104/J104))","v":0},{"$f":"IF(I104=0,0,H104*0.746*M104/I104)","v":0},{"$f":"N104*L104","v":0},null,null,{"$f":"O104*'General Information'!$H$46","v":0},{"$f":"IF('General Information'!$H$44=0,\"\",O104/'General Information'!$H$44)","v":""}]
[null,null,"Non Process HVAC","Select Equipment",null,null,null,null,null,null,null,null,0,0,0,null,null,{"$f":"O105*'General Information'!$H$46","v":0},{"$f":"IF('General Information'!$H$44=0,\"\",O105/'General Information'!$H$44)","v":""}]
[null,null,"Non Process HVAC","Select Equipment",null,null,null,null,null,null,null,null,0,0,0,null,null,{"$f":"O106*'General Information'!$H$46","v":0},{"$f":"IF('General Information'!$H$44=0,\"\",O106/'General Information'!$H$44)","v":""}]
[null,null,"Non Process HVAC","Select Equipment",null,null,null,null,null,null,null,null,0,0,0,null,null,{"$f":"O107*'General Information'!$H$46","v":0},{"$f":"IF('General Information'!$H$44=0,\"\",O107/'General Information'!$H$44)","v":""}]
[null,null,"Non Process HVAC","Select Equipment",null,null,null,null,null,null,null,null,0,0,0,null,null,{"$f":"O108*'General Information'!$H$46","v":0},{"$f":"IF('General Information'!$H$44=0,\"\",O108/'General Information'!$H$44)","v":""}]
[null,null,"Non Process HVAC","Select Equipment",null,null,null,null,null,null,null,null,0,0,0,null,null,{"$f":"O109*'General Information'!$H$46","v":0},{"$f":"IF('General Information'!$H$44=0,\"\",O109/'General Information'!$H$44)","v":""}]
[]
[null,null,null,null,null,null,null,null,null,"Total Building HVAC",null,null,null,{"$f":"SUM(N101:N109)","v":0},{"$f":"SUM(O101:O109)","v":0},null,null,{"$f":"SUM(R104:R109)","v":0},{"$f":"SUM(S104:S109)","v":0}]

{"sheet":"WWTP Energy Usage","index":13,"n_rows":335,"n_cols":15,"rows_kept":335,"cut":false,"hidden":true,"merged":[[1,16,1,17],[9,12,9,13],[55,1,55,2],[9,2,9,3],[15,1,15,2],[19,1,24,14],[56,1,56,2],[16,1,16,2],[17,1,17,2],[0,0,0,10],[11,1,12,11],[3,1,7,13],[13,5,13,8],[13,1,13,2],[13,10,13,13]]}
[{"$f":"\"EPA Energy Use Assessment Tool for \" & workbookType","v":"EPA Energy Use Assessment Tool for Drinking Water Systems"}]
["Wastewater Systems Energy Usage"]
[]
[null,"To determine the site's electrical energy breakdown and baseline, you must describe each major piece of equipment at the plant by entering information in the table below.\nCollect each motor's size (hp), efficiency rating (%), full load amperage (FLA) rating and annual operating hours.\n\nIf you do not have time to collect information for all equipment at the plant, you should start with gathering data for the following motors sizes:\n• 10 hp and greater. After entering this data, gather data next for all motors sized:\n• 5 hp and greater. After entering this data, gather data next for all motors sized:\n• 1 hp and greater.\n\nIf a piece of equipment is not motor based, identify the operating load in kilo-watts (kW) and the unit's annual operating hours.\n\nAt each stage of data entry, the tool estimates the plant's electrical energy breakdown.\nAt the bottom of the table below, the \"Percent of Site Electrical Energy Identified” provides the estimate of what portion of the site's electrical energy use has been captured.  Use that percent value to help gauge how much data is left to be collected. It is ideal to have 90% or greater accounted for.\n\nThe tool automatically generates a list of the Top 5 Electrical Energy Use Systems at the plant. That breakdown is listed by major system type.  \nThose smaller systems not in the Top 5 are combined and shown as the \"Balance of Plant Identified.\"  The electrical energy that has not yet been identified\nis shown as \"Balance of Plant Unidentified.\"\nAs the “Percent of Site Electrical Energy Identified” gets closer to 100%, the \"Balance of Plant Unidentified\" decreases."]
[]
[]
[]
[]
[]
[null,"Collection","Headworks",null,"Primary Treatment",null,null,"Secondary Treatment",null,null,"Tertiary Treatment",null,"Disinfection"]
[]
[null,"If the plant's Building Lighting and HVAC (Non-Process) energy loads were entered on the Building Data tabs, the site's Total Building Non-Process loads are summarized below.\nEnter this summarized data into the Equipment Electrical Energy Inventory Table with System Type as either \"Non-Process HVAC\", \"Lighting\" or \"Other Non Process Load\" and Equipment Type as \"Other kW Load\".  For further instructions, see below."]
[]
[null,"Estimated Average Building Electric Loads:",null,null,null,"Estimated Building Annual Energy Use:",null,null,null,null,"Estimated Building Annual Energy Cost:"]
[]
[null,"Total Plant Building(s) Lighting",null,{"$f":"I16/8760","v":0},"kW","Total Plant Building(s) Lighting",null,null,{"$f":"SUM('Building 1 Data'!L22,'Building 2 Data'!L22,'Building 3 Data'!L22,'Building 4 Data'!L22,'Building 5 Data'!L22,'Building 6 Data'!L22,'Building 7 Data'!L22,'Building 8 Data'!L22,'Building 9 Data'!L22,'Building 10 Data'!L22)","v":0},"kWh/yr","Total Plant Building(s) Lighting",null,null,{"$f":"SUM('Building 1 Data'!R22,'Building 2 Data'!R22,'Building 3 Data'!R22,'Building 4 Data'!R22,'Building 5 Data'!R22,'Building 6 Data'!R22,'Building 7 Data'!R22,'Building 8 Data'!R22,'Building 9 Data'!R22,'Building 10 Data'!R22)","v":0},"$/yr"]
[null,"Total Plant Building(s) HVAC",null,{"$f":"I17/8760","v":0},"kW","Total Plant Building(s) HVAC",null,null,{"$f":"SUM('Building 1 Data'!L23,'Building 2 Data'!L23,'Building 3 Data'!L23,'Building 4 Data'!L23,'Building 5 Data'!L23,'Building 6 Data'!L23,'Building 7 Data'!L23,'Building 8 Data'!L23,'Building 9 Data'!L23,'Building 10 Data'!L23)","v":0},"kWh/yr","Total Plant Building(s) HVAC",null,null,{"$f":"SUM('Building 1 Data'!R23,'Building 2 Data'!R23,'Building 3 Data'!R23,'Building 4 Data'!R23,'Building 5 Data'!R23,'Building 6 Data'!R23,'Building 7 Data'!R23,'Building 8 Data'!R23,'Building 9 Data'!R23,'Building 10 Data'!R23)","v":0},"$/yr"]
[null,"Total Plant Building(s) Combined",null,{"$f":"SUM(D16:D17)","v":0},"kW","Total Plant Building(s) Combined",null,null,{"$f":"SUM(I16:I17)","v":0},"kWh/yr","Total Plant Building(s) Combined",null,null,{"$f":"SUM(N16:N17)","v":0},"$/yr"]
[]
[null,"Table Entry Instructions:\n1. For each piece of equipment recognized at the plant, identify and select the “System Type” and “Equipment Type” from the dropdown lists. Select \"Other\" in the \"System Type\" dropdown to enter system types not listed in the list and use the \"Equipment Description\" field to describe the system. \n2. Enter a unique “Equipment Description” to keep track of each piece of equipment.  This can be the site's identification name or number.\n3. Collect and enter each unit’s motor size, efficiency and full load amperage (FLA) ratings.  That information is usually on the equipment's nameplate or specification datasheet.\n4. If the site has authorized personnel capable of taking electrical measurements, collect and enter the motor's average operating current.  If the site is unable to measure the motor's typical operating current, leave this measurement blank and the tool uses 75% for the unit's \"Average Load Factor.\"\n5. Enter the unit's annual operating hours.  If this information is not tracked for the unit, estimate the value.  You can readjust this value later.\n6. If the piece of equipment is not motor based or if a total system load has already been identified such as for the Building Lighting and HVAC systems, select “Other kW Load” in the \n\"Equipment Type\" dropdown list. The tool populates\"N/A\" in these cells: Motor Size, Motor Full Load Amperage, Average Motor Operating Current, and Load Factor. You can then enter the annual operating hours into the respective cell and electrical energy load (in kW) into the column titled “Average Electric Load (kW).\"\n\nEntry Results:\nThe tool calculates the site's Annual Electrical Energy by total Average Electric Load (kW), Estimated Annual Energy Use (kWh/yr) and Estimated Annual Operating Costs ($/Yr).\nThe tool also provides the total Estimated Percent of Site Electric Use & Cost (%) identified as compared to the site's Annual Electrical Energy Billed.\nAny difference between what electrical energy has been identified and what has been billed is also indicated.  If this value is positive, the site's electrical energy loads have been over\nestimated and it might be necessary to readjust the equipment loads or operating hours.\nThe tool generates a pie chart of the site's top electrical energy use systems.  \nIf conditions at the plant change, you can adjust the entry values.\nA summary of the Electrical Energy Use Breakdown is provided on \"Summary Report\" tab under Equipment Inventory.\n\nOnce this baseline tool is completed to reasonable accuracy, determine where the majority of energy is being used. Your next steps might be as follows:\n• Prioritizing further investigation of opportunities to reduce the energy use. Look at large demand equipment or equipment that runs for long periods and see if a schedule reduction or more efficient equipment could save large amounts of money. Then work down to smaller items. Lighting and HVAC can be easy and cheap savings.\n• Determining operational improvements to reduce energy use.\n• Comparing and contrasting impacts (reductions or increases) of contemplated equipment upgrades or technology changes. Enter in a higher efficiency motor or a more efficient light fixture and immediately see how much money can be saved per year.\n• Updating the table to confirm energy impacts (reductions or increases) as operational or equipment modifications or replacements are completed. Keep the tool up to date as you make schedule or equipment changes.\n"]
[]
[]
[]
[]
[]
[]
[]
[null,"EQUIPMENT ELECTRICAL ENERGY INVENTORY"]
[null,"System Type","Equipment Type","Equipment Description","Motor Size (hp)","Motor Efficiency (%)","Motor Full Load Amperage (FLA)","Average Motor Operating Current          (Amps)","Operating Hours              (Hrs/Yr)","Average Load Factor (%)","Average Electric Load (kW)","Estimated Annual Energy Use (kWh/yr)","Estimated Annual Operating Costs  ($/Yr)","Estimated Percent of Site Electric Use & Cost (%)"]
[null,"Select System Type","Select Equipment Type",null,null,null,null,null,null,{"$f":"IF(G30=0,0,IF(H30=0,0.75,H30/G30))","v":0},{"$f":"IF(F30=0,0,E30*0.746*J30/(F30/100))","v":0},{"$f":"K30*I30","v":0},{"$f":"L30*'General Information'!$H$46","v":0},{"$f":"IF('General Information'!$H$44=0,0,L30/'General Information'!$H$44)","v":0}]
[null,"Select System Type","Select Equipment Type",null,null,null,null,null,null,0,0,{"$f":"K31*I31","v":0},{"$f":"L31*'General Information'!$H$46","v":0},{"$f":"IF('General Information'!$H$44=0,0,L31/'General Information'!$H$44)","v":0}]
[null,"Select System Type","Select Equipment Type",null,null,null,null,null,null,0,0,0,{"$f":"L32*'General Information'!$H$46","v":0},{"$f":"IF('General Information'!$H$44=0,0,L32/'General Information'!$H$44)","v":0}]
[null,"Select System Type","Select Equipment Type",null,null,null,null,null,null,0,0,0,{"$f":"L33*'General Information'!$H$46","v":0},{"$f":"IF('General Information'!$H$44=0,0,L33/'General Information'!$H$44)","v":0}]
[null,"Select System Type","Select Equipment Type",null,null,null,null,null,null,0,0,0,{"$f":"L34*'General Information'!$H$46","v":0},{"$f":"IF('General Information'!$H$44=0,0,L34/'General Information'!$H$44)","v":0}]
[null,"Select System Type","Select Equipment Type",null,null,null,null,null,null,0,0,0,{"$f":"L35*'General Information'!$H$46","v":0},{"$f":"IF('General Information'!$H$44=0,0,L35/'General Information'!$H$44)","v":0}]
[null,"Select System Type","Select Equipment Type",null,null,null,null,null,null,0,0,0,{"$f":"L36*'General Information'!$H$46","v":0},{"$f":"IF('General Information'!$H$44=0,0,L36/'General Information'!$H$44)","v":0}]
[null,"Select System Type","Select Equipment Type",null,null,null,null,null,null,0,0,0,{"$f":"L37*'General Information'!$H$46","v":0},{"$f":"IF('General Information'!$H$44=0,0,L37/'General Information'!$H$44)","v":0}]
[null,"Select System Type","Select Equipment Type",null,null,null,null,null,null,0,0,0,{"$f":"L38*'General Information'!$H$46","v":0},{"$f":"IF('General Information'!$H$44=0,0,L38/'General Information'!$H$44)","v":0}]
[null,"Select System Type","Select Equipment Type",null,null,null,null,null,null,0,0,0,{"$f":"L39*'General Information'!$H$46","v":0},{"$f":"IF('General Information'!$H$44=0,0,L39/'General Information'!$H$44)","v":0}]
[null,"Select System Type","Select Equipment Type",null,null,null,null,null,null,0,0,0,{"$f":"L40*'General Information'!$H$46","v":0},{"$f":"IF('General Information'!$H$44=0,0,L40/'General Information'!$H$44)","v":0}]
[]
[null,null,null,null,null,null,null,null,null,"Estimated Annual WWTP Electric Use & Cost",{"$f":"SUM(wwtpLoads)","v":0},{"$f":"SUM(wwtpElecUse)","v":0},{"$f":"SUM(wwtpCosts)","v":0},{"$f":"SUM(wwtpSitePercent)","v":0}]
[null,null,null,null,null,null,null,null,null,"Actual Annual WWTP Electric Use & Cost",null,{"$f":"'General Information'!H$44","v":0},{"$f":"L43*'General Information'!H$46","v":0}]
[null,null,null,null,null,null,null,null,null,"Difference Between Billed and Identified",null,{"$f":"L42-L43","v":0},{"$f":"M42-M43","v":0}]
[null,null,null,null,null,null,null,null,null,"Percent of Site Electrical Energy Identified",null,{"$f":"IF(L43=0,0,L42/L43)","v":0}]
[]
[]
[]
[]
[null,"Top Energy Use Systems:"]
[null,{"$f":"\"#1  \"&UPPER($B$313)","v":"#1  SECONDARY TREATMENT"},null,{"$f":"C$313","v":0}]
[null,{"$f":"\"#2  \"&UPPER($B$314)","v":"#2  FIXED FILM TREATMENT"},null,{"$f":"C$314","v":0}]
[null,{"$f":"\"#3  \"&UPPER($B$315)","v":"#3  ANAEROBIC DIGESTION"},null,{"$f":"C$315","v":0}]
[null,{"$f":"\"#4  \"&UPPER($B$316)","v":"#4  LIGHTING"},null,{"$f":"C$316","v":0}]
[null,{"$f":"\"#5  \"&UPPER($B$317)","v":"#5  PRIMARY TREATMENT"},null,{"$f":"C$317","v":0}]
[null,"Balance of Plant Identified",null,{"$f":"N42-SUM(D51:D55)","v":0}]
[null,"Balance of Plant Unidentified",null,{"$f":"1-SUM(D51:D56)","v":1}]
[]
[]
[]
[]
[]
[]
[]
[]
[]
[]
[]
[]
[]
[]
[]
[]
[]
[]
[]
[]
[]
[]
[]
[]
[]
[]
[]
[]
[]
[]
[]
[]
[]
[]
[]
[]
[]
[]
[]
[]
[]
[]
[]
[]
[]
[]
[]
[]
[]
[]
[]
[]
[]
[]
[]
[]
[]
[]
[]
[]
[]
[]
[]
[]
[]
[]
[]
[]
[]
[]
[]
[]
[]
[]
[]
[]
[]
[]
[]
[]
[]
[]
[]
[]
[]
[]
[]
[]
[]
[]
[]
[]
[]
[]
[]
[]
[]
[]
[]
[]
[]
[]
[]
[]
[]
[]
[]
[]
[]
[]
[]
[]
[]
[]
[]
[]
[]
[]
[]
[]
[]
[]
[]
[]
[]
[]
[]
[]
[]
[]
[]
[]
[]
[]
[]
[]
[]
[]
[]
[]
[]
[]
[]
[]
[]
[]
[]
[]
[]
[]
[]
[]
[]
[]
[]
[]
[]
[]
[]
[]
[]
[]
[]
[]
[]
[]
[]
[]
[]
[]
[]
[]
[]
[]
[]
[]
[]
[]
[]
[]
[]
[]
[]
[]
[]
[]
[]
[]
[]
[]
[]
[]
[]
[]
[]
[]
[]
[]
[]
[]
[]
[]
[]
[]
[]
[]
[]
[]
[]
[]
[]
[]
[]
[]
[]
[]
[]
[]
[]
[]
[]
[]
[]
[]
[]
[]
[]
[]
[]
[]
[]
[]
[]
[]
[]
[]
[]
[]
[]
[]
[]
[]
[]
[]
[]
[]
[]
[]
[]
[]
[]
[]
[]
[]
[null,"Other kW Load",{"$f":"SUM(IF($C$30:$C$41=B312, N$30:$N41, 0))","v":0},"(Added to trigger the calculate function)"]
[null,"Secondary Treatment",{"$f":"SUM(IF(wwtpSysTypes=B313, wwtpSitePercent, 0))","v":0},{"$f":"SUM(IF(wwtpSysTypes=B313, wwtpLoads, 0))","v":0},{"$f":"SUM(IF(wwtpSysTypes=B313, wwtpCosts, 0))","v":0},{"$f":"SUM(IF(wwtpSysTypes=B313, wwtpElecUse, 0))","v":0}]
[null,"Fixed Film Treatment",{"$f":"SUM(IF(wwtpSysTypes=B314, wwtpSitePercent, 0))","v":0},{"$f":"SUM(IF(wwtpSysTypes=B314, wwtpLoads, 0))","v":0},{"$f":"SUM(IF(wwtpSysTypes=B314, wwtpCosts, 0))","v":0},{"$f":"SUM(IF(wwtpSysTypes=B314, wwtpElecUse, 0))","v":0}]
[null,"Anaerobic Digestion",{"$f":"SUM(IF(wwtpSysTypes=B315, wwtpSitePercent, 0))","v":0},{"$f":"SUM(IF(wwtpSysTypes=B315, wwtpLoads, 0))","v":0},{"$f":"SUM(IF(wwtpSysTypes=B315, wwtpCosts, 0))","v":0},{"$f":"SUM(IF(wwtpSysTypes=B315, wwtpElecUse, 0))","v":0}]
[null,"Lighting",{"$f":"SUM(IF(wwtpSysTypes=B316, wwtpSitePercent, 0))","v":0},{"$f":"SUM(IF(wwtpSysTypes=B316, wwtpLoads, 0))","v":0},{"$f":"SUM(IF(wwtpSysTypes=B316, wwtpCosts, 0))","v":0},{"$f":"SUM(IF(wwtpSysTypes=B316, wwtpElecUse, 0))","v":0}]
[null,"Primary Treatment",{"$f":"SUM(IF(wwtpSysTypes=B317, wwtpSitePercent, 0))","v":0},{"$f":"SUM(IF(wwtpSysTypes=B317, wwtpLoads, 0))","v":0},{"$f":"SUM(IF(wwtpSysTypes=B317, wwtpCosts, 0))","v":0},{"$f":"SUM(IF(wwtpSysTypes=B317, wwtpElecUse, 0))","v":0}]
[null,"Influent Pumping",{"$f":"SUM(IF(wwtpSysTypes=B318, wwtpSitePercent, 0))","v":0},{"$f":"SUM(IF(wwtpSysTypes=B318, wwtpLoads, 0))","v":0},{"$f":"SUM(IF(wwtpSysTypes=B318, wwtpCosts, 0))","v":0},{"$f":"SUM(IF(wwtpSysTypes=B318, wwtpElecUse, 0))","v":0}]
[null,"Non Process HVAC",{"$f":"SUM(IF(wwtpSysTypes=B319, wwtpSitePercent, 0))","v":0},{"$f":"SUM(IF(wwtpSysTypes=B319, wwtpLoads, 0))","v":0},{"$f":"SUM(IF(wwtpSysTypes=B319, wwtpCosts, 0))","v":0},{"$f":"SUM(IF(wwtpSysTypes=B319, wwtpElecUse, 0))","v":0}]
[null,"Internal Plant Pumping",{"$f":"SUM(IF(wwtpSysTypes=B320, wwtpSitePercent, 0))","v":0},{"$f":"SUM(IF(wwtpSysTypes=B320, wwtpLoads, 0))","v":0},{"$f":"SUM(IF(wwtpSysTypes=B320, wwtpCosts, 0))","v":0},{"$f":"SUM(IF(wwtpSysTypes=B320, wwtpElecUse, 0))","v":0}]
[null,"Effluent Pumping/Storage",{"$f":"SUM(IF(wwtpSysTypes=B321, wwtpSitePercent, 0))","v":0},{"$f":"SUM(IF(wwtpSysTypes=B321, wwtpLoads, 0))","v":0},{"$f":"SUM(IF(wwtpSysTypes=B321, wwtpCosts, 0))","v":0},{"$f":"SUM(IF(wwtpSysTypes=B321, wwtpElecUse, 0))","v":0}]
[null,"Headworks",{"$f":"SUM(IF(wwtpSysTypes=B322, wwtpSitePercent, 0))","v":0},{"$f":"SUM(IF(wwtpSysTypes=B322, wwtpLoads, 0))","v":0},{"$f":"SUM(IF(wwtpSysTypes=B322, wwtpCosts, 0))","v":0},{"$f":"SUM(IF(wwtpSysTypes=B322, wwtpElecUse, 0))","v":0}]
[null,"Other",{"$f":"SUM(IF(wwtpSysTypes=B323, wwtpSitePercent, 0))","v":0},{"$f":"SUM(IF(wwtpSysTypes=B323, wwtpLoads, 0))","v":0},{"$f":"SUM(IF(wwtpSysTypes=B323, wwtpCosts, 0))","v":0},{"$f":"SUM(IF(wwtpSysTypes=B323, wwtpElecUse, 0))","v":0}]
[null,"City Water Pumping",{"$f":"SUM(IF(wwtpSysTypes=B324, wwtpSitePercent, 0))","v":0},{"$f":"SUM(IF(wwtpSysTypes=B324, wwtpLoads, 0))","v":0},{"$f":"SUM(IF(wwtpSysTypes=B324, wwtpCosts, 0))","v":0},{"$f":"SUM(IF(wwtpSysTypes=B324, wwtpElecUse, 0))","v":0}]
[null,"Chemical Mixing",{"$f":"SUM(IF(wwtpSysTypes=B325, wwtpSitePercent, 0))","v":0},{"$f":"SUM(IF(wwtpSysTypes=B325, wwtpLoads, 0))","v":0},{"$f":"SUM(IF(wwtpSysTypes=B325, wwtpCosts, 0))","v":0},{"$f":"SUM(IF(wwtpSysTypes=B325, wwtpElecUse, 0))","v":0}]
[null,"Aerobic Digestion",{"$f":"SUM(IF(wwtpSysTypes=B326, wwtpSitePercent, 0))","v":0},{"$f":"SUM(IF(wwtpSysTypes=B326, wwtpLoads, 0))","v":0},{"$f":"SUM(IF(wwtpSysTypes=B326, wwtpCosts, 0))","v":0},{"$f":"SUM(IF(wwtpSysTypes=B326, wwtpElecUse, 0))","v":0}]
[null,"Chlorine Disinfection",{"$f":"SUM(IF(wwtpSysTypes=B327, wwtpSitePercent, 0))","v":0},{"$f":"SUM(IF(wwtpSysTypes=B327, wwtpLoads, 0))","v":0},{"$f":"SUM(IF(wwtpSysTypes=B327, wwtpCosts, 0))","v":0},{"$f":"SUM(IF(wwtpSysTypes=B327, wwtpElecUse, 0))","v":0}]
[null,"Compressed Air",{"$f":"SUM(IF(wwtpSysTypes=B328, wwtpSitePercent, 0))","v":0},{"$f":"SUM(IF(wwtpSysTypes=B328, wwtpLoads, 0))","v":0},{"$f":"SUM(IF(wwtpSysTypes=B328, wwtpCosts, 0))","v":0},{"$f":"SUM(IF(wwtpSysTypes=B328, wwtpElecUse, 0))","v":0}]
[null,"Final Clarification",{"$f":"SUM(IF(wwtpSysTypes=B329, wwtpSitePercent, 0))","v":0},{"$f":"SUM(IF(wwtpSysTypes=B329, wwtpLoads, 0))","v":0},{"$f":"SUM(IF(wwtpSysTypes=B329, wwtpCosts, 0))","v":0},{"$f":"SUM(IF(wwtpSysTypes=B329, wwtpElecUse, 0))","v":0}]
[null,"Filtration",{"$f":"SUM(IF(wwtpSysTypes=B330, wwtpSitePercent, 0))","v":0},{"$f":"SUM(IF(wwtpSysTypes=B330, wwtpLoads, 0))","v":0},{"$f":"SUM(IF(wwtpSysTypes=B330, wwtpCosts, 0))","v":0},{"$f":"SUM(IF(wwtpSysTypes=B330, wwtpElecUse, 0))","v":0}]
[null,"Dissolved Air Flotation",{"$f":"SUM(IF(wwtpSysTypes=B331, wwtpSitePercent, 0))","v":0},{"$f":"SUM(IF(wwtpSysTypes=B331, wwtpLoads, 0))","v":0},{"$f":"SUM(IF(wwtpSysTypes=B331, wwtpCosts, 0))","v":0},{"$f":"SUM(IF(wwtpSysTypes=B331, wwtpElecUse, 0))","v":0}]
[null,"Flow Equalization Basin",{"$f":"SUM(IF(wwtpSysTypes=B332, wwtpSitePercent, 0))","v":0},{"$f":"SUM(IF(wwtpSysTypes=B332, wwtpLoads, 0))","v":0},{"$f":"SUM(IF(wwtpSysTypes=B332, wwtpCosts, 0))","v":0},{"$f":"SUM(IF(wwtpSysTypes=B332, wwtpElecUse, 0))","v":0}]
[null,"Solids Contact",{"$f":"SUM(IF(wwtpSysTypes=B333, wwtpSitePercent, 0))","v":0},{"$f":"SUM(IF(wwtpSysTypes=B333, wwtpLoads, 0))","v":0},{"$f":"SUM(IF(wwtpSysTypes=B333, wwtpCosts, 0))","v":0},{"$f":"SUM(IF(wwtpSysTypes=B333, wwtpElecUse, 0))","v":0}]
[null,"Sludge Handling",{"$f":"SUM(IF(wwtpSysTypes=B334, wwtpSitePercent, 0))","v":0},{"$f":"SUM(IF(wwtpSysTypes=B334, wwtpLoads, 0))","v":0},{"$f":"SUM(IF(wwtpSysTypes=B334, wwtpCosts, 0))","v":0},{"$f":"SUM(IF(wwtpSysTypes=B334, wwtpElecUse, 0))","v":0}]
[null,"Odor Control",{"$f":"SUM(IF(wwtpSysTypes=B335, wwtpSitePercent, 0))","v":0},{"$f":"SUM(IF(wwtpSysTypes=B335, wwtpLoads, 0))","v":0},{"$f":"SUM(IF(wwtpSysTypes=B335, wwtpCosts, 0))","v":0},{"$f":"SUM(IF(wwtpSysTypes=B335, wwtpElecUse, 0))","v":0}]

{"sheet":"WTP Energy Usage","index":14,"n_rows":331,"n_cols":15,"rows_kept":331,"cut":false,"hidden":false,"merged":[[1,16,1,17],[9,9,9,10],[3,1,7,13],[0,0,0,10],[19,1,24,13],[17,1,17,2],[15,1,15,2],[16,1,16,2],[13,5,13,8],[11,1,12,11],[13,1,13,2],[13,10,13,13]]}
[{"$f":"\"EPA Energy Use Assessment Tool for \" & workbookType","v":"EPA Energy Use Assessment Tool for Drinking Water Systems"}]
["Drinking Water Systems Energy Usage"]
[]
[null,"To determine the site's electrical energy breakdown and baseline, you must describe each major piece of equipment at the plant by entering information in the table below.\nCollect each motor's size (hp), efficiency rating (%), full load amperage (FLA) rating and annual operating hours.\n\nIf you do not have time to collect information for all equipment at the plant, you should start with gathering data for the following motors sizes:\n• 10 hp and greater. After entering this data, gather data next for all motors sized:\n• 5 hp and greater. After entering this data, gather data next for all motors sized:\n• 1 hp and greater.\n\nIf a piece of equipment is not motor based, identify the operating load in kilo-watts (kW) and the unit's annual operating hours.\n\nAt each stage of data entry, the tool estimates the plant's electrical energy breakdown.\nAt the bottom of the table below, the \"Percent of Site Electrical Energy Identified” provides the estimate of what portion of the site's electrical energy use has been captured.  Use that percent value to help gauge how much data is left to be collected. It is ideal to have 90% or greater accounted for.\n\nThe tool automatically generates a list of the Top 5 Electrical Energy Use Systems at the plant. That breakdown is listed by major system type.  \nThose smaller systems not in the Top 5 are combined and shown as the \"Balance of Plant Identified.\"  The electrical energy that has not yet been identified\nis shown as \"Balance of Plant Unidentified.\"\nAs the “Percent of Site Electrical Energy Identified” gets closer to 100%, the \"Balance of Plant Unidentified\" decreases."]
[]
[]
[]
[]
[]
[null,"Source Water",null,"Treatment",null,null,"Disinfection",null,null,"Distribution"]
[]
[null,"If the plant's Building Lighting and HVAC (Non-Process) energy loads were entered on the Building Data tabs, the site's Total Building Non-Process loads are summarized below.\nEnter this summarized data into the Equipment Electrical Energy Inventory Table with System Type as either \"Non-Process HVAC\", \"Lighting\" or \"Other Non Process Load\" and Equipment Type as \"Other kW Load\".  For further instructions, see below."]
[]
[null,"Estimated Average Building Electric Loads:",null,null,null,"Estimated Building Annual Energy Use:",null,null,null,null,"Estimated Building Annual Energy Cost:"]
[]
[null,"Total Plant Building(s) Lighting",null,{"$f":"I16/8760","v":0},"kW","Total Plant Building(s) Lighting",null,null,{"$f":"SUM('Building 1 Data'!L22,'Building 2 Data'!L22,'Building 3 Data'!L22,'Building 4 Data'!L22,'Building 5 Data'!L22,'Building 6 Data'!L22,'Building 7 Data'!L22,'Building 8 Data'!L22,'Building 9 Data'!L22,'Building 10 Data'!L22)","v":0},"kWh/yr","Total Plant Building(s) Lighting",null,null,{"$f":"SUM('Building 1 Data'!R22,'Building 2 Data'!R22,'Building 3 Data'!R22,'Building 4 Data'!R22,'Building 5 Data'!R22,'Building 6 Data'!R22,'Building 7 Data'!R22,'Building 8 Data'!R22,'Building 9 Data'!R22,'Building 10 Data'!R22)","v":0},"$/yr"]
[null,"Total Plant Building(s) HVAC",null,{"$f":"I17/8760","v":0},"kW","Total Plant Building(s) HVAC",null,null,{"$f":"SUM('Building 1 Data'!L23,'Building 2 Data'!L23,'Building 3 Data'!L23,'Building 4 Data'!L23,'Building 5 Data'!L23,'Building 6 Data'!L23,'Building 7 Data'!L23,'Building 8 Data'!L23,'Building 9 Data'!L23,'Building 10 Data'!L23)","v":0},"kWh/yr","Total Plant Building(s) HVAC",null,null,{"$f":"SUM('Building 1 Data'!R23,'Building 2 Data'!R23,'Building 3 Data'!R23,'Building 4 Data'!R23,'Building 5 Data'!R23,'Building 6 Data'!R23,'Building 7 Data'!R23,'Building 8 Data'!R23,'Building 9 Data'!R23,'Building 10 Data'!R23)","v":0},"$/yr"]
[null,"Total Plant Building(s) Combined",null,{"$f":"SUM(D16:D17)","v":0},"kW","Total Plant Building(s) Combined",null,null,{"$f":"SUM(I16:I17)","v":0},"kWh/yr","Total Plant Building(s) Combined",null,null,{"$f":"SUM(N16:N17)","v":0},"$/yr"]
[]
[null,"\nTable Entry Instructions:\n1. For each piece of equipment recognized at the plant, identify and select the “System Type” and “Equipment Type” from the dropdown lists. Select \"Other\" in the \"System Type\" dropdown to enter system types not listed in the list and use the \"Equipment Description\" field to describe the system. \n2. Enter a unique “Equipment Description” to keep track of each piece of equipment.  This can be the site's identification name or number.\n3. Collect and enter each unit’s motor size, efficiency and full load amperage (FLA) ratings.  That information is usually on the equipment's nameplate or specification datasheet.\n4. If the site has authorized personnel capable of taking electrical measurements, collect and enter the motor's average operating current.  If the site is unable to measure the motor's typical operating current, leave this measurement blank and the tool uses 75% for the unit's \"Average Load Factor.\"\n5. Enter the unit's annual operating hours.  If this information is not tracked for the unit, estimate the value.  You can readjust this value later.\n6. If the piece of equipment is not motor based or if a total system load has already been identified such as for the Building Lighting and HVAC systems, select “Other kW Load” in the \n\"Equipment Type\" dropdown list. The tool populates\"N/A\" in these cells: Motor Size, Motor Full Load Amperage, Average Motor Operating Current, and Load Factor. You can then enter the annual operating hours into the respective cell and electrical energy load (in kW) into the column titled “Average Electric Load (kW).\"\n\nEntry Results:\nThe tool calculates the site's Annual Electrical Energy by total Average Electric Load (kW), Estimated Annual Energy Use (kWh/yr) and Estimated Annual Operating Costs ($/Yr).\nThe tool also provides the total Estimated Percent of Site Electric Use & Cost (%) identified as compared to the site's Annual Electrical Energy Billed.\nAny difference between what electrical energy has been identified and what has been billed is also indicated.  If this value is positive, the site's electrical energy loads have been over\nestimated and it might be necessary to readjust the equipment loads or operating hours.\nThe tool generates a pie chart of the site's top electrical energy use systems.  \nIf conditions at the plant change, you can adjust the entry values.\nA summary of the Electrical Energy Use Breakdown is provided on \"Summary Report\" tab under Equipment Inventory.\n\nOnce this baseline tool is completed to reasonable accuracy, determine where the majority of energy is being used. Your next steps might be as follows:\n• Prioritizing further investigation of opportunities to reduce the energy use. Look at large demand equipment or equipment that runs for long periods and see if a schedule reduction or more efficient equipment could save large amounts of money. Then work down to smaller items. Lighting and HVAC can be easy and cheap savings.\n• Determining operational improvements to reduce energy use.\n• Comparing and contrasting impacts (reductions or increases) of contemplated equipment upgrades or technology changes. Enter in a higher efficiency motor or a more efficient light fixture and immediately see how much money can be saved per year.\n• Updating the table to confirm energy impacts (reductions or increases) as operational or equipment modifications or replacements are completed. Keep the tool up to date as you make schedule or equipment changes.\n"]
[]
[]
[]
[]
[]
[]
[null,"EQUIPMENT ELECTRICAL ENERGY INVENTORY"]
[null,"System Type","Equipment Type","Equipment Description","Motor Size (hp)","Motor Efficiency (%)","Motor Full Load Amperage (FLA)","Average Motor Operating Current          (Amps)","Operating Hours              (Hrs/Yr)","Average Load Factor (%)","Average Electric Load (kW)","Estimated Annual Energy Use (kWh/yr)","Estimated Annual Operating Costs  ($/Yr)","Estimated Percent of Site Electric Use & Cost (%)"]
[null,"Select System Type","Select Equipment Type",null,null,null,null,null,null,{"$f":"IF(G29=0,0,IF(H29=0,0.75,H29/G29))","v":0},{"$f":"IF(F29=0,0,E29*0.746*J29/(F29/100))","v":0},{"$f":"K29*I29","v":0},{"$f":"L29*'General Information'!$H$46","v":0},{"$f":"IF('General Information'!$H$44=0,0,L29/'General Information'!$H$44)","v":0}]
[null,"Select System Type","Select Equipment Type",null,null,null,null,null,null,0,0,{"$f":"K30*I30","v":0},{"$f":"L30*'General Information'!$H$46","v":0},{"$f":"IF('General Information'!$H$44=0,0,L30/'General Information'!$H$44)","v":0}]
[null,"Select System Type","Select Equipment Type",null,null,null,null,null,null,0,0,0,{"$f":"L31*'General Information'!$H$46","v":0},{"$f":"IF('General Information'!$H$44=0,0,L31/'General Information'!$H$44)","v":0}]
[null,"Select System Type","Select Equipment Type",null,null,null,null,null,null,0,0,0,{"$f":"L32*'General Information'!$H$46","v":0},{"$f":"IF('General Information'!$H$44=0,0,L32/'General Information'!$H$44)","v":0}]
[null,"Select System Type","Select Equipment Type",null,null,null,null,null,null,0,0,0,{"$f":"L33*'General Information'!$H$46","v":0},{"$f":"IF('General Information'!$H$44=0,0,L33/'General Information'!$H$44)","v":0}]
[null,"Select System Type","Select Equipment Type",null,null,null,null,null,null,0,0,0,{"$f":"L34*'General Information'!$H$46","v":0},{"$f":"IF('General Information'!$H$44=0,0,L34/'General Information'!$H$44)","v":0}]
[null,"Select System Type","Select Equipment Type",null,null,null,null,null,null,0,0,0,{"$f":"L35*'General Information'!$H$46","v":0},{"$f":"IF('General Information'!$H$44=0,0,L35/'General Information'!$H$44)","v":0}]
[null,"Select System Type","Select Equipment Type",null,null,null,null,null,null,0,0,0,{"$f":"L36*'General Information'!$H$46","v":0},{"$f":"IF('General Information'!$H$44=0,0,L36/'General Information'!$H$44)","v":0}]
[null,"Select System Type","Select Equipment Type",null,null,null,null,null,null,0,0,0,{"$f":"L37*'General Information'!$H$46","v":0},{"$f":"IF('General Information'!$H$44=0,0,L37/'General Information'!$H$44)","v":0}]
[null,"Select System Type","Select Equipment Type",null,null,null,null,null,null,0,0,0,{"$f":"L38*'General Information'!$H$46","v":0},{"$f":"IF('General Information'!$H$44=0,0,L38/'General Information'!$H$44)","v":0}]
[null,"Select System Type","Select Equipment Type",null,null,null,null,null,null,0,0,0,{"$f":"L39*'General Information'!$H$46","v":0},{"$f":"IF('General Information'!$H$44=0,0,L39/'General Information'!$H$44)","v":0}]
[]
[null,null,null,null,null,null,null,null,null,"Estimated Annual WTP Electric Use & Cost",{"$f":"SUM(wtpLoads)","v":0},{"$f":"SUM(wtpElecUse)","v":0},{"$f":"SUM(wtpCosts)","v":0},{"$f":"SUM(wtpSitePercent)","v":0}]
[null,null,null,null,null,null,null,null,null,"Actual Annual WTP Electric Use & Cost",null,{"$f":"'General Information'!H$44","v":0},{"$f":"L42*'General Information'!H$46","v":0}]
[null,null,null,null,null,null,null,null,null,"Difference Between Billed and Identified",null,{"$f":"L41-L42","v":0},{"$f":"M41-M42","v":0}]
[null,null,null,null,null,null,null,null,null,"Percent of Site Electrical Energy Identified",null,{"$f":"IF(L42=0,0,L41/L42)","v":0}]
[]
[]
[]
[]
[null,"Top Energy Use Systems:"]
[null,{"$f":"\"#1  \"&UPPER(B$313)","v":"#1  DISTRIBUTION PUMPING"},null,{"$f":"C$313","v":0}]
[null,{"$f":"\"#2  \"&UPPER(B$314)","v":"#2  FILTRATION"},null,{"$f":"C$314","v":0}]
[null,{"$f":"\"#3  \"&UPPER(B$315)","v":"#3  CLARIFICATION"},null,{"$f":"C$315","v":0}]
[null,{"$f":"\"#4  \"&UPPER(B$316)","v":"#4  NON PROCESS HVAC"},null,{"$f":"C$316","v":0}]
[null,{"$f":"\"#5  \"&UPPER(B$317)","v":"#5  LOW SERVICE PUMPING"},null,{"$f":"C$317","v":0}]
[null,"Balance of Plant Identified",null,{"$f":"N41-SUM(D50:D54)","v":0}]
[null,"Balance of Plant Unidentified",null,{"$f":"1-SUM(D50:D55)","v":1}]
[]
[]
[]
[]
[]
[]
[]
[]
[]
[]
[]
[]
[]
[]
[]
[]
[]
[]
[]
[]
[]
[]
[]
[]
[]
[]
[]
[]
[]
[]
[]
[]
[]
[]
[]
[]
[]
[]
[]
[]
[]
[]
[]
[]
[]
[]
[]
[]
[]
[]
[]
[]
[]
[]
[]
[]
[]
[]
[]
[]
[]
[]
[]
[]
[]
[]
[]
[]
[]
[]
[]
[]
[]
[]
[]
[]
[]
[]
[]
[]
[]
[]
[]
[]
[]
[]
[]
[]
[]
[]
[]
[]
[]
[]
[]
[]
[]
[]
[]
[]
[]
[]
[]
[]
[]
[]
[]
[]
[]
[]
[]
[]
[]
[]
[]
[]
[]
[]
[]
[]
[]
[]
[]
[]
[]
[]
[]
[]
[]
[]
[]
[]
[]
[]
[]
[]
[]
[]
[]
[]
[]
[]
[]
[]
[]
[]
[]
[]
[]
[]
[]
[]
[]
[]
[]
[]
[]
[]
[]
[]
[]
[]
[]
[]
[]
[]
[]
[]
[]
[]
[]
[]
[]
[]
[]
[]
[]
[]
[]
[]
[]
[]
[]
[]
[]
[]
[]
[]
[]
[]
[]
[]
[]
[]
[]
[]
[]
[]
[]
[]
[]
[]
[]
[]
[]
[]
[]
[]
[]
[]
[]
[]
[]
[]
[]
[]
[]
[]
[]
[]
[]
[]
[]
[]
[]
[]
[]
[]
[]
[]
[]
[]
[]
[]
[]
[]
[]
[]
[]
[]
[]
[]
[]
[]
[]
[]
[]
[]
[]
[]
[]
[]
[]
[]
[]
[null,"Other kW Load",{"$f":"SUM(IF(C$29:$C40=B312, N$29:$N$40, 0))","v":0}]
[null,"Distribution Pumping",{"$f":"SUM(IF(wtpSysTypes=B313, wtpSitePercent, 0))","v":0},{"$f":"SUM(IF(wtpSysTypes=B313, wtpLoads, 0))","v":0},{"$f":"SUM(IF(wtpSysTypes=B313,wtpCosts, 0))","v":0},{"$f":"SUM(IF(wtpSysTypes=B313, wtpElecUse, 0))","v":0}]
[null,"Filtration",{"$f":"SUM(IF(wtpSysTypes=B314, wtpSitePercent, 0))","v":0},{"$f":"SUM(IF(wtpSysTypes=B314, wtpLoads, 0))","v":0},{"$f":"SUM(IF(wtpSysTypes=B314,wtpCosts, 0))","v":0},{"$f":"SUM(IF(wtpSysTypes=B314, wtpElecUse, 0))","v":0}]
[null,"Clarification",{"$f":"SUM(IF(wtpSysTypes=B315, wtpSitePercent, 0))","v":0},{"$f":"SUM(IF(wtpSysTypes=B315, wtpLoads, 0))","v":0},{"$f":"SUM(IF(wtpSysTypes=B315,wtpCosts, 0))","v":0},{"$f":"SUM(IF(wtpSysTypes=B315, wtpElecUse, 0))","v":0}]
[null,"Non Process HVAC",{"$f":"SUM(IF(wtpSysTypes=B316, wtpSitePercent, 0))","v":0},{"$f":"SUM(IF(wtpSysTypes=B316, wtpLoads, 0))","v":0},{"$f":"SUM(IF(wtpSysTypes=B316,wtpCosts, 0))","v":0},{"$f":"SUM(IF(wtpSysTypes=B316, wtpElecUse, 0))","v":0}]
[null,"Low Service Pumping",{"$f":"SUM(IF(wtpSysTypes=B317, wtpSitePercent, 0))","v":0},{"$f":"SUM(IF(wtpSysTypes=B317, wtpLoads, 0))","v":0},{"$f":"SUM(IF(wtpSysTypes=B317,wtpCosts, 0))","v":0},{"$f":"SUM(IF(wtpSysTypes=B317, wtpElecUse, 0))","v":0}]
[null,"Lighting",{"$f":"SUM(IF(wtpSysTypes=B318, wtpSitePercent, 0))","v":0},{"$f":"SUM(IF(wtpSysTypes=B318, wtpLoads, 0))","v":0},{"$f":"SUM(IF(wtpSysTypes=B318,wtpCosts, 0))","v":0},{"$f":"SUM(IF(wtpSysTypes=B318, wtpElecUse, 0))","v":0}]
[null,"Decarbonation",{"$f":"SUM(IF(wtpSysTypes=B319, wtpSitePercent, 0))","v":0},{"$f":"SUM(IF(wtpSysTypes=B319, wtpLoads, 0))","v":0},{"$f":"SUM(IF(wtpSysTypes=B319,wtpCosts, 0))","v":0},{"$f":"SUM(IF(wtpSysTypes=B319, wtpElecUse, 0))","v":0}]
[null,"Chemical Mix and Feed",{"$f":"SUM(IF(wtpSysTypes=B320, wtpSitePercent, 0))","v":0},{"$f":"SUM(IF(wtpSysTypes=B320, wtpLoads, 0))","v":0},{"$f":"SUM(IF(wtpSysTypes=B320,wtpCosts, 0))","v":0},{"$f":"SUM(IF(wtpSysTypes=B320, wtpElecUse, 0))","v":0}]
[null,"Other Non Process Load",{"$f":"SUM(IF(wtpSysTypes=B321, wtpSitePercent, 0))","v":0},{"$f":"SUM(IF(wtpSysTypes=B321, wtpLoads, 0))","v":0},{"$f":"SUM(IF(wtpSysTypes=B321,wtpCosts, 0))","v":0},{"$f":"SUM(IF(wtpSysTypes=B321, wtpElecUse, 0))","v":0}]
[null,"Flocculation / Sedimentation",{"$f":"SUM(IF(wtpSysTypes=B322, wtpSitePercent, 0))","v":0},{"$f":"SUM(IF(wtpSysTypes=B322, wtpLoads, 0))","v":0},{"$f":"SUM(IF(wtpSysTypes=B322,wtpCosts, 0))","v":0},{"$f":"SUM(IF(wtpSysTypes=B322, wtpElecUse, 0))","v":0}]
[null,"Other",{"$f":"SUM(IF(wtpSysTypes=B323, wtpSitePercent, 0))","v":0},{"$f":"SUM(IF(wtpSysTypes=B323, wtpLoads, 0))","v":0},{"$f":"SUM(IF(wtpSysTypes=B323,wtpCosts, 0))","v":0},{"$f":"SUM(IF(wtpSysTypes=B323, wtpElecUse, 0))","v":0}]
[null,"Sludge Handling",{"$f":"SUM(IF(wtpSysTypes=B324, wtpSitePercent, 0))","v":0},{"$f":"SUM(IF(wtpSysTypes=B324, wtpLoads, 0))","v":0},{"$f":"SUM(IF(wtpSysTypes=B324,wtpCosts, 0))","v":0},{"$f":"SUM(IF(wtpSysTypes=B324, wtpElecUse, 0))","v":0}]
[null,"Internal Plant Pumping",{"$f":"SUM(IF(wtpSysTypes=B325, wtpSitePercent, 0))","v":0},{"$f":"SUM(IF(wtpSysTypes=B325, wtpLoads, 0))","v":0},{"$f":"SUM(IF(wtpSysTypes=B325,wtpCosts, 0))","v":0},{"$f":"SUM(IF(wtpSysTypes=B325, wtpElecUse, 0))","v":0}]
[null,"Disinfection",{"$f":"SUM(IF(wtpSysTypes=B326, wtpSitePercent, 0))","v":0},{"$f":"SUM(IF(wtpSysTypes=B326, wtpLoads, 0))","v":0},{"$f":"SUM(IF(wtpSysTypes=B326,wtpCosts, 0))","v":0},{"$f":"SUM(IF(wtpSysTypes=B326, wtpElecUse, 0))","v":0}]
[null,"City Water Pumping",{"$f":"SUM(IF(wtpSysTypes=B327, wtpSitePercent, 0))","v":0},{"$f":"SUM(IF(wtpSysTypes=B327, wtpLoads, 0))","v":0},{"$f":"SUM(IF(wtpSysTypes=B327,wtpCosts, 0))","v":0},{"$f":"SUM(IF(wtpSysTypes=B327, wtpElecUse, 0))","v":0}]
[null,"Compressed Air",{"$f":"SUM(IF(wtpSysTypes=B328, wtpSitePercent, 0))","v":0},{"$f":"SUM(IF(wtpSysTypes=B328, wtpLoads, 0))","v":0},{"$f":"SUM(IF(wtpSysTypes=B328,wtpCosts, 0))","v":0},{"$f":"SUM(IF(wtpSysTypes=B328, wtpElecUse, 0))","v":0}]
[null,"Odor/Taste",{"$f":"SUM(IF(wtpSysTypes=B329, wtpSitePercent, 0))","v":0},{"$f":"SUM(IF(wtpSysTypes=B329, wtpLoads, 0))","v":0},{"$f":"SUM(IF(wtpSysTypes=B329,wtpCosts, 0))","v":0},{"$f":"SUM(IF(wtpSysTypes=B329, wtpElecUse, 0))","v":0}]
[null,"Preliminary Treatment",{"$f":"SUM(IF(wtpSysTypes=B330, wtpSitePercent, 0))","v":0},{"$f":"SUM(IF(wtpSysTypes=B330, wtpLoads, 0))","v":0},{"$f":"SUM(IF(wtpSysTypes=B330,wtpCosts, 0))","v":0},{"$f":"SUM(IF(wtpSysTypes=B330, wtpElecUse, 0))","v":0}]
[null,"Recarbonation",{"$f":"SUM(IF(wtpSysTypes=B331, wtpSitePercent, 0))","v":0},{"$f":"SUM(IF(wtpSysTypes=B331, wtpLoads, 0))","v":0},{"$f":"SUM(IF(wtpSysTypes=B331,wtpCosts, 0))","v":0},{"$f":"SUM(IF(wtpSysTypes=B331, wtpElecUse, 0))","v":0}]

{"sheet":"Calculations","index":15,"n_rows":12,"n_cols":13,"rows_kept":12,"cut":false,"hidden":true,"merged":[]}
["System Type","Equipment Type","Equipment Description","Motor Size (hp)","Motor Efficiency (%)","Motor Full Load Amperage (FLA)","Average Motor Operating Current          (Amps)","Operating Hours              (Hrs/Yr)","Average Load Factor (%)","Average Electric Load (kW)","Estimated Annual Energy Use (kWh/yr)","Estimated Annual Operating Costs  ($/Yr)","Estimated Percent of Site Electric Use & Cost (%)"]
["Select System Type","Select Equipment Type",null,null,null,null,null,null,{"$f":"IF(F2=0,0,IF(G2=0,0.75,G2/F2))","v":0},{"$f":"IF(E2=0,0,D2*0.746*I2/(E2/100))","v":0},{"$f":"J2*H2","v":0},{"$f":"K2*'General Information'!$H$46","v":0},{"$f":"IF('General Information'!$H$44=0,0,K2/'General Information'!$H$44)","v":0}]
["Select System Type","Select Equipment Type",null,null,null,null,null,null,0,0,0,{"$f":"K3*'General Information'!$H$46","v":0},{"$f":"IF('General Information'!$H$44=0,0,K3/'General Information'!$H$44)","v":0}]
["Select System Type","Select Equipment Type",null,null,null,null,null,null,0,0,0,{"$f":"K4*'General Information'!$H$46","v":0},{"$f":"IF('General Information'!$H$44=0,0,K4/'General Information'!$H$44)","v":0}]
["Select System Type","Select Equipment Type",null,null,null,null,null,null,0,0,0,{"$f":"K5*'General Information'!$H$46","v":0},{"$f":"IF('General Information'!$H$44=0,0,K5/'General Information'!$H$44)","v":0}]
["Select System Type","Select Equipment Type",null,null,null,null,null,null,0,0,0,{"$f":"K6*'General Information'!$H$46","v":0},{"$f":"IF('General Information'!$H$44=0,0,K6/'General Information'!$H$44)","v":0}]
["Select System Type","Select Equipment Type",null,null,null,null,null,null,0,0,0,{"$f":"K7*'General Information'!$H$46","v":0},{"$f":"IF('General Information'!$H$44=0,0,K7/'General Information'!$H$44)","v":0}]
["Select System Type","Select Equipment Type",null,null,null,null,null,null,0,0,0,{"$f":"K8*'General Information'!$H$46","v":0},{"$f":"IF('General Information'!$H$44=0,0,K8/'General Information'!$H$44)","v":0}]
["Select System Type","Select Equipment Type",null,null,null,null,null,null,0,0,0,{"$f":"K9*'General Information'!$H$46","v":0},{"$f":"IF('General Information'!$H$44=0,0,K9/'General Information'!$H$44)","v":0}]
["Select System Type","Select Equipment Type",null,null,null,null,null,null,0,0,0,{"$f":"K10*'General Information'!$H$46","v":0},{"$f":"IF('General Information'!$H$44=0,0,K10/'General Information'!$H$44)","v":0}]
["Select System Type","Select Equipment Type",null,null,null,null,null,null,0,0,0,{"$f":"K11*'General Information'!$H$46","v":0},{"$f":"IF('General Information'!$H$44=0,0,K11/'General Information'!$H$44)","v":0}]
["Select System Type","Select Equipment Type",null,null,null,null,null,null,0,0,0,{"$f":"K12*'General Information'!$H$46","v":0},{"$f":"IF('General Information'!$H$44=0,0,K12/'General Information'!$H$44)","v":0}]

{"sheet":"Summary Report","index":16,"n_rows":230,"n_cols":13,"rows_kept":230,"cut":false,"hidden":false,"merged":[[0,0,0,8],[2,0,2,8],[3,2,3,3],[8,0,8,3],[7,1,7,6],[5,1,6,7],[21,1,21,2],[14,1,14,2],[18,1,18,2],[9,1,9,4],[13,1,13,5],[11,1,11,5],[12,1,12,5],[9,5,9,8],[10,1,10,5],[25,1,25,4],[15,1,15,2],[26,1,26,4],[153,4,153,5],[37,1,37,3],[38,1,38,3],[39,1,39,3],[145,4,145,5],[34,1,34,2],[147,4,147,5],[152,4,152,5],[151,4,151,5],[146,4,146,5],[150,4,150,5],[149,4,149,5],[148,4,148,5]]}
["                                      STATEMENT OF ENERGY PERFORMANCE                                                           "]
[]
["                         UTILITY SUMMARY REPORT                                                            "]
[null,null,{"$f":"NOW()","v":"2012-12-03T14:22:20.560"}]
[]
[null,"This document was generated using EPA’s Energy Use Assessment Tool. All information shown is from data provided by the system auditor.  \nDepending on the use of this report, facility owners might consider having a professional engineer verify that the underlying data are accurate."]
[]
[null,"Note! If the summary looks inaccurate, click the \"Refresh Summary Report\" button above to refresh the tab. If the tables/graphs still do not reflect the data entered, check your macros settings. Macros should be enabled for the report to refresh. "]
["UTILITY INFORMATION "]
[]
["Utility Name:  ",{"$f":"'General Information'!$B$10:$E$10","v":0}]
["Address:  ",{"$f":"'General Information'!$B$12:$E$12","v":0}]
[null,{"$f":"'General Information'!$B$14:$E$14","v":0}]
[null,{"$f":"'General Information'!$B$16 & \" -   \" &'General Information'!$B$18","v":" -   "}]
["Plant Contact:  ",{"$f":"'General Information'!$B$20","v":0}]
["Phone Number:  ",{"$f":"'General Information'!$B$22","v":0}]
["Email:  ",{"$f":"IF('General Information'!B24:C24=0,\"\",'General Information'!B24:C24)","v":""}]
[]
["Assessor:  ",{"$f":"'General Information'!$I$20","v":0}]
["Phone Number: ",{"$f":"IF('General Information'!$I$22=0,\"\",'General Information'!$I$22)","v":""}]
["Email:  ",{"$f":"IF('General Information'!$I$24=0,\"\",'General Information'!$I$24)","v":""}]
[" Assessment Date",{"$f":"'General Information'!$I$18","v":"00:00:00"}]
[]
[{"$f":"\"OVERVIEW OF CURRENT/BASELINE ENERGY USE & COST FOR \"& 'General Information'!B209","v":"OVERVIEW OF CURRENT/BASELINE ENERGY USE & COST FOR 0"}]
[]
[null,{"$f":"\"TABULATED UTILITY USE, COST AND WATER TREATMENT FLOW SUMMARY FOR \" & 'General Information'!B209","v":"TABULATED UTILITY USE, COST AND WATER TREATMENT FLOW SUMMARY FOR 0"}]
[null,{"$f":"\"(\"  & 'General Information'!D278 & \" - \" &'General Information'!D289 & \")\"","v":"(/ - /)"}]
[null,"Utility","\nSite Utility Use\n(Common Units)\n\n","Site Utility Costs","% of Costs"]
[null,"Electricity",{"$f":"'General Information'!E290","v":0},{"$f":"'General Information'!H290","v":0},{"$f":"IF(D$35=0,0,D29/D$35)","v":0}]
[null,"Natural Gas*",{"$f":"'General Information'!J290","v":0},{"$f":"'General Information'!F290","v":0},0]
[null,"No 2 Fuel Oil*",{"$f":"'General Information'!L290","v":0},{"$f":"'General Information'!M290","v":0},0]
[null,"Water & Sewer*",{"$f":"'General Information'!R290","v":0},{"$f":"'General Information'!S290","v":0},0]
[null,"Alternative Energy*",{"$f":"TEXT('General Information'!N290,\"#,##0\") & \" \" &'General Information'!$D$50","v":"0 "},{"$f":"'General Information'!O290","v":0},0]
[null,{"$f":"\"Other - \"&'General Information'!$D$51 & \"*\"","v":"Other - *"},{"$f":"TEXT('General Information'!P290,\"#,##0\") & \" \" &'General Information'!$D$52","v":"0 "},{"$f":"'General Information'!Q290","v":0},0]
[null,"Total",null,{"$f":"SUM(D29:D34)","v":0},{"$f":"SUM(E29:E34)","v":0}]
[null,"* The values displayed for this category may be using data from previous months other than the above specified date ranges."]
[]
[null,{"$f":"\"Plant Annual Water Treatment Flow (\"&'General Information'!$D$49&\"/Year)\"","v":"Plant Annual Water Treatment Flow (/Year)"},null,null,{"$f":"SUM('General Information'!G278:G289)","v":0}]
[null,{"$f":"\"Plant Average Water Treatment Flow (\"&'General Information'!$D$49&\"/Month)\"","v":"Plant Average Water Treatment Flow (/Month)"},null,null,{"$f":"E38/12","v":0}]
[null,{"$f":"\"Plant Average Energy Cost Per \"&IF('General Information'!$D$49=\"Tgal\",\"Thousand\",\"Million\")&\" Gallons Water Treated ($/\"&'General Information'!$D$49&\")\"","v":"Plant Average Energy Cost Per Million Gallons Water Treated ($/)"},null,null,{"$f":"IF(E38=0,0,D35/E38)","v":0}]
[]
[{"$f":"\"GRAPHICAL UTILITY COST SUMMARY FOR \" & 'General Information'!D278 & \" - \" &'General Information'!D289","v":"GRAPHICAL UTILITY COST SUMMARY FOR / - /"}]
[]
[]
[]
[null,null,null,null,null,null,null,null,null,null,null,null,{"$f":"\"Water Treated (\" & 'General Information'!$D$49 &\")\"","v":"Water Treated ()"}]
[]
[null,null,null,null,null,null,null,null,null,null,null,null,{"$f":"\"Annual Water Treated (\" & 'General Information'!$D$49 &\"/Yr)\"","v":"Annual Water Treated (/Yr)"}]
[]
[]
[]
[]
[]
[]
[]
[]
[]
[]
[]
[]
[]
[]
[]
[]
[]
[]
[]
[]
[]
[]
[]
[]
[]
[]
[]
[]
[]
[]
[]
[]
[{"$f":"\"ELECTRIC USE vs. WATER TREATED FOR \" & 'General Information'!D278 & \" - \" &'General Information'!D289","v":"ELECTRIC USE vs. WATER TREATED FOR / - /"}]
[]
[]
[]
[]
[]
[]
[]
[]
[]
[]
[]
[]
[]
[]
[]
[]
[]
[]
[]
[]
[{"$f":"\"ELECTRIC USE vs. COST FOR \" & 'General Information'!D278 & \" - \" &'General Information'!D289","v":"ELECTRIC USE vs. COST FOR / - /"}]
[]
[]
[]
[]
[]
[]
[]
[]
[]
[]
[]
[]
[]
[]
[]
[]
[]
[]
[]
[]
[{"$f":"\"ELECTRIC ENERGY UTILIZATION vs. WATER TREATED FOR  \" & 'General Information'!D278 & \" - \" &'General Information'!D289","v":"ELECTRIC ENERGY UTILIZATION vs. WATER TREATED FOR  / - /"}]
[]
[]
[]
[]
[]
[]
[]
[]
[]
[]
[]
[]
[]
[]
[]
[]
[]
[]
[]
[]
[{"$f":"\"DISTRIBUTION OF ELECTRICAL ENERGY USE & COST BY MAJOR PROCESS FOR  \" & 'General Information'!D278 & \" - \" &'General Information'!D289","v":"DISTRIBUTION OF ELECTRICAL ENERGY USE & COST BY MAJOR PROCESS FOR  / - /"}]
[]
[null,null,null,null,"Major Process/Top Energy Use Systems",null,"Electric Energy Use (%)","Electric Energy Use (kWh)","Electric Energy Cost ($)"]
[null,null,null,null,{"$f":"IF(workbookType=\"Wastewater Systems\",'WWTP Energy Usage'!B51,'WTP Energy Usage'!B50)","v":"#1  DISTRIBUTION PUMPING"},null,{"$f":"IF(workbookType=\"Wastewater Systems\",'WWTP Energy Usage'!C313,'WTP Energy Usage'!C313)","v":0},{"$f":"IF(workbookType=\"Wastewater Systems\",'WWTP Energy Usage'!F313,'WTP Energy Usage'!F313)","v":0},{"$f":"IF(workbookType=\"Wastewater Systems\",'WWTP Energy Usage'!E313,'WTP Energy Usage'!E313)","v":0}]
[null,null,null,null,{"$f":"IF(workbookType=\"Wastewater Systems\",'WWTP Energy Usage'!B52,'WTP Energy Usage'!B51)","v":"#2  FILTRATION"},null,{"$f":"IF(workbookType=\"Wastewater Systems\",'WWTP Energy Usage'!C314,'WTP Energy Usage'!C314)","v":0},{"$f":"IF(workbookType=\"Wastewater Systems\",'WWTP Energy Usage'!F314,'WTP Energy Usage'!F314)","v":0},{"$f":"IF(workbookType=\"Wastewater Systems\",'WWTP Energy Usage'!E314,'WTP Energy Usage'!E314)","v":0}]
[null,null,null,null,{"$f":"IF(workbookType=\"Wastewater Systems\",'WWTP Energy Usage'!B53,'WTP Energy Usage'!B52)","v":"#3  CLARIFICATION"},null,{"$f":"IF(workbookType=\"Wastewater Systems\",'WWTP Energy Usage'!C315,'WTP Energy Usage'!C315)","v":0},{"$f":"IF(workbookType=\"Wastewater Systems\",'WWTP Energy Usage'!F315,'WTP Energy Usage'!F315)","v":0},{"$f":"IF(workbookType=\"Wastewater Systems\",'WWTP Energy Usage'!E315,'WTP Energy Usage'!E315)","v":0}]
[null,null,null,null,{"$f":"IF(workbookType=\"Wastewater Systems\",'WWTP Energy Usage'!B54,'WTP Energy Usage'!B53)","v":"#4  NON PROCESS HVAC"},null,{"$f":"IF(workbookType=\"Wastewater Systems\",'WWTP Energy Usage'!C316,'WTP Energy Usage'!C316)","v":0},{"$f":"IF(workbookType=\"Wastewater Systems\",'WWTP Energy Usage'!F316,'WTP Energy Usage'!F316)","v":0},{"$f":"IF(workbookType=\"Wastewater Systems\",'WWTP Energy Usage'!E316,'WTP Energy Usage'!E316)","v":0}]
[null,null,null,null,{"$f":"IF(workbookType=\"Wastewater Systems\",'WWTP Energy Usage'!B55,'WTP Energy Usage'!B54)","v":"#5  LOW SERVICE PUMPING"},null,{"$f":"IF(workbookType=\"Wastewater Systems\",'WWTP Energy Usage'!C317,'WTP Energy Usage'!C317)","v":0},{"$f":"IF(workbookType=\"Wastewater Systems\",'WWTP Energy Usage'!F317,'WTP Energy Usage'!F317)","v":0},{"$f":"IF(workbookType=\"Wastewater Systems\",'WWTP Energy Usage'!E317,'WTP Energy Usage'!E317)","v":0}]
[null,null,null,null,"Balance of Plant Identified",null,{"$f":"IF(workbookType=\"Wastewater Systems\",'WWTP Energy Usage'!D56,'WTP Energy Usage'!D55)","v":0},{"$f":"IF(workbookType=\"Wastewater Systems\",wwtpTotElecUse-SUM('Summary Report'!H147:H151),wtpTotElecUse-SUM('Summary Report'!H147:H151))","v":0},{"$f":"IF(workbookType=\"Wastewater Systems\",wwtpTotElecCost-SUM('Summary Report'!I147:I151),wtpTotElecCost-SUM('Summary Report'!I147:I151))","v":0}]
[null,null,null,null,"Balance of Plant Unidentified",null,{"$f":"IF(workbookType=\"Wastewater Systems\",'WWTP Energy Usage'!D57,'WTP Energy Usage'!D56)","v":1},{"$f":"IF(workbookType=\"Wastewater Systems\",wwtpActualElecUse-SUM('Summary Report'!H147:H152),wtpActualElecUse-SUM('Summary Report'!H147:H152))","v":0},{"$f":"IF(workbookType=\"Wastewater Systems\",wwtpActualElecCost-SUM('Summary Report'!I147:I152),wtpActualElecCost-SUM('Summary Report'!I147:I152))","v":0}]
[null,null,null,null,"Total",null,1,{"$f":"SUM(H147:H153)","v":0},{"$f":"SUM(I147:I153)","v":0}]
[]
[]
[]
[]
[]
["EQUIPMENT INVENTORY:  BREAKDOWN OF ELECTRICAL ENERGY USE FOR MAJOR/ENERGY INTENSIVE EQUIPMENT  "]
[null,"Major Process/Top Energy Use Systems","Motor Efficiency \n(%)","Efficiency Rating\n","Electric Energy Use (%)","Electric Energy Use (kWh)","Electric Energy Cost ($)"]
[]
[]
[null,null,null,null,"Estimated Annual Electric Use & Cost ",{"$f":"IF(workbookType=\"Wastewater Systems\",wwtpTotElecUse,wtpTotElecUse)","v":0},{"$f":"IF(workbookType=\"Wastewater Systems\",wwtpTotElecCost,wtpTotElecCost)","v":0}]
[null,null,null,null,"Actual Annual Electric Use & Cost ",{"$f":"'General Information'!H$44","v":0},{"$f":"'General Information'!H44*'General Information'!H46","v":0}]
[null,null,null,null,"Difference Between Billed and Identified ",{"$f":"F164-F165","v":0},{"$f":"G164-G165","v":0}]
[null,null,null,null,"Percent of Site Electrical Energy Identified ",null,{"$f":"IF(G165=0,0,G164/G165)","v":0}]
[]
[]
[{"$f":"\"ENERGY TRENDS FOR \" & 'General Information'!B296 & \" - \" &'General Information'!B300","v":"ENERGY TRENDS FOR 0 - 0"}]
[]
[{"$f":"\"ELECTRIC USE vs. WATER TREATED FOR \" & 'General Information'!B296 & \" - \" &'General Information'!B300","v":"ELECTRIC USE vs. WATER TREATED FOR 0 - 0"}]
[]
[]
[]
[]
[]
[]
[]
[]
[]
[]
[]
[]
[]
[]
[]
[]
[]
[]
[]
[{"$f":"\"ELECTRIC USE vs. COST FOR \" & 'General Information'!B296 & \" - \" &'General Information'!B300","v":"ELECTRIC USE vs. COST FOR 0 - 0"}]
[]
[]
[]
[]
[]
[]
[]
[]
[]
[]
[]
[]
[]
[]
[]
[]
[]
[]
[{"$f":"\"NATURAL GAS USE vs. COST FOR \" & 'General Information'!B296 & \" - \" &'General Information'!B300","v":"NATURAL GAS USE vs. COST FOR 0 - 0"}]
[]
[]
[]
[]
[]
[]
[]
[]
[]
[]
[]
[]
[]
[]
[]
[]
[]
[]
[{"$f":"\"UTILITY COST SUMMARY FOR \" & 'General Information'!B296 & \" - \" &'General Information'!B300","v":"UTILITY COST SUMMARY FOR 0 - 0"}]